Workbook

Sheet Autorizacion
L2: Propietario:
L3: Nº de días: | M3: 14
L4: Cuota: | M4: 00:20:00
B6: AUTORIZACIÓN DE REGISTRO DE DATOS HIGROTÉRMICOS
B8: =_xlfn._LONGTEXT("Con objeto de hacer un seguimiento sistemático de las condiciones ambientales en las que se encuentran determinadas estancias donde se producen patologías aparentemente relacionadas con humedades, y con la finalidad de emitir un diagnostico preciso de las"," causas de estas patologías, D/Dña ")&$M$2&", propietario/a de la vivienda situada en "&th_24h_Graf_Tot!H6&", autoriza al técnico redactor del informe a la colocación provisional en las dependencias afectadas de dicha vivienda, durante un período de "&$M$3&" días, del siguiente equipo:" -> Con objeto de hacer un seguimiento sistemático de las condiciones ambientales en las que se encuentran determinadas estancias donde se producen patologías aparentemente relacionadas con humedades, y con la finalidad de emitir un diagnostico preciso de las causas de estas patologías, D/Dña , propietario/a de la vivienda situada en , autoriza al técnico redactor del informe a la colocación provisional en las dependencias afectadas de dicha vivienda, durante un período de 14 días, del siguiente equipo:
B14: ="Registrador de datos higrotérmicos "&th_24h_Graf_Tot!O3 -> Registrador de datos higrotérmicos
B16: Características técnicas:
B18: ="- CUOTA DE MEDICIÓN: 20 minutos" -> - CUOTA DE MEDICIÓN: 20 minutos
B19: - TEMPERATURA | F19: - HUMEDAD RELATIVA
B20: · Sensor: | C20: =th_24h_Graf_Tot!O5 -> 0 | F20: · Sensor: | G20: =th_24h_Graf_Tot!Q5 -> 0
B21: · Rango: | C21: =th_24h_Graf_Tot!O6 -> 0 | F21: · Rango: | G21: =th_24h_Graf_Tot!Q6 -> 0
B22: · Resolución: | C22: =th_24h_Graf_Tot!O7 -> 0 | F22: · Resolución: | G22: =th_24h_Graf_Tot!Q7 -> 0
B23: · Precisión: | C23: =th_24h_Graf_Tot!O8 -> 0 | F23: · Precisión: | G23: =th_24h_Graf_Tot!Q8 -> 0
B25: Período de medición:
B26: ="Del "&TEXT(th_24h_Graf_Tot!$D$3,"dd/mm/aaaa")&", a las "&TEXT(th_24h_Graf_Tot!$G$3,"hh:mm")&" horas, al "&TEXT(th_24h_Graf_Tot!$H$3,"dd/mm/aaaa")&", a las "&TEXT(th_24h_Graf_Tot!$G$3,"hh:mm")&" horas" -> Del Sin datos, a las 00:00 horas, al Sin datos, a las 00:00 horas
B28: COMPROMISOS:
B30: 1. Los moradores de la vivienda se comprometen a custodiar y proteger el equipo instalado, evitando su manipulación e informando al redactor del informe de cualquier anomalía que se produzca durante el período de medición. Cualquier manipulación del equipo que se detecte al descargar los datos invalidará los resultados, quedando el redactor del informe eximido de practicar cualquier otra prueba.
B34: 2. Los resultados de las mediciones serán aceptados por todas las partes, es decir, tanto por los afectados, como por el redactor del informe, teniendo siempre en cuenta las imprecisiones que se mencionan en el cuadro de características técnicas que figura en este documento.
B38: 3. Los cálculos realizados por el redactor del informe con las mediciones obtenidas por el equipo durante el período de medición podrán ser rebatidos por el propietario de la vivienda, encargando a un técnico o gabinete técnico independiente un informe pericial contradictorio. Para ello, el propietario podrá solicitar por escrito al redactor del informe una copia del archivo generado por el registrador de datos con las mediciones realizadas.
B43: Lugo, 15 enero 2026
B44: El Arquitecto técnico | F44: El/La propietario/a de la vivienda
B49: José M. Grandío Rodríguez | F49: =M2 -> 0

Sheet th_24h_Graf_Tot
A1: 2 | B1: PERIODO DE MEDICIÓN | M1: FALSE | N1: REGISTRADOR DE DATOS: | Q1: FALSE | R1: FALSE | S1: Mínimo | T1: =th_24h_Datos!L1 -> 0 | V1: FALSE | Y1: 80
A2: TRUE | B2: Nº de días | D2: 0 | E2: Del | G2: A las [h] | I2: Al | L2: Cada [h:mm] | S2: Valor x | T2: =IF(A2=FALSE,th_24h_Datos!L1,th_24h_Datos!L1+th_24h_Graf!G3) -> 0 | U2: =T2 -> 00:00:00 | Y2: 250
A3: FALSE | D3: =IF(th_24h_Datos!$L$1="","Sin datos",th_24h_Datos!$L$1) -> Sin datos | G3: =th_24h_Graf!G3 -> 00:00:00 | H3: =IF(th_24h_Datos!$L$1="","Sin datos",D3+IF(A1=1,7,14)) -> Sin datos | L3: =th_24h_Graf!J3 -> 00:20:00 | N3: Modelo: | S3: Máximo | T3: =IF(A2=FALSE,IF(A1=1,T1+7,T1+14),IF(A1=1,T1+8,T1+15)) -> 15
A4: FALSE | O4: Temperatura | Q4: Humedad relativa
A5: FALSE | B5: LOCALIDAD DE CÁLCULO: | G5: SITUACIÓN DE LA VIVIENDA | N5: Sensor | S5: Nombre: | T5: =IF(A2=FALSE,"","Inicio "&HOUR(th_24h_Graf!G3)&":"&MINUTE(th_24h_Graf!G3)) -> Inicio 0:0
B6: ="Capital: "&Provincia&";"&" Altitud: "&hC&" m.s.n.m; Zona Climática "&Z_Capital_2013 -> Capital: ; Altitud: m.s.n.m; Zona Climática | G6: Calle, nº y piso: | N6: Rango
B7: ="Localidad: "&Localidad&"; Altitud: "&hL&" m.s.n.m; Zona Climática "&Zona_HE_2013!W3 -> Localidad: ; Altitud: m.s.n.m; Zona Climática | G7: C.P. y municipio: | N7: Resolución | S7: ="Horas con φsi > "&th_24h_Graf!BJ3&"%" -> Horas con φsi > 80%
N8: Precisión ±
B9: =IF(th_24h_Graf_Tot!W80=TRUE,"RT = "&ResTerm&" [m2 K/w]","") ->  | S9: Nombre2: | T9: φsi
B10: =IF(th_24h_Graf_Tot!W80=TRUE,"Humedad relativa interior media = "&ROUND(HrM,1)&" [%]","") -> 
B11: =IF(th_24h_Graf_Tot!W80=TRUE,"Humedad relativa superficial interior = "&ROUND(L98,4)*100&" [%]","") -> 
W12: REGISTRADOR
X13: Temperatura | Y13: Humedad relativa
W14: =N5 -> Sensor | X14: =O5 -> 0 | Y14: =Q5 -> 0
W15: =N6 -> Rango | X15: =O6 -> 0 | Y15: =Q6 -> 0
W16: Resolución | X16: 0 | Y16: 0
W17: Precisión ± | X17: 0 | Y17: 0
U19: Nº de días | V19: Del | W19: A las [h] | X19: Al | Y19: Cada [h:mm]
U20: =IF(A1=1,7,14) -> 14 | V20: =D3 -> Sin datos | W20: =G3 -> 00:00:00 | X20: =H3 -> Sin datos | Y20: =L3 -> 00:20:00
B46: RESULTADOS DE LAS MEDICIONES EFECTUADAS:
B48: θi mín: | C48: =Tmin -> 0 | D48: θi med: | E48: =TM -> 0 | F48: [ºC]
B49: φi máx: | C49: =HrMax -> 0 | D49: φi med: | E49: =HrM -> 0 | F49: [%]
B51: Como cosecuencia, la situación en la superficie interior del cerramiento es:
A52: FALSE
B53: Medición: | D53: =th_24h_Datos!$BH$1013 -> 0 | E53: Horas
B54: ="φsi ≥ "&th_24h_Graf!$BJ$3&":" -> φsi ≥ 80: | D54: =IFERROR(W84,0) -> 0 | E54: Horas
B55: Porcentaje: | D55: =W85 -> 0 | E55: =IF(D55=0,"No existe riesgo de formación de moho superficial",IF(AND(D55>0,D55<0.15),"Existe posibilidad de producción de moho superficial","Existe alto riesgo de producción de moho superficial")) -> No existe riesgo de formación de moho superficial
B58: CÁLCULOS HIGROTÉRMICOS DEL CERRAMIENTO:
B59: CERRAMIENTO: | C59: =BeTres -> ¿Cerramiento? | Q59: θi - θe | R59: RT | S59: Pvi | T59: Pi - Pe | U59: Sd | V59: Pvi 2
Q60: =E48-O91 -> 0 | R60: =SUM(G64:G77) -> 0.17 | S60: =ROUND(610.5*EXP(1)^((17.269*L91)/(237.3+L91))*L92/100,2) -> 0 | T60: =S60-IF(O91>=0,ROUND(610.5*EXP(1)^((17.269*O91)/(237.3+O91))*O92,2),ROUND(610.5*EXP(1)^((21.875*O91)/(265.5+O91))*O92,2)) -> -579.98 | U60: =SUM(K65:K76) -> 0 | V60: =(610.5*EXP(1)^((17.269*L96)/(237.3+L96))) -> 
B61: COMPOSICIÓN | F61: TEMPERATURA EN LAS CAPAS | J61: TEMPERATURA DE ROCÍO EN CAPAS | W61: 1
B62: Material (interior a exterior) | E62: e [m] | F62: λ [w/mK] | G62: Rn [m2K/w] | H62: θ [ºC] | I62: Psat [Pa] | J62: μ [Adim.] | K62: Sdn [m] | L62: Pv [Pa] | M62: θrocío [ºC] | S62: Δθ [ºC] | T62: Cond | W62: X | X62: Y
B63: ="- "&'Cerr.Vert.ext.'!$B$11 -> - Aire interior | E63: ='Cerr.Vert.ext.'!$C$11 -> - | F63: ='Cerr.Vert.ext.'!$D$11 -> - | G63: ='Cerr.Vert.ext.'!$F$11 -> - | H63: =L91 -> 0 | I63: =IF(H63>=0,610.5*EXP(1)^((17.269*H63)/(237.3+H63)),610.5*EXP(1)^((21.875*H63)/(265.5+H63))) -> 610.5 | J63: ='Cerr.Vert.ext.'!$E$11 -> - | K63: ='Cerr.Vert.ext.'!$J$11 -> - | L63: =$S$60 -> 0 | M63: =IFERROR(237.3*LN(L63/610.5)/(17.269-LN(L63/610.5)),"") ->  | N63: - | S63: - | T63: =IF(K63=0,"",IF(I63-L63>0,"No","Sí")) -> No | U63: =COUNTIF(T64:T76,"Sí") -> 0 | V63: =IF(B65="-","",IF(L65/I65>1,1,"")) ->  | W63: ='Cerr.Vert.ext.'!AY13 -> 0 | X63: =IF(V63="",35,27) -> 35
B64: ="- "&'Cerr.Vert.ext.'!$B$12 -> - Superficie interior del cerramiento | E64: ='Cerr.Vert.ext.'!$C$12 -> - | F64: ='Cerr.Vert.ext.'!$D$12 -> - | G64: ='Cerr.Vert.ext.'!$F$12 -> 0.13 | H64: =H63-S64 -> 0 | I64: 610.5 | J64: - | K64: ='Cerr.Vert.ext.'!$J$12 -> - | L64: =$S$60 -> 0 | M64: =IFERROR(237.3*LN(L64/610.5)/(17.269-LN(L64/610.5)),"") ->  | N64: - | S64: =$Q$60*G64/$R$60 -> 0 | T64: No | W64: ='Cerr.Vert.ext.'!AY14 -> 0 | X64: =IF(V64="",35,27) -> 35
B65: ="- "&'Cerr.Vert.ext.'!$B$13 -> - - | E65: ='Cerr.Vert.ext.'!$C$13 -> 0 | F65: ='Cerr.Vert.ext.'!$D$13 -> 0 | G65: =IF('Cerr.Vert.ext.'!F13="-",0,'Cerr.Vert.ext.'!F13) -> 0 | H65: 0 | I65: 610.5 | J65: ='Cerr.Vert.ext.'!$E$13 -> 0 | K65: ='Cerr.Vert.ext.'!$J$13 -> 0 | L65: =IFERROR($S$60-$N$65,0) -> 0 | M65: =IFERROR(237.3*LN(L65/610.5)/(17.269-LN(L65/610.5)),0) -> 0 | N65: =(K65/$U$60)*$T$60 ->  | S65: 0 | W65: ='Cerr.Vert.ext.'!AY15 -> 0 | X65: 35
B66: ="- "&'Cerr.Vert.ext.'!$B$14 -> - - | E66: ='Cerr.Vert.ext.'!$C$14 -> 0 | F66: ='Cerr.Vert.ext.'!$D$14 -> 0 | G66: =IF('Cerr.Vert.ext.'!F14="-",0,'Cerr.Vert.ext.'!F14) -> 0 | H66: 0 | I66: 610.5 | J66: ='Cerr.Vert.ext.'!$E$14 -> 0 | K66: ='Cerr.Vert.ext.'!$J$14 -> 0 | L66: =IFERROR($S$60-SUM($N$65:N66),0) -> 0 | M66: 0 | S66: 0 | W66: ='Cerr.Vert.ext.'!AY16 -> 0 | X66: 35
B67: ="- "&'Cerr.Vert.ext.'!$B$15 -> - - | E67: ='Cerr.Vert.ext.'!$C$15 -> 0 | F67: ='Cerr.Vert.ext.'!$D$15 -> 0 | G67: =IF('Cerr.Vert.ext.'!F15="-",0,'Cerr.Vert.ext.'!F15) -> 0 | H67: 0 | I67: 610.5 | J67: ='Cerr.Vert.ext.'!$E$15 -> 0 | K67: ='Cerr.Vert.ext.'!$J$15 -> 0 | L67: =IFERROR($S$60-SUM($N$65:N67),0) -> 0 | M67: 0 | S67: 0 | W67: ='Cerr.Vert.ext.'!AY17 -> 0 | X67: 35
B68: ="- "&'Cerr.Vert.ext.'!$B$16 -> - - | E68: ='Cerr.Vert.ext.'!$C$16 -> 0 | F68: ='Cerr.Vert.ext.'!$D$16 -> 0 | G68: =IF('Cerr.Vert.ext.'!F16="-",0,'Cerr.Vert.ext.'!F16) -> 0 | H68: 0 | I68: 610.5 | J68: ='Cerr.Vert.ext.'!$E$16 -> 0 | K68: ='Cerr.Vert.ext.'!$J$16 -> 0 | L68: =IFERROR($S$60-SUM($N$65:N68),0) -> 0 | M68: 0 | S68: 0 | W68: ='Cerr.Vert.ext.'!AY18 -> 0 | X68: 35
B69: ="- "&'Cerr.Vert.ext.'!$B$17 -> - - | E69: ='Cerr.Vert.ext.'!$C$17 -> 0 | F69: ='Cerr.Vert.ext.'!$D$17 -> 0 | G69: =IF('Cerr.Vert.ext.'!F17="-",0,'Cerr.Vert.ext.'!F17) -> 0 | H69: 0 | I69: 610.5 | J69: ='Cerr.Vert.ext.'!$E$17 -> 0 | K69: ='Cerr.Vert.ext.'!$J$17 -> 0 | L69: =IFERROR($S$60-SUM($N$65:N69),0) -> 0 | M69: 0 | S69: 0 | W69: ='Cerr.Vert.ext.'!AY19 -> 0
B70: ="- "&'Cerr.Vert.ext.'!$B$18 -> - - | E70: ='Cerr.Vert.ext.'!$C$18 -> 0 | F70: ='Cerr.Vert.ext.'!$D$18 -> 0 | G70: =IF('Cerr.Vert.ext.'!F18="-",0,'Cerr.Vert.ext.'!F18) -> 0 | H70: 0 | I70: 610.5 | J70: ='Cerr.Vert.ext.'!$E$18 -> 0 | K70: ='Cerr.Vert.ext.'!$J$18 -> 0 | L70: =IFERROR($S$60-SUM($N$65:N70),0) -> 0 | M70: 0 | S70: 0 | W70: ='Cerr.Vert.ext.'!AY20 -> 0 | X70: 35
B71: ="- "&'Cerr.Vert.ext.'!$B$19 -> - - | E71: ='Cerr.Vert.ext.'!$C$19 -> 0 | F71: ='Cerr.Vert.ext.'!$D$19 -> - | G71: =IF('Cerr.Vert.ext.'!F19="-",0,'Cerr.Vert.ext.'!F19) -> 0 | H71: 0 | I71: 610.5 | J71: ='Cerr.Vert.ext.'!$E$19 -> 0 | K71: ='Cerr.Vert.ext.'!$J$19 -> 0 | L71: =$S$60-SUM($N$65:N71) ->  | M71: =237.3*LN(L71/610.5)/(17.269-LN(L71/610.5)) ->  | N71: =IF('Cerr.Vert.ext.'!$P$10=1,0,IF(AND(E71>0,K71=0),"-",(K71/$U$60)*$T$60)) -> 0 | S71: 0 | W71: ='Cerr.Vert.ext.'!AY21 -> 0 | X71: 35
B72: ="- "&'Cerr.Vert.ext.'!$B$20 -> - - | E72: ='Cerr.Vert.ext.'!$C$20 -> 0 | F72: ='Cerr.Vert.ext.'!$D$20 -> 0 | G72: =IF('Cerr.Vert.ext.'!F20="-",0,'Cerr.Vert.ext.'!F20) -> 0 | H72: 0 | I72: 610.5 | J72: ='Cerr.Vert.ext.'!$E$20 -> 0 | K72: ='Cerr.Vert.ext.'!$J$20 -> 0 | L72: =IFERROR($S$60-SUM($N$65:N72),0) -> 0 | M72: =IFERROR(237.3*LN(L72/610.5)/(17.269-LN(L72/610.5)),0) -> 0 | N72: =IF(AND(E72>0,K72=0),"-",(K72/$U$60)*$T$60) ->  | S72: 0 | W72: ='Cerr.Vert.ext.'!AY22 -> 0 | X72: 35
B73: ="- "&'Cerr.Vert.ext.'!$B$21 -> - - | E73: ='Cerr.Vert.ext.'!$C$21 -> 0 | F73: ='Cerr.Vert.ext.'!$D$21 -> 0 | G73: =IF('Cerr.Vert.ext.'!F21="-",0,'Cerr.Vert.ext.'!F21) -> 0 | H73: 0 | I73: 610.5 | J73: ='Cerr.Vert.ext.'!$E$21 -> 0 | K73: ='Cerr.Vert.ext.'!$J$21 -> 0 | L73: =IFERROR($S$60-SUM($N$65:N73),0) -> 0 | M73: 0 | N73: =IF(AND(E73>0,K73=0),"-",(K73/$U$60)*$T$60) ->  | S73: 0 | W73: ='Cerr.Vert.ext.'!AY23 -> 0 | X73: 35
B74: ="- "&'Cerr.Vert.ext.'!$B$22 -> - - | E74: ='Cerr.Vert.ext.'!$C$22 -> 0 | F74: ='Cerr.Vert.ext.'!$D$22 -> 0 | G74: =IF('Cerr.Vert.ext.'!F22="-",0,'Cerr.Vert.ext.'!F22) -> 0 | H74: 0 | I74: 610.5 | J74: ='Cerr.Vert.ext.'!$E$22 -> 0 | K74: ='Cerr.Vert.ext.'!$J$22 -> 0 | L74: =IFERROR($S$60-SUM($N$65:N74),0) -> 0 | M74: 0 | N74: =IF(AND(E74>0,K74=0),"-",(K74/$U$60)*$T$60) ->  | S74: 0
B75: ="- "&'Cerr.Vert.ext.'!$B$23 -> - - | E75: ='Cerr.Vert.ext.'!$C$23 -> 0 | F75: ='Cerr.Vert.ext.'!$D$23 -> 0 | G75: =IF('Cerr.Vert.ext.'!F23="-",0,'Cerr.Vert.ext.'!F23) -> 0 | H75: 0 | I75: 610.5 | J75: ='Cerr.Vert.ext.'!$E$23 -> 0 | K75: ='Cerr.Vert.ext.'!$J$23 -> 0 | L75: =IFERROR($S$60-SUM($N$65:N75),0) -> 0 | M75: 0 | N75: =IF(AND(E75>0,K75=0),"-",(K75/$U$60)*$T$60) ->  | S75: 0
B76: ="- "&'Cerr.Vert.ext.'!$B$24 -> - - | E76: ='Cerr.Vert.ext.'!$C$24 -> 0 | F76: ='Cerr.Vert.ext.'!$D$24 -> 0 | G76: =IF('Cerr.Vert.ext.'!F24="-",0,'Cerr.Vert.ext.'!F24) -> 0 | H76: 0 | I76: 610.5 | J76: ='Cerr.Vert.ext.'!$E$24 -> 0 | K76: ='Cerr.Vert.ext.'!$J$24 -> 0 | L76: =IFERROR($S$60-SUM($N$65:N76),0) -> 0 | M76: 0 | N76: =IF(AND(E76>0,K76=0),"-",(K76/$U$60)*$T$60) ->  | S76: 0
B77: ="- "&'Cerr.Vert.ext.'!$B$25 -> - Superficie exterior del cerramiento/Aire exterior | E77: ='Cerr.Vert.ext.'!$C$25 -> - | F77: ='Cerr.Vert.ext.'!$D$25 -> - | G77: ='Cerr.Vert.ext.'!$F$25 -> 0.04 | H77: 0 | I77: 610.5 | J77: - | K77: ='Cerr.Vert.ext.'!$J$25 -> - | L77: =IFERROR($S$60-SUM($N$65:N77),0) -> 0 | M77: 0 | N77: - | S77: 0 | T77: No
AA78: Hr interior | AD78: Hr exterior
X79: Tª | Y79: Pv | AA79: X | AB79: Y | AD79: X | AE79: Y | AG79: Capas del cerramiento
K80: RESULTADO DEL SISTEMA CONSTRUCTIVO DEL CERRAMIENTO | S80: =H63 -> 0 | T80: =M63 ->  | U80: TRUE | W80: FALSE | X80: =IF($W$80=FALSE,NA(),H63) ->  | Y80: =IF($W$80=FALSE,NA(),L63) ->  | AA80: =L91-5 -> -5 | AB80: =IF($W$80=FALSE,NA(),IF(AA80>=0,610.5*EXP(1)^((17.269*AA80)/(237.3+AA80)),610.5*EXP(1)^((21.875*AA80)/(265.5+AA80)))*$L$92/100) ->  | AD80: =O91-5 -> -5 | AE80: =IF($W$80=FALSE,NA(),IF(AD80>=0,610.5*EXP(1)^((17.269*AD80)/(237.3+AD80)),610.5*EXP(1)^((21.875*AD80)/(265.5+AD80)))*$O$92) ->  | AG80: =A_Sicr.!T36 -> 0 | AH80: =IF($W$80=FALSE,NA(),A_Sicr.!U36) -> 
S81: =H64 -> 0 | X81: =IF($W$80=FALSE,NA(),H64) ->  | AA81: =AA80+0.1 -> -4.9 | AB81: =IF($W$80=FALSE,NA(),IF(AA81>=0,610.5*EXP(1)^((17.269*AA81)/(237.3+AA81)),610.5*EXP(1)^((21.875*AA81)/(265.5+AA81)))*$L$92/100) ->  | AD81: =AD80+0.1 -> -4.9 | AE81: =IF($W$80=FALSE,NA(),IF(AD81>=0,610.5*EXP(1)^((17.269*AD81)/(237.3+AD81)),610.5*EXP(1)^((21.875*AD81)/(265.5+AD81)))*$O$92) ->  | AG81: =A_Sicr.!T37 ->  | AH81: =IF($W$80=FALSE,NA(),A_Sicr.!U37) ->  | AI81: =IF($W$80=FALSE,NA(),IF(I64<L64,2400,3500)) -> 
J82: RSI[m2K/w] | L82: =G64 -> 0.13 | M82: ="- Tipo de cerramiento: " & ZonEle -> - Tipo de cerramiento: MURO | Q82: =IF(A5=TRUE,0.25,G64) -> 0.13 | S82: 0 | T82: 0 | U82: A1=1 (7 dias) | W82: Grafica | AA82: =AA81+0.1 -> -4.8 | AD82: =AD81+0.1 -> -4.8 | AG82: =A_Sicr.!T38 ->  | AH82: =IF($W$80=FALSE,NA(),A_Sicr.!U38) ->  | AI82: =IF($W$80=FALSE,NA(),IF(I65<L65,2400,3500)) -> 
K83: RT[m2K/w] | L83: =ResTerm -> 0 | M83: UT [w/m2K]: | N83: =IFERROR(ROUND(1/L83,2),"") ->  | S83: 0 | T83: 0 | U83: Horas | V83: =IF($A$1=1,th_24h_Datos!$BH$1016,0) -> 0 | W83: =MAX(V83,V88) -> 0 | AA83: -4.7 | AD83: -4.7 | AG83: =A_Sicr.!T39 ->  | AH83: =IF($W$80=FALSE,NA(),A_Sicr.!U39) -> 
S84: 0 | T84: 0 | U84: >80% | V84: =IF($A$1=1,th_24h_Datos!$BG$1016,0) -> 0 | W84: =MAX(V84,V89) ->  | AA84: -4.6 | AD84: -4.6 | AG84: =A_Sicr.!T40 ->  | AH84: =IF($W$80=FALSE,NA(),A_Sicr.!U40) -> 
K85: =IF(ResTerm=0,"",IF(L83<Y96,"- La resistencia térmica del cerramiento es muy baja","- La resistencia térmica del cerramiento es aceptable")) ->  | S85: 0 | T85: 0 | U85: % | V85: =IF($A$1=1,th_24h_Datos!$BI$1015,0) -> 0 | W85: =IFERROR(MAX(V85,V90),0) -> 0 | AA85: -4.5 | AD85: -4.5 | AG85: =A_Sicr.!T41 ->  | AH85: =IF($W$80=FALSE,NA(),A_Sicr.!U41) -> 
S86: 0 | T86: 0 | AA86: -4.4 | AD86: 0 | AG86: =A_Sicr.!T42 ->  | AH86: =IF($W$80=FALSE,NA(),A_Sicr.!U42) -> 
K87: RESULTADO DE LA UTILIZACIÓN DE LA VIVIENDA | S87: 0 | T87: 0 | U87: A1=2 (14 dias) | AA87: -4.3 | AD87: 0.1 | AG87: =A_Sicr.!T43 ->  | AH87: =IF($W$80=FALSE,NA(),A_Sicr.!U43) -> 
S88: 0 | U88: Horas | V88: =IF($A$1=2,th_24h_Datos!$BH$1013,0) -> 0 | AA88: -4.2 | AD88: 0.2 | AG88: =A_Sicr.!T44 ->  | AH88: =IF($W$80=FALSE,NA(),A_Sicr.!U44) -> 
K89: Condiciones de cálculo interiores (valores medios de medición) y exteriores | S89: 0 | T89: 0 | U89: >80% | V89: =IF($A$1=2,th_24h_Datos!$BG$1013,0) ->  | AA89: -4.1 | AD89: 0.3 | AG89: =A_Sicr.!T45 ->  | AH89: =IF($W$80=FALSE,NA(),A_Sicr.!U45) -> 
S90: 0 | T90: 0 | U90: % | V90: =IF($A$1=2,th_24h_Datos!$BI$1012,0) -> 0 | AA90: -4 | AD90: 0.4 | AG90: =A_Sicr.!T46 ->  | AH90: =IF($W$80=FALSE,NA(),A_Sicr.!U46) -> 
K91: θi | L91: =E48 -> 0 | M91: [ºC] | N91: θe | O91: =IF(Q91=FALSE,DeSeis,ROUND(th_24h_Datos!I1018,2)) -> 0 | P91: [ºC] | Q91: FALSE | S91: 0 | T91: 0 | AA91: -3.9 | AD91: 0.5 | AG91: =A_Sicr.!T47 ->  | AH91: =IF($W$80=FALSE,NA(),A_Sicr.!U47) -> 
K92: φi | L92: =ROUND(E49,1) -> 0 | M92: [%] | N92: φe | O92: =IF(Q91=FALSE,GeSeis,th_24h_Datos!J1018/100) -> 0.95 | R92: =ROUND(L92/100,4) -> 0 | S92: 0 | T92: 0 | U92: Límite RT | AA92: -3.8 | AD92: 0.6 | AG92: =A_Sicr.!T48 ->  | AH92: =IF($W$80=FALSE,NA(),A_Sicr.!U48) -> 
S93: 0 | T93: 0 | V93: H6 (Pvi) | W93: θsi, mín | AA93: -3.7 | AD93: 0.7 | AG93: =A_Sicr.!T49 ->  | AH93: =IF($W$80=FALSE,NA(),A_Sicr.!U49) -> 
K94: RESULTADO CONJUNTO CONSTRUCCIÓN - UTILIZACIÓN | S94: 0 | T94: 0 | V94: =ROUND(610.5*EXP(1)^((17.269*20)/(237.3+20))*0.55,2) -> 1285.32 | W94: =237.3*LN((V94/(T99/100))/610.5)/(17.269-LN((V94/(T99/100))/610.5)) -> 14.27994877 | AA94: -3.6 | AD94: 0.8 | AG94: =A_Sicr.!T50 -> 0 | AH94: =IF($W$80=FALSE,NA(),A_Sicr.!U50) -> 
U95: RT mín | V95: UT màx | W95: RT mín | AA95: =AA94+0.1 -> -3.5 | AD95: 0.9
K96: θsi | L96: =IF(ResTerm=0,"",L91-(0.25/R60)*Q60) ->  | M96: [ºC] para RSI = 0,25 [m2K/w] | S96: =IF(th_24h_Graf_Tot!W80=TRUE,L96,NA()) ->  | T96: φe | U96: =W96 -> 0.88 | V96: =W97 -> 1.14 | W96: =ROUND(1/W97,2) -> 0.88 | X96: 10 | Y96: =W96*(1+X96/100) -> 0.968 | AA96: -3.4 | AD96: 1
K97: θsi, mín | L97: =IFERROR(237.3*LN(($S$60/0.8)/610.5)/(17.269-LN(($S$60/0.8)/610.5)),0) -> 0 | M97: [ºC] | S97: =IF(th_24h_Graf_Tot!W80=TRUE,L97,NA()) ->  | W97: =ROUND((20-W94)/(0.25*(20-O91)),2) -> 1.14 | X97: % | Y97: =ROUND(1/Y96,2) -> 1.03 | AA97: -3.3 | AD97: 1.1 | AG97: Límites por defecto
K98: φsi | L98: =IF(ResTerm=0,"",ROUND(IF(S60/V60<=1,S60/V60,1),2)) ->  | S98: =IF(th_24h_Graf_Tot!W80=TRUE,K98&"; "&L98*100&" %",NA()) ->  | T98: Límite φsi % | AA98: -3.2 | AD98: 1.2 | AG98: φsi | AH98: 79
T99: 79 | U99: ="para una φsi = "&T99&"%" -> para una φsi = 79% | AA99: -3.1 | AD99: 1.3 | AG99: % S/RT | AH99: 10
K100: =IF(ResTerm=0,"",IF(L98>=T99/100,"- Se produce riesgo de formación de moho superficial","- No existe riesgo de formación de moho superficial")) ->  | AA100: -3 | AD100: 1.4 | AG100: RT, mín | AH100: 2,04
T101: Límite φi | U101: RT si muy baja promotor | V101: θsi2 | X101: θi - θe | AA101: -2.9 | AD101: 1.5
K102: =IF(ResTerm=0,"",IF(U63>0,"- C. intersticial en "&IF(U63<2,1&" capa: ",U63&" capas: ")&" posible empeoramiento del riesgo de condensación superficial","- No se produce riesgo de condensación intersticial")) ->  | U102: 2.7 | V102: =20-(0.25/IF(L83<Y96,U102,L83))*X102 -> 18.14814815 | W102: [ºC] | X102: =20-DeSeis -> 20 | AA102: -2.8 | AD102: 1.6
AA103: -2.7 | AD103: 1.7
U104: Pi, máx | V104: Pi, real | W104: φ cálculo | AA104: -2.6 | AD104: 1.8
B105: RESUMEN DE RESULTADOS OBTENIDOS: | U105: =(610.5*EXP(1)^((17.269*20)/(237.3+20))*W105/100) -> 1635.865801 | V105: =(610.5*EXP(1)^((17.269*L91)/(237.3+L91))*L92/100) -> 0 | W105: 70 | X105: ="La presión de vapor interior real no puede ser superior a la presión de vapor máxima correspondiente a una humedad relativa del "&W105&"%" -> La presión de vapor interior real no puede ser superior a la presión de vapor máxima correspondiente a una humedad relativa del 70% | AA105: -2.5 | AD105: 1.9
AA106: -2.4 | AD106: 2
B107: RIESGO DE CONDENSACIÓN SUPERFICIAL: | F107: =IF(ResTerm=0,"",IF(L98>=th_24h_Graf_Tot!T99/100,"SÍ","NO")) ->  | G107: =IF(F107="SÍ",1,0) -> 0 | U107: Psat_i (20 ºC) | V107: Psat_si | W107: φi ≤ | AA107: -2.3 | AD107: 2.1
B108: DEFICIENTE SISTEMA CONSTRUCTIVO DEL CERRAMIENTO: | F108: =IF(ResTerm=0,"",IF(F107="NO","-",IF(L83>Y96,"NO","SÍ"))) ->  | G108: =IF(F108="SÍ",1,0) -> 0 | U108: =ROUND(610.5*EXP(1)^((17.269*20)/(237.3+20)),2) -> 2336.95 | V108: =(610.5*EXP(1)^((17.269*V102)/(237.3+V102))) -> 2082.122755 | W108: =ROUND((T99/100)*(V108/U108),2) -> 0.7 | AA108: -2.2 | AD108: 2.2
B109: UTILIZACIÓN INADECUADA DE LA VIVIENDA: | F109: =IF(ResTerm=0,"",IF(F107="NO","-",IF(L92>W105,"SÍ","NO"))) ->  | G109: =IF(F109="SÍ",1,0) -> 0 | AA109: -2.1 | AD109: 2.3
T110: EXPLICACIÓN φi (Incognita): | W110: RT por defecto | AA110: -2 | AD110: 2.4
B111: =IF(U80=FALSE,"","DIAGNÓSTICO:") -> DIAGNÓSTICO: | C111: =IF(U80=FALSE,"",IF(F107="SÍ"," Existe riesgo de condensación superficial"," No existe riesgo de condensación superficial")) -> No existe riesgo de condensación superficial | G111: =IF(U80=FALSE,"","CAUSAS:") -> CAUSAS: | H111: =IF(th_24h_Datos!D3 = "","Es necesario cargar datos de Tª y Hr interiores",IF(ResTerm=0,"No está definido el cerramiento",IF(U80=FALSE,"",IF(AND(F107="NO",F108="-",F109="-"),"",IF(AND(F108="SÍ",F109="NO"),"A juicio del técnico que suscribe el presente informe, y tras el análisis de las condiciones constructivas del cerramiento, se considera que la formación de moho en su cara interior se debe a una solución constructiva incorrecta, "&"circunstancia que ha propiciado un entorno favorable para la proliferación de microorganismos",IF(AND(F108="NO",F109="SÍ"),"A juicio del técnico que suscribe el presente informe, la presencia de moho en la cara interior del cerramiento no responde a una solución constructiva incorrecta,"&" sino a un uso inadecuado de la vivienda, lo cual ha generado condiciones de humedad persistente y favorecido el crecimiento de moho.",IF(AND(F108="SÍ",F109="SÍ"),"De acuerdo con la evaluación realizada por el técnico que suscribe este informe, las causas de la presencia de moho en la superficie interior del cerramiento se deben tanto a una solución constructiva incorrecta, como a un uso inapropiado de la vivienda"))))))) -> Es necesario cargar datos de Tª y Hr interiores | W111: =IFERROR(ROUND(1/TransmMax,2),"Z. Clim.") -> Z. Clim. | AA111: -1.9 | AD111: 2.5
T112: φi * Psat_i ≤ φsi * Psat_si | AA112: -1.8 | AD112: 2.6
B113: =IF(U80=FALSE,"EN BASE A LOS RESULTADOS ANTERIORES SE EMITE EL SIGUIENTE INFORME:","COMENTARIOS:") -> COMENTARIOS: | AA113: -1.7 | AD113: 2.7
AA114: -1.6 | AD114: 2.8
AA115: -1.5 | AD115: 2.9
AA116: -1.4 | AD116: 3
AA117: -1.3 | AD117: 3.1
AA118: -1.2 | AD118: 3.2
AA119: -1.1 | AD119: 3.3
O120: =PROPER(Inicio!C23)&", "&TEXT(TODAY(),"dd mmmm aaaa") -> Lugo, 28 abril 2026 | AA120: -1 | AD120: 3.4
O121: =IF(Inicio!C22="","",(Inicio!C22)) -> El arquitecto técnico | AA121: -0.9 | AD121: 3.5
AA122: -0.8 | AD122: 3.6
AA123: -0.7 | AD123: 3.7
AA124: -0.6 | AD124: 3.8
AA125: -0.5 | AD125: 3.9
O126: =IF(Inicio!C22="",UPPER(Inicio!C21),PROPER(Inicio!C21)) -> José M. Grandío Rodríguez | AA126: -0.4 | AD126: 4
AA127: =AA126+0.1 -> -0.3 | AD127: 4.1
AA128: -0.2 | AD128: 4.2
B129: RECOMENDACIONES A LOS USUARIOS DE LAS VIVIENDAS | AA129: -0.1 | AD129: 4.3
AA130: -1.026956298e-15 | AD130: 4.4
C131: CONSEJOS PARA EVITAR CONDENSACIONES SUPERFICIALES | AA131: 0.1 | AD131: 4.5
AA132: 0.2 | AD132: 4.6
C133: 1 | D133: Ventilación regular: Asegurar una ventilación diaria de todas las estancias, especialmente en dormitorios, baños y cocinas. Se sugiere ventilar al menos 10-15 minutos por la mañana, abriendo ventanas en extremos opuestos si es posible. | AA133: 0.3 | AD133: 4.7
AA134: 0.4 | AD134: 4.8
C135: 2 | D135: Control de la humedad interior: Evitar la acumulación de humedad generada por actividades cotidianas como cocinar, ducharse o secar ropa en el interior. En caso necesario, se recomienda el uso de sistemas de ventilación mecánica controlada (VMC). | AA135: 0.5 | AD135: 4.9
AA136: 0.6 | AD136: 5
C137: 3 | D137: Temperatura constante: Mantener una temperatura interior estable, entre 19 °C y 21 °C, especialmente en invierno. Las temperaturas bajas pueden favorecer la condensación sobre superficies frías. | AA137: 0.7 | AD137: 5.1
AA138: 0.8 | AD138: 5.2
C139: 4 | D139: Evitar obstrucciones del cerramiento interior: No colocar muebles grandes o cortinas gruesas en contacto directo con los cerramientos exteriores, ya que pueden dificultar la ventilación de las superficies y favorecer la condensación. | AA139: 0.9 | AD139: 5.3
AA140: 1 | AD140: 5.4
AA141: 1.1 | AD141: 5.5
C142: 5 | D142: Uso responsable de calefacción: | AA142: 1.2 | AD142: 5.6
D143: Evitar sistemas de calefacción por combustión sin evacuación al exterior (estufas de gas butano), ya que generan una gran cantidad de vapor de agua. | AA143: 1.3 | AD143: 5.7
AA144: 1.4 | AB144: =IF($W$80=FALSE,NA(),IF(AA144>=0,610.5*EXP(1)^((17.269*AA144)/(237.3+AA144)),610.5*EXP(1)^((21.875*AA144)/(265.5+AA144)))*$L$92/100) ->  | AD144: 5.8
B145: VMC.- VENTILACIÓN MECÁNICA CONTROLADA | AA145: 1.5 | AD145: 5.9
AA146: 1.6 | AD146: =AD145+0.1 -> 6
C147: Existe un sistema de ventilación altamente eficiente que previene la condensación (superficial, sobre todo) sin pérdida de energía. Este sistema intercambia el aire caliente del interior por aire frío del exterior mediante un intercambiador de calor, elevando la temperatura del aire entrante aprovechando el calor del aire saliente. | AA147: 1.7 | AD147: 6.1 | AE147: =IF($W$80=FALSE,NA(),IF(AD147>=0,610.5*EXP(1)^((17.269*AD147)/(237.3+AD147)),610.5*EXP(1)^((21.875*AD147)/(265.5+AD147)))*$O$92) -> 
AA148: 1.8 | AD148: 6.2
AA149: 1.9 | AD149: 6.3
AA150: 2 | AD150: 6.4
AA151: 2.1 | AD151: 6.5
J152: 1 | K152: Se extrae el aire viciado por las zonas húmedas (cocina y baños) | AA152: 2.2 | AD152: 6.6
AA153: 2.3 | AD153: 6.7
J154: 2 | K154: Al mismo tiempo se introduce aire exterior por zonas secas (salón y dormitorios) | AA154: 2.4 | AD154: 6.8
AA155: 2.5 | AD155: 6.9
J156: 3 | K156: Las redes de extracción e impulsión se cruzan sin mezclarse en un recuperador | AA156: 2.6 | AD156: 7
K157: de calor, donde el aire viciado cede su calor al aire limpio con una eficiencia de | AA157: 2.7 | AD157: 7.1
K158: más del 90%, teniendo que calentar menos de un 10% el aire exterior para | AA158: 2.8 | AD158: 7.2
K159: conseguirla temperatura de funcionamiento, con el consiguiente ahorro energético | AA159: 2.9 | AD159: 7.3
AA160: 3 | AD160: 7.4
J161: 4 | K161: El aire entrante es filtrado a su entrada (menos polen, polvo, etc.). | AA161: 3.1 | AD161: 7.5
AA162: 3.2 | AD162: 7.6
K163: Elementos destacados en el esquema: | AA163: 3.3 | AD163: 7.7
AA164: 3.4 | AD164: 7.8
K165: Flechas azules: Indican el aire limpio que entra desde el exterior y se distribuye | AA165: 3.5 | AD165: 7.9
K166: hacia las estancias secas (salón, dormitorios). | AA166: 3.6 | AD166: 8
AA167: 3.7 | AD167: 8.1
K168: Flechas rojas: Representan el aire viciado extraído de cocinas y baños. | AA168: 3.8 | AD168: 8.2
K170: Recuperador de calor (en el centro): Intercambia energía térmica entre el aire
K171: que entra y el que sale, reduciendo pérdidas de calor o frío.
K173: Conductos: Red de ventilación que conecta todas las zonas de la vivienda
K174: con el recuperador.
B183: RECUPERACIÓN DE CALOR DEL AIRE DE EXTRACCIÓN
B205: REHABILITACIÓN Para rehabilitacion existen sistemas individualizados, descentralizados y sin conductos :
K208: La VMC descentralizada (Ventilación Mecánica Controlada descentralizada) es un
K209: sistema de ventilación que permite renovar el aire interior de una vivienda sin necesidad
K210: de una red de conductos centralizados
K212: Es un sistema de ventilación individual por estancia, que se instala directamente en
K213: las paredes exteriores de las habitaciones (habitualmente en dormitorios y salones),
K214: sin necesidad de una red central de distribución.
K216: Cada unidad contiene:
K218: · Ventiladores de bajo consumo (generalmente reversible).
K219: · Intercambiador de calor cerámico (en modelos con recuperación de calor).
K220: · Filtros de aire.
K222: El funcionamiento habitual:
K224: 1. El ventilador extrae el aire viciado del interior → el intercambiador se calienta.
K225: 2. Luego invierte el flujo → introduce aire fresco desde el exterior → este aire se precalienta
K226: gracias al intercambiador.
K227: 3. Así, se consigue renovar el aire sin perder (tanta) energía térmica.
B233: - Los VMC descentralizados no requieren conexión a ninguna red de distribución de aire interna.
B234: - Ahorro de energía: el aire exterior precalentado, que se alimenta al interior a través de las unidades de intercambio, limita la necesidad de forzar el sistema de calefacción.
B235: - Las unidades VMC están equipadas con motorización sin escobillas brushless EC, con un consumo de energía significativamente reducido.
B236: - Calidad del aire interior: un sistema de ventilación mecánica de tamaño adecuado garantiza el mantenimiento constante de la calidad del aire interior para el bienestar y la salud de los ocupantes y del edificio.
B237: - El mantenimiento periódico de los filtros instalados en las unidades de intercambio ayuda a mantener el aire interior más saludable.

Sheet th_24h_Graf
C1: TRUE | D1: 20 | E1: TRUE | L1: TRUE | M1: TRUE | N1: FALSE | O1: TRUE | AK1: =2337*AL1/100 -> 1285.35 | AL1: 55 | AM1: =IF(M1=FALSE,"",VLOOKUP(AL1,AL6:AM8,2)) -> Clase de higrometría 3: 55% | AN1: 0 | AO1: =610.5*EXP(1)^((17.269*AN1)/(237.3+AN1)) -> 610.5 | AP1: =AO1*0.9 -> 549.45 | AQ1: =AO1*0.8 -> 488.4 | AR1: =AO1*0.7 -> 427.35 | AS1: =AO1*0.6 -> 366.3 | AT1: =AO1*0.5 -> 305.25 | AU1: =AO1*0.4 -> 244.2 | AV1: =AO1*0.3 -> 183.15 | AW1: =AO1*0.2 -> 122.1 | AX1: =AO1*0.1 -> 61.05 | AZ1: =AO1*20/3166 -> 3.85660139 | BF1: Higrometría | BG1: =AO1*$AL$1/100 -> 335.775 | BO1: Confort | BQ1: Zona mejor | BS1: Enmohecimiento
A2: Hora | B2: θi | C2: φi | D2: 5 | W2: θe | X2: φe | Z2: θe | AA2: φe | AB2: Hee | AC2: Hei | AD2: θsi, mín | AE2: θsi | AF2: φsi | AG2: Pvi | AH2: θrocio | AI2: θlim ºC | AJ2: φhigr | AK2: φslim | AM2: =AL1&"%" -> 55% | AN2: =AN1+0.1 -> 0.1 | AO2: 614.9571031 | AP2: 553.4613928 | AQ2: 491.9656825 | AR2: 430.4699722 | AS2: 368.9742618 | AT2: 307.4785515 | AU2: 245.9828412 | AV2: 184.4871309 | AW2: 122.9914206 | AX2: 61.49571031 | AZ2: 3.884757442 | BG2: 338.2264067 | BI2: θlim | BJ2: φlim | BK2: θe | BN2: X | BO2: Y | BP2: X | BQ2: Y | BR2: X | BS2: Y
A3: =G3 -> 00:00:00 | E3: Hora de comienzo (hh:mm): | G3: 00:00:00 | H3: h Intervalo de medición | J3: 00:20:00 | K3: h | V3: Media | W3: =IFERROR(SUM($Z$3:$Z$75)/(73-COUNTBLANK($Z$3:$Z$75)),0) -> 0 | X3: =IFERROR(SUM($AA$3:$AA$75)/(73-COUNTBLANK($Z$3:$Z$75)),0) -> 0 | AB3: =IF(Z3>=0,610.5*EXP(1)^((17.269*Z3)/(237.3+Z3)),610.5*EXP(1)^((21.875*Z3)/(265.5+Z3)))*622/(1000*101.325-IF(Z3>=0,610.5*EXP(1)^((17.269*Z3)/(237.3+Z3)),610.5*EXP(1)^((21.875*Z3)/(265.5+Z3))))*AA3/100 -> 0 | AC3: =IF(B3>=0,610.5*EXP(1)^((17.269*B3)/(237.3+B3)),610.5*EXP(1)^((21.875*B3)/(265.5+B3)))*622/(1000*101.325-IF(B3>=0,610.5*EXP(1)^((17.269*B3)/(237.3+B3)),610.5*EXP(1)^((21.875*B3)/(265.5+B3))))*C3/100 -> 0 | AD3: =IF(AG3=0,"",237.3*LN((AG3/0.8)/610.5)/(17.269-LN((AG3/0.8)/610.5))) ->  | AE3: =IF(B3="",0,IF(th_24h_Graf_Tot!$L$83=0,"",B3-(th_24h_Graf_Tot!$L$82/th_24h_Graf_Tot!$L$83)*(B3-IF(Z3="",TE,Z3)))) -> 0 | AF3: =IF(AE3="","",IF(AG3/(610.5*EXP(1)^((17.269*AE3)/(237.3+AE3)))*100>100,100,AG3/(610.5*EXP(1)^((17.269*AE3)/(237.3+AE3)))*100)) -> 0 | AG3: =610.5*EXP(1)^((17.269*B3)/(237.3+B3))*C3/100 -> 0 | AH3: =IF(AG3=0,"",237.3*LN(AG3/610.5)/(17.269-LN(AG3/610.5))) ->  | AI3: 20 | AJ3: =AL1 -> 55 | AK3: 80 | AM3: =IF(M1=FALSE,"","φsi, lim = "&AK3&"%") -> φsi, lim = 80% | AN3: 0.2 | AO3: 619.4429518 | AP3: 557.4986566 | AQ3: 495.5543614 | AR3: 433.6100663 | AS3: 371.6657711 | AT3: 309.7214759 | AU3: 247.7771807 | AV3: 185.8328855 | AW3: 123.8885904 | AX3: 61.94429518 | AZ3: 3.913095084 | BG3: 340.6936235 | BI3: 20 | BJ3: 80 | BK3: 0 | BL3: =IF($E$1=FALSE,-500,610.5*EXP(1)^((17.269*AE3)/(237.3+AE3))*AF3/100) -> 0 | BN3: 18 | BO3: 722 | BP3: 19 | BQ3: =610.5*EXP(1)^((17.269*BP3)/(237.3+BP3))*0.4 -> 878.4604973 | BR3: 8.5 | BS3: =610.5*EXP(1)^((17.269*BR3)/(237.3+BR3))*0.8 -> 887.415533 | BU3: =IF(AF3="",0,IF(ISERROR(IF(AF3>=$AK$3,$J$3,0)),0,IF(AF3>=$AK$3,$J$3,0))) -> 0
A4: =A3+$J$3 -> 00:20:00 | V4: Máxima | W4: =MAX($Z$3:$Z$75) -> 0 | X4: =MAX($AA$3:$AA$75) -> 0 | AB4: 0 | AC4: 0 | AE4: =IF(B4="",0,IF(th_24h_Graf_Tot!$L$83=0,"",B4-(th_24h_Graf_Tot!$L$82/th_24h_Graf_Tot!$L$83)*(B4-IF(Z4="",TE,Z4)))) -> 0 | AF4: 0 | AG4: 0 | AI4: =$AI$3 -> 20 | AJ4: =$AJ$3 -> 55 | AK4: =$AK$3 -> 80 | AM4: =IF(L1=FALSE,"","θi, mín = "&AI3&" ºC") -> θi, mín = 20 ºC | AN4: 0.3 | AO4: 623.9577055 | AP4: 561.561935 | AQ4: 499.1661644 | AR4: 436.7703939 | AS4: 374.3746233 | AT4: 311.9788528 | AU4: 249.5830822 | AV4: 187.1873117 | AW4: 124.7915411 | AX4: 62.39577055 | AZ4: 3.941615322 | BG4: 343.176738 | BI4: =$BI$3 -> 20 | BJ4: =$BJ$3 -> 80 | BL4: 0 | BN4: 23 | BO4: 722 | BP4: =BP3+0.1 -> 19.1 | BQ4: 883.9555941 | BR4: =BR3+0.1 -> 8.6 | BS4: =610.5*EXP(1)^((17.269*BR4)/(237.3+BR4))*0.8 -> 893.4525809 | BU4: 0
A5: 00:40:00 | D5: FALSE | V5: Mínima | W5: =MIN($Z$3:$Z$75) -> 0 | X5: =MIN($AA$3:$AA$75) -> 0 | AB5: 0 | AC5: 0 | AE5: =IF(B5="",0,IF(th_24h_Graf_Tot!$L$83=0,"",B5-(th_24h_Graf_Tot!$L$82/th_24h_Graf_Tot!$L$83)*(B5-IF(Z5="",TE,Z5)))) -> 0 | AF5: 0 | AG5: 0 | AI5: 20 | AJ5: 55 | AK5: 80 | AM5: θi, CTE HE1 (20 ºC) | AN5: 0.4 | AO5: 628.5015244 | AP5: 565.6513719 | AQ5: 502.8012195 | AR5: 439.951067 | AS5: 377.1009146 | AT5: 314.2507622 | AU5: 251.4006097 | AV5: 188.5504573 | AW5: 125.7003049 | AX5: 62.85015244 | AZ5: 3.970319168 | BG5: 345.6758384 | BI5: 20 | BJ5: 80 | BL5: 0 | BN5: 23 | BO5: 1965.5 | BP5: 19.2 | BQ5: 889.4807398 | BR5: 8.7 | BS5: 899.5257402 | BU5: 0
A6: 01:00:00 | AB6: 0 | AC6: 0 | AE6: =IF(B6="",0,IF(th_24h_Graf_Tot!$L$83=0,"",B6-(th_24h_Graf_Tot!$L$82/th_24h_Graf_Tot!$L$83)*(B6-IF(Z6="",TE,Z6)))) -> 0 | AF6: 0 | AG6: 0 | AI6: 20 | AJ6: 55 | AK6: 80 | AL6: 55 | AM6: Clase de higrometría 3: 55% | AN6: 0.5 | AO6: 633.0745691 | AP6: 569.7671122 | AQ6: 506.4596553 | AR6: 443.1521984 | AS6: 379.8447414 | AT6: 316.5372845 | AU6: 253.2298276 | AV6: 189.9223707 | AW6: 126.6149138 | AX6: 63.30745691 | AZ6: 3.999207638 | BG6: 348.191013 | BI6: 20 | BJ6: 80 | BL6: 0 | BN6: 20.8 | BO6: 1965.5 | BP6: 19.3 | BQ6: 895.0360735 | BR6: 8.8 | BS6: 905.6351953 | BU6: 0
A7: 01:20:00 | V7: Máxima | W7: =INDEX($A$3:$A$75,MATCH(W4,$Z$3:$Z$75,0),1) ->  | X7: =INDEX($A$3:$A$75,MATCH(X4,$AA$3:$AA$75,0),1) ->  | AB7: 0 | AC7: 0 | AE7: =IF(B7="",0,IF(th_24h_Graf_Tot!$L$83=0,"",B7-(th_24h_Graf_Tot!$L$82/th_24h_Graf_Tot!$L$83)*(B7-IF(Z7="",TE,Z7)))) -> 0 | AF7: 0 | AG7: 0 | AI7: 20 | AJ7: 55 | AK7: 80 | AL7: 62 | AM7: Clase de higrometría 4: 62% | AN7: 0.6 | AO7: 637.6770012 | AP7: 573.9093011 | AQ7: 510.141601 | AR7: 446.3739009 | AS7: 382.6062007 | AT7: 318.8385006 | AU7: 255.0708005 | AV7: 191.3031004 | AW7: 127.5354002 | AX7: 63.76770012 | AZ7: 4.028281751 | BG7: 350.7223507 | BI7: 20 | BJ7: 80 | BL7: 0 | BN7: =BN6-0.1 -> 20.7 | BO7: =610.5*EXP(1)^((17.269*BN7)/(237.3+BN7))*0.8 -> 1952.119118 | BP7: 19.4 | BQ7: 900.6217347 | BR7: 8.9 | BS7: 911.7811314 | BU7: 0
A8: 01:40:00 | V8: Mínima | W8: =INDEX($A$3:$A$75,MATCH(W5,$Z$3:$Z$75,0),1) ->  | X8: =INDEX($A$3:$A$75,MATCH(X5,$AA$3:$AA$75,0),1) ->  | AB8: 0 | AC8: 0 | AE8: =IF(B8="",0,IF(th_24h_Graf_Tot!$L$83=0,"",B8-(th_24h_Graf_Tot!$L$82/th_24h_Graf_Tot!$L$83)*(B8-IF(Z8="",TE,Z8)))) -> 0 | AF8: 0 | AG8: 0 | AI8: 20 | AJ8: 55 | AK8: 80 | AL8: 70 | AM8: Clase de higrometría 5: 70% | AN8: 0.7 | AO8: 642.3089831 | AP8: 578.0780848 | AQ8: 513.8471865 | AR8: 449.6162882 | AS8: 385.3853899 | AT8: 321.1544916 | AU8: 256.9235932 | AV8: 192.6926949 | AW8: 128.4617966 | AX8: 64.23089831 | AZ8: 4.057542534 | BG8: 353.2699407 | BI8: 20 | BJ8: 80 | BL8: 0 | BN8: 20.6 | BO8: 1940.133415 | BP8: 19.5 | BQ8: 906.2378634 | BR8: 9 | BS8: 917.9637343 | BU8: 0
A9: 02:00:00 | W9: =IF(ISERROR(W4&"; ("&HOUR(W7)&":"&MINUTE(W7)&"H)"),"",ROUND(W4,1)&"; ("&HOUR(W7)&":"&MINUTE(W7)&"H)") ->  | X9: =IF(ISERROR(X4&"%; ("&HOUR(X7)&":"&MINUTE(X7)&"H)"),"",X4&"%; ("&HOUR(X7)&":"&MINUTE(X7)&"H)") ->  | AB9: 0 | AC9: 0 | AE9: =IF(B9="",0,IF(th_24h_Graf_Tot!$L$83=0,"",B9-(th_24h_Graf_Tot!$L$82/th_24h_Graf_Tot!$L$83)*(B9-IF(Z9="",TE,Z9)))) -> 0 | AF9: 0 | AG9: 0 | AI9: 20 | AJ9: 55 | AK9: 80 | AM9: Gráfica total | AN9: 0.8 | AO9: 646.9706777 | AP9: 582.2736099 | AQ9: 517.5765422 | AR9: 452.8794744 | AS9: 388.1824066 | AT9: 323.4853389 | AU9: 258.7882711 | AV9: 194.0912033 | AW9: 129.3941355 | AX9: 64.69706777 | AZ9: 4.086991015 | BG9: 355.8338727 | BI9: 20 | BJ9: 80 | BL9: 0 | BN9: 20.5 | BO9: 1928.212089 | BP9: 19.6 | BQ9: 911.8846002 | BR9: 9.1 | BS9: 924.1831908 | BU9: 0
A10: 02:20:00 | W10: =IF(ISERROR(W5&"; ("&HOUR(W8)&":"&MINUTE(W8)&"H)"),"",ROUND(W5,1)&"; ("&HOUR(W8)&":"&MINUTE(W8)&"H)") ->  | X10: =IF(ISERROR(X5&"%; ("&HOUR(X8)&":"&MINUTE(X8)&"H)"),"",X5&"%; ("&HOUR(X8)&":"&MINUTE(X8)&"H)") ->  | AB10: 0 | AC10: 0 | AE10: =IF(B10="",0,IF(th_24h_Graf_Tot!$L$83=0,"",B10-(th_24h_Graf_Tot!$L$82/th_24h_Graf_Tot!$L$83)*(B10-IF(Z10="",TE,Z10)))) -> 0 | AF10: 0 | AG10: 0 | AI10: 20 | AJ10: 55 | AK10: 80 | AM10: =VLOOKUP(AL1,AL6:AM8,2) -> Clase de higrometría 3: 55% | AN10: 0.9 | AO10: 651.6622488 | AP10: 586.4960239 | AQ10: 521.329799 | AR10: 456.1635742 | AS10: 390.9973493 | AT10: 325.8311244 | AU10: 260.6648995 | AV10: 195.4986746 | AW10: 130.3324498 | AX10: 65.16622488 | AZ10: 4.11662823 | BG10: 358.4142368 | BI10: 20 | BJ10: 80 | BL10: 0 | BN10: 20.4 | BO10: 1916.354848 | BP10: 19.7 | BQ10: 917.5620862 | BR10: 9.2 | BS10: 930.4396882 | BU10: 0
A11: 02:40:00 | AB11: 0 | AC11: 0 | AE11: =IF(B11="",0,IF(th_24h_Graf_Tot!$L$83=0,"",B11-(th_24h_Graf_Tot!$L$82/th_24h_Graf_Tot!$L$83)*(B11-IF(Z11="",TE,Z11)))) -> 0 | AF11: 0 | AG11: 0 | AI11: 20 | AJ11: 55 | AK11: 80 | AM11: ="φs lim = "&BJ3&"%" -> φs lim = 80% | AN11: 1 | AO11: 656.3838608 | AP11: 590.7454748 | AQ11: 525.1070887 | AR11: 459.4687026 | AS11: 393.8303165 | AT11: 328.1919304 | AU11: 262.5535443 | AV11: 196.9151583 | AW11: 131.2767722 | AX11: 65.63838608 | AZ11: 4.146455217 | BG11: 361.0111235 | BI11: 20 | BJ11: 80 | BL11: 0 | BN11: 20.3 | BO11: 1904.5614 | BP11: 19.8 | BQ11: 923.2704629 | BR11: 9.3 | BS11: 936.7334148 | BU11: 0
A12: 03:00:00 | V12: Día | AB12: 0 | AC12: 0 | AE12: =IF(B12="",0,IF(th_24h_Graf_Tot!$L$83=0,"",B12-(th_24h_Graf_Tot!$L$82/th_24h_Graf_Tot!$L$83)*(B12-IF(Z12="",TE,Z12)))) -> 0 | AF12: 0 | AG12: 0 | AI12: 20 | AJ12: 55 | AK12: 80 | AM12: ="θi, mín = "&BI3&" ºC" -> θi, mín = 20 ºC | AN12: 1.1 | AO12: 661.1356791 | AP12: 595.0221112 | AQ12: 528.9085433 | AR12: 462.7949754 | AS12: 396.6814074 | AT12: 330.5678395 | AU12: 264.4542716 | AV12: 198.3407037 | AW12: 132.2271358 | AX12: 66.11356791 | AZ12: 4.17647302 | BG12: 363.6246235 | BI12: 20 | BJ12: 80 | BL12: 0 | BN12: 20.2 | BO12: 1892.831455 | BP12: 19.9 | BQ12: 929.0098724 | BR12: 9.4 | BS12: 943.0645596 | BU12: 0
A13: 03:20:00 | V13: =th_24h_Datos!L1 -> 00:00:00 | AB13: 0 | AC13: 0 | AE13: =IF(B13="",0,IF(th_24h_Graf_Tot!$L$83=0,"",B13-(th_24h_Graf_Tot!$L$82/th_24h_Graf_Tot!$L$83)*(B13-IF(Z13="",TE,Z13)))) -> 0 | AF13: 0 | AG13: 0 | AI13: 20 | AJ13: 55 | AK13: 80 | AL13: Pv máxima | AM13: =MAX(AG3:AG75) -> 0 | AN13: 1.2 | AO13: 665.9178695 | AP13: 599.3260825 | AQ13: 532.7342956 | AR13: 466.1425086 | AS13: 399.5507217 | AT13: 332.9589347 | AU13: 266.3671478 | AV13: 199.7753608 | AW13: 133.1835739 | AX13: 66.59178695 | AZ13: 4.206682688 | BG13: 366.2548282 | BI13: 20 | BJ13: 80 | BL13: 0 | BN13: 20.1 | BO13: 1881.164723 | BP13: 20 | BQ13: 934.7804575 | BR13: 9.5 | BS13: 949.4333123 | BU13: 0
A14: 03:40:00 | AB14: 0 | AC14: 0 | AE14: =IF(B14="",0,IF(th_24h_Graf_Tot!$L$83=0,"",B14-(th_24h_Graf_Tot!$L$82/th_24h_Graf_Tot!$L$83)*(B14-IF(Z14="",TE,Z14)))) -> 0 | AF14: 0 | AG14: 0 | AI14: 20 | AJ14: 55 | AK14: 80 | AL14: H esp máx | AM14: =MAX(AC3:AC75) -> 0 | AN14: 1.3 | AO14: 670.7305988 | AP14: 603.6575389 | AQ14: 536.5844791 | AR14: 469.5114192 | AS14: 402.4383593 | AT14: 335.3652994 | AU14: 268.2922395 | AV14: 201.2191796 | AW14: 134.1461198 | AX14: 67.07305988 | AZ14: 4.237085274 | BG14: 368.9018294 | BI14: 20 | BJ14: 80 | BL14: 0 | BN14: 20 | BO14: 1869.560915 | BP14: 20.1 | BQ14: 940.5823613 | BR14: 9.6 | BS14: 955.8398636 | BU14: 0
A15: 04:00:00 | V15: ="Horas con φsi > "&AK3&"%" -> Horas con φsi > 80% | AB15: 0 | AC15: 0 | AE15: =IF(B15="",0,IF(th_24h_Graf_Tot!$L$83=0,"",B15-(th_24h_Graf_Tot!$L$82/th_24h_Graf_Tot!$L$83)*(B15-IF(Z15="",TE,Z15)))) -> 0 | AF15: 0 | AG15: 0 | AI15: 20 | AJ15: 55 | AK15: 80 | AL15: Hora | AM15: =INDEX($A$3:$A$75,MATCH($AM$14,$AC$3:$AC$75,0),1) -> 00:00:00 | AN15: 1.4 | AO15: 675.5740346 | AP15: 608.0166311 | AQ15: 540.4592276 | AR15: 472.9018242 | AS15: 405.3444207 | AT15: 337.7870173 | AU15: 270.2296138 | AV15: 202.6722104 | AW15: 135.1148069 | AX15: 67.55740346 | AZ15: 4.267681835 | BG15: 371.565719 | BI15: 20 | BJ15: 80 | BL15: 0 | BN15: 19.9 | BO15: 1858.019745 | BP15: 20.2 | BQ15: 946.4157274 | BR15: 9.7 | BS15: 962.2844046 | BU15: 0
A16: 04:20:00 | AB16: 0 | AC16: 0 | AE16: =IF(B16="",0,IF(th_24h_Graf_Tot!$L$83=0,"",B16-(th_24h_Graf_Tot!$L$82/th_24h_Graf_Tot!$L$83)*(B16-IF(Z16="",TE,Z16)))) -> 0 | AF16: 0 | AG16: 0 | AI16: 20 | AJ16: 55 | AK16: 80 | AL16: φ | AM16: =VLOOKUP($AM$15,$A$3:$C$75,3)&"%" -> % | AN16: 1.5 | AO16: 680.4483449 | AP16: 612.4035104 | AQ16: 544.3586759 | AR16: 476.3138414 | AS16: 408.2690069 | AT16: 340.2241724 | AU16: 272.179338 | AV16: 204.1345035 | AW16: 136.089669 | AX16: 68.04483449 | AZ16: 4.298473436 | BG16: 374.2465897 | BI16: 20 | BJ16: 80 | BL16: 0 | BN16: 19.8 | BO16: 1846.540926 | BP16: 20.3 | BQ16: 952.2807 | BR16: 9.8 | BS16: 968.7671276 | BU16: 0
A17: 04:40:00 | AB17: 0 | AC17: 0 | AE17: =IF(B17="",0,IF(th_24h_Graf_Tot!$L$83=0,"",B17-(th_24h_Graf_Tot!$L$82/th_24h_Graf_Tot!$L$83)*(B17-IF(Z17="",TE,Z17)))) -> 0 | AF17: 0 | AG17: 0 | AI17: 20 | AJ17: 55 | AK17: 80 | AN17: 1.6 | AO17: 685.3536989 | AP17: 616.818329 | AQ17: 548.2829591 | AR17: 479.7475892 | AS17: 411.2122193 | AT17: 342.6768494 | AU17: 274.1414795 | AV17: 205.6061097 | AW17: 137.0707398 | AX17: 68.53536989 | AZ17: 4.329461143 | BG17: 376.9445344 | BI17: 20 | BJ17: 80 | BL17: 0 | BN17: 19.7 | BO17: 1835.124172 | BP17: 20.4 | BQ17: 958.177424 | BR17: 9.9 | BS17: 975.2882255 | BU17: 0
A18: 05:00:00 | W18: Hee | AB18: 0 | AC18: 0 | AE18: =IF(B18="",0,IF(th_24h_Graf_Tot!$L$83=0,"",B18-(th_24h_Graf_Tot!$L$82/th_24h_Graf_Tot!$L$83)*(B18-IF(Z18="",TE,Z18)))) -> 0 | AF18: 0 | AG18: 0 | AI18: 20 | AJ18: 55 | AK18: 80 | AN18: 1.7 | AO18: 690.2902662 | AP18: 621.2612396 | AQ18: 552.2322129 | AR18: 483.2031863 | AS18: 414.1741597 | AT18: 345.1451331 | AU18: 276.1161065 | AV18: 207.0870799 | AW18: 138.0580532 | AX18: 69.02902662 | AZ18: 4.360646028 | BG18: 379.6596464 | BI18: 20 | BJ18: 80 | BL18: 0 | BN18: 19.6 | BO18: 1823.7692 | BP18: 20.5 | BQ18: 964.1060445 | BR18: 10 | BS18: 981.8478919 | BU18: 0
A19: 05:20:00 | U19: =INDEX($A$3:$A$75,MATCH(W19,$AB$3:$AB$75,0),1) -> 00:00:00 | V19: Máxima | W19: =MAX($AB$3:$AB$75) -> 0 | X19: =HOUR(INDEX($A$3:$A$75,MATCH(W19,$AB$3:$AB$75,0),1))&":"&MINUTE(INDEX($A$3:$A$75,MATCH(W19,$AB$3:$AB$75,0),1)) -> 0:0 | Y19: =VLOOKUP(U19,$A$3:$C$75,3)&"%" -> % | AB19: 0 | AC19: 0 | AE19: =IF(B19="",0,IF(th_24h_Graf_Tot!$L$83=0,"",B19-(th_24h_Graf_Tot!$L$82/th_24h_Graf_Tot!$L$83)*(B19-IF(Z19="",TE,Z19)))) -> 0 | AF19: 0 | AG19: 0 | AI19: 20 | AJ19: 55 | AK19: 80 | AN19: 1.8 | AO19: 695.2582174 | AP19: 625.7323956 | AQ19: 556.2065739 | AR19: 486.6807522 | AS19: 417.1549304 | AT19: 347.6291087 | AU19: 278.103287 | AV19: 208.5774652 | AW19: 139.0516435 | AX19: 69.52582174 | AZ19: 4.392029169 | BG19: 382.3920196 | BI19: 20 | BJ19: 80 | BL19: 0 | BN19: 19.5 | BO19: 1812.475727 | BP19: 20.6 | BQ19: 970.0667074 | BR19: 10.1 | BS19: 988.4463214 | BU19: 0
A20: 05:40:00 | U20: =INDEX($A$3:$A$75,MATCH(W20,$AB$3:$AB$75,0),1) -> 00:00:00 | V20: Mínima | W20: =MIN($AB$3:$AB$75) -> 0 | X20: =HOUR(INDEX($A$3:$A$75,MATCH(W20,$AB$3:$AB$75,0),1))&":"&MINUTE(INDEX($A$3:$A$75,MATCH(W20,$AB$3:$AB$75,0),1)) -> 0:0 | Y20: =VLOOKUP(U20,$A$3:$C$75,3)&"%" -> % | AB20: 0 | AC20: 0 | AE20: =IF(B20="",0,IF(th_24h_Graf_Tot!$L$83=0,"",B20-(th_24h_Graf_Tot!$L$82/th_24h_Graf_Tot!$L$83)*(B20-IF(Z20="",TE,Z20)))) -> 0 | AF20: 0 | AG20: 0 | AI20: 20 | AJ20: 55 | AK20: 80 | AL20: 00:00:00 | AM20: 00:20:00 | AN20: 1.9 | AO20: 700.2577237 | AP20: 630.2319514 | AQ20: 560.206179 | AR20: 490.1804066 | AS20: 420.1546342 | AT20: 350.1288619 | AU20: 280.1030895 | AV20: 210.0773171 | AW20: 140.0515447 | AX20: 70.02577237 | AZ20: 4.423611647 | BG20: 385.1417481 | BI20: 20 | BJ20: 80 | BL20: 0 | BN20: 19.4 | BO20: 1801.243469 | BP20: 20.7 | BQ20: 976.0595591 | BR20: 10.2 | BS20: 995.0837092 | BU20: 0
A21: 06:00:00 | AB21: 0 | AC21: 0 | AE21: =IF(B21="",0,IF(th_24h_Graf_Tot!$L$83=0,"",B21-(th_24h_Graf_Tot!$L$82/th_24h_Graf_Tot!$L$83)*(B21-IF(Z21="",TE,Z21)))) -> 0 | AF21: 0 | AG21: 0 | AI21: 20 | AJ21: 55 | AK21: 80 | AL21: =AL20+0.00347222 -> 00:05:00 | AM21: 00:30:00 | AN21: 2 | AO21: 705.2889573 | AP21: 634.7600616 | AQ21: 564.2311658 | AR21: 493.7022701 | AS21: 423.1733744 | AT21: 352.6444786 | AU21: 282.1155829 | AV21: 211.5866872 | AW21: 141.0577915 | AX21: 70.52889573 | AZ21: 4.45539455 | BG21: 387.9089265 | BI21: 20 | BJ21: 80 | BL21: 0 | BN21: 19.3 | BO21: 1790.072147 | BP21: 20.8 | BQ21: 982.0847463 | BR21: 10.3 | BS21: 1001.760251 | BU21: 0
A22: 06:20:00 | AB22: 0 | AC22: 0 | AE22: =IF(B22="",0,IF(th_24h_Graf_Tot!$L$83=0,"",B22-(th_24h_Graf_Tot!$L$82/th_24h_Graf_Tot!$L$83)*(B22-IF(Z22="",TE,Z22)))) -> 0 | AF22: 0 | AG22: 0 | AI22: 20 | AJ22: 55 | AK22: 80 | AL22: 00:10:00 | AM22: 01:00:00 | AN22: 2.1 | AO22: 710.3520908 | AP22: 639.3168817 | AQ22: 568.2816727 | AR22: 497.2464636 | AS22: 426.2112545 | AT22: 355.1760454 | AU22: 284.1408363 | AV22: 213.1056272 | AW22: 142.0704182 | AX22: 71.03520908 | AZ22: 4.487378969 | BG22: 390.69365 | BI22: 20 | BJ22: 80 | BL22: 0 | BN22: 19.2 | BO22: 1778.96148 | BP22: 20.9 | BQ22: 988.1424164 | BR22: 10.4 | BS22: 1008.476145 | BU22: 0
A23: 06:40:00 | U23: FALSE | V23: 1 | W23: =th_24h_Datos!AQ20 -> Sin datos | AB23: 0 | AC23: 0 | AE23: =IF(B23="",0,IF(th_24h_Graf_Tot!$L$83=0,"",B23-(th_24h_Graf_Tot!$L$82/th_24h_Graf_Tot!$L$83)*(B23-IF(Z23="",TE,Z23)))) -> 0 | AF23: 0 | AG23: 0 | AI23: 20 | AJ23: 55 | AK23: 80 | AL23: 00:14:59.999 | AN23: 2.2 | AO23: 715.447298 | AP23: 643.9025682 | AQ23: 572.3578384 | AR23: 500.8131086 | AS23: 429.2683788 | AT23: 357.723649 | AU23: 286.1789192 | AV23: 214.6341894 | AW23: 143.0894596 | AX23: 71.5447298 | AZ23: 4.519566001 | BB23: 1º día | BG23: 393.4960139 | BI23: 20 | BJ23: 80 | BL23: 0 | BN23: 19.1 | BO23: 1767.911188 | BP23: 21 | BQ23: 994.2327175 | BR23: 10.5 | BS23: 1015.231587 | BU23: 0
A24: 07:00:00 | U24: FALSE | V24: 2 | W24: =th_24h_Datos!AQ21 -> Sin datos | AB24: 0 | AC24: 0 | AE24: =IF(B24="",0,IF(th_24h_Graf_Tot!$L$83=0,"",B24-(th_24h_Graf_Tot!$L$82/th_24h_Graf_Tot!$L$83)*(B24-IF(Z24="",TE,Z24)))) -> 0 | AF24: 0 | AG24: 0 | AI24: 20 | AJ24: 55 | AK24: 80 | AL24: 00:19:59.999 | AM24: Títulos gráficas Total | AN24: 2.3 | AO24: 720.574753 | AP24: 648.5172777 | AQ24: 576.4598024 | AR24: 504.4023271 | AS24: 432.3448518 | AT24: 360.2873765 | AU24: 288.2299012 | AV24: 216.1724259 | AW24: 144.1149506 | AX24: 72.0574753 | AZ24: 4.551956747 | BB24: 2º día | BG24: 396.3161142 | BI24: 20 | BJ24: 80 | BL24: 0 | BN24: 19 | BO24: 1756.920995 | BP24: 21.1 | BQ24: 1000.355798 | BR24: 10.6 | BS24: 1022.026777 | BU24: 0
A25: 07:20:00 | U25: FALSE | V25: 3 | W25: =th_24h_Datos!AQ22 -> Sin datos | AB25: 0 | AC25: 0 | AE25: =IF(B25="",0,IF(th_24h_Graf_Tot!$L$83=0,"",B25-(th_24h_Graf_Tot!$L$82/th_24h_Graf_Tot!$L$83)*(B25-IF(Z25="",TE,Z25)))) -> 0 | AF25: 0 | AG25: 0 | AI25: 20 | AJ25: 55 | AK25: 80 | AL25: 00:24:59.999 | AM25: θi | AN25: 2.4 | AO25: 725.7346312 | AP25: 653.1611681 | AQ25: 580.5877049 | AR25: 508.0142418 | AS25: 435.4407787 | AT25: 362.8673156 | AU25: 290.2938525 | AV25: 217.7203894 | AW25: 145.1469262 | AX25: 72.57346312 | AZ25: 4.584552313 | BB25: 3º día | BG25: 399.1540471 | BI25: 20 | BJ25: 80 | BL25: 0 | BN25: 18.9 | BO25: 1745.990622 | BP25: 21.2 | BQ25: 1006.511807 | BR25: 10.7 | BS25: 1028.861914 | BU25: 0
A26: 07:40:00 | U26: FALSE | V26: 4 | W26: =th_24h_Datos!AQ23 -> Sin datos | AB26: 0 | AC26: 0 | AE26: =IF(B26="",0,IF(th_24h_Graf_Tot!$L$83=0,"",B26-(th_24h_Graf_Tot!$L$82/th_24h_Graf_Tot!$L$83)*(B26-IF(Z26="",TE,Z26)))) -> 0 | AF26: 0 | AG26: 0 | AI26: 20 | AJ26: 55 | AK26: 80 | AL26: 00:29:59.999 | AM26: φi | AN26: 2.5 | AO26: 730.9271083 | AP26: 657.8343975 | AQ26: 584.7416867 | AR26: 511.6489758 | AS26: 438.556265 | AT26: 365.4635542 | AU26: 292.3708433 | AV26: 219.2781325 | AW26: 146.1854217 | AX26: 73.09271083 | AZ26: 4.617353811 | BB26: 4º día | BG26: 402.0099096 | BI26: 20 | BJ26: 80 | BL26: 0 | BN26: 18.8 | BO26: 1735.119794 | BP26: 21.3 | BQ26: 1012.700894 | BR26: 10.8 | BS26: 1035.737198 | BU26: 0
A27: 08:00:00 | U27: FALSE | V27: 5 | W27: =th_24h_Datos!AQ24 -> Sin datos | AB27: 0 | AC27: 0 | AE27: =IF(B27="",0,IF(th_24h_Graf_Tot!$L$83=0,"",B27-(th_24h_Graf_Tot!$L$82/th_24h_Graf_Tot!$L$83)*(B27-IF(Z27="",TE,Z27)))) -> 0 | AF27: 0 | AG27: 0 | AI27: 20 | AJ27: 55 | AK27: 80 | AL27: 00:34:59.999 | AN27: 2.6 | AO27: 736.1523611 | AP27: 662.537125 | AQ27: 588.9218889 | AR27: 515.3066528 | AS27: 441.6914167 | AT27: 368.0761806 | AU27: 294.4609445 | AV27: 220.8457083 | AW27: 147.2304722 | AX27: 73.61523611 | AZ27: 4.650362357 | BB27: 5º día | BG27: 404.8837986 | BI27: 20 | BJ27: 80 | BL27: 0 | BN27: 18.7 | BO27: 1724.308236 | BP27: 21.4 | BQ27: 1018.923208 | BR27: 10.9 | BS27: 1042.652829 | BU27: 0
A28: 08:20:00 | U28: FALSE | V28: 6 | W28: =th_24h_Datos!AQ25 -> Sin datos | AB28: 0 | AC28: 0 | AE28: =IF(B28="",0,IF(th_24h_Graf_Tot!$L$83=0,"",B28-(th_24h_Graf_Tot!$L$82/th_24h_Graf_Tot!$L$83)*(B28-IF(Z28="",TE,Z28)))) -> 0 | AF28: 0 | AG28: 0 | AI28: 20 | AJ28: 55 | AK28: 80 | AL28: 00:39:59.998 | AN28: 2.7 | AO28: 741.4105671 | AP28: 667.2695104 | AQ28: 593.1284537 | AR28: 518.987397 | AS28: 444.8463403 | AT28: 370.7052836 | AU28: 296.5642269 | AV28: 222.4231701 | AW28: 148.2821134 | AX28: 74.14105671 | AZ28: 4.683579072 | BB28: 6º día | BG28: 407.7758119 | BI28: 20 | BJ28: 80 | BL28: 0 | BN28: 18.6 | BO28: 1713.555675 | BP28: 21.5 | BQ28: 1025.178902 | BR28: 11 | BS28: 1049.60901 | BU28: 0
A29: 08:40:00 | U29: FALSE | V29: 7 | W29: =th_24h_Datos!AQ26 -> Sin datos | AB29: 0 | AC29: 0 | AE29: =IF(B29="",0,IF(th_24h_Graf_Tot!$L$83=0,"",B29-(th_24h_Graf_Tot!$L$82/th_24h_Graf_Tot!$L$83)*(B29-IF(Z29="",TE,Z29)))) -> 0 | AF29: 0 | AG29: 0 | AI29: 20 | AJ29: 55 | AK29: 80 | AL29: 00:44:59.998 | AN29: 2.8 | AO29: 746.7019045 | AP29: 672.0317141 | AQ29: 597.3615236 | AR29: 522.6913332 | AS29: 448.0211427 | AT29: 373.3509523 | AU29: 298.6807618 | AV29: 224.0105714 | AW29: 149.3403809 | AX29: 74.67019045 | AZ29: 4.717005082 | BB29: 7º día | BG29: 410.6860475 | BI29: 20 | BJ29: 80 | BL29: 0 | BN29: 18.5 | BO29: 1702.861836 | BP29: 21.6 | BQ29: 1031.468125 | BR29: 11.1 | BS29: 1056.605943 | BU29: 0
A30: 09:00:00 | U30: FALSE | V30: 8 | W30: =th_24h_Datos!AQ27 -> Sin datos | AB30: 0 | AC30: 0 | AE30: =IF(B30="",0,IF(th_24h_Graf_Tot!$L$83=0,"",B30-(th_24h_Graf_Tot!$L$82/th_24h_Graf_Tot!$L$83)*(B30-IF(Z30="",TE,Z30)))) -> 0 | AF30: 0 | AG30: 0 | AI30: 20 | AJ30: 55 | AK30: 80 | AL30: 00:49:59.998 | AM30: φsi | AN30: 2.9 | AO30: 752.0265524 | AP30: 676.8238972 | AQ30: 601.621242 | AR30: 526.4185867 | AS30: 451.2159315 | AT30: 376.0132762 | AU30: 300.810621 | AV30: 225.6079657 | AW30: 150.4053105 | AX30: 75.20265524 | AZ30: 4.750641519 | BB30: 8º día | BG30: 413.6146038 | BI30: 20 | BJ30: 80 | BL30: 0 | BN30: 18.4 | BO30: 1692.226448 | BP30: 21.7 | BQ30: 1037.79103 | BR30: 11.2 | BS30: 1063.643831 | BU30: 0
A31: 09:20:00 | U31: FALSE | V31: 9 | W31: =th_24h_Datos!AQ28 -> Sin datos | AB31: 0 | AC31: 0 | AE31: =IF(B31="",0,IF(th_24h_Graf_Tot!$L$83=0,"",B31-(th_24h_Graf_Tot!$L$82/th_24h_Graf_Tot!$L$83)*(B31-IF(Z31="",TE,Z31)))) -> 0 | AF31: 0 | AG31: 0 | AI31: 20 | AJ31: 55 | AK31: 80 | AL31: 00:54:59.998 | AN31: 3 | AO31: 757.3846907 | AP31: 681.6462216 | AQ31: 605.9077526 | AR31: 530.1692835 | AS31: 454.4308144 | AT31: 378.6923453 | AU31: 302.9538763 | AV31: 227.2154072 | AW31: 151.4769381 | AX31: 75.73846907 | AZ31: 4.784489518 | BB31: 9º día | BG31: 416.5615799 | BI31: 20 | BJ31: 80 | BL31: 0 | BN31: 18.3 | BO31: 1681.649241 | BP31: 21.8 | BQ31: 1044.147769 | BR31: 11.3 | BS31: 1070.72288 | BU31: 0
A32: 09:40:00 | U32: FALSE | V32: 10 | W32: =th_24h_Datos!AQ29 -> Sin datos | AB32: 0 | AC32: 0 | AE32: =IF(B32="",0,IF(th_24h_Graf_Tot!$L$83=0,"",B32-(th_24h_Graf_Tot!$L$82/th_24h_Graf_Tot!$L$83)*(B32-IF(Z32="",TE,Z32)))) -> 0 | AF32: 0 | AG32: 0 | AI32: 20 | AJ32: 55 | AK32: 80 | AL32: 00:59:59.998 | AN32: 3.1 | AO32: 762.7764999 | AP32: 686.4988499 | AQ32: 610.2211999 | AR32: 533.9435499 | AS32: 457.6659 | AT32: 381.38825 | AU32: 305.1106 | AV32: 228.83295 | AW32: 152.5553 | AX32: 76.27764999 | AZ32: 4.818550221 | BB32: 10º día | BG32: 419.527075 | BI32: 20 | BJ32: 80 | BL32: 0 | BN32: 18.2 | BO32: 1671.129945 | BP32: 21.9 | BQ32: 1050.538494 | BR32: 11.4 | BS32: 1077.843292 | BU32: 0
A33: 10:00:00 | U33: FALSE | V33: 11 | W33: =th_24h_Datos!AQ30 -> Sin datos | AB33: 0 | AC33: 0 | AE33: =IF(B33="",0,IF(th_24h_Graf_Tot!$L$83=0,"",B33-(th_24h_Graf_Tot!$L$82/th_24h_Graf_Tot!$L$83)*(B33-IF(Z33="",TE,Z33)))) -> 0 | AF33: 0 | AG33: 0 | AI33: 20 | AJ33: 55 | AK33: 80 | AL33: 01:04:59.998 | AN33: 3.2 | AO33: 768.2021616 | AP33: 691.3819454 | AQ33: 614.5617293 | AR33: 537.7415131 | AS33: 460.9212969 | AT33: 384.1010808 | AU33: 307.2808646 | AV33: 230.4606485 | AW33: 153.6404323 | AX33: 76.82021616 | AZ33: 4.852824773 | BB33: 11º día | BG33: 422.5111889 | BI33: 20 | BJ33: 80 | BL33: 0 | BN33: 18.1 | BO33: 1660.668289 | BP33: 22 | BQ33: 1056.96336 | BR33: 11.5 | BS33: 1085.005275 | BU33: 0
A34: 10:20:00 | U34: FALSE | V34: 12 | W34: =th_24h_Datos!AQ31 -> Sin datos | AB34: 0 | AC34: 0 | AE34: =IF(B34="",0,IF(th_24h_Graf_Tot!$L$83=0,"",B34-(th_24h_Graf_Tot!$L$82/th_24h_Graf_Tot!$L$83)*(B34-IF(Z34="",TE,Z34)))) -> 0 | AF34: 0 | AG34: 0 | AI34: 20 | AJ34: 55 | AK34: 80 | AL34: 01:09:59.997 | AN34: 3.3 | AO34: 773.6618579 | AP34: 696.2956721 | AQ34: 618.9294863 | AR34: 541.5633005 | AS34: 464.1971147 | AT34: 386.8309289 | AU34: 309.4647432 | AV34: 232.0985574 | AW34: 154.7323716 | AX34: 77.36618579 | AZ34: 4.887314327 | BB34: 12º día | BG34: 425.5140218 | BI34: 20 | BJ34: 80 | BL34: 0 | BN34: 18 | BO34: 1650.2 | BP34: 22 | BQ34: =610.5*EXP(1)^((17.269*BP34)/(237.3+BP34))*0.65 -> 1717.56546 | BR34: 11.6 | BS34: 1092.209036 | BU34: 0
A35: 10:40:00 | U35: FALSE | V35: 13 | W35: =th_24h_Datos!AQ32 -> Sin datos | AB35: =IF(Z35>=0,610.5*EXP(1)^((17.269*Z35)/(237.3+Z35)),610.5*EXP(1)^((21.875*Z35)/(265.5+Z35)))*622/(1000*101.325-IF(Z35>=0,610.5*EXP(1)^((17.269*Z35)/(237.3+Z35)),610.5*EXP(1)^((21.875*Z35)/(265.5+Z35))))*AA35/100 -> 0 | AC35: =IF(B35>=0,610.5*EXP(1)^((17.269*B35)/(237.3+B35)),610.5*EXP(1)^((21.875*B35)/(265.5+B35)))*622/(1000*101.325-IF(B35>=0,610.5*EXP(1)^((17.269*B35)/(237.3+B35)),610.5*EXP(1)^((21.875*B35)/(265.5+B35))))*C35/100 -> 0 | AD35: =IF(AG35=0,"",237.3*LN((AG35/0.8)/610.5)/(17.269-LN((AG35/0.8)/610.5))) ->  | AE35: =IF(B35="",0,IF(th_24h_Graf_Tot!$L$83=0,"",B35-(th_24h_Graf_Tot!$L$82/th_24h_Graf_Tot!$L$83)*(B35-IF(Z35="",TE,Z35)))) -> 0 | AF35: =IF(AE35="","",IF(AG35/(610.5*EXP(1)^((17.269*AE35)/(237.3+AE35)))*100>100,100,AG35/(610.5*EXP(1)^((17.269*AE35)/(237.3+AE35)))*100)) -> 0 | AG35: =610.5*EXP(1)^((17.269*B35)/(237.3+B35))*C35/100 -> 0 | AH35: =IF(AG35=0,"",237.3*LN(AG35/610.5)/(17.269-LN(AG35/610.5))) ->  | AI35: 20 | AJ35: 55 | AK35: 80 | AL35: 01:14:59.997 | AN35: 3.4 | AO35: 779.1557719 | AP35: 701.2401947 | AQ35: 623.3246175 | AR35: 545.4090404 | AS35: 467.4934632 | AT35: 389.577886 | AU35: 311.6623088 | AV35: 233.7467316 | AW35: 155.8311544 | AX35: 77.91557719 | AZ35: 4.922020037 | BB35: 13º día | BG35: 428.5356746 | BI35: 20 | BJ35: 80 | BL35: =IF($E$1=FALSE,-500,610.5*EXP(1)^((17.269*AE35)/(237.3+AE35))*AF35/100) -> 0 | BN35: 18 | BO35: 722 | BP35: =BP34-0.1 -> 21.9 | BQ35: 1707.125053 | BR35: 11.7 | BS35: 1099.454781 | BU35: =IF(AF35="",0,IF(ISERROR(IF(AF35>=$AK$3,$J$3,0)),0,IF(AF35>=$AK$3,$J$3,0))) -> 0
A36: =A35+$J$3 -> 11:00:00 | U36: FALSE | V36: 14 | W36: =th_24h_Datos!AQ33 -> Sin datos | AB36: 0 | AC36: 0 | AE36: =IF(B36="",0,IF(th_24h_Graf_Tot!$L$83=0,"",B36-(th_24h_Graf_Tot!$L$82/th_24h_Graf_Tot!$L$83)*(B36-IF(Z36="",TE,Z36)))) -> 0 | AF36: 0 | AG36: 0 | AI36: 20 | AJ36: 55 | AK36: 80 | AL36: 01:19:59.997 | AN36: 3.5 | AO36: 784.6840875 | AP36: 706.2156788 | AQ36: 627.74727 | AR36: 549.2788613 | AS36: 470.8104525 | AT36: 392.3420438 | AU36: 313.873635 | AV36: 235.4052263 | AW36: 156.9368175 | AX36: 78.46840875 | AZ36: 4.956943067 | BB36: 14º día | BG36: 431.5762481 | BI36: 20 | BJ36: 80 | BL36: 0 | BP36: 21.8 | BQ36: 1696.740125 | BR36: =BR35+0.1 -> 11.8 | BS36: 1106.742719 | BU36: 0
A37: 11:20:00 | AB37: 0 | AC37: 0 | AE37: =IF(B37="",0,IF(th_24h_Graf_Tot!$L$83=0,"",B37-(th_24h_Graf_Tot!$L$82/th_24h_Graf_Tot!$L$83)*(B37-IF(Z37="",TE,Z37)))) -> 0 | AF37: 0 | AG37: 0 | AI37: 20 | AJ37: 55 | AK37: 80 | AL37: 01:24:59.997 | AN37: 3.6 | AO37: 790.2469894 | AP37: 711.2222904 | AQ37: 632.1975915 | AR37: 553.1728926 | AS37: 474.1481936 | AT37: 395.1234947 | AU37: 316.0987957 | AV37: 237.0740968 | AW37: 158.0493979 | AX37: 79.02469894 | AZ37: 4.992084582 | BG37: 434.6358442 | BI37: 20 | BJ37: 80 | BL37: 0 | BP37: 21.7 | BQ37: 1686.410424 | BR37: 11.9 | BS37: 1114.073059 | BU37: 0
A38: 11:40:00 | AB38: 0 | AC38: 0 | AE38: =IF(B38="",0,IF(th_24h_Graf_Tot!$L$83=0,"",B38-(th_24h_Graf_Tot!$L$82/th_24h_Graf_Tot!$L$83)*(B38-IF(Z38="",TE,Z38)))) -> 0 | AF38: 0 | AG38: 0 | AI38: 20 | AJ38: 55 | AK38: 80 | AL38: 01:29:59.997 | AN38: 3.7 | AO38: 795.8446629 | AP38: 716.2601966 | AQ38: 636.6757303 | AR38: 557.091264 | AS38: 477.5067977 | AT38: 397.9223315 | AU38: 318.3378652 | AV38: 238.7533989 | AW38: 159.1689326 | AX38: 79.58446629 | AZ38: 5.027445754 | BG38: 437.7145646 | BI38: 20 | BJ38: 80 | BL38: 0 | BP38: 21.6 | BQ38: 1676.135704 | BR38: 12 | BS38: 1121.446011 | BU38: 0
A39: 12:00:00 | U39: =IF(C1=FALSE,"","Inicio "&HOUR(th_24h_Graf!G3)&":"&MINUTE(th_24h_Graf!G3)) -> Inicio 0:0 | AB39: 0 | AC39: 0 | AE39: =IF(B39="",0,IF(th_24h_Graf_Tot!$L$83=0,"",B39-(th_24h_Graf_Tot!$L$82/th_24h_Graf_Tot!$L$83)*(B39-IF(Z39="",TE,Z39)))) -> 0 | AF39: 0 | AG39: 0 | AI39: 20 | AJ39: 55 | AK39: 80 | AL39: 01:34:59.996 | AN39: 3.8 | AO39: 801.4772944 | AP39: 721.329565 | AQ39: 641.1818355 | AR39: 561.0341061 | AS39: 480.8863766 | AT39: 400.7386472 | AU39: 320.5909178 | AV39: 240.4431883 | AW39: 160.2954589 | AX39: 80.14772944 | AZ39: 5.06302776 | BB39: 1 | BC39: Enero | BG39: 440.8125119 | BI39: 20 | BJ39: 80 | BL39: 0 | BP39: 21.5 | BQ39: 1665.915716 | BR39: 12.1 | BS39: 1128.861786 | BU39: 0
A40: 12:20:00 | AB40: 0 | AC40: 0 | AE40: =IF(B40="",0,IF(th_24h_Graf_Tot!$L$83=0,"",B40-(th_24h_Graf_Tot!$L$82/th_24h_Graf_Tot!$L$83)*(B40-IF(Z40="",TE,Z40)))) -> 0 | AF40: 0 | AG40: 0 | AI40: 20 | AJ40: 55 | AK40: 80 | AL40: 01:39:59.996 | AN40: 3.9 | AO40: 807.145071 | AP40: 726.4305639 | AQ40: 645.7160568 | AR40: 565.0015497 | AS40: 484.2870426 | AT40: 403.5725355 | AU40: 322.8580284 | AV40: 242.1435213 | AW40: 161.4290142 | AX40: 80.7145071 | AZ40: 5.098831782 | BB40: 2 | BC40: Febrero | BG40: 443.9297891 | BI40: 20 | BJ40: 80 | BL40: 0 | BO40: Temperatura HE1 | BP40: 21.4 | BQ40: 1655.750214 | BR40: 12.2 | BS40: 1136.320596 | BU40: 0
A41: 12:40:00 | U41: =IF($C$1=TRUE,M49,"") -> No hay ningun día seleccionado | AB41: 0 | AC41: 0 | AE41: =IF(B41="",0,IF(th_24h_Graf_Tot!$L$83=0,"",B41-(th_24h_Graf_Tot!$L$82/th_24h_Graf_Tot!$L$83)*(B41-IF(Z41="",TE,Z41)))) -> 0 | AF41: 0 | AG41: 0 | AI41: 20 | AJ41: 55 | AK41: 80 | AL41: 01:44:59.996 | AN41: 4 | AO41: 812.8481806 | AP41: 731.5633626 | AQ41: 650.2785445 | AR41: 568.9937264 | AS41: 487.7089084 | AT41: 406.4240903 | AU41: 325.1392722 | AV41: 243.8544542 | AW41: 162.5696361 | AX41: 81.28481806 | AZ41: 5.134859006 | BB41: 3 | BC41: Marzo | BG41: 447.0664993 | BI41: 20 | BJ41: 80 | BL41: 0 | BN41: X | BO41: Y | BP41: 21.3 | BQ41: 1645.638952 | BR41: 12.3 | BS41: 1143.822653 | BU41: 0
A42: 13:00:00 | E42: Condiciones exteriores: | J42: Condiciones interiores: | U42: =IF($C$1=TRUE,U41+1,U41) ->  | AB42: 0 | AC42: 0 | AE42: =IF(B42="",0,IF(th_24h_Graf_Tot!$L$83=0,"",B42-(th_24h_Graf_Tot!$L$82/th_24h_Graf_Tot!$L$83)*(B42-IF(Z42="",TE,Z42)))) -> 0 | AF42: 0 | AG42: 0 | AI42: 20 | AJ42: 55 | AK42: 80 | AL42: 01:49:59.996 | AN42: 4.1 | AO42: 818.586812 | AP42: 736.7281308 | AQ42: 654.8694496 | AR42: 573.0107684 | AS42: 491.1520872 | AT42: 409.293406 | AU42: 327.4347248 | AV42: 245.5760436 | AW42: 163.7173624 | AX42: 81.8586812 | AZ42: 5.171110625 | BB42: 4 | BC42: Abril | BG42: 450.2227466 | BI42: 20 | BJ42: 80 | BL42: 0 | BN42: =$AI$3 -> 20 | BO42: 0 | BP42: 21.2 | BQ42: 1635.581686 | BR42: 12.4 | BS42: 1151.368171 | BU42: 0
A43: 13:20:00 | F43: Temp. (ºC) | G43: H. Relativa (%) | H43: Humedad específica (gr/Kg) | J43: Humedad específ. máx. int. (gr/Kg)= | M43: =AM14 -> 0 | N43: ="(φi = "&AM16&"; "&HOUR(AM15)&":"&MINUTE(AM15)&"H)" -> (φi = %; 0:0H) | U43: =IF($C$1=TRUE,U42+1,U41) ->  | AB43: 0 | AC43: 0 | AE43: =IF(B43="",0,IF(th_24h_Graf_Tot!$L$83=0,"",B43-(th_24h_Graf_Tot!$L$82/th_24h_Graf_Tot!$L$83)*(B43-IF(Z43="",TE,Z43)))) -> 0 | AF43: 0 | AG43: 0 | AI43: 20 | AJ43: 55 | AK43: 80 | AL43: 01:54:59.996 | AN43: 4.2 | AO43: 824.3611546 | AP43: 741.9250392 | AQ43: 659.4889237 | AR43: 577.0528082 | AS43: 494.6166928 | AT43: 412.1805773 | AU43: 329.7444618 | AV43: 247.3083464 | AW43: 164.8722309 | AX43: 82.43611546 | AZ43: 5.207587837 | BB43: 5 | BC43: Mayo | BG43: 453.398635 | BI43: 20 | BJ43: 80 | BL43: 0 | BN43: =$AI$3 -> 20 | BO43: =610.5*EXP(1)^((17.269*BN43)/(237.3+BN43))*AL1/100 -> 1285.323129 | BP43: 21.1 | BQ43: 1625.578172 | BR43: 12.5 | BS43: 1158.957363 | BU43: 0
A44: 13:40:00 | E44: Media | F44: =IF(ISERROR(SUM($Z$3:$Z$75)/(73-COUNTBLANK($Z$3:$Z$75))),"",SUM($Z$3:$Z$75)/(73-COUNTBLANK($Z$3:$Z$75))) ->  | G44: =IF(ISERROR(SUM($AA$3:$AA$75)/(73-COUNTBLANK($Z$3:$Z$75))),"",SUM($AA$3:$AA$75)/(73-COUNTBLANK($Z$3:$Z$75))) ->  | H44: =IF(ISERROR(SUM($AB$3:$AB$75)/(73-COUNTBLANK($Z$3:$Z$75))),0,SUM($AB$3:$AB$75)/(73-COUNTBLANK($Z$3:$Z$75))) -> 0 | J44: Humedad específ. (1 ren. completa)= | M44: =H44 -> 0 | N44: gr/kg | AB44: 0 | AC44: 0 | AE44: =IF(B44="",0,IF(th_24h_Graf_Tot!$L$83=0,"",B44-(th_24h_Graf_Tot!$L$82/th_24h_Graf_Tot!$L$83)*(B44-IF(Z44="",TE,Z44)))) -> 0 | AF44: 0 | AG44: 0 | AI44: 20 | AJ44: 55 | AK44: 80 | AL44: 01:59:59.995 | AN44: 4.3 | AO44: 830.171399 | AP44: 747.1542591 | AQ44: 664.1371192 | AR44: 581.1199793 | AS44: 498.1028394 | AT44: 415.0856995 | AU44: 332.0685596 | AV44: 249.0514197 | AW44: 166.0342798 | AX44: 83.0171399 | AZ44: 5.244291845 | BB44: 6 | BC44: Junio | BG44: 456.5942694 | BI44: 20 | BJ44: 80 | BL44: 0 | BP44: 21 | BQ44: 1615.628166 | BR44: 12.6 | BS44: 1166.590446 | BU44: 0
A45: 14:00:00 | E45: Máxima | F45: =W9 ->  | G45: =X9 ->  | H45: =ROUND(W19,1)&" a las "&HOUR(X19)&":"&MINUTE(X19)&"H (φi = "&Y19&")" -> 0 a las 0:0H (φi = %) | J45: =" Para una tª max de "&MAX(B3:B75)&" ºC, Hr =" -> Para una tª max de 0 ºC, Hr = | M45: =IF(M44*3166/20/(610.5*EXP(1)^((17.269*MAX(B3:B75))/(237.3+MAX(B3:B75))))*100>100,100,M44*3166/20/(610.5*EXP(1)^((17.269*MAX(B3:B75))/(237.3+MAX(B3:B75))))*100) -> 0 | N45: % | AB45: 0 | AC45: 0 | AE45: =IF(B45="",0,IF(th_24h_Graf_Tot!$L$83=0,"",B45-(th_24h_Graf_Tot!$L$82/th_24h_Graf_Tot!$L$83)*(B45-IF(Z45="",TE,Z45)))) -> 0 | AF45: 0 | AG45: 0 | AI45: 20 | AJ45: 55 | AK45: 80 | AL45: 02:04:59.995 | AN45: 4.4 | AO45: 836.0177363 | AP45: 752.4159627 | AQ45: 668.814189 | AR45: 585.2124154 | AS45: 501.6106418 | AT45: 418.0088681 | AU45: 334.4070945 | AV45: 250.8053209 | AW45: 167.2035473 | AX45: 83.60177363 | AZ45: 5.281223855 | BB45: 7 | BC45: Julio | BG45: 459.809755 | BI45: 20 | BJ45: 80 | BL45: 0 | BP45: 20.9 | BQ45: 1605.731427 | BR45: 12.7 | BS45: 1174.267634 | BU45: 0
A46: 14:20:00 | E46: Mínima | F46: =W10 ->  | G46: =X10 ->  | H46: =ROUND(W20,1)&" a las "&HOUR(X20)&":"&MINUTE(X20)&"H (φi = "&Y20&")" -> 0 a las 0:0H (φi = %) | J46: =" Para una tª mín de "&MIN(B3:B75)&" ºC, Hr =" -> Para una tª mín de 0 ºC, Hr = | M46: =IF(M44*3166/20/(610.5*EXP(1)^((17.269*MIN(B3:B75))/(237.3+MIN(B3:B75))))*100>100,100,M44*3166/20/(610.5*EXP(1)^((17.269*MIN(B3:B75))/(237.3+MIN(B3:B75))))*100) -> 0 | N46: % | U46: CUBIERTA | V46: 0.1 | AB46: 0 | AC46: 0 | AE46: =IF(B46="",0,IF(th_24h_Graf_Tot!$L$83=0,"",B46-(th_24h_Graf_Tot!$L$82/th_24h_Graf_Tot!$L$83)*(B46-IF(Z46="",TE,Z46)))) -> 0 | AF46: 0 | AG46: 0 | AI46: 20 | AJ46: 55 | AK46: 80 | AL46: 02:09:59.995 | AN46: 4.5 | AO46: 841.9003586 | AP46: 757.7103227 | AQ46: 673.5202869 | AR46: 589.330251 | AS46: 505.1402151 | AT46: 420.9501793 | AU46: 336.7601434 | AV46: 252.5701076 | AW46: 168.3800717 | AX46: 84.19003586 | AZ46: 5.318385083 | BB46: 8 | BC46: Agosto | BG46: 463.0451972 | BI46: 20 | BJ46: 80 | BL46: 0 | BP46: 20.8 | BQ46: 1595.887713 | BR46: 12.8 | BS46: 1181.989145 | BU46: 0
A47: 14:40:00 | J47: =MAX(B3:B75) -> 0 | K47: =610.5*EXP(1)^((17.269*MAX(B3:B75))/(237.3+MAX(B3:B75)))*M45/100 -> 0 | L47: =MIN(B3:B75) -> 0 | M47: =610.5*EXP(1)^((17.269*MIN(B3:B75))/(237.3+MIN(B3:B75)))*M46/100 -> 0 | U47: MURO | V47: 0.13 | AB47: 0 | AC47: 0 | AE47: =IF(B47="",0,IF(th_24h_Graf_Tot!$L$83=0,"",B47-(th_24h_Graf_Tot!$L$82/th_24h_Graf_Tot!$L$83)*(B47-IF(Z47="",TE,Z47)))) -> 0 | AF47: 0 | AG47: 0 | AI47: 20 | AJ47: 55 | AK47: 80 | AL47: 02:14:59.995 | AN47: 4.6 | AO47: 847.8194587 | AP47: 763.0375128 | AQ47: 678.255567 | AR47: 593.4736211 | AS47: 508.6916752 | AT47: 423.9097294 | AU47: 339.1277835 | AV47: 254.3458376 | AW47: 169.5638917 | AX47: 84.78194587 | AZ47: 5.355776745 | BB47: 9 | BC47: Septiembre | BG47: 466.3007023 | BI47: 20 | BJ47: 80 | BL47: 0 | BP47: 20.7 | BQ47: 1586.096783 | BR47: 12.9 | BS47: 1189.755197 | BU47: 0
A48: 15:00:00 | U48: SUELO | V48: 0.17 | AB48: 0 | AC48: 0 | AE48: =IF(B48="",0,IF(th_24h_Graf_Tot!$L$83=0,"",B48-(th_24h_Graf_Tot!$L$82/th_24h_Graf_Tot!$L$83)*(B48-IF(Z48="",TE,Z48)))) -> 0 | AF48: 0 | AG48: 0 | AI48: 20 | AJ48: 55 | AK48: 80 | AL48: 02:19:59.995 | AN48: 4.7 | AO48: 853.7752305 | AP48: 768.3977074 | AQ48: 683.0201844 | AR48: 597.6426613 | AS48: 512.2651383 | AT48: 426.8876152 | AU48: 341.5100922 | AV48: 256.1325691 | AW48: 170.7550461 | AX48: 85.37752305 | AZ48: 5.393400066 | BB48: 10 | BC48: Octubre | BG48: 469.5763768 | BI48: 20 | BJ48: 80 | BL48: 0 | BP48: 20.6 | BQ48: 1576.3584 | BR48: 13 | BS48: 1197.566007 | BU48: 0
A49: 15:20:00 | E49: DATOS TÉRMICOS DEL CERRAMIENTO | J49: COMENTARIOS | L49: Fecha estudio: | M49: =IF($W$12="","No hay ningun día seleccionado",IF(VLOOKUP($W$12,$V$23:$W$36,2)="Sin datos","",$V$13+$W$12-1)) -> No hay ningun día seleccionado | AB49: 0 | AC49: 0 | AE49: =IF(B49="",0,IF(th_24h_Graf_Tot!$L$83=0,"",B49-(th_24h_Graf_Tot!$L$82/th_24h_Graf_Tot!$L$83)*(B49-IF(Z49="",TE,Z49)))) -> 0 | AF49: 0 | AG49: 0 | AI49: 20 | AJ49: 55 | AK49: 80 | AL49: 02:24:59.994 | AN49: 4.8 | AO49: 859.7678684 | AP49: 773.7910816 | AQ49: 687.8142947 | AR49: 601.8375079 | AS49: 515.860721 | AT49: 429.8839342 | AU49: 343.9071474 | AV49: 257.9303605 | AW49: 171.9535737 | AX49: 85.97678684 | AZ49: 5.431256275 | BB49: 11 | BC49: Noviembre | BG49: 472.8723276 | BI49: 20 | BJ49: 80 | BL49: 0 | BP49: 20.5 | BQ49: 1566.672322 | BR49: 13.1 | BS49: 1205.421795 | BU49: 0
A50: 15:40:00 | E50: Resist. térmica total del cerramiento (m2 K/w) | H50: =th_24h_Graf_Tot!L83 -> 0 | AB50: 0 | AC50: 0 | AE50: =IF(B50="",0,IF(th_24h_Graf_Tot!$L$83=0,"",B50-(th_24h_Graf_Tot!$L$82/th_24h_Graf_Tot!$L$83)*(B50-IF(Z50="",TE,Z50)))) -> 0 | AF50: 0 | AG50: 0 | AI50: 20 | AJ50: 55 | AK50: 80 | AL50: 02:29:59.994 | AN50: 4.9 | AO50: 865.7975679 | AP50: 779.2178111 | AQ50: 692.6380543 | AR50: 606.0582975 | AS50: 519.4785407 | AT50: 432.8987839 | AU50: 346.3190272 | AV50: 259.7392704 | AW50: 173.1595136 | AX50: 86.57975679 | AZ50: 5.469346607 | BB50: 12 | BC50: Diciembre | BG50: 476.1886623 | BI50: 20 | BJ50: 80 | BL50: 0 | BP50: 20.4 | BQ50: 1557.038314 | BR50: 13.2 | BS50: 1213.322782 | BU50: 0
A51: 16:00:00 | E51: Transm. térmica total del cerramiento (w/m2 K) | H51: =th_24h_Graf_Tot!N83 ->  | AB51: 0 | AC51: 0 | AE51: =IF(B51="",0,IF(th_24h_Graf_Tot!$L$83=0,"",B51-(th_24h_Graf_Tot!$L$82/th_24h_Graf_Tot!$L$83)*(B51-IF(Z51="",TE,Z51)))) -> 0 | AF51: 0 | AG51: 0 | AI51: 20 | AJ51: 55 | AK51: 80 | AL51: 02:34:59.994 | AN51: 5 | AO51: 871.8645252 | AP51: 784.6780727 | AQ51: 697.4916202 | AR51: 610.3051677 | AS51: 523.1187151 | AT51: 435.9322626 | AU51: 348.7458101 | AV51: 261.5593576 | AW51: 174.372905 | AX51: 87.18645252 | AZ51: 5.507672301 | BG51: 479.5254889 | BI51: 20 | BJ51: 80 | BL51: 0 | BP51: 20.3 | BQ51: 1547.456138 | BR51: 13.3 | BS51: 1221.269189 | BU51: 0
A52: 16:20:00 | E52: Res. térm. superf. Int. (m2 K/w) | H52: =th_24h_Graf_Tot!L82 -> 0.13 | AB52: 0 | AC52: 0 | AE52: =IF(B52="",0,IF(th_24h_Graf_Tot!$L$83=0,"",B52-(th_24h_Graf_Tot!$L$82/th_24h_Graf_Tot!$L$83)*(B52-IF(Z52="",TE,Z52)))) -> 0 | AF52: 0 | AG52: 0 | AI52: 20 | AJ52: 55 | AK52: 80 | AL52: 02:39:59.994 | AN52: 5.1 | AO52: 877.9689375 | AP52: 790.1720438 | AQ52: 702.37515 | AR52: 614.5782563 | AS52: 526.7813625 | AT52: 438.9844688 | AU52: 351.187575 | AV52: 263.3906813 | AW52: 175.5937875 | AX52: 87.79689375 | AZ52: 5.546234602 | BD52: =VLOOKUP(BB38,BB39:BD50,3) ->  | BG52: 482.8829156 | BI52: 20 | BJ52: 80 | BL52: 0 | BP52: 20.2 | BQ52: 1537.925557 | BR52: 13.4 | BS52: 1229.261237 | BU52: 0
A53: 16:40:00 | AB53: 0 | AC53: 0 | AE53: =IF(B53="",0,IF(th_24h_Graf_Tot!$L$83=0,"",B53-(th_24h_Graf_Tot!$L$82/th_24h_Graf_Tot!$L$83)*(B53-IF(Z53="",TE,Z53)))) -> 0 | AF53: 0 | AG53: 0 | AI53: 20 | AJ53: 55 | AK53: 80 | AL53: 02:44:59.994 | AN53: 5.2 | AO53: 884.1110027 | AP53: 795.6999025 | AQ53: 707.2888022 | AR53: 618.8777019 | AS53: 530.4666016 | AT53: 442.0555014 | AU53: 353.6444011 | AV53: 265.2333008 | AW53: 176.8222005 | AX53: 88.41110027 | AZ53: 5.585034761 | BG53: 486.2610515 | BI53: 20 | BJ53: 80 | BL53: 0 | BP53: 20.1 | BQ53: 1528.446337 | BR53: 13.5 | BS53: 1237.299149 | BU53: 0
A54: 17:00:00 | AB54: 0 | AC54: 0 | AE54: =IF(B54="",0,IF(th_24h_Graf_Tot!$L$83=0,"",B54-(th_24h_Graf_Tot!$L$82/th_24h_Graf_Tot!$L$83)*(B54-IF(Z54="",TE,Z54)))) -> 0 | AF54: 0 | AG54: 0 | AI54: 20 | AJ54: 55 | AK54: 80 | AL54: 02:49:59.993 | AN54: 5.3 | AO54: 890.2909196 | AP54: 801.2618277 | AQ54: 712.2327357 | AR54: 623.2036437 | AS54: 534.1745518 | AT54: 445.1454598 | AU54: 356.1163679 | AV54: 267.0872759 | AW54: 178.0581839 | AX54: 89.02909196 | AZ54: 5.624074034 | BG54: 489.6600058 | BI54: 20 | BJ54: 80 | BL54: 0 | BP54: 20 | BQ54: 1519.018243 | BR54: 13.6 | BS54: 1245.38315 | BU54: 0
A55: 17:20:00 | AB55: 0 | AC55: 0 | AE55: =IF(B55="",0,IF(th_24h_Graf_Tot!$L$83=0,"",B55-(th_24h_Graf_Tot!$L$82/th_24h_Graf_Tot!$L$83)*(B55-IF(Z55="",TE,Z55)))) -> 0 | AF55: 0 | AG55: 0 | AI55: 20 | AJ55: 55 | AK55: 80 | AL55: 02:54:59.993 | AN55: 5.4 | AO55: 896.5088879 | AP55: 806.8579991 | AQ55: 717.2071103 | AR55: 627.5562215 | AS55: 537.9053328 | AT55: 448.254444 | AU55: 358.6035552 | AV55: 268.9526664 | AW55: 179.3017776 | AX55: 89.65088879 | AZ55: 5.663353682 | BG55: 493.0798884 | BI55: 20 | BJ55: 80 | BL55: 0 | BP55: 19.9 | BQ55: 1509.641043 | BR55: 13.7 | BS55: 1253.513464 | BU55: 0
A56: 17:40:00 | F56: Tª y Hr | H56: Superficie | AB56: 0 | AC56: 0 | AE56: =IF(B56="",0,IF(th_24h_Graf_Tot!$L$83=0,"",B56-(th_24h_Graf_Tot!$L$82/th_24h_Graf_Tot!$L$83)*(B56-IF(Z56="",TE,Z56)))) -> 0 | AF56: 0 | AG56: 0 | AI56: 20 | AJ56: 55 | AK56: 80 | AL56: 02:59:59.993 | AN56: 5.5 | AO56: 902.7651081 | AP56: 812.4885973 | AQ56: 722.2120865 | AR56: 631.9355757 | AS56: 541.6590649 | AT56: 451.3825541 | AU56: 361.1060433 | AV56: 270.8295324 | AW56: 180.5530216 | AX56: 90.27651081 | AZ56: 5.702874972 | BG56: 496.5208095 | BI56: 20 | BJ56: 80 | BL56: 0 | BP56: 19.8 | BQ56: 1500.314502 | BR56: 13.8 | BS56: 1261.690316 | BU56: 0
A57: 18:00:00 | F57: Tª | G57: Pv | H57: Tª | I57: φsi | AB57: 0 | AC57: 0 | AE57: =IF(B57="",0,IF(th_24h_Graf_Tot!$L$83=0,"",B57-(th_24h_Graf_Tot!$L$82/th_24h_Graf_Tot!$L$83)*(B57-IF(Z57="",TE,Z57)))) -> 0 | AF57: 0 | AG57: 0 | AI57: 20 | AJ57: 55 | AK57: 80 | AL57: 03:04:59.993 | AN57: 5.6 | AO57: 909.0597816 | AP57: 818.1538035 | AQ57: 727.2478253 | AR57: 636.3418471 | AS57: 545.435869 | AT57: 454.5298908 | AU57: 363.6239127 | AV57: 272.7179345 | AW57: 181.8119563 | AX57: 90.90597816 | AZ57: 5.742639176 | BG57: 499.9828799 | BI57: 20 | BJ57: 80 | BL57: 0 | BP57: 19.7 | BQ57: 1491.03839 | BR57: 13.9 | BS57: 1269.913933 | BU57: 0
A58: 18:20:00 | E58: 1 | F58: =SUM(B3:B5)/3 -> 0 | G58: =SUM(AG3:AG5)/3 -> 0 | H58: =SUM(AE3:AE5)/3 -> 0 | I58: =SUM(BL3:BL5)/3 -> 0 | AB58: 0 | AC58: 0 | AE58: =IF(B58="",0,IF(th_24h_Graf_Tot!$L$83=0,"",B58-(th_24h_Graf_Tot!$L$82/th_24h_Graf_Tot!$L$83)*(B58-IF(Z58="",TE,Z58)))) -> 0 | AF58: 0 | AG58: 0 | AI58: 20 | AJ58: 55 | AK58: 80 | AL58: 03:09:59.993 | AN58: 5.7 | AO58: 915.3931107 | AP58: 823.8537996 | AQ58: 732.3144886 | AR58: 640.7751775 | AS58: 549.2358664 | AT58: 457.6965554 | AU58: 366.1572443 | AV58: 274.6179332 | AW58: 183.0786221 | AX58: 91.53931107 | AZ58: 5.782647572 | BG58: 503.4662109 | BI58: 20 | BJ58: 80 | BL58: 0 | BP58: 19.6 | BQ58: 1481.812475 | BR58: 14 | BS58: 1278.184542 | BU58: 0
A59: 18:40:00 | E59: =E58+1 -> 2 | F59: =SUM(B6:B8)/3 -> 0 | G59: =SUM(AG6:AG8)/3 -> 0 | H59: =SUM(AE6:AE8)/3 -> 0 | I59: =SUM(BL6:BL8)/3 -> 0 | AB59: 0 | AC59: 0 | AE59: =IF(B59="",0,IF(th_24h_Graf_Tot!$L$83=0,"",B59-(th_24h_Graf_Tot!$L$82/th_24h_Graf_Tot!$L$83)*(B59-IF(Z59="",TE,Z59)))) -> 0 | AF59: 0 | AG59: 0 | AI59: 20 | AJ59: 55 | AK59: 80 | AL59: 03:14:59.993 | AN59: 5.8 | AO59: 921.7652984 | AP59: 829.5887686 | AQ59: 737.4122388 | AR59: 645.2357089 | AS59: 553.0591791 | AT59: 460.8826492 | AU59: 368.7061194 | AV59: 276.5295895 | AW59: 184.3530597 | AX59: 92.17652984 | AZ59: 5.822901443 | BG59: 506.9709141 | BI59: 20 | BJ59: 80 | BL59: 0 | BP59: 19.5 | BQ59: 1472.636528 | BR59: 14.1 | BS59: 1286.502371 | BU59: 0
A60: 19:00:00 | E60: 3 | F60: =SUM(B9:B11)/3 -> 0 | G60: =SUM(AG9:AG11)/3 -> 0 | H60: =SUM(AE9:AE11)/3 -> 0 | I60: =SUM(BL9:BL11)/3 -> 0 | AB60: 0 | AC60: 0 | AE60: =IF(B60="",0,IF(th_24h_Graf_Tot!$L$83=0,"",B60-(th_24h_Graf_Tot!$L$82/th_24h_Graf_Tot!$L$83)*(B60-IF(Z60="",TE,Z60)))) -> 0 | AF60: 0 | AG60: 0 | AI60: 20 | AJ60: 55 | AK60: 80 | AL60: 03:19:59.992 | AN60: 5.9 | AO60: 928.1765489 | AP60: 835.358894 | AQ60: 742.5412391 | AR60: 649.7235842 | AS60: 556.9059293 | AT60: 464.0882744 | AU60: 371.2706195 | AV60: 278.4529647 | AW60: 185.6353098 | AX60: 92.81765489 | AZ60: 5.863402077 | BG60: 510.4971019 | BI60: 20 | BJ60: 80 | BL60: 0 | BP60: 19.4 | BQ60: 1463.510319 | BR60: 14.2 | BS60: 1294.86765 | BU60: 0
A61: 19:20:00 | E61: 4 | F61: =SUM(B12:B14)/3 -> 0 | G61: =SUM(AG12:AG14)/3 -> 0 | H61: =SUM(AE12:AE14)/3 -> 0 | I61: =SUM(BL12:BL14)/3 -> 0 | AB61: 0 | AC61: 0 | AE61: =IF(B61="",0,IF(th_24h_Graf_Tot!$L$83=0,"",B61-(th_24h_Graf_Tot!$L$82/th_24h_Graf_Tot!$L$83)*(B61-IF(Z61="",TE,Z61)))) -> 0 | AF61: 0 | AG61: 0 | AI61: 20 | AJ61: 55 | AK61: 80 | AL61: 03:24:59.992 | AN61: 6 | AO61: 934.6270668 | AP61: 841.1643601 | AQ61: 747.7016535 | AR61: 654.2389468 | AS61: 560.7762401 | AT61: 467.3135334 | AU61: 373.8508267 | AV61: 280.38812 | AW61: 186.9254134 | AX61: 93.46270668 | AZ61: 5.90415077 | BG61: 514.0448868 | BI61: 20 | BJ61: 80 | BL61: 0 | BP61: 19.3 | BQ61: 1454.43362 | BR61: 14.3 | BS61: 1303.280608 | BU61: 0
A62: 19:40:00 | E62: 5 | F62: =SUM(B15:B17)/3 -> 0 | G62: =SUM(AG15:AG17)/3 -> 0 | H62: =SUM(AE15:AE17)/3 -> 0 | I62: =SUM(BL15:BL17)/3 -> 0 | AB62: 0 | AC62: 0 | AE62: =IF(B62="",0,IF(th_24h_Graf_Tot!$L$83=0,"",B62-(th_24h_Graf_Tot!$L$82/th_24h_Graf_Tot!$L$83)*(B62-IF(Z62="",TE,Z62)))) -> 0 | AF62: 0 | AG62: 0 | AI62: 20 | AJ62: 55 | AK62: 80 | AL62: 03:29:59.992 | AN62: 6.1 | AO62: 941.1170581 | AP62: 847.0053523 | AQ62: 752.8936465 | AR62: 658.7819407 | AS62: 564.6702348 | AT62: 470.558529 | AU62: 376.4468232 | AV62: 282.3351174 | AW62: 188.2234116 | AX62: 94.11170581 | AZ62: 5.945148819 | BG62: 517.6143819 | BI62: 20 | BJ62: 80 | BL62: 0 | BP62: 19.2 | BQ62: 1445.406202 | BR62: 14.4 | BS62: 1311.741476 | BU62: 0
A63: 20:00:00 | E63: 6 | F63: =SUM(B18:B20)/3 -> 0 | G63: =SUM(AG18:AG20)/3 -> 0 | H63: =SUM(AE18:AE20)/3 -> 0 | I63: =SUM(BL18:BL20)/3 -> 0 | AB63: 0 | AC63: 0 | AE63: =IF(B63="",0,IF(th_24h_Graf_Tot!$L$83=0,"",B63-(th_24h_Graf_Tot!$L$82/th_24h_Graf_Tot!$L$83)*(B63-IF(Z63="",TE,Z63)))) -> 0 | AF63: 0 | AG63: 0 | AI63: 20 | AJ63: 55 | AK63: 80 | AL63: 03:34:59.992 | AN63: 6.2 | AO63: 947.6467292 | AP63: 852.8820563 | AQ63: 758.1173834 | AR63: 663.3527105 | AS63: 568.5880375 | AT63: 473.8233646 | AU63: 379.0586917 | AV63: 284.2940188 | AW63: 189.5293458 | AX63: 94.76467292 | AZ63: 5.986397531 | BG63: 521.2057011 | BI63: 20 | BJ63: 80 | BL63: 0 | BP63: 19.1 | BQ63: 1436.42784 | BR63: 14.5 | BS63: 1320.250486 | BU63: 0
A64: 20:20:00 | E64: 7 | F64: =SUM(B21:B23)/3 -> 0 | G64: =SUM(AG21:AG23)/3 -> 0 | H64: =SUM(AE21:AE23)/3 -> 0 | I64: =SUM(BL21:BL23)/3 -> 0 | AB64: 0 | AC64: 0 | AE64: =IF(B64="",0,IF(th_24h_Graf_Tot!$L$83=0,"",B64-(th_24h_Graf_Tot!$L$82/th_24h_Graf_Tot!$L$83)*(B64-IF(Z64="",TE,Z64)))) -> 0 | AF64: 0 | AG64: 0 | AI64: 20 | AJ64: 55 | AK64: 80 | AL64: 03:39:59.992 | AN64: 6.3 | AO64: 954.2162878 | AP64: 858.794659 | AQ64: 763.3730302 | AR64: 667.9514015 | AS64: 572.5297727 | AT64: 477.1081439 | AU64: 381.6865151 | AV64: 286.2648863 | AW64: 190.8432576 | AX64: 95.42162878 | AZ64: 6.027898217 | BG64: 524.8189583 | BI64: 20 | BJ64: 80 | BL64: 0 | BP64: 19 | BQ64: 1427.498308 | BR64: 14.6 | BS64: 1328.807871 | BU64: 0
A65: 20:40:00 | E65: 8 | F65: =SUM(B24:B26)/3 -> 0 | G65: =SUM(AG24:AG26)/3 -> 0 | H65: =SUM(AE24:AE26)/3 -> 0 | I65: =SUM(BL24:BL26)/3 -> 0 | AB65: 0 | AC65: 0 | AE65: =IF(B65="",0,IF(th_24h_Graf_Tot!$L$83=0,"",B65-(th_24h_Graf_Tot!$L$82/th_24h_Graf_Tot!$L$83)*(B65-IF(Z65="",TE,Z65)))) -> 0 | AF65: 0 | AG65: 0 | AI65: 20 | AJ65: 55 | AK65: 80 | AL65: 03:44:59.991 | AN65: 6.4 | AO65: =610.5*EXP(1)^((17.269*AN65)/(237.3+AN65)) -> 960.8259422 | AP65: =AO65*0.9 -> 864.7433479 | AQ65: =AO65*0.8 -> 768.6607537 | AR65: =AO65*0.7 -> 672.5781595 | AS65: =AO65*0.6 -> 576.4955653 | AT65: =AO65*0.5 -> 480.4129711 | AU65: =AO65*0.4 -> 384.3303769 | AV65: =AO65*0.3 -> 288.2477826 | AW65: =AO65*0.2 -> 192.1651884 | AX65: =AO65*0.1 -> 96.08259422 | AZ65: =AO65*20/3166 -> 6.069652193 | BG65: =AO65*$AL$1/100 -> 528.4542682 | BI65: 20 | BJ65: 80 | BL65: 0 | BP65: 19 | BQ65: =610.5*EXP(1)^((17.269*BP65)/(237.3+BP65))*0.4 -> 878.4604973 | BR65: 14.7 | BS65: 1337.413863 | BU65: 0
A66: 21:00:00 | E66: 9 | F66: =SUM(B27:B29)/3 -> 0 | G66: =SUM(AG27:AG29)/3 -> 0 | H66: =SUM(AE27:AE29)/3 -> 0 | I66: =SUM(BL27:BL29)/3 -> 0 | AB66: 0 | AC66: 0 | AE66: =IF(B66="",0,IF(th_24h_Graf_Tot!$L$83=0,"",B66-(th_24h_Graf_Tot!$L$82/th_24h_Graf_Tot!$L$83)*(B66-IF(Z66="",TE,Z66)))) -> 0 | AF66: 0 | AG66: 0 | AI66: 20 | AJ66: 55 | AK66: 80 | AL66: 03:49:59.991 | AN66: =AN65+0.1 -> 6.5 | AO66: 967.4759016 | AP66: 870.7283114 | AQ66: 773.9807213 | AR66: 677.2331311 | AS66: 580.485541 | AT66: 483.7379508 | AU66: 386.9903606 | AV66: 290.2427705 | AW66: 193.4951803 | AX66: 96.74759016 | AZ66: 6.111660781 | BG66: 532.1117459 | BI66: 20 | BJ66: 80 | BL66: 0 | BR66: 14.8 | BS66: 1346.068699 | BU66: 0
A67: 21:20:00 | E67: 10 | F67: =SUM(B30:B32)/3 -> 0 | G67: =SUM(AG30:AG32)/3 -> 0 | H67: =SUM(AE30:AE32)/3 -> 0 | I67: =SUM(BL30:BL32)/3 -> 0 | AB67: =IF(Z67>=0,610.5*EXP(1)^((17.269*Z67)/(237.3+Z67)),610.5*EXP(1)^((21.875*Z67)/(265.5+Z67)))*622/(1000*101.325-IF(Z67>=0,610.5*EXP(1)^((17.269*Z67)/(237.3+Z67)),610.5*EXP(1)^((21.875*Z67)/(265.5+Z67))))*AA67/100 -> 0 | AC67: =IF(B67>=0,610.5*EXP(1)^((17.269*B67)/(237.3+B67)),610.5*EXP(1)^((21.875*B67)/(265.5+B67)))*622/(1000*101.325-IF(B67>=0,610.5*EXP(1)^((17.269*B67)/(237.3+B67)),610.5*EXP(1)^((21.875*B67)/(265.5+B67))))*C67/100 -> 0 | AD67: =IF(AG67=0,"",237.3*LN((AG67/0.8)/610.5)/(17.269-LN((AG67/0.8)/610.5))) ->  | AE67: =IF(B67="",0,IF(th_24h_Graf_Tot!$L$83=0,"",B67-(th_24h_Graf_Tot!$L$82/th_24h_Graf_Tot!$L$83)*(B67-IF(Z67="",TE,Z67)))) -> 0 | AF67: =IF(AE67="","",IF(AG67/(610.5*EXP(1)^((17.269*AE67)/(237.3+AE67)))*100>100,100,AG67/(610.5*EXP(1)^((17.269*AE67)/(237.3+AE67)))*100)) -> 0 | AG67: =610.5*EXP(1)^((17.269*B67)/(237.3+B67))*C67/100 -> 0 | AH67: =IF(AG67=0,"",237.3*LN(AG67/610.5)/(17.269-LN(AG67/610.5))) ->  | AI67: 20 | AJ67: 55 | AK67: 80 | AL67: 03:54:59.991 | AN67: 6.6 | AO67: 974.1663763 | AP67: 876.7497387 | AQ67: 779.333101 | AR67: 681.9164634 | AS67: 584.4998258 | AT67: 487.0831881 | AU67: 389.6665505 | AV67: 292.2499129 | AW67: 194.8332753 | AX67: 97.41663763 | AZ67: 6.153925308 | BG67: 535.791507 | BI67: 20 | BJ67: 80 | BL67: =IF($E$1=FALSE,-500,610.5*EXP(1)^((17.269*AE67)/(237.3+AE67))*AF67/100) -> 0 | BR67: 14.9 | BS67: 1354.772613 | BU67: =IF(AF67="",0,IF(ISERROR(IF(AF67>=$AK$3,$J$3,0)),0,IF(AF67>=$AK$3,$J$3,0))) -> 0
A68: =A67+$J$3 -> 21:40:00 | E68: 11 | F68: =SUM(B33:B35)/3 -> 0 | G68: =SUM(AG33:AG35)/3 -> 0 | H68: =SUM(AE33:AE35)/3 -> 0 | I68: =SUM(BL33:BL35)/3 -> 0 | AB68: 0 | AC68: 0 | AE68: =IF(B68="",0,IF(th_24h_Graf_Tot!$L$83=0,"",B68-(th_24h_Graf_Tot!$L$82/th_24h_Graf_Tot!$L$83)*(B68-IF(Z68="",TE,Z68)))) -> 0 | AF68: 0 | AG68: 0 | AI68: =$AI$3 -> 20 | AJ68: =$AJ$3 -> 55 | AK68: =$AK$3 -> 80 | AL68: 03:59:59.991 | AN68: 6.7 | AO68: 980.8975773 | AP68: 882.8078195 | AQ68: 784.7180618 | AR68: 686.6283041 | AS68: 588.5385464 | AT68: 490.4487886 | AU68: 392.3590309 | AV68: 294.2692732 | AW68: 196.1795155 | AX68: 98.08975773 | AZ68: 6.196447108 | BG68: 539.4936675 | BI68: =$BI$3 -> 20 | BJ68: =$BJ$3 -> 80 | BL68: 0 | BR68: =BR67+0.1 -> 15 | BS68: =610.5*EXP(1)^((17.269*BR68)/(237.3+BR68))*0.8 -> 1363.52584 | BU68: 0
A69: 22:00:00 | E69: 12 | F69: =SUM(B36:B38)/3 -> 0 | G69: =SUM(AG36:AG38)/3 -> 0 | H69: =SUM(AE36:AE38)/3 -> 0 | I69: =SUM(BL36:BL38)/3 -> 0 | AB69: 0 | AC69: 0 | AE69: =IF(B69="",0,IF(th_24h_Graf_Tot!$L$83=0,"",B69-(th_24h_Graf_Tot!$L$82/th_24h_Graf_Tot!$L$83)*(B69-IF(Z69="",TE,Z69)))) -> 0 | AF69: 0 | AG69: 0 | AI69: 20 | AJ69: 55 | AK69: 80 | AL69: 04:04:59.991 | AN69: 6.8 | AO69: 987.6697165 | AP69: 888.9027448 | AQ69: 790.1357732 | AR69: 691.3688015 | AS69: 592.6018299 | AT69: 493.8348582 | AU69: 395.0678866 | AV69: 296.3009149 | AW69: 197.5339433 | AX69: 98.76697165 | AZ69: 6.23922752 | BG69: 543.2183441 | BI69: 20 | BJ69: 80 | BL69: 0 | BR69: 15.1 | BS69: 1372.32862 | BU69: 0
A70: 22:20:00 | E70: 13 | F70: =SUM(B39:B41)/3 -> 0 | G70: =SUM(AG39:AG41)/3 -> 0 | H70: =SUM(AE39:AE41)/3 -> 0 | I70: =SUM(BL39:BL41)/3 -> 0 | AB70: 0 | AC70: 0 | AE70: =IF(B70="",0,IF(th_24h_Graf_Tot!$L$83=0,"",B70-(th_24h_Graf_Tot!$L$82/th_24h_Graf_Tot!$L$83)*(B70-IF(Z70="",TE,Z70)))) -> 0 | AF70: 0 | AG70: 0 | AI70: 20 | AJ70: 55 | AK70: 80 | AL70: 04:09:59.990 | AN70: 6.9 | AO70: 994.4830068 | AP70: 895.0347061 | AQ70: 795.5864055 | AR70: 696.1381048 | AS70: 596.6898041 | AT70: 497.2415034 | AU70: 397.7932027 | AV70: 298.344902 | AW70: 198.8966014 | AX70: 99.44830068 | AZ70: 6.282267889 | BG70: 546.9656538 | BI70: 20 | BJ70: 80 | BL70: 0 | BR70: 15.2 | BS70: 1381.181189 | BU70: 0
A71: 22:40:00 | E71: 14 | F71: =SUM(B42:B44)/3 -> 0 | G71: =SUM(AG42:AG44)/3 -> 0 | H71: =SUM(AE42:AE44)/3 -> 0 | I71: =SUM(BL42:BL44)/3 -> 0 | AB71: 0 | AC71: 0 | AE71: =IF(B71="",0,IF(th_24h_Graf_Tot!$L$83=0,"",B71-(th_24h_Graf_Tot!$L$82/th_24h_Graf_Tot!$L$83)*(B71-IF(Z71="",TE,Z71)))) -> 0 | AF71: 0 | AG71: 0 | AI71: 20 | AJ71: 55 | AK71: 80 | AL71: 04:14:59.990 | AN71: 7 | AO71: 1001.337662 | AP71: 901.2038958 | AQ71: 801.0701296 | AR71: 700.9363634 | AS71: 600.8025972 | AT71: 500.668831 | AU71: 400.5350648 | AV71: 300.4012986 | AW71: 200.2675324 | AX71: 100.1337662 | AZ71: 6.325569564 | BG71: 550.7357141 | BI71: 20 | BJ71: 80 | BL71: 0 | BR71: 15.3 | BS71: 1390.083787 | BU71: 0
A72: 23:00:00 | E72: 15 | F72: =SUM(B45:B47)/3 -> 0 | G72: =SUM(AG45:AG47)/3 -> 0 | H72: =SUM(AE45:AE47)/3 -> 0 | I72: =SUM(BL45:BL47)/3 -> 0 | AB72: 0 | AC72: 0 | AE72: =IF(B72="",0,IF(th_24h_Graf_Tot!$L$83=0,"",B72-(th_24h_Graf_Tot!$L$82/th_24h_Graf_Tot!$L$83)*(B72-IF(Z72="",TE,Z72)))) -> 0 | AF72: 0 | AG72: 0 | AI72: 20 | AJ72: 55 | AK72: 80 | AL72: 04:19:59.990 | AN72: 7.1 | AO72: 1008.233897 | AP72: 907.4105071 | AQ72: 806.5871174 | AR72: 705.7637277 | AS72: 604.940338 | AT72: 504.1169484 | AU72: 403.2935587 | AV72: 302.470169 | AW72: 201.6467793 | AX72: 100.8233897 | AZ72: 6.369133902 | BG72: 554.5286432 | BI72: 20 | BJ72: 80 | BL72: 0 | BR72: 15.4 | BS72: 1399.036654 | BU72: 0
A73: 23:20:00 | E73: 16 | F73: =SUM(B48:B50)/3 -> 0 | G73: =SUM(AG48:AG50)/3 -> 0 | H73: =SUM(AE48:AE50)/3 -> 0 | I73: =SUM(BL48:BL50)/3 -> 0 | AB73: 0 | AC73: 0 | AE73: =IF(B73="",0,IF(th_24h_Graf_Tot!$L$83=0,"",B73-(th_24h_Graf_Tot!$L$82/th_24h_Graf_Tot!$L$83)*(B73-IF(Z73="",TE,Z73)))) -> 0 | AF73: 0 | AG73: 0 | AI73: 20 | AJ73: 55 | AK73: 80 | AL73: 04:24:59.990 | AN73: 7.2 | AO73: 1015.171927 | AP73: 913.6547339 | AQ73: 812.1375412 | AR73: 710.6203486 | AS73: 609.1031559 | AT73: 507.5859633 | AU73: 406.0687706 | AV73: 304.551578 | AW73: 203.0343853 | AX73: 101.5171927 | AZ73: 6.412962265 | BG73: 558.3445596 | BI73: 20 | BJ73: 80 | BL73: 0 | BR73: 15.5 | BS73: 1408.04003 | BU73: 0
A74: 23:40:00 | E74: 17 | F74: =SUM(B51:B53)/3 -> 0 | G74: =SUM(AG51:AG53)/3 -> 0 | H74: =SUM(AE51:AE53)/3 -> 0 | I74: =SUM(BL51:BL53)/3 -> 0 | AB74: 0 | AC74: 0 | AE74: =IF(B74="",0,IF(th_24h_Graf_Tot!$L$83=0,"",B74-(th_24h_Graf_Tot!$L$82/th_24h_Graf_Tot!$L$83)*(B74-IF(Z74="",TE,Z74)))) -> 0 | AF74: 0 | AG74: 0 | AI74: 20 | AJ74: 55 | AK74: 80 | AL74: 04:29:59.990 | AN74: 7.3 | AO74: 1022.151968 | AP74: 919.9367711 | AQ74: 817.7215743 | AR74: 715.5063775 | AS74: 613.2911807 | AT74: 511.0759839 | AU74: 408.8607872 | AV74: 306.6455904 | AW74: 204.4303936 | AX74: 102.2151968 | AZ74: 6.457056019 | BG74: 562.1835823 | BI74: 20 | BJ74: 80 | BL74: 0 | BR74: 15.6 | BS74: 1417.094158 | BU74: 0
A75: 1 | E75: 18 | F75: =SUM(B54:B56)/3 -> 0 | G75: =SUM(AG54:AG56)/3 -> 0 | H75: =SUM(AE54:AE56)/3 -> 0 | I75: =SUM(BL54:BL56)/3 -> 0 | AB75: 0 | AC75: 0 | AE75: =IF(B75="",0,IF(th_24h_Graf_Tot!$L$83=0,"",B75-(th_24h_Graf_Tot!$L$82/th_24h_Graf_Tot!$L$83)*(B75-IF(Z75="",TE,Z75)))) -> 0 | AF75: 0 | AG75: 0 | AI75: 20 | AJ75: 55 | AK75: 80 | AL75: 04:34:59.989 | AN75: 7.4 | AO75: 1029.174238 | AP75: 926.2568144 | AQ75: 823.3393905 | AR75: 720.4219667 | AS75: 617.5045429 | AT75: 514.5871191 | AU75: 411.6696953 | AV75: 308.7522715 | AW75: 205.8348476 | AX75: 102.9174238 | AZ75: 6.501416539 | BG75: 566.045831 | BI75: 20 | BJ75: 80 | BL75: 0 | BR75: 15.7 | BS75: 1426.19928 | BU75: 0
E76: 19 | F76: =SUM(B57:B59)/3 -> 0 | G76: =SUM(AG57:AG59)/3 -> 0 | H76: =SUM(AE57:AE59)/3 -> 0 | I76: =SUM(BL57:BL59)/3 -> 0 | AI76: 20 | AJ76: 55 | AK76: 80 | AL76: 04:39:59.989 | AN76: 7.5 | AO76: 1036.238956 | AP76: 932.6150601 | AQ76: 828.9911646 | AR76: 725.367269 | AS76: 621.7433734 | AT76: 518.1194779 | AU76: 414.4955823 | AV76: 310.8716867 | AW76: 207.2477911 | AX76: 103.6238956 | AZ76: 6.546045203 | BG76: 569.9314256 | BI76: 20 | BJ76: 80 | BR76: 15.8 | BS76: 1435.355641 | BU76: =(72-COUNTIF(BU3:BU74,0))*IF($J$3<0.02,20,IF(0.02<$J$3<0.04,30,IF($J$3>0.04,60)))/60 -> 0 | BV76: h
E77: 20 | F77: =SUM(B60:B62)/3 -> 0 | G77: =SUM(AG60:AG62)/3 -> 0 | H77: =SUM(AE60:AE62)/3 -> 0 | I77: =SUM(BL60:BL62)/3 -> 0 | AI77: 20 | AJ77: 55 | AK77: 80 | AL77: 04:44:59.989 | AN77: 7.6 | AO77: 1043.34634 | AP77: 939.0117057 | AQ77: 834.6770718 | AR77: 730.3424378 | AS77: 626.0078038 | AT77: 521.6731699 | AU77: 417.3385359 | AV77: 313.0039019 | AW77: 208.6692679 | AX77: 104.334634 | AZ77: 6.590943397 | BG77: 573.8404868 | BI77: 20 | BJ77: 80 | BR77: 15.9 | BS77: 1444.563483 | BU77: =BU76/24 -> 0
E78: 21 | F78: =SUM(B63:B65)/3 -> 0 | G78: =SUM(AG63:AG65)/3 -> 0 | H78: =SUM(AE63:AE65)/3 -> 0 | I78: =SUM(BL63:BL65)/3 -> 0 | AI78: 20 | AJ78: 55 | AK78: 80 | AL78: 04:49:59.989 | AN78: 7.7 | AO78: 1050.49661 | AP78: 945.4469493 | AQ78: 840.3972883 | AR78: 735.3476272 | AS78: 630.2979662 | AT78: 525.2483052 | AU78: 420.1986441 | AV78: 315.1489831 | AW78: 210.0993221 | AX78: 105.049661 | AZ78: 6.63611251 | BG78: 577.7731357 | BI78: 20 | BJ78: 80 | BR78: 16 | BS78: 1453.823055
E79: 22 | F79: =SUM(B66:B68)/3 -> 0 | G79: =SUM(AG66:AG68)/3 -> 0 | H79: =SUM(AE66:AE68)/3 -> 0 | I79: =SUM(BL66:BL68)/3 -> 0 | AI79: 20 | AJ79: 55 | AK79: 80 | AL79: 04:54:59.989 | AN79: 7.8 | AO79: 1057.689989 | AP79: 951.9209897 | AQ79: 846.1519909 | AR79: 740.382992 | AS79: 634.6139932 | AT79: 528.8449943 | AU79: 423.0759954 | AV79: 317.3069966 | AW79: 211.5379977 | AX79: 105.7689989 | AZ79: 6.681553939 | BG79: 581.7294937 | BI79: 20 | BJ79: 80 | BR79: 16.1 | BS79: 1463.1346
E80: 23 | F80: =SUM(B69:B71)/3 -> 0 | G80: =SUM(AG69:AG71)/3 -> 0 | H80: =SUM(AE69:AE71)/3 -> 0 | I80: =SUM(BL69:BL71)/3 -> 0 | AI80: 20 | AJ80: 55 | AK80: 80 | AL80: 04:59:59.988 | AN80: 7.9 | AO80: 1064.926697 | AP80: 958.4340269 | AQ80: 851.9413572 | AR80: 745.4486876 | AS80: 638.9560179 | AT80: 532.4633483 | AU80: 425.9706786 | AV80: 319.478009 | AW80: 212.9853393 | AX80: 106.4926697 | AZ80: 6.727269087 | BG80: 585.7096831 | BI80: 20 | BJ80: 80 | BR80: 16.2 | BS80: 1472.498368
E81: 24 | F81: =SUM(B72:B74)/3 -> 0 | G81: =SUM(AG72:AG74)/3 -> 0 | H81: =SUM(AE72:AE74)/3 -> 0 | I81: =SUM(BL72:BL74)/3 -> 0 | AI81: 20 | AJ81: 55 | AK81: 80 | AL81: 05:04:59.988 | AN81: 8 | AO81: 1072.206957 | AP81: 964.9862614 | AQ81: 857.7655657 | AR81: 750.54487 | AS81: 643.3241742 | AT81: 536.1034785 | AU81: 428.8827828 | AV81: 321.6620871 | AW81: 214.4413914 | AX81: 107.2206957 | AZ81: 6.773259362 | BG81: 589.7138264 | BI81: 20 | BJ81: 80 | BR81: 16.3 | BS81: 1481.914607
AI82: 20 | AJ82: 55 | AK82: 80 | AL82: 05:09:59.988 | AN82: 8.1 | AO82: 1079.530994 | AP82: 971.5778946 | AQ82: 863.6247952 | AR82: 755.6716958 | AS82: 647.7185964 | AT82: 539.765497 | AU82: 431.8123976 | AV82: 323.8592982 | AW82: 215.9061988 | AX82: 107.9530994 | AZ82: 6.819526178 | BG82: 593.7420467 | BI82: 20 | BJ82: 80 | BR82: 16.4 | BS82: 1491.383565
AI83: 20 | AJ83: 55 | AK83: 80 | AL83: 05:14:59.988 | AN83: 8.2 | AO83: 1086.899032 | AP83: 978.209129 | AQ83: 869.5192258 | AR83: 760.8293226 | AS83: 652.1394194 | AT83: 543.4495161 | AU83: 434.7596129 | AV83: 326.0697097 | AW83: 217.3798065 | AX83: 108.6899032 | AZ83: 6.866070956 | BG83: 597.7944677 | BI83: 20 | BJ83: 80 | BR83: 16.5 | BS83: 1500.905494
AI84: 20 | AJ84: 55 | AK84: 80 | AL84: 05:19:59.988 | AN84: 8.3 | AO84: 1094.311297 | AP84: 984.8801677 | AQ84: 875.4490379 | AR84: 766.0179082 | AS84: 656.5867785 | AT84: 547.1556487 | AU84: 437.724519 | AV84: 328.2933892 | AW84: 218.8622595 | AX84: 109.4311297 | AZ84: 6.91289512 | BG84: 601.8712136 | BI84: 20 | BJ84: 80 | BR84: 16.6 | BS84: 1510.480644
AI85: 20 | AJ85: 55 | AK85: 80 | AL85: =AL84+0.00347222 -> 05:24:59.988 | AN85: 8.4 | AO85: 1101.768016 | AP85: 991.5912146 | AQ85: 881.414413 | AR85: 771.2376113 | AS85: 661.0608097 | AT85: 550.8840081 | AU85: 440.7072065 | AV85: 330.5304049 | AW85: 220.3536032 | AX85: 110.1768016 | AZ85: 6.960000102 | BG85: 605.9724089 | BI85: 20 | BJ85: 80 | BR85: 16.7 | BS85: 1520.109268
AI86: 20 | AJ86: 55 | AK86: 80 | AL86: 05:29:59.987 | AN86: 8.5 | AO86: 1109.269416 | AP86: 998.3424746 | AQ86: 887.415533 | AR86: 776.4885914 | AS86: 665.5616497 | AT86: 554.6347081 | AU86: 443.7077665 | AV86: 332.7808249 | AW86: 221.8538832 | AX86: 110.9269416 | AZ86: 7.007387342 | BG86: 610.0981789 | BI86: 20 | BJ86: 80 | BR86: 16.8 | BS86: 1529.791619
AI87: 20 | AJ87: 55 | AK87: 80 | AL87: 05:34:59.987 | AN87: 8.6 | AO87: 1116.815726 | AP87: 1005.134153 | AQ87: 893.4525809 | AR87: 781.7710082 | AS87: 670.0894356 | AT87: 558.407863 | AU87: 446.7262904 | AV87: 335.0447178 | AW87: 223.3631452 | AX87: 111.6815726 | AZ87: 7.055058282 | BG87: 614.2486493 | BI87: 20 | BJ87: 80 | BR87: 16.9 | BS87: 1539.527951
AI88: 20 | AJ88: 55 | AK88: 80 | AL88: 05:39:59.987 | AN88: 8.7 | AO88: 1124.407175 | AP88: 1011.966458 | AQ88: 899.5257402 | AR88: 787.0850226 | AS88: 674.6443051 | AT88: 562.2035876 | AU88: 449.7628701 | AV88: 337.3221526 | AW88: 224.881435 | AX88: 112.4407175 | AZ88: 7.103014373 | BG88: 618.4239464 | BI88: 20 | BJ88: 80 | BR88: 17 | BS88: 1549.318519
AI89: 20 | AJ89: 55 | AK89: 80 | AL89: 05:44:59.987 | AN89: 8.8 | AO89: 1132.043994 | AP89: 1018.839595 | AQ89: 905.6351953 | AR89: 792.4307959 | AS89: 679.2263965 | AT89: 566.0219971 | AU89: 452.8175976 | AV89: 339.6131982 | AW89: 226.4087988 | AX89: 113.2043994 | AZ89: 7.15125707 | BG89: 622.6241968 | BI89: 20 | BJ89: 80 | BR89: 17.1 | BS89: 1559.163579
AI90: 20 | AJ90: 55 | AK90: 80 | AL90: 05:49:59.987 | AN90: 8.9 | AO90: 1139.726414 | AP90: 1025.753773 | AQ90: 911.7811314 | AR90: 797.80849 | AS90: 683.8358485 | AT90: 569.8632071 | AU90: 455.8905657 | AV90: 341.9179243 | AW90: 227.9452828 | AX90: 113.9726414 | AZ90: 7.199787835 | BG90: 626.8495278 | BI90: 20 | BJ90: 80 | BR90: 17.2 | BS90: 1569.063389
AI91: 20 | AJ91: 55 | AK91: 80 | AL91: 05:54:59.986 | AN91: 9 | AO91: 1147.454668 | AP91: 1032.709201 | AQ91: 917.9637343 | AR91: 803.2182675 | AS91: 688.4728007 | AT91: 573.727334 | AU91: 458.9818672 | AV91: 344.2364004 | AW91: 229.4909336 | AX91: 114.7454668 | AZ91: 7.248608136 | BG91: 631.1000673 | BI91: 20 | BJ91: 80 | BR91: 17.3 | BS91: 1579.018206
AI92: 20 | AJ92: 55 | AK92: 80 | AL92: 05:59:59.986 | AN92: 9.1 | AO92: 1155.228988 | AP92: 1039.70609 | AQ92: 924.1831908 | AR92: 808.6602919 | AS92: 693.1373931 | AT92: 577.6144942 | AU92: 462.0915954 | AV92: 346.5686965 | AW92: 231.0457977 | AX92: 115.5228988 | AZ92: 7.297719447 | BG92: 635.3759437 | BI92: 20 | BJ92: 80 | BR92: 17.4 | BS92: 1589.028289
AI93: 20 | AJ93: 55 | AK93: 80 | AL93: 06:04:59.986 | AN93: 9.2 | AO93: 1163.04961 | AP93: 1046.744649 | AQ93: 930.4396882 | AR93: 814.1347272 | AS93: 697.8297662 | AT93: 581.5248051 | AU93: 465.2198441 | AV93: 348.9148831 | AW93: 232.6099221 | AX93: 116.304961 | AZ93: 7.347123249 | BG93: 639.6772856 | BI93: 20 | BJ93: 80 | BR93: 17.5 | BS93: 1599.093899
AI94: 20 | AJ94: 55 | AK94: 80 | AL94: 06:09:59.986 | AN94: 9.3 | AO94: 1170.916769 | AP94: 1053.825092 | AQ94: 936.7334148 | AR94: 819.641738 | AS94: 702.5500611 | AT94: 585.4583843 | AU94: 468.3667074 | AV94: 351.2750306 | AW94: 234.1833537 | AX94: 117.0916769 | AZ94: 7.396821027 | BG94: 644.0042227 | BI94: 20 | BJ94: 80 | BR94: 17.6 | BS94: 1609.215295
AI95: 20 | AJ95: 55 | AK95: 80 | AL95: 06:14:59.986 | AN95: 9.4 | AO95: 1178.8307 | AP95: 1060.94763 | AQ95: 943.0645596 | AR95: 825.1814897 | AS95: 707.2984197 | AT95: 589.4153498 | AU95: 471.5322798 | AV95: 353.6492099 | AW95: 235.7661399 | AX95: 117.88307 | AZ95: 7.446814274 | BG95: 648.3568847 | BI95: 20 | BJ95: 80 | BR95: 17.7 | BS95: 1619.392741
AI96: 20 | AJ96: 55 | AK96: 80 | AL96: 06:19:59.985 | AN96: 9.5 | AO96: 1186.79164 | AP96: 1068.112476 | AQ96: 949.4333123 | AR96: 830.7541483 | AS96: 712.0749843 | AT96: 593.3958202 | AU96: 474.7166562 | AV96: 356.0374921 | AW96: 237.3583281 | AX96: 118.679164 | AZ96: 7.497104488 | BG96: 652.7354022 | BI96: 20 | BJ96: 80 | BR96: 17.8 | BS96: 1629.626499
AI97: 20 | AJ97: 55 | AK97: 80 | AL97: 06:24:59.985 | AN97: 9.6 | AO97: 1194.799829 | AP97: 1075.319847 | AQ97: 955.8398636 | AR97: 836.3598806 | AS97: 716.8798977 | AT97: 597.3999147 | AU97: 477.9199318 | AV97: 358.4399488 | AW97: 238.9599659 | AX97: 119.4799829 | AZ97: 7.547693174 | BG97: 657.1399062 | BI97: 20 | BJ97: 80 | BR97: 17.9 | BS97: 1639.916833
AI98: 20 | AJ98: 55 | AK98: 80 | AL98: 06:29:59.985 | AN98: 9.7 | AO98: 1202.855506 | AP98: 1082.569955 | AQ98: 962.2844046 | AR98: 841.9988541 | AS98: 721.7133035 | AT98: 601.4277529 | AU98: 481.1422023 | AV98: 360.8566517 | AW98: 240.5711012 | AX98: 120.2855506 | AZ98: 7.598581843 | BG98: 661.5705282 | BI98: 20 | BJ98: 80 | BR98: 18 | BS98: 1650.264008
AI99: 20 | AJ99: 55 | AK99: 80 | AL99: 06:34:59.985 | AN99: 9.8 | AO99: 1210.95891 | AP99: 1089.863019 | AQ99: 968.7671276 | AR99: 847.6712367 | AS99: 726.5753457 | AT99: 605.4794548 | AU99: 484.3835638 | AV99: 363.2876729 | AW99: 242.1917819 | AX99: 121.095891 | AZ99: 7.649772012 | BG99: 666.0274002 | BI99: 20 | BJ99: 80 | BR99: 18.1 | BS99: 1660.668289
AI100: 20 | AJ100: 55 | AK100: 80 | AL100: 06:39:59.985 | AN100: 9.9 | AO100: 1219.110282 | AP100: 1097.199254 | AQ100: 975.2882255 | AR100: 853.3771973 | AS100: 731.4661691 | AT100: 609.5551409 | AU100: 487.6441127 | AV100: 365.7330846 | AW100: 243.8220564 | AX100: 121.9110282 | AZ100: 7.701265205 | BG100: 670.510655 | BI100: 20 | BJ100: 80 | BR100: =BR99+0.1 -> 18.2 | BS100: 1671.129945
AI101: 20 | AJ101: 55 | AK101: 80 | AL101: 06:44:59.984 | AN101: 10 | AO101: 1227.309865 | AP101: 1104.578878 | AQ101: 981.8478919 | AR101: 859.1169054 | AS101: 736.3859189 | AT101: 613.6549324 | AU101: 490.923946 | AV101: 368.1929595 | AW101: 245.461973 | AX101: 122.7309865 | AZ101: 7.753062949 | BG101: 675.0204257 | BI101: 20 | BJ101: 80 | BR101: 18.3 | BS101: 1681.649241
AI102: 20 | AJ102: 55 | AK102: 80 | AL102: 06:49:59.984 | AN102: 10.1 | AO102: 1235.557902 | AP102: 1112.002112 | AQ102: 988.4463214 | AR102: 864.8905312 | AS102: 741.334741 | AT102: 617.7789509 | AU102: 494.2231607 | AV102: 370.6673705 | AW102: 247.1115803 | AX102: 123.5557902 | AZ102: 7.805166783 | BG102: 679.556846 | BI102: 20 | BJ102: 80 | BR102: 18.4 | BS102: 1692.226448
AI103: 20 | AJ103: 55 | AK103: 80 | AL103: 06:54:59.984 | AN103: 10.2 | AO103: 1243.854636 | AP103: 1119.469173 | AQ103: 995.0837092 | AR103: 870.6982455 | AS103: 746.3127819 | AT103: 621.9273182 | AU103: 497.5418546 | AV103: 373.1563909 | AW103: 248.7709273 | AX103: 124.3854636 | AZ103: 7.857578247 | BG103: 684.1200501 | BI103: 20 | BJ103: 80 | BR103: 18.5 | BS103: 1702.861836
AI104: 20 | AJ104: 55 | AK104: 80 | AL104: 06:59:59.984 | AN104: 10.3 | AO104: 1252.200314 | AP104: 1126.980283 | AQ104: 1001.760251 | AR104: 876.54022 | AS104: 751.3201885 | AT104: 626.1001571 | AU104: 500.8801257 | AV104: 375.6600943 | AW104: 250.4400628 | AX104: 125.2200314 | AZ104: 7.91029889 | BG104: 688.7101728 | BI104: 20 | BJ104: 80 | BR104: 18.6 | BS104: 1713.555675
AI105: 20 | AJ105: 55 | AK105: 80 | AL105: 07:04:59.984 | AN105: 10.4 | AO105: 1260.595181 | AP105: 1134.535663 | AQ105: 1008.476145 | AR105: 882.4166268 | AS105: 756.3571087 | AT105: 630.2975906 | AU105: 504.2380725 | AV105: 378.1785543 | AW105: 252.1190362 | AX105: 126.0595181 | AZ105: 7.963330266 | BG105: 693.3273496 | BI105: 20 | BJ105: 80 | BR105: 18.7 | BS105: 1724.308236
AI106: 20 | AJ106: 55 | AK106: 80 | AL106: 07:09:59.983 | AN106: 10.5 | AO106: 1269.039484 | AP106: 1142.135536 | AQ106: 1015.231587 | AR106: 888.327639 | AS106: 761.4236905 | AT106: 634.5197421 | AU106: 507.6157937 | AV106: 380.7118453 | AW106: 253.8078968 | AX106: 126.9039484 | AZ106: 8.016673937 | BG106: 697.9717163 | BI106: 20 | BJ106: 80 | BR106: 18.8 | BS106: 1735.119794
AI107: 20 | AJ107: 55 | AK107: 80 | AL107: 07:14:59.983 | AN107: 10.6 | AO107: 1277.533472 | AP107: 1149.780125 | AQ107: 1022.026777 | AR107: 894.2734302 | AS107: 766.520083 | AT107: 638.7667359 | AU107: 511.0133887 | AV107: 383.2600415 | AW107: 255.5066943 | AX107: 127.7533472 | AZ107: 8.07033147 | BG107: 702.6434094 | BI107: 20 | BJ107: 80 | BR107: 18.9 | BS107: 1745.990622
AI108: 20 | AJ108: 55 | AK108: 80 | AL108: 07:19:59.983 | AN108: 10.7 | AO108: 1286.077393 | AP108: 1157.469653 | AQ108: 1028.861914 | AR108: 900.2541748 | AS108: 771.6464356 | AT108: 643.0386963 | AU108: 514.430957 | AV108: 385.8232178 | AW108: 257.2154785 | AX108: 128.6077393 | AZ108: 8.124304439 | BG108: 707.3425659 | BI108: 20 | BJ108: 80 | BR108: 19 | BS108: 1756.920995
AI109: 20 | AJ109: 55 | AK109: 80 | AL109: 07:24:59.983 | AN109: 10.8 | AO109: 1294.671497 | AP109: 1165.204347 | AQ109: 1035.737198 | AR109: 906.270048 | AS109: 776.8028983 | AT109: 647.3357486 | AU109: 517.8685989 | AV109: 388.4014491 | AW109: 258.9342994 | AX109: 129.4671497 | AZ109: 8.178594423 | BG109: 712.0693234 | BI109: 20 | BJ109: 80 | BR109: 19.1 | BS109: 1767.911188
AI110: 20 | AJ110: 55 | AK110: 80 | AL110: 07:29:59.983 | AN110: 10.9 | AO110: 1303.316036 | AP110: 1172.984433 | AQ110: 1042.652829 | AR110: 912.3212255 | AS110: 781.9896218 | AT110: 651.6580182 | AU110: 521.3264146 | AV110: 390.9948109 | AW110: 260.6632073 | AX110: 130.3316036 | AZ110: 8.233203009 | BG110: 716.82382 | BI110: 20 | BJ110: 80 | BR110: 19.2 | BS110: 1778.96148
AI111: 20 | AJ111: 55 | AK111: 80 | AL111: 07:34:59.983 | AN111: 11 | AO111: 1312.011263 | AP111: 1180.810136 | AQ111: 1049.60901 | AR111: 918.4078838 | AS111: 787.2067575 | AT111: 656.0056313 | AU111: 524.804505 | AV111: 393.6033788 | AW111: 262.4022525 | AX111: 131.2011263 | AZ111: 8.288131791 | BG111: 721.6061944 | BI111: 20 | BJ111: 80 | BR111: 19.3 | BS111: 1790.072147
AI112: 20 | AJ112: 55 | AK112: 80 | AL112: 07:39:59.982 | AN112: 11.1 | AO112: 1320.757429 | AP112: 1188.681686 | AQ112: 1056.605943 | AR112: 924.5302001 | AS112: 792.4544573 | AT112: 660.3787144 | AU112: 528.3029715 | AV112: 396.2272286 | AW112: 264.1514858 | AX112: 132.0757429 | AZ112: 8.343382368 | BG112: 726.4165858 | BI112: 20 | BJ112: 80 | BR112: 19.4 | BS112: 1801.243469
AI113: 20 | AJ113: 55 | AK113: 80 | AL113: 07:44:59.982 | AN113: 11.2 | AO113: 1329.554789 | AP113: 1196.59931 | AQ113: 1063.643831 | AR113: 930.6883525 | AS113: 797.7328736 | AT113: 664.7773947 | AU113: 531.8219157 | AV113: 398.8664368 | AW113: 265.9109579 | AX113: 132.9554789 | AZ113: 8.398956344 | BG113: 731.2551341 | BI113: 20 | BJ113: 80 | BR113: 19.5 | BS113: 1812.475727
AI114: 20 | AJ114: 55 | AK114: 80 | AL114: 07:49:59.982 | AN114: 11.3 | AO114: 1338.403599 | AP114: 1204.563239 | AQ114: 1070.72288 | AR114: 936.8825196 | AS114: 803.0421596 | AT114: 669.2017997 | AU114: 535.3614398 | AV114: 401.5210798 | AW114: 267.6807199 | AX114: 133.8403599 | AZ114: 8.454855334 | BG114: 736.1219797 | BI114: 20 | BJ114: 80 | BR114: 19.6 | BS114: 1823.7692
AI115: 20 | AJ115: 55 | AK115: 80 | AL115: 07:54:59.982 | AN115: 11.4 | AO115: 1347.304115 | AP115: 1212.573704 | AQ115: 1077.843292 | AR115: 943.1128807 | AS115: 808.3824692 | AT115: 673.6520576 | AU115: 538.9216461 | AV115: 404.1912346 | AW115: 269.4608231 | AX115: 134.7304115 | AZ115: 8.511080956 | BG115: 741.0172634 | BI115: 20 | BJ115: 80 | BR115: 19.7 | BS115: 1835.124172
AI116: 20 | AJ116: 55 | AK116: 80 | AL116: 07:59:59.982 | AN116: 11.5 | AO116: 1356.256594 | AP116: 1220.630935 | AQ116: 1085.005275 | AR116: 949.379616 | AS116: 813.7539566 | AT116: 678.1282971 | AU116: 542.5026377 | AV116: 406.8769783 | AW116: 271.2513189 | AX116: 135.6256594 | AZ116: 8.567634834 | BG116: 745.9411268 | BI116: 20 | BJ116: 80 | BR116: 19.8 | BS116: 1846.540926
AI117: 20 | AJ117: 55 | AK117: 80 | AL117: 08:04:59.981 | AN117: 11.6 | AO117: 1365.261295 | AP117: 1228.735165 | AQ117: 1092.209036 | AR117: 955.6829063 | AS117: 819.1567768 | AT117: 682.6306473 | AU117: 546.1045179 | AV117: 409.5783884 | AW117: 273.0522589 | AX117: 136.5261295 | AZ117: 8.624518602 | BG117: 750.8937121 | BI117: 20 | BJ117: 80 | BR117: 19.9 | BS117: 1858.019745
AI118: 20 | AJ118: 55 | AK118: 80 | AL118: 08:09:59.981 | AN118: 11.7 | AO118: 1374.318476 | AP118: 1236.886628 | AQ118: 1099.454781 | AR118: 962.0229331 | AS118: 824.5910855 | AT118: 687.1592379 | AU118: 549.7273903 | AV118: 412.2955428 | AW118: 274.8636952 | AX118: 137.4318476 | AZ118: 8.681733897 | BG118: 755.8751617 | BI118: 20 | BJ118: 80 | BR118: 20 | BS118: 1869.560915
AI119: 20 | AJ119: 55 | AK119: 80 | AL119: 08:14:59.981 | AN119: 11.8 | AO119: 1383.428398 | AP119: 1245.085558 | AQ119: 1106.742719 | AR119: 968.3998788 | AS119: 830.057039 | AT119: 691.7141991 | AU119: 553.3713593 | AV119: 415.0285195 | AW119: 276.6856797 | AX119: 138.3428398 | AZ119: 8.739282364 | BG119: 760.8856191 | BI119: 20 | BJ119: 80 | BR119: 20.1 | BS119: 1881.164723
AI120: 20 | AJ120: 55 | AK120: 80 | AL120: 08:19:59.981 | AN120: 11.9 | AO120: 1392.591323 | AP120: 1253.332191 | AQ120: 1114.073059 | AR120: 974.8139264 | AS120: 835.554794 | AT120: 696.2956617 | AU120: 557.0365294 | AV120: 417.777397 | AW120: 278.5182647 | AX120: 139.2591323 | AZ120: 8.797165656 | BG120: 765.9252279 | BI120: 20 | BJ120: 80 | BR120: 20.2 | BS120: 1892.831455
AI121: 20 | AJ121: 55 | AK121: 80 | AL121: 08:24:59.981 | AN121: 12 | AO121: 1401.807514 | AP121: 1261.626762 | AQ121: 1121.446011 | AR121: 981.2652596 | AS121: 841.0845082 | AT121: 700.9037568 | AU121: 560.7230055 | AV121: 420.5422541 | AW121: 280.3615027 | AX121: 140.1807514 | AZ121: 8.855385431 | BG121: 770.9941325 | BI121: 20 | BJ121: 80 | BR121: 20.3 | BS121: 1904.5614
AI122: 20 | AJ122: 55 | AK122: 80 | AL122: 08:29:59.980 | AN122: 12.1 | AO122: 1411.077233 | AP122: 1269.969509 | AQ122: 1128.861786 | AR122: 987.7540629 | AS122: 846.6463396 | AT122: 705.5386163 | AU122: 564.4308931 | AV122: 423.3231698 | AW122: 282.2154465 | AX122: 141.1077233 | AZ122: 8.913943352 | BG122: 776.092478 | BI122: 20 | BJ122: 80 | BR122: 20.4 | BS122: 1916.354848
AI123: 20 | AJ123: 55 | AK123: 80 | AL123: 08:34:59.980 | AN123: 12.2 | AO123: 1420.400745 | AP123: 1278.360671 | AQ123: 1136.320596 | AR123: 994.2805215 | AS123: 852.240447 | AT123: 710.2003725 | AU123: 568.160298 | AV123: 426.1202235 | AW123: 284.080149 | AX123: 142.0400745 | AZ123: 8.972841093 | BG123: 781.2204098 | BI123: 20 | BJ123: 80 | BR123: 20.5 | BS123: 1928.212089
AI124: 20 | AJ124: 55 | AK124: 80 | AL124: 08:39:59.980 | AN124: 12.3 | AO124: 1429.778316 | AP124: 1286.800485 | AQ124: 1143.822653 | AR124: 1000.844822 | AS124: 857.8669899 | AT124: 714.8891582 | AU124: 571.9113266 | AV124: 428.9334949 | AW124: 285.9556633 | AX124: 142.9778316 | AZ124: 9.032080331 | BG124: 786.3780741 | BI124: 20 | BJ124: 80 | BR124: 20.6 | BS124: 1940.133415
AI125: 20 | AJ125: 55 | AK125: 80 | AL125: 08:44:59.980 | AN125: 12.4 | AO125: 1439.210214 | AP125: 1295.289192 | AQ125: 1151.368171 | AR125: 1007.44715 | AS125: 863.5261282 | AT125: 719.6051068 | AU125: 575.6840854 | AV125: 431.7630641 | AW125: 287.8420427 | AX125: 143.9210214 | AZ125: 9.091662752 | BG125: 791.5656175 | BI125: 20 | BJ125: 80 | BR125: 20.7 | BS125: 1952.119118
AI126: 20 | AJ126: 55 | AK126: 80 | AL126: 08:49:59.980 | AN126: 12.5 | AO126: 1448.696704 | AP126: 1303.827034 | AQ126: 1158.957363 | AR126: 1014.087693 | AS126: 869.2180226 | AT126: 724.3483521 | AU126: 579.4786817 | AV126: 434.6090113 | AW126: 289.7393409 | AX126: 144.8696704 | AZ126: 9.151590046 | BG126: 796.7831874 | BI126: 20 | BJ126: 80 | BR126: 20.8 | BS126: 1964.169493
AI127: 20 | AJ127: 55 | AK127: 80 | AL127: 08:54:59.979 | AN127: 12.6 | AO127: 1458.238057 | AP127: 1312.414252 | AQ127: 1166.590446 | AR127: 1020.76664 | AS127: 874.9428344 | AT127: 729.1190287 | AU127: 583.295223 | AV127: 437.4714172 | AW127: 291.6476115 | AX127: 145.8238057 | AZ127: 9.211863913 | BG127: 802.0309316 | BI127: 20 | BJ127: 80 | BR127: 20.9 | BS127: 1976.284833
AI128: 20 | AJ128: 55 | AK128: 80 | AL128: 08:59:59.979 | AN128: 12.7 | AO128: 1467.834543 | AP128: 1321.051089 | AQ128: 1174.267634 | AR128: 1027.48418 | AS128: 880.7007257 | AT128: 733.9172714 | AU128: 587.1338171 | AV128: 440.3503628 | AW128: 293.5669086 | AX128: 146.7834543 | AZ128: 9.272486057 | BG128: 807.3089985 | BI128: 20 | BJ128: 80 | BR128: 21 | BS128: 1988.465435
AI129: 20 | AJ129: 55 | AK129: 80 | AL129: 09:04:59.979 | AN129: 12.8 | AO129: =610.5*EXP(1)^((17.269*AN129)/(237.3+AN129)) -> 1477.486432 | AP129: =AO129*0.9 -> 1329.737788 | AQ129: =AO129*0.8 -> 1181.989145 | AR129: =AO129*0.7 -> 1034.240502 | AS129: =AO129*0.6 -> 886.4918589 | AT129: =AO129*0.5 -> 738.7432158 | AU129: =AO129*0.4 -> 590.9945726 | AV129: =AO129*0.3 -> 443.2459295 | AW129: =AO129*0.2 -> 295.4972863 | AX129: =AO129*0.1 -> 147.7486432 | AZ129: =AO129*20/3166 -> 9.33345819 | BG129: =AO129*$AL$1/100 -> 812.6175373 | BI129: 20 | BJ129: 80 | BR129: 21.1 | BS129: 2000.711596
AI130: 20 | AJ130: 55 | AK130: 80 | AL130: 09:09:59.979 | AN130: =AN129+0.1 -> 12.9 | AO130: 1487.193996 | AP130: 1338.474596 | AQ130: 1189.755197 | AR130: 1041.035797 | AS130: 892.3163974 | AT130: 743.5969978 | AU130: 594.8775983 | AV130: 446.1581987 | AW130: 297.4387991 | AX130: 148.7193996 | AZ130: 9.394782032 | BG130: 817.9566976 | BI130: 20 | BJ130: 80 | BR130: 21.2 | BS130: 2013.023614
AI131: 20 | AJ131: 55 | AK131: 80 | AL131: 09:14:59.979 | AN131: 13 | AO131: 1496.957508 | AP131: 1347.261758 | AQ131: 1197.566007 | AR131: 1047.870256 | AS131: 898.174505 | AT131: 748.4787542 | AU131: 598.7830034 | AV131: 449.0872525 | AW131: 299.3915017 | AX131: 149.6957508 | AZ131: 9.456459308 | BG131: 823.3266296 | BI131: 20 | BJ131: 80 | BR131: 21.3 | BS131: 2025.401787
AI132: =$AI$3 -> 20 | AJ132: =$AJ$3 -> 55 | AK132: =$AK$3 -> 80 | AL132: 09:19:59.978 | AN132: 13.1 | AO132: 1506.777244 | AP132: 1356.099519 | AQ132: 1205.421795 | AR132: 1054.744071 | AS132: 904.0663463 | AT132: 753.3886219 | AU132: 602.7108976 | AV132: 452.0331732 | AW132: 301.3554488 | AX132: 150.6777244 | AZ132: 9.518491749 | BG132: 828.7274841 | BI132: =$BI$3 -> 20 | BJ132: =$BJ$3 -> 80 | BR132: =BR131+0.1 -> 21.4 | BS132: =610.5*EXP(1)^((17.269*BR132)/(237.3+BR132))*0.8 -> 2037.846417
AI133: 20 | AJ133: 55 | AK133: 80 | AL133: 09:24:59.978 | AN133: 13.2 | AO133: 1516.653477 | AP133: 1364.98813 | AQ133: 1213.322782 | AR133: 1061.657434 | AS133: 909.9920865 | AT133: 758.3267387 | AU133: 606.661391 | AV133: 454.9960432 | AW133: 303.3306955 | AX133: 151.6653477 | AZ133: 9.580881096 | BG133: 834.1594126 | BI133: 20 | BJ133: 80 | BR133: 21.5 | BS133: 2050.357804
AI134: 20 | AJ134: 55 | AK134: 80 | AL134: 09:29:59.978 | AN134: 13.3 | AO134: 1526.586486 | AP134: 1373.927837 | AQ134: 1221.269189 | AR134: 1068.61054 | AS134: 915.9518914 | AT134: 763.2932428 | AU134: 610.6345943 | AV134: 457.9759457 | AW134: 305.3172971 | AX134: 152.6586486 | AZ134: 9.643629094 | BG134: 839.6225671 | BI134: 20 | BJ134: 80 | BR134: 21.6 | BS134: 2062.936251
AI135: 20 | AJ135: 55 | AK135: 80 | AL135: 09:34:59.978 | AN135: 13.4 | AO135: 1536.576546 | AP135: 1382.918891 | AQ135: 1229.261237 | AR135: 1075.603582 | AS135: 921.9459275 | AT135: 768.2882729 | AU135: 614.6306183 | AV135: 460.9729637 | AW135: 307.3153092 | AX135: 153.6576546 | AZ135: 9.706737497 | BG135: 845.1171002 | BI135: 20 | BJ135: 80 | BR135: 21.7 | BS135: 2075.58206
AI136: 20 | AJ136: 55 | AK136: 80 | AL136: 09:39:59.978 | AN136: 13.5 | AO136: 1546.623937 | AP136: 1391.961543 | AQ136: 1237.299149 | AR136: 1082.636756 | AS136: 927.9743619 | AT136: 773.3119683 | AU136: 618.6495746 | AV136: 463.987181 | AW136: 309.3247873 | AX136: 154.6623937 | AZ136: 9.770208064 | BG136: 850.6431651 | BI136: 20 | BJ136: 80 | BR136: 21.8 | BS136: 2088.295538
AI137: 20 | AJ137: 55 | AK137: 80 | AL137: 09:44:59.978 | AN137: 13.6 | AO137: 1556.728938 | AP137: 1401.056044 | AQ137: 1245.38315 | AR137: 1089.710256 | AS137: 934.0373626 | AT137: 778.3644688 | AU137: 622.6915751 | AV137: 467.0186813 | AW137: 311.3457875 | AX137: 155.6728938 | AZ137: 9.834042563 | BG137: 856.2009157 | BI137: 20 | BJ137: 80 | BR137: 21.9 | BS137: 2101.076989
AI138: 20 | AJ138: 55 | AK138: 80 | AL138: 09:49:59.977 | AN138: 13.7 | AO138: 1566.89183 | AP138: 1410.202647 | AQ138: 1253.513464 | AR138: 1096.824281 | AS138: 940.1350979 | AT138: 783.4459149 | AU138: 626.7567319 | AV138: 470.067549 | AW138: 313.378366 | AX138: 156.689183 | AZ138: 9.898242766 | BG138: 861.7905064 | BI138: 20 | BJ138: 80 | BR138: 22 | BS138: 2113.92672
AI139: 20 | AJ139: 55 | AK139: 80 | AL139: 09:54:59.977 | AN139: 13.8 | AO139: 1577.112895 | AP139: 1419.401606 | AQ139: 1261.690316 | AR139: 1103.979027 | AS139: 946.267737 | AT139: 788.5564475 | AU139: 630.845158 | AV139: 473.1338685 | AW139: 315.422579 | AX139: 157.7112895 | AZ139: 9.962810455 | BG139: 867.4120923 | BI139: 20 | BJ139: 80 | BR139: 22.1 | BS139: 2126.845039
AI140: 20 | AJ140: 55 | AK140: 80 | AL140: 09:59:59.977 | AN140: 13.9 | AO140: 1587.392416 | AP140: 1428.653175 | AQ140: 1269.913933 | AR140: 1111.174691 | AS140: 952.4354497 | AT140: 793.6962081 | AU140: 634.9569665 | AV140: 476.2177249 | AW140: 317.4784832 | AX140: 158.7392416 | AZ140: 10.02774742 | BG140: 873.0658289 | BI140: 20 | BJ140: 80 | BR140: 22.2 | BS140: 2139.832254
AI141: 20 | AJ141: 55 | AK141: 80 | AL141: 10:04:59.977 | AN141: 14 | AO141: 1597.730677 | AP141: 1437.95761 | AQ141: 1278.184542 | AR141: 1118.411474 | AS141: 958.6384065 | AT141: 798.8653387 | AU141: 639.092271 | AV141: 479.3192032 | AW141: 319.5461355 | AX141: 159.7730677 | AZ141: 10.09305545 | BG141: 878.7518726 | BI141: 20 | BJ141: 80 | BR141: 22.3 | BS141: 2152.888677
AI142: 20 | AJ142: 55 | AK142: 80 | AL142: 10:09:59.977 | AN142: 14.1 | AO142: 1608.127964 | AP142: 1447.315168 | AQ142: 1286.502371 | AR142: 1125.689575 | AS142: 964.8767785 | AT142: 804.0639821 | AU142: 643.2511856 | AV142: 482.4383892 | AW142: 321.6255928 | AX142: 160.8127964 | AZ142: 10.15873635 | BG142: 884.4703803 | BI142: 20 | BJ142: 80 | BR142: 22.4 | BS142: 2166.014618
AI143: 20 | AJ143: 55 | AK143: 80 | AL143: 10:14:59.976 | AN143: 14.2 | AO143: 1618.584562 | AP143: 1456.726106 | AQ143: 1294.86765 | AR143: 1133.009194 | AS143: 971.1507374 | AT143: 809.2922812 | AU143: 647.433825 | AV143: 485.5753687 | AW143: 323.7169125 | AX143: 161.8584562 | AZ143: 10.22479193 | BG143: 890.2215093 | BI143: 20 | BJ143: 80 | BR143: 22.5 | BS143: 2179.210389
AI144: 20 | AJ144: 55 | AK144: 80 | AL144: 10:19:59.976 | AN144: 14.3 | AO144: 1629.10076 | AP144: 1466.190684 | AQ144: 1303.280608 | AR144: 1140.370532 | AS144: 977.4604559 | AT144: 814.5503799 | AU144: 651.6403039 | AV144: 488.7302279 | AW144: 325.820152 | AX144: 162.910076 | AZ144: 10.291224 | BG144: 896.0054179 | BI144: 20 | BJ144: 80 | BR144: 22.6 | BS144: 2192.476303
AI145: 20 | AJ145: 55 | AK145: 80 | AL145: 10:24:59.976 | AN145: 14.4 | AO145: 1639.676845 | AP145: 1475.70916 | AQ145: 1311.741476 | AR145: 1147.773791 | AS145: 983.806107 | AT145: 819.8384225 | AU145: 655.870738 | AV145: 491.9030535 | AW145: 327.935369 | AX145: 163.9676845 | AZ145: 10.3580344 | BG145: 901.8222647 | BI145: 20 | BJ145: 80 | BR145: 22.7 | BS145: 2205.812676
AI146: 20 | AJ146: 55 | AK146: 80 | AL146: 10:29:59.976 | AN146: 14.5 | AO146: 1650.313108 | AP146: 1485.281797 | AQ146: 1320.250486 | AR146: 1155.219175 | AS146: 990.1878645 | AT146: 825.1565538 | AU146: 660.125243 | AV146: 495.0939323 | AW146: 330.0626215 | AX146: 165.0313108 | AZ146: 10.42522494 | BG146: 907.6722091 | BI146: 20 | BJ146: 80 | BR146: 22.8 | BS146: 2219.219823
AI147: 20 | AJ147: 55 | AK147: 80 | AL147: 10:34:59.976 | AN147: 14.6 | AO147: 1661.009838 | AP147: 1494.908854 | AQ147: 1328.807871 | AR147: 1162.706887 | AS147: 996.605903 | AT147: 830.5049192 | AU147: 664.4039353 | AV147: 498.3029515 | AW147: 332.2019677 | AX147: 166.1009838 | AZ147: 10.49279746 | BG147: 913.5554111 | BI147: 20 | BJ147: 80 | BR147: 22.9 | BS147: 2232.698061
AI148: 20 | AJ148: 55 | AK148: 80 | AL148: 10:39:59.975 | AN148: 14.7 | AO148: 1671.767329 | AP148: 1504.590596 | AQ148: 1337.413863 | AR148: 1170.237131 | AS148: 1003.060398 | AT148: 835.8836647 | AU148: 668.7069317 | AV148: 501.5301988 | AW148: 334.3534659 | AX148: 167.1767329 | AZ148: 10.56075382 | BG148: 919.4720312 | BI148: 20 | BJ148: 80 | BR148: 23 | BS148: 2246.247707
AI149: 20 | AJ149: 55 | AK149: 80 | AL149: =AL148+0.00347222 -> 10:44:59.975 | AN149: 14.8 | AO149: 1682.585874 | AP149: 1514.327286 | AQ149: 1346.068699 | AR149: 1177.810112 | AS149: 1009.551524 | AT149: 841.2929369 | AU149: 673.0343495 | AV149: 504.7757621 | AW149: 336.5171747 | AX149: 168.2585874 | AZ149: 10.62909585 | BG149: 925.4222306 | BI149: 20 | BJ149: 80 | BR149: 23.1 | BS149: 2259.86908
AI150: 20 | AJ150: 55 | AK150: 80 | AL150: 10:49:59.975 | AN150: 14.9 | AO150: 1693.465766 | AP150: 1524.119189 | AQ150: 1354.772613 | AR150: 1185.426036 | AS150: 1016.079459 | AT150: 846.7328828 | AU150: 677.3863063 | AV150: 508.0397297 | AW150: 338.6931531 | AX150: 169.3465766 | AZ150: 10.69782543 | BG150: 931.4061711 | BI150: 20 | BJ150: 80 | BR150: 23.2 | BS150: 2273.562502
AI151: 20 | AJ151: 55 | AK151: 80 | AL151: 10:54:59.975 | AN151: 15 | AO151: 1704.407301 | AP151: 1533.96657 | AQ151: 1363.52584 | AR151: 1193.08511 | AS151: 1022.64438 | AT151: 852.2036503 | AU151: 681.7629202 | AV151: 511.3221902 | AW151: 340.8814601 | AX151: 170.4407301 | AZ151: 10.76694441 | BG151: 937.4240153 | BI151: 20 | BJ151: 80 | BR151: 23.3 | BS151: 2287.328292
AI152: 20 | AJ152: 55 | AK152: 80 | AL152: 10:59:59.975 | AN152: 15.1 | AO152: 1715.410775 | AP152: 1543.869697 | AQ152: 1372.32862 | AR152: 1200.787542 | AS152: 1029.246465 | AT152: 857.7053874 | AU152: 686.16431 | AV152: 514.6232325 | AW152: 343.082155 | AX152: 171.5410775 | AZ152: 10.83645467 | BG152: 943.4759262 | BI152: 20 | BJ152: 80 | BR152: 23.4 | BS152: 2301.166774
AI153: 20 | AJ153: 55 | AK153: 80 | AL153: 11:04:59.974 | AN153: 15.2 | AO153: 1726.476486 | AP153: 1553.828838 | AQ153: 1381.181189 | AR153: 1208.53354 | AS153: 1035.885892 | AT153: 863.2382432 | AU153: 690.5905946 | AV153: 517.9429459 | AW153: 345.2952973 | AX153: 172.6476486 | AZ153: 10.90635809 | BG153: 949.5620675 | BI153: 20 | BJ153: 80 | BR153: 23.5 | BS153: 2315.07827
AI154: 20 | AJ154: 55 | AK154: 80 | AL154: 11:09:59.974 | AN154: 15.3 | AO154: 1737.604734 | AP154: 1563.844261 | AQ154: 1390.083787 | AR154: 1216.323314 | AS154: 1042.56284 | AT154: 868.8023669 | AU154: 695.0418936 | AV154: 521.2814202 | AW154: 347.5209468 | AX154: 173.7604734 | AZ154: 10.97665656 | BG154: 955.6826036 | BI154: 20 | BJ154: 80 | BR154: 23.6 | BS154: 2329.063106
AI155: 20 | AJ155: 55 | AK155: 80 | AL155: 11:14:59.974 | AN155: 15.4 | AO155: 1748.795817 | AP155: 1573.916236 | AQ155: 1399.036654 | AR155: 1224.157072 | AS155: 1049.27749 | AT155: 874.3979087 | AU155: 699.5183269 | AV155: 524.6387452 | AW155: 349.7591635 | AX155: 174.8795817 | AZ155: 11.04735197 | BG155: 961.8376995 | BI155: 20 | BJ155: 80 | BR155: 23.7 | BS155: 2343.121608
AI156: 20 | AJ156: 55 | AK156: 80 | AL156: 11:19:59.974 | AN156: 15.5 | AO156: 1760.050038 | AP156: 1584.045034 | AQ156: 1408.04003 | AR156: 1232.035027 | AS156: 1056.030023 | AT156: 880.0250189 | AU156: 704.0200151 | AV156: 528.0150114 | AW156: 352.0100076 | AX156: 176.0050038 | AZ156: 11.11844623 | BG156: 968.0275208 | BI156: 20 | BJ156: 80 | BR156: 23.8 | BS156: 2357.254102
AI157: 20 | AJ157: 55 | AK157: 80 | AL157: 11:24:59.974 | AN157: 15.6 | AO157: 1771.367698 | AP157: 1594.230928 | AQ157: 1417.094158 | AR157: 1239.957388 | AS157: 1062.820619 | AT157: 885.6838489 | AU157: 708.5470791 | AV157: 531.4103093 | AW157: 354.2735396 | AX157: 177.1367698 | AZ157: 11.18994124 | BG157: 974.2522338 | BI157: 20 | BJ157: 80 | BR157: 23.9 | BS157: 2371.460917
AI158: 20 | AJ158: 55 | AK158: 80 | AL158: 11:29:59.974 | AN158: 15.7 | AO158: 1782.749101 | AP158: 1604.474191 | AQ158: 1426.19928 | AR158: 1247.92437 | AS158: 1069.64946 | AT158: 891.3745503 | AU158: 713.0996402 | AV158: 534.8247302 | AW158: 356.5498201 | AX158: 178.2749101 | AZ158: 11.26183892 | BG158: 980.5120053 | BI158: 20 | BJ158: 80 | BR158: 24 | BS158: 2385.742382
AI159: 20 | AJ159: 55 | AK159: 80 | AL159: 11:34:59.973 | AN159: 15.8 | AO159: 1794.194551 | AP159: 1614.775096 | AQ159: 1435.355641 | AR159: 1255.936186 | AS159: 1076.51673 | AT159: 897.0972754 | AU159: 717.6778203 | AV159: 538.2583652 | AW159: 358.8389102 | AX159: 179.4194551 | AZ159: 11.33414119 | BG159: 986.807003 | BI159: 20 | BJ159: 80 | BR159: 24 | BS159: =610.5*EXP(1)^((17.269*BR159)/(237.3+BR159))*0.99 -> 2952.356198
AI160: 20 | AJ160: 55 | AK160: 80 | AL160: 11:39:59.973 | AN160: 15.9 | AO160: 1805.704354 | AP160: 1625.133919 | AQ160: 1444.563483 | AR160: 1263.993048 | AS160: 1083.422613 | AT160: 902.8521772 | AU160: 722.2817417 | AV160: 541.7113063 | AW160: 361.1408709 | AX160: 180.5704354 | AZ160: 11.40685 | BG160: 993.1373949 | BI160: 20 | BJ160: 80 | BR160: =BR159-0.1 -> 23.9 | BS160: 2934.682885
AI161: 20 | AJ161: 55 | AK161: 80 | AL161: 11:44:59.973 | AN161: 16 | AO161: 1817.278818 | AP161: 1635.550936 | AQ161: 1453.823055 | AR161: 1272.095173 | AS161: 1090.367291 | AT161: 908.6394091 | AU161: 726.9115273 | AV161: 545.1836454 | AW161: 363.4557636 | AX161: 181.7278818 | AZ161: 11.47996727 | BG161: 999.50335 | BI161: 20 | BJ161: 80 | BR161: 23.8 | BS161: 2917.101952
AI162: 20 | AJ162: 55 | AK162: 80 | AL162: 11:49:59.973 | AN162: 16.1 | AO162: 1828.91825 | AP162: 1646.026425 | AQ162: 1463.1346 | AR162: 1280.242775 | AS162: 1097.35095 | AT162: 914.4591252 | AU162: 731.5673001 | AV162: 548.6754751 | AW162: 365.7836501 | AX162: 182.891825 | AZ162: 11.55349495 | BG162: 1005.905038 | BI162: 20 | BJ162: 80 | BR162: 23.7 | BS162: 2899.61299
AI163: 20 | AJ163: 55 | AK163: 80 | AL163: 11:54:59.973 | AN163: 16.2 | AO163: 1840.62296 | AP163: 1656.560664 | AQ163: 1472.498368 | AR163: 1288.436072 | AS163: 1104.373776 | AT163: 920.3114801 | AU163: 736.2491841 | AV163: 552.1868881 | AW163: 368.124592 | AX163: 184.062296 | AZ163: 11.627435 | BG163: 1012.342628 | BI163: 20 | BJ163: 80 | BR163: 23.6 | BS163: 2882.215594
AI164: 20 | AJ164: 55 | AK164: 80 | AL164: 11:59:59.972 | AN164: 16.3 | AO164: 1852.393258 | AP164: 1667.153933 | AQ164: 1481.914607 | AR164: 1296.675281 | AS164: 1111.435955 | AT164: 926.1966292 | AU164: 740.9573033 | AV164: 555.7179775 | AW164: 370.4786517 | AX164: 185.2393258 | AZ164: 11.70178938 | BG164: 1018.816292 | BI164: 20 | BJ164: 80 | BR164: 23.5 | BS164: 2864.909359
AI165: 20 | AJ165: 55 | AK165: 80 | AL165: 12:04:59.972 | AN165: 16.4 | AO165: 1864.229456 | AP165: 1677.806511 | AQ165: 1491.383565 | AR165: 1304.96062 | AS165: 1118.537674 | AT165: 932.1147282 | AU165: 745.6917826 | AV165: 559.2688369 | AW165: 372.8458913 | AX165: 186.4229456 | AZ165: 11.77656005 | BG165: 1025.326201 | BI165: 20 | BJ165: 80 | BR165: 23.4 | BS165: 2847.693882
AI166: 20 | AJ166: 55 | AK166: 80 | AL166: 12:09:59.972 | AN166: 16.5 | AO166: 1876.131867 | AP166: 1688.518681 | AQ166: 1500.905494 | AR166: 1313.292307 | AS166: 1125.67912 | AT166: 938.0659337 | AU166: 750.4527469 | AV166: 562.8395602 | AW166: 375.2263735 | AX166: 187.6131867 | AZ166: 11.851749 | BG166: 1031.872527 | BI166: 20 | BJ166: 80 | BR166: 23.3 | BS166: 2830.568761
AI167: 20 | AJ167: 55 | AK167: 80 | AL167: 12:14:59.972 | AN167: 16.6 | AO167: 1888.100805 | AP167: 1699.290725 | AQ167: 1510.480644 | AR167: 1321.670564 | AS167: 1132.860483 | AT167: 944.0504026 | AU167: 755.240322 | AV167: 566.4302415 | AW167: 377.620161 | AX167: 188.8100805 | AZ167: 11.92735821 | BG167: 1038.455443 | BI167: 20 | BJ167: 80 | BR167: 23.2 | BS167: 2813.533596
AI168: 20 | AJ168: 55 | AK168: 80 | AL168: 12:19:59.972 | AN168: 16.7 | AO168: 1900.136585 | AP168: 1710.122927 | AQ168: 1520.109268 | AR168: 1330.09561 | AS168: 1140.081951 | AT168: 950.0682925 | AU168: 760.054634 | AV168: 570.0409755 | AW168: 380.027317 | AX168: 190.0136585 | AZ168: 12.00338967 | BG168: 1045.075122 | BI168: 20 | BJ168: 80 | BR168: 23.1 | BS168: 2796.587987
AI169: 20 | AJ169: 55 | AK169: 80 | AL169: 12:24:59.971 | AN169: 16.8 | AO169: 1912.239524 | AP169: 1721.015571 | AQ169: 1529.791619 | AR169: 1338.567667 | AS169: 1147.343714 | AT169: 956.1197618 | AU169: 764.8958095 | AV169: 573.6718571 | AW169: 382.4479047 | AX169: 191.2239524 | AZ169: 12.07984538 | BG169: 1051.731738 | BI169: 20 | BJ169: 80 | BR169: 23 | BS169: 2779.731537
AI170: 20 | AJ170: 55 | AK170: 80 | AL170: 12:29:59.971 | AN170: 16.9 | AO170: 1924.409939 | AP170: 1731.968945 | AQ170: 1539.527951 | AR170: 1347.086957 | AS170: 1154.645963 | AT170: 962.2049693 | AU170: 769.7639755 | AV170: 577.3229816 | AW170: 384.8819877 | AX170: 192.4409939 | AZ170: 12.15672734 | BG170: 1058.425466 | BI170: 20 | BJ170: 80 | BR170: 22.9 | BS170: 2762.96385
AI171: 20 | AJ171: 55 | AK171: 80 | AL171: 12:34:59.971 | AN171: 17 | AO171: 1936.648149 | AP171: 1742.983334 | AQ171: 1549.318519 | AR171: 1355.653704 | AS171: 1161.988889 | AT171: 968.3240744 | AU171: 774.6592595 | AV171: 580.9944446 | AW171: 387.3296298 | AX171: 193.6648149 | AZ171: 12.23403758 | BG171: 1065.156482 | BI171: 20 | BJ171: 80 | BR171: 22.8 | BS171: 2746.284531
AI172: 20 | AJ172: 55 | AK172: 80 | AL172: 12:39:59.971 | AN172: 17.1 | AO172: 1948.954474 | AP172: 1754.059027 | AQ172: 1559.163579 | AR172: 1364.268132 | AS172: 1169.372685 | AT172: 974.4772371 | AU172: 779.5817897 | AV172: 584.6863423 | AW172: 389.7908949 | AX172: 194.8954474 | AZ172: 12.31177811 | BG172: 1071.924961 | BI172: 20 | BJ172: 80 | BR172: 22.7 | BS172: 2729.693187
AI173: 20 | AJ173: 55 | AK173: 80 | AL173: 12:44:59.971 | AN173: 17.2 | AO173: 1961.329236 | AP173: 1765.196313 | AQ173: 1569.063389 | AR173: 1372.930465 | AS173: 1176.797542 | AT173: 980.6646182 | AU173: 784.5316945 | AV173: 588.3987709 | AW173: 392.2658473 | AX173: 196.1329236 | AZ173: 12.38995096 | BG173: 1078.73108 | BI173: 20 | BJ173: 80 | BR173: 22.6 | BS173: 2713.189425
AI174: 20 | AJ174: 55 | AK174: 80 | AL174: 12:49:59.970 | AN174: 17.3 | AO174: 1973.772758 | AP174: 1776.395482 | AQ174: 1579.018206 | AR174: 1381.64093 | AS174: 1184.263655 | AT174: 986.8863788 | AU174: 789.509103 | AV174: 592.1318273 | AW174: 394.7545515 | AX174: 197.3772758 | AZ174: 12.46855816 | BG174: 1085.575017 | BI174: 20 | BJ174: 80 | BR174: 22.5 | BS174: 2696.772856
AI175: 20 | AJ175: 55 | AK175: 80 | AL175: 12:54:59.970 | AN175: 17.4 | AO175: 1986.285362 | AP175: 1787.656825 | AQ175: 1589.028289 | AR175: 1390.399753 | AS175: 1191.771217 | AT175: 993.1426808 | AU175: 794.5141446 | AV175: 595.8856085 | AW175: 397.2570723 | AX175: 198.6285362 | AZ175: 12.54760178 | BG175: 1092.456949 | BI175: 20 | BJ175: 80 | BR175: 22.4 | BS175: 2680.443089
AI176: 20 | AJ176: 55 | AK176: 80 | AL176: 12:59:59.970 | AN176: 17.5 | AO176: 1998.867373 | AP176: 1798.980636 | AQ176: 1599.093899 | AR176: 1399.207161 | AS176: 1199.320424 | AT176: 999.4336867 | AU176: 799.5469494 | AV176: 599.660212 | AW176: 399.7734747 | AX176: 199.8867373 | AZ176: 12.62708385 | BG176: 1099.377055 | BI176: 20 | BJ176: 80 | BR176: 22.3 | BS176: 2664.199738
AI177: 20 | AJ177: 55 | AK177: 80 | AL177: 13:04:59.970 | AN177: 17.6 | AO177: 2011.519119 | AP177: 1810.367207 | AQ177: 1609.215295 | AR177: 1408.063384 | AS177: 1206.911472 | AT177: 1005.75956 | AU177: 804.6076477 | AV177: 603.4557358 | AW177: 402.3038239 | AX177: 201.1519119 | AZ177: 12.70700644 | BG177: 1106.335516 | BI177: 20 | BJ177: 80 | BR177: 22.2 | BS177: 2648.042415
AI178: 20 | AJ178: 55 | AK178: 80 | AL178: 13:09:59.970 | AN178: 17.7 | AO178: 2024.240927 | AP178: 1821.816834 | AQ178: 1619.392741 | AR178: 1416.968649 | AS178: 1214.544556 | AT178: 1012.120463 | AU178: 809.6963707 | AV178: 607.272278 | AW178: 404.8481853 | AX178: 202.4240927 | AZ178: 12.78737162 | BG178: 1113.33251 | BI178: 20 | BJ178: 80 | BR178: 22.1 | BS178: 2631.970735
AI179: 20 | AJ179: 55 | AK179: 80 | AL179: 13:14:59.969 | AN179: 17.8 | AO179: 2037.033124 | AP179: 1833.329812 | AQ179: 1629.626499 | AR179: 1425.923187 | AS179: 1222.219874 | AT179: 1018.516562 | AU179: 814.8132496 | AV179: 611.1099372 | AW179: 407.4066248 | AX179: 203.7033124 | AZ179: 12.86818145 | BG179: 1120.368218 | BI179: 20 | BJ179: 80 | BR179: 22 | BS179: 2615.984316
AI180: 20 | AJ180: 55 | AK180: 80 | AL180: 13:19:59.969 | AN180: 17.9 | AO180: 2049.896041 | AP180: 1844.906437 | AQ180: 1639.916833 | AR180: 1434.927229 | AS180: 1229.937625 | AT180: 1024.948021 | AU180: 819.9584166 | AV180: 614.9688124 | AW180: 409.9792083 | AX180: 204.9896041 | AZ180: 12.94943804 | BG180: 1127.442823 | BI180: 20 | BJ180: 80 | BR180: 21.9 | BS180: 2600.082774
AI181: 20 | AJ181: 55 | AK181: 80 | AL181: 13:24:59.969 | AN181: 18 | AO181: 2062.83001 | AP181: 1856.547009 | AQ181: 1650.264008 | AR181: 1443.981007 | AS181: 1237.698006 | AT181: 1031.415005 | AU181: 825.132004 | AV181: 618.849003 | AW181: 412.566002 | AX181: 206.283001 | AZ181: 13.03114346 | BG181: 1134.556505 | BI181: 20 | BJ181: 80 | BR181: 21.8 | BS181: 2584.265728
AI182: 20 | AJ182: 55 | AK182: 80 | AL182: 13:29:59.969 | AN182: 18.1 | AO182: 2075.835362 | AP182: 1868.251826 | AQ182: 1660.668289 | AR182: 1453.084753 | AS182: 1245.501217 | AT182: 1037.917681 | AU182: 830.3341447 | AV182: 622.7506086 | AW182: 415.1670724 | AX182: 207.5835362 | AZ182: 13.11329982 | BG182: 1141.709449 | BI182: 20 | BJ182: 80 | BR182: 21.7 | BS182: 2568.5328
AI183: 20 | AJ183: 55 | AK183: 80 | AL183: 13:34:59.969 | AN183: 18.2 | AO183: 2088.912431 | AP183: 1880.021188 | AQ183: 1671.129945 | AR183: 1462.238702 | AS183: 1253.347458 | AT183: 1044.456215 | AU183: 835.5649723 | AV183: 626.6737292 | AW183: 417.7824862 | AX183: 208.8912431 | AZ183: 13.19590923 | BG183: 1148.901837 | BI183: 20 | BJ183: 80 | BR183: 21.6 | BS183: 2552.88361
AI184: 20 | AJ184: 55 | AK184: 80 | AL184: 13:39:59.969 | AN184: 18.3 | AO184: 2102.061552 | AP184: 1891.855397 | AQ184: 1681.649241 | AR184: 1471.443086 | AS184: 1261.236931 | AT184: 1051.030776 | AU184: 840.8246207 | AV184: 630.6184655 | AW184: 420.4123103 | AX184: 210.2061552 | AZ184: 13.27897379 | BG184: 1156.133853 | BI184: 20 | BJ184: 80 | BR184: 21.5 | BS184: 2537.317782
AI185: 20 | AJ185: 55 | AK185: 80 | AL185: 13:44:59.968 | AN185: 18.4 | AO185: 2115.283061 | AP185: 1903.754755 | AQ185: 1692.226448 | AR185: 1480.698142 | AS185: 1269.169836 | AT185: 1057.64153 | AU185: 846.1132242 | AV185: 634.5849182 | AW185: 423.0566121 | AX185: 211.5283061 | AZ185: 13.36249565 | BG185: 1163.405683 | BI185: 20 | BJ185: 80 | BR185: 21.4 | BS185: 2521.834941
AI186: 20 | AJ186: 55 | AK186: 80 | AL186: 13:49:59.968 | AN186: 18.5 | AO186: 2128.577295 | AP186: 1915.719565 | AQ186: 1702.861836 | AR186: 1490.004106 | AS186: 1277.146377 | AT186: 1064.288647 | AU186: 851.430918 | AV186: 638.5731885 | AW186: 425.715459 | AX186: 212.8577295 | AZ186: 13.44647691 | BG186: 1170.717512 | BI186: 20 | BJ186: 80 | BR186: 21.3 | BS186: 2506.434712
AI187: 20 | AJ187: 55 | AK187: 80 | AL187: 13:54:59.968 | AN187: 18.6 | AO187: 2141.944593 | AP187: 1927.750134 | AQ187: 1713.555675 | AR187: 1499.361215 | AS187: 1285.166756 | AT187: 1070.972297 | AU187: 856.7778373 | AV187: 642.583378 | AW187: 428.3889186 | AX187: 214.1944593 | AZ187: 13.53091973 | BG187: 1178.069526 | BI187: 20 | BJ187: 80 | BR187: 21.2 | BS187: 2491.116722
AI188: 20 | AJ188: 55 | AK188: 80 | AL188: 13:59:59.968 | AN188: 18.7 | AO188: 2155.385295 | AP188: 1939.846766 | AQ188: 1724.308236 | AR188: 1508.769707 | AS188: 1293.231177 | AT188: 1077.692648 | AU188: 862.1541182 | AV188: 646.6155886 | AW188: 431.0770591 | AX188: 215.5385295 | AZ188: 13.61582625 | BG188: 1185.461912 | BI188: 20 | BJ188: 80 | BR188: 21.1 | BS188: 2475.8806
AI189: 20 | AJ189: 55 | AK189: 80 | AL189: 14:04:59.968 | AN189: 18.8 | AO189: 2168.899743 | AP189: 1952.009768 | AQ189: 1735.119794 | AR189: 1518.22982 | AS189: 1301.339846 | AT189: 1084.449871 | AU189: 867.5598971 | AV189: 650.6699228 | AW189: 433.7799485 | AX189: 216.8899743 | AZ189: 13.70119863 | BG189: 1192.894858 | BI189: 20 | BJ189: 80 | BR189: 21 | BS189: 2460.725976
AI190: 20 | AJ190: 55 | AK190: 80 | AL190: 14:09:59.967 | AN190: 18.9 | AO190: 2182.488277 | AP190: 1964.23945 | AQ190: 1745.990622 | AR190: 1527.741794 | AS190: 1309.492966 | AT190: 1091.244139 | AU190: 872.9953109 | AV190: 654.7464832 | AW190: 436.4976555 | AX190: 218.2488277 | AZ190: 13.78703902 | BG190: 1200.368553 | BI190: 20 | BJ190: 80 | BR190: 20.9 | BS190: 2445.652481
AI191: 20 | AJ191: 55 | AK191: 80 | AL191: 14:14:59.967 | AN191: 19 | AO191: 2196.151243 | AP191: 1976.536119 | AQ191: 1756.920995 | AR191: 1537.30587 | AS191: 1317.690746 | AT191: 1098.075622 | AU191: 878.4604973 | AV191: 658.845373 | AW191: 439.2302486 | AX191: 219.6151243 | AZ191: 13.87334961 | BG191: 1207.883184 | BI191: 20 | BJ191: 80 | BR191: 20.8 | BS191: =610.5*EXP(1)^((17.269*BR191)/(237.3+BR191))*0.99 -> 2430.659747
AI192: 20 | AJ192: 55 | AK192: 80 | AL192: 14:19:59.967 | AN192: 19.1 | AO192: 2209.888985 | AP192: 1988.900087 | AQ192: 1767.911188 | AR192: 1546.92229 | AS192: 1325.933391 | AT192: 1104.944493 | AU192: 883.9555941 | AV192: 662.9666956 | AW192: 441.977797 | AX192: 220.9888985 | AZ192: 13.96013257 | BG192: 1215.438942 | BI192: 20 | BJ192: 80 | BR192: =BR191-0.1 -> 20.7 | BS192: 2415.747409
AI193: 20 | AJ193: 55 | AK193: 80 | AL193: 14:24:59.967 | AN193: 19.2 | AO193: =610.5*EXP(1)^((17.269*AN193)/(237.3+AN193)) -> 2223.70185 | AP193: =AO193*0.9 -> 2001.331665 | AQ193: =AO193*0.8 -> 1778.96148 | AR193: =AO193*0.7 -> 1556.591295 | AS193: =AO193*0.6 -> 1334.22111 | AT193: =AO193*0.5 -> 1111.850925 | AU193: =AO193*0.4 -> 889.4807398 | AV193: =AO193*0.3 -> 667.1105549 | AW193: =AO193*0.2 -> 444.7403699 | AX193: =AO193*0.1 -> 222.370185 | AZ193: =AO193*20/3166 -> 14.04739008 | BG193: =AO193*$AL$1/100 -> 1223.036017 | BI193: 20 | BJ193: 80 | BR193: 20.6 | BS193: 2400.915101
AI194: 20 | AJ194: 55 | AK194: 80 | AL194: 14:29:59.967 | AN194: =AN193+0.1 -> 19.3 | AO194: 2237.590184 | AP194: 2013.831165 | AQ194: 1790.072147 | AR194: 1566.313129 | AS194: 1342.55411 | AT194: 1118.795092 | AU194: 895.0360735 | AV194: 671.2770552 | AW194: 447.5180368 | AX194: 223.7590184 | AZ194: 14.13512435 | BG194: 1230.674601 | BI194: 20 | BJ194: 80 | BR194: 20.5 | BS194: 2386.16246
AI195: 20 | AJ195: 55 | AK195: 80 | AL195: 14:34:59.966 | AN195: 19.4 | AO195: 2251.554337 | AP195: 2026.398903 | AQ195: 1801.243469 | AR195: 1576.088036 | AS195: 1350.932602 | AT195: 1125.777168 | AU195: 900.6217347 | AV195: 675.466301 | AW195: 450.3108674 | AX195: 225.1554337 | AZ195: 14.22333757 | BG195: 1238.354885 | BI195: 20 | BJ195: 80 | BR195: 20.4 | BS195: 2371.489124
AI196: =$AI$3 -> 20 | AJ196: =$AJ$3 -> 55 | AK196: =$AK$3 -> 80 | AL196: 14:39:59.966 | AN196: 19.5 | AO196: 2265.594659 | AP196: 2039.035193 | AQ196: 1812.475727 | AR196: 1585.916261 | AS196: 1359.356795 | AT196: 1132.797329 | AU196: 906.2378634 | AV196: 679.6783976 | AW196: 453.1189317 | AX196: 226.5594659 | AZ196: 14.31203196 | BG196: 1246.077062 | BI196: =$BI$3 -> 20 | BJ196: =$BJ$3 -> 80 | BR196: 20.3 | BS196: 2356.894733
AI197: 20 | AJ197: 55 | AK197: 80 | AL197: 14:44:59.966 | AN197: 19.6 | AO197: 2279.711501 | AP197: 2051.740351 | AQ197: 1823.7692 | AR197: 1595.79805 | AS197: 1367.8269 | AT197: 1139.85575 | AU197: 911.8846002 | AV197: 683.9134502 | AW197: 455.9423001 | AX197: 227.9711501 | AZ197: 14.40120973 | BG197: 1253.841325 | BI197: 20 | BJ197: 80 | BR197: 20.2 | BS197: 2342.378925
AI198: 20 | AJ198: 55 | AK198: 80 | AL198: 14:49:59.966 | AN198: 19.7 | AO198: 2293.905215 | AP198: 2064.514694 | AQ198: 1835.124172 | AR198: 1605.733651 | AS198: 1376.343129 | AT198: 1146.952608 | AU198: 917.5620862 | AV198: 688.1715646 | AW198: 458.7810431 | AX198: 229.3905215 | AZ198: 14.49087312 | BG198: 1261.647868 | BI198: 20 | BJ198: 80 | BR198: 20.1 | BS198: 2327.941344
AI199: 20 | AJ199: 55 | AK199: 80 | AL199: 14:54:59.966 | AN199: 19.8 | AO199: 2308.176157 | AP199: 2077.358541 | AQ199: 1846.540926 | AR199: 1615.72331 | AS199: 1384.905694 | AT199: 1154.088079 | AU199: 923.2704629 | AV199: 692.4528472 | AW199: 461.6352314 | AX199: 230.8176157 | AZ199: 14.58102437 | BG199: 1269.496886 | BI199: 20 | BJ199: 80 | BR199: 20 | BS199: 2313.581632
AI200: 20 | AJ200: 55 | AK200: 80 | AL200: 14:59:59.965 | AN200: 19.9 | AO200: 2322.524681 | AP200: 2090.272213 | AQ200: 1858.019745 | AR200: 1625.767277 | AS200: 1393.514809 | AT200: 1161.262341 | AU200: 929.0098724 | AV200: 696.7574043 | AW200: 464.5049362 | AX200: 232.2524681 | AZ200: 14.67166571 | BG200: 1277.388575 | BI200: 20 | BJ200: 80 | BR200: 19.9 | BS200: 2299.299434
... 812 more rows

Sheet th_24h_Datos
D1: Condiciones ambientales interiores | I1: Condiciones ambientales exteriores | AQ1: Tªm exterior | AR1: Hrm exterior | BA1: 20' | BB1: 30' | BJ1: Condiciones superficiales del cerramiento
C2: Hora | D2: Temperatura (ºC) | E2: Humedad relativa (%) | H2: Hora | I2: Temperatura (ºC) | J2: Humedad relativa (%) | K2: φem | L2: θem | N2: =IF(th_24h_Graf_Tot!$M$1=TRUE,"φi","") ->  | O2: =IF(th_24h_Graf_Tot!$V$1=TRUE,"θi","") ->  | AP2: Día | AQ2: 20' | AU2: Pvi | AV2: θrocio | AW2: θsi, real | AX2: θsi, mín | AY2: φsi | BA2: θem | BB2: θem | BC2: φem | BD2: General | BE2: Tª Media diaria | BF2: Pv Media diaria | BG2: >80% | BH2: Total | BJ2: θsi media diaria | BK2: φsi | BL2: Pvsi
B3: 1º día | C3: =IF(th_24h_Graf!$G$3="","",th_24h_Graf!$G$3) -> 00:00:00 | G3: 1º día | H3: =IF(th_24h_Graf!$G$3="","",th_24h_Graf!$G$3) -> 00:00:00 | K3: =IF(AND(th_24h_Graf_Tot!$R$1=TRUE,J3>0),BC3,NA()) ->  | L3: =IF(AND(th_24h_Graf_Tot!$Q$1=TRUE,J3>0),BD3,NA()) ->  | N3: =IF(AND(th_24h_Graf_Tot!$M$1=TRUE,E3>0),E3,NA()) ->  | O3: =IF(AND(th_24h_Graf_Tot!$V$1=TRUE,D3>0),D3,NA()) ->  | AP3: 1 | AQ3: =SUM(I3:I75)/72 -> 0 | AR3: =SUM(J3:J75)/72 -> 0 | AT3: =SUM($AY$3:$AY$1011) ->  | AU3: =610.5*EXP(1)^((17.269*D3)/(237.3+D3))*E3/100 -> 0 | AV3: =IF(AU3=0,"",237.3*LN(AU3/610.5)/(17.269-LN(AU3/610.5))) ->  | AW3: =IF(th_24h_Graf_Tot!$L$83=0,"",D3-(th_24h_Graf_Tot!$Q$82/th_24h_Graf_Tot!$L$83)*(D3-IF(I3="",TE,I3))) ->  | AX3: =IF(AU3=0,"",237.3*LN((AU3/0.8)/610.5)/(17.269-LN((AU3/0.8)/610.5))) ->  | AY3: =IF(AND(th_24h_Graf_Tot!$A$4=TRUE,BB3>0),BB3,NA()) ->  | AZ3: 1º día | BA3: =$AQ$3 -> 0 | BB3: =IF(th_24h_Graf_Tot!$A$4=FALSE,"",IF(ISERROR(IF(AW3="","",IF(AU3/(610.5*EXP(1)^((17.269*AW3)/(237.3+AW3)))*100>100,100,AU3/(610.5*EXP(1)^((17.269*AW3)/(237.3+AW3)))*100))),"",IF(AW3="","",IF(AU3/(610.5*EXP(1)^((17.269*AW3)/(237.3+AW3)))*100>100,100,AU3/(610.5*EXP(1)^((17.269*AW3)/(237.3+AW3)))*100)))) ->  | BC3: =$AR$3 -> 0 | BD3: =IF(th_24h_Graf!$J$3<0.02,BA3,IF(th_24h_Graf!$J$3<0.04,BB3,BC3)) -> 0 | BE3: =IF(OR(th_24h_Graf_Tot!$M$1=FALSE,th_24h_Graf_Tot!$W$80=TRUE),"",SUM(D3:D75)/72) ->  | BF3: =IF(OR(th_24h_Graf_Tot!$M$1=FALSE,th_24h_Graf_Tot!$W$80=TRUE),NA(),SUM(AU3:AU75)/72) ->  | BG3: =IF(AY3="",0,IF(ISERROR(IF(AY3>=th_24h_Graf!BJ3,th_24h_Graf!$J$3,0)),0,IF(AY3>=th_24h_Graf!BJ3,th_24h_Graf!$J$3,0))) ->  | BH3: =IF(D3="",0,th_24h_Graf!$J$3) -> 0 | BJ3: =IF(th_24h_Graf_Tot!A4=FALSE,0,SUM(AW3:AW75)/72) -> 0 | BK3: =IF(OR(th_24h_Graf_Tot!$A$4=FALSE,th_24h_Graf_Tot!$W$80=TRUE),NA(),SUM(AY3:AY75)/72) ->  | BL3: =IF(th_24h_Graf_Tot!A4=FALSE,0,610.5*EXP(1)^((17.269*BJ3)/(237.3+BJ3))*BK3/100) -> 0
C4: =IF(th_24h_Graf!$G$3="","",C3+th_24h_Graf!$J$3) -> 00:20:00 | H4: =IF(th_24h_Graf!$G$3="","",H3+th_24h_Graf!$J$3) -> 00:20:00 | K4: =IF(AND(th_24h_Graf_Tot!$R$1=TRUE,J4>0),BC4,NA()) ->  | L4: =IF(AND(th_24h_Graf_Tot!$Q$1=TRUE,J4>0),BD4,NA()) ->  | N4: =IF(AND(th_24h_Graf_Tot!$M$1=TRUE,E4>0),E4,NA()) ->  | O4: =IF(AND(th_24h_Graf_Tot!$V$1=TRUE,D4>0),D4,NA()) ->  | AP4: 2 | AQ4: =SUM(I76:I147)/72 -> 0 | AR4: =SUM(J76:J147)/72 -> 0 | AT4: =1009-COUNTIF($AY$3:$AY$1011,0) -> 1009 | AU4: =610.5*EXP(1)^((17.269*D4)/(237.3+D4))*E4/100 -> 0 | AW4: =IF(th_24h_Graf_Tot!$L$83=0,"",D4-(th_24h_Graf_Tot!$Q$82/th_24h_Graf_Tot!$L$83)*(D4-IF(I4="",TE,I4))) ->  | AY4: =IF(AND(th_24h_Graf_Tot!$A$4=TRUE,BB4>0),BB4,NA()) ->  | BA4: 0 | BB4: =IF(th_24h_Graf_Tot!$A$4=FALSE,"",IF(ISERROR(IF(AW4="","",IF(AU4/(610.5*EXP(1)^((17.269*AW4)/(237.3+AW4)))*100>100,100,AU4/(610.5*EXP(1)^((17.269*AW4)/(237.3+AW4)))*100))),"",IF(AW4="","",IF(AU4/(610.5*EXP(1)^((17.269*AW4)/(237.3+AW4)))*100>100,100,AU4/(610.5*EXP(1)^((17.269*AW4)/(237.3+AW4)))*100)))) ->  | BC4: 0 | BD4: =IF(th_24h_Graf!$J$3<0.02,BA4,IF(th_24h_Graf!$J$3<0.04,BB4,BC4)) -> 0 | BE4: =IF(OR(th_24h_Graf_Tot!$M$1=FALSE,th_24h_Graf_Tot!$W$80=TRUE),"",SUM(D76:D147)/72) ->  | BF4: =IF(OR(th_24h_Graf_Tot!$M$1=FALSE,th_24h_Graf_Tot!$W$80=TRUE),NA(),SUM(AU76:AU147)/72) ->  | BG4: =IF(AY4="",0,IF(ISERROR(IF(AY4>=th_24h_Graf!BJ4,th_24h_Graf!$J$3,0)),0,IF(AY4>=th_24h_Graf!BJ4,th_24h_Graf!$J$3,0))) ->  | BH4: =IF(D4="",0,C4-C3) -> 0 | BJ4: =IF(th_24h_Graf_Tot!A4=FALSE,0,SUM(AW76:AW147)/72) -> 0 | BK4: =IF(OR(th_24h_Graf_Tot!$A$4=FALSE,th_24h_Graf_Tot!$W$80=TRUE),NA(),SUM(AY76:AY147)/72) ->  | BL4: =IF(th_24h_Graf_Tot!A4=FALSE,0,610.5*EXP(1)^((17.269*BJ4)/(237.3+BJ4))*BK4/100) -> 0
C5: =IF(th_24h_Graf!$G$3="","",C4+th_24h_Graf!$J$3) -> 00:40:00 | H5: =IF(th_24h_Graf!$G$3="","",H4+th_24h_Graf!$J$3) -> 00:40:00 | K5: =IF(AND(th_24h_Graf_Tot!$R$1=TRUE,J5>0),BC5,NA()) ->  | L5: =IF(AND(th_24h_Graf_Tot!$Q$1=TRUE,J5>0),BD5,NA()) ->  | N5: =IF(AND(th_24h_Graf_Tot!$M$1=TRUE,E5>0),E5,NA()) ->  | O5: =IF(AND(th_24h_Graf_Tot!$V$1=TRUE,D5>0),D5,NA()) ->  | AP5: 3 | AQ5: =SUM(I148:I219)/72 -> 0 | AR5: =SUM(J148:J219)/72 -> 0 | AT5: =AT3/(AT4*100) ->  | AU5: 0 | AW5: =IF(th_24h_Graf_Tot!$L$83=0,"",D5-(th_24h_Graf_Tot!$Q$82/th_24h_Graf_Tot!$L$83)*(D5-IF(I5="",TE,I5))) ->  | AY5: =IF(AND(th_24h_Graf_Tot!$A$4=TRUE,BB5>0),BB5,NA()) ->  | BA5: 0 | BB5: =IF(th_24h_Graf_Tot!$A$4=FALSE,"",IF(ISERROR(IF(AW5="","",IF(AU5/(610.5*EXP(1)^((17.269*AW5)/(237.3+AW5)))*100>100,100,AU5/(610.5*EXP(1)^((17.269*AW5)/(237.3+AW5)))*100))),"",IF(AW5="","",IF(AU5/(610.5*EXP(1)^((17.269*AW5)/(237.3+AW5)))*100>100,100,AU5/(610.5*EXP(1)^((17.269*AW5)/(237.3+AW5)))*100)))) ->  | BC5: 0 | BD5: =IF(th_24h_Graf!$J$3<0.02,BA5,IF(th_24h_Graf!$J$3<0.04,BB5,BC5)) -> 0 | BE5: =IF(OR(th_24h_Graf_Tot!$M$1=FALSE,th_24h_Graf_Tot!$W$80=TRUE),"",SUM(D148:D219)/72) ->  | BF5: =IF(OR(th_24h_Graf_Tot!$M$1=FALSE,th_24h_Graf_Tot!$W$80=TRUE),NA(),SUM(AU148:AU219)/72) ->  | BG5: =IF(AY5="",0,IF(ISERROR(IF(AY5>=th_24h_Graf!BJ5,th_24h_Graf!$J$3,0)),0,IF(AY5>=th_24h_Graf!BJ5,th_24h_Graf!$J$3,0))) ->  | BH5: 0 | BJ5: =IF(th_24h_Graf_Tot!A4=FALSE,0,SUM(AW148:AW219)/72) -> 0 | BK5: =IF(OR(th_24h_Graf_Tot!$A$4=FALSE,th_24h_Graf_Tot!$W$80=TRUE),NA(),SUM(AY148:AY219)/72) ->  | BL5: =IF(th_24h_Graf_Tot!A4=FALSE,0,610.5*EXP(1)^((17.269*BJ5)/(237.3+BJ5))*BK5/100) -> 0
C6: =IF(th_24h_Graf!$G$3="","",C5+th_24h_Graf!$J$3) -> 01:00:00 | H6: =IF(th_24h_Graf!$G$3="","",H5+th_24h_Graf!$J$3) -> 01:00:00 | K6: =IF(AND(th_24h_Graf_Tot!$R$1=TRUE,J6>0),BC6,NA()) ->  | L6: =IF(AND(th_24h_Graf_Tot!$Q$1=TRUE,J6>0),BD6,NA()) ->  | N6: =IF(AND(th_24h_Graf_Tot!$M$1=TRUE,E6>0),E6,NA()) ->  | O6: =IF(AND(th_24h_Graf_Tot!$V$1=TRUE,D6>0),D6,NA()) ->  | AP6: 4 | AQ6: =SUM(I220:I291)/72 -> 0 | AR6: =SUM(J220:J291)/72 -> 0 | AU6: 0 | AW6: =IF(th_24h_Graf_Tot!$L$83=0,"",D6-(th_24h_Graf_Tot!$Q$82/th_24h_Graf_Tot!$L$83)*(D6-IF(I6="",TE,I6))) ->  | AY6: =IF(AND(th_24h_Graf_Tot!$A$4=TRUE,BB6>0),BB6,NA()) ->  | BA6: 0 | BB6: =IF(th_24h_Graf_Tot!$A$4=FALSE,"",IF(ISERROR(IF(AW6="","",IF(AU6/(610.5*EXP(1)^((17.269*AW6)/(237.3+AW6)))*100>100,100,AU6/(610.5*EXP(1)^((17.269*AW6)/(237.3+AW6)))*100))),"",IF(AW6="","",IF(AU6/(610.5*EXP(1)^((17.269*AW6)/(237.3+AW6)))*100>100,100,AU6/(610.5*EXP(1)^((17.269*AW6)/(237.3+AW6)))*100)))) ->  | BC6: 0 | BD6: =IF(th_24h_Graf!$J$3<0.02,BA6,IF(th_24h_Graf!$J$3<0.04,BB6,BC6)) -> 0 | BE6: =IF(OR(th_24h_Graf_Tot!$M$1=FALSE,th_24h_Graf_Tot!$W$80=TRUE),"",SUM(D220:D291)/72) ->  | BF6: =IF(OR(th_24h_Graf_Tot!$M$1=FALSE,th_24h_Graf_Tot!$W$80=TRUE),NA(),SUM(AU220:AU291)/72) ->  | BG6: =IF(AY6="",0,IF(ISERROR(IF(AY6>=th_24h_Graf!BJ6,th_24h_Graf!$J$3,0)),0,IF(AY6>=th_24h_Graf!BJ6,th_24h_Graf!$J$3,0))) ->  | BH6: 0 | BJ6: =IF(th_24h_Graf_Tot!A4=FALSE,0,SUM(AW220:AW291)/72) -> 0 | BK6: =IF(OR(th_24h_Graf_Tot!$A$4=FALSE,th_24h_Graf_Tot!$W$80=TRUE),NA(),SUM(AY220:AY291)/72) ->  | BL6: =IF(th_24h_Graf_Tot!A4=FALSE,0,610.5*EXP(1)^((17.269*BJ6)/(237.3+BJ6))*BK6/100) -> 0
C7: =IF(th_24h_Graf!$G$3="","",C6+th_24h_Graf!$J$3) -> 01:20:00 | H7: =IF(th_24h_Graf!$G$3="","",H6+th_24h_Graf!$J$3) -> 01:20:00 | K7: =IF(AND(th_24h_Graf_Tot!$R$1=TRUE,J7>0),BC7,NA()) ->  | L7: =IF(AND(th_24h_Graf_Tot!$Q$1=TRUE,J7>0),BD7,NA()) ->  | N7: =IF(AND(th_24h_Graf_Tot!$M$1=TRUE,E7>0),E7,NA()) ->  | O7: =IF(AND(th_24h_Graf_Tot!$V$1=TRUE,D7>0),D7,NA()) ->  | AP7: 5 | AQ7: =SUM(I292:I363)/72 -> 0 | AR7: =SUM(J292:J363)/72 -> 0 | AU7: 0 | AW7: =IF(th_24h_Graf_Tot!$L$83=0,"",D7-(th_24h_Graf_Tot!$Q$82/th_24h_Graf_Tot!$L$83)*(D7-IF(I7="",TE,I7))) ->  | AY7: =IF(AND(th_24h_Graf_Tot!$A$4=TRUE,BB7>0),BB7,NA()) ->  | BA7: 0 | BB7: =IF(th_24h_Graf_Tot!$A$4=FALSE,"",IF(ISERROR(IF(AW7="","",IF(AU7/(610.5*EXP(1)^((17.269*AW7)/(237.3+AW7)))*100>100,100,AU7/(610.5*EXP(1)^((17.269*AW7)/(237.3+AW7)))*100))),"",IF(AW7="","",IF(AU7/(610.5*EXP(1)^((17.269*AW7)/(237.3+AW7)))*100>100,100,AU7/(610.5*EXP(1)^((17.269*AW7)/(237.3+AW7)))*100)))) ->  | BC7: 0 | BD7: =IF(th_24h_Graf!$J$3<0.02,BA7,IF(th_24h_Graf!$J$3<0.04,BB7,BC7)) -> 0 | BE7: =IF(OR(th_24h_Graf_Tot!$M$1=FALSE,th_24h_Graf_Tot!$W$80=TRUE),"",SUM(D292:D363)/72) ->  | BF7: =IF(OR(th_24h_Graf_Tot!$M$1=FALSE,th_24h_Graf_Tot!$W$80=TRUE),NA(),SUM(AU292:AU363)/72) ->  | BG7: =IF(AY7="",0,IF(ISERROR(IF(AY7>=th_24h_Graf!BJ7,th_24h_Graf!$J$3,0)),0,IF(AY7>=th_24h_Graf!BJ7,th_24h_Graf!$J$3,0))) ->  | BH7: 0 | BJ7: =IF(th_24h_Graf_Tot!A4=FALSE,0,SUM(AW292:AW363)/72) -> 0 | BK7: =IF(OR(th_24h_Graf_Tot!$A$4=FALSE,th_24h_Graf_Tot!$W$80=TRUE),NA(),SUM(AY292:AY363)/72) ->  | BL7: =IF(th_24h_Graf_Tot!A4=FALSE,0,610.5*EXP(1)^((17.269*BJ7)/(237.3+BJ7))*BK7/100) -> 0
C8: =IF(th_24h_Graf!$G$3="","",C7+th_24h_Graf!$J$3) -> 01:40:00 | H8: =IF(th_24h_Graf!$G$3="","",H7+th_24h_Graf!$J$3) -> 01:40:00 | K8: =IF(AND(th_24h_Graf_Tot!$R$1=TRUE,J8>0),BC8,NA()) ->  | L8: =IF(AND(th_24h_Graf_Tot!$Q$1=TRUE,J8>0),BD8,NA()) ->  | N8: =IF(AND(th_24h_Graf_Tot!$M$1=TRUE,E8>0),E8,NA()) ->  | O8: =IF(AND(th_24h_Graf_Tot!$V$1=TRUE,D8>0),D8,NA()) ->  | AP8: 6 | AQ8: =SUM(I364:I435)/72 -> 0 | AR8: =SUM(J364:J435)/72 -> 0 | AU8: 0 | AW8: =IF(th_24h_Graf_Tot!$L$83=0,"",D8-(th_24h_Graf_Tot!$Q$82/th_24h_Graf_Tot!$L$83)*(D8-IF(I8="",TE,I8))) ->  | AY8: =IF(AND(th_24h_Graf_Tot!$A$4=TRUE,BB8>0),BB8,NA()) ->  | BA8: 0 | BB8: =IF(th_24h_Graf_Tot!$A$4=FALSE,"",IF(ISERROR(IF(AW8="","",IF(AU8/(610.5*EXP(1)^((17.269*AW8)/(237.3+AW8)))*100>100,100,AU8/(610.5*EXP(1)^((17.269*AW8)/(237.3+AW8)))*100))),"",IF(AW8="","",IF(AU8/(610.5*EXP(1)^((17.269*AW8)/(237.3+AW8)))*100>100,100,AU8/(610.5*EXP(1)^((17.269*AW8)/(237.3+AW8)))*100)))) ->  | BC8: 0 | BD8: =IF(th_24h_Graf!$J$3<0.02,BA8,IF(th_24h_Graf!$J$3<0.04,BB8,BC8)) -> 0 | BE8: =IF(OR(th_24h_Graf_Tot!$M$1=FALSE,th_24h_Graf_Tot!$W$80=TRUE),"",SUM(D364:D435)/72) ->  | BF8: =IF(OR(th_24h_Graf_Tot!$M$1=FALSE,th_24h_Graf_Tot!$W$80=TRUE),NA(),SUM(AU364:AU435)/72) ->  | BG8: =IF(AY8="",0,IF(ISERROR(IF(AY8>=th_24h_Graf!BJ8,th_24h_Graf!$J$3,0)),0,IF(AY8>=th_24h_Graf!BJ8,th_24h_Graf!$J$3,0))) ->  | BH8: 0 | BJ8: =IF(th_24h_Graf_Tot!A4=FALSE,0,SUM(AW364:AW435)/72) -> 0 | BK8: =IF(OR(th_24h_Graf_Tot!$A$4=FALSE,th_24h_Graf_Tot!$W$80=TRUE),NA(),SUM(AY364:AY435)/72) ->  | BL8: =IF(th_24h_Graf_Tot!A4=FALSE,0,610.5*EXP(1)^((17.269*BJ8)/(237.3+BJ8))*BK8/100) -> 0
C9: =IF(th_24h_Graf!$G$3="","",C8+th_24h_Graf!$J$3) -> 02:00:00 | H9: =IF(th_24h_Graf!$G$3="","",H8+th_24h_Graf!$J$3) -> 02:00:00 | K9: =IF(AND(th_24h_Graf_Tot!$R$1=TRUE,J9>0),BC9,NA()) ->  | L9: =IF(AND(th_24h_Graf_Tot!$Q$1=TRUE,J9>0),BD9,NA()) ->  | N9: =IF(AND(th_24h_Graf_Tot!$M$1=TRUE,E9>0),E9,NA()) ->  | O9: =IF(AND(th_24h_Graf_Tot!$V$1=TRUE,D9>0),D9,NA()) ->  | AP9: 7 | AQ9: =SUM(I436:I507)/72 -> 0 | AR9: =SUM(J436:J507)/72 -> 0 | AU9: 0 | AW9: =IF(th_24h_Graf_Tot!$L$83=0,"",D9-(th_24h_Graf_Tot!$Q$82/th_24h_Graf_Tot!$L$83)*(D9-IF(I9="",TE,I9))) ->  | AY9: =IF(AND(th_24h_Graf_Tot!$A$4=TRUE,BB9>0),BB9,NA()) ->  | BA9: 0 | BB9: =IF(th_24h_Graf_Tot!$A$4=FALSE,"",IF(ISERROR(IF(AW9="","",IF(AU9/(610.5*EXP(1)^((17.269*AW9)/(237.3+AW9)))*100>100,100,AU9/(610.5*EXP(1)^((17.269*AW9)/(237.3+AW9)))*100))),"",IF(AW9="","",IF(AU9/(610.5*EXP(1)^((17.269*AW9)/(237.3+AW9)))*100>100,100,AU9/(610.5*EXP(1)^((17.269*AW9)/(237.3+AW9)))*100)))) ->  | BC9: 0 | BD9: =IF(th_24h_Graf!$J$3<0.02,BA9,IF(th_24h_Graf!$J$3<0.04,BB9,BC9)) -> 0 | BE9: =IF(OR(th_24h_Graf_Tot!$M$1=FALSE,th_24h_Graf_Tot!$W$80=TRUE),"",SUM(D436:D507)/72) ->  | BF9: =IF(OR(th_24h_Graf_Tot!$M$1=FALSE,th_24h_Graf_Tot!$W$80=TRUE),NA(),SUM(AU436:AU507)/72) ->  | BG9: =IF(AY9="",0,IF(ISERROR(IF(AY9>=th_24h_Graf!BJ9,th_24h_Graf!$J$3,0)),0,IF(AY9>=th_24h_Graf!BJ9,th_24h_Graf!$J$3,0))) ->  | BH9: 0 | BJ9: =IF(th_24h_Graf_Tot!A4=FALSE,0,SUM(AW436:AW507)/72) -> 0 | BK9: =IF(OR(th_24h_Graf_Tot!$A$4=FALSE,th_24h_Graf_Tot!$W$80=TRUE),NA(),SUM(AY436:AY507)/72) ->  | BL9: =IF(th_24h_Graf_Tot!A4=FALSE,0,610.5*EXP(1)^((17.269*BJ9)/(237.3+BJ9))*BK9/100) -> 0
C10: =IF(th_24h_Graf!$G$3="","",C9+th_24h_Graf!$J$3) -> 02:20:00 | H10: =IF(th_24h_Graf!$G$3="","",H9+th_24h_Graf!$J$3) -> 02:20:00 | K10: =IF(AND(th_24h_Graf_Tot!$R$1=TRUE,J10>0),BC10,NA()) ->  | L10: =IF(AND(th_24h_Graf_Tot!$Q$1=TRUE,J10>0),BD10,NA()) ->  | N10: =IF(AND(th_24h_Graf_Tot!$M$1=TRUE,E10>0),E10,NA()) ->  | O10: =IF(AND(th_24h_Graf_Tot!$V$1=TRUE,D10>0),D10,NA()) ->  | AP10: 8 | AQ10: =SUM(I508:I579)/72 -> 0 | AR10: =SUM(J508:J579)/72 -> 0 | AU10: 0 | AW10: =IF(th_24h_Graf_Tot!$L$83=0,"",D10-(th_24h_Graf_Tot!$Q$82/th_24h_Graf_Tot!$L$83)*(D10-IF(I10="",TE,I10))) ->  | AY10: =IF(AND(th_24h_Graf_Tot!$A$4=TRUE,BB10>0),BB10,NA()) ->  | BA10: =$AQ$3 -> 0 | BB10: =IF(th_24h_Graf_Tot!$A$4=FALSE,"",IF(ISERROR(IF(AW10="","",IF(AU10/(610.5*EXP(1)^((17.269*AW10)/(237.3+AW10)))*100>100,100,AU10/(610.5*EXP(1)^((17.269*AW10)/(237.3+AW10)))*100))),"",IF(AW10="","",IF(AU10/(610.5*EXP(1)^((17.269*AW10)/(237.3+AW10)))*100>100,100,AU10/(610.5*EXP(1)^((17.269*AW10)/(237.3+AW10)))*100)))) ->  | BC10: 0 | BD10: =IF(th_24h_Graf!$J$3<0.02,BA10,IF(th_24h_Graf!$J$3<0.04,BB10,BC10)) -> 0 | BE10: =IF(OR(th_24h_Graf_Tot!$M$1=FALSE,th_24h_Graf_Tot!$W$80=TRUE),"",SUM(D508:D579)/72) ->  | BF10: =IF(OR(th_24h_Graf_Tot!$M$1=FALSE,th_24h_Graf_Tot!$W$80=TRUE),NA(),SUM(AU508:AU579)/72) ->  | BG10: =IF(AY10="",0,IF(ISERROR(IF(AY10>=th_24h_Graf!BJ10,th_24h_Graf!$J$3,0)),0,IF(AY10>=th_24h_Graf!BJ10,th_24h_Graf!$J$3,0))) ->  | BH10: 0 | BJ10: =IF(th_24h_Graf_Tot!A4=FALSE,0,SUM(AW508:AW579)/72) -> 0 | BK10: =IF(OR(th_24h_Graf_Tot!$A$4=FALSE,th_24h_Graf_Tot!$W$80=TRUE),NA(),SUM(AY508:AY579)/72) ->  | BL10: =IF(th_24h_Graf_Tot!A4=FALSE,0,610.5*EXP(1)^((17.269*BJ10)/(237.3+BJ10))*BK10/100) -> 0
C11: =IF(th_24h_Graf!$G$3="","",C10+th_24h_Graf!$J$3) -> 02:40:00 | H11: =IF(th_24h_Graf!$G$3="","",H10+th_24h_Graf!$J$3) -> 02:40:00 | K11: =IF(AND(th_24h_Graf_Tot!$R$1=TRUE,J11>0),BC11,NA()) ->  | L11: =IF(AND(th_24h_Graf_Tot!$Q$1=TRUE,J11>0),BD11,NA()) ->  | N11: =IF(AND(th_24h_Graf_Tot!$M$1=TRUE,E11>0),E11,NA()) ->  | O11: =IF(AND(th_24h_Graf_Tot!$V$1=TRUE,D11>0),D11,NA()) ->  | AP11: 9 | AQ11: =SUM(I580:I651)/72 -> 0 | AR11: =SUM(J580:J651)/72 -> 0 | AU11: 0 | AW11: =IF(th_24h_Graf_Tot!$L$83=0,"",D11-(th_24h_Graf_Tot!$Q$82/th_24h_Graf_Tot!$L$83)*(D11-IF(I11="",TE,I11))) ->  | AY11: =IF(AND(th_24h_Graf_Tot!$A$4=TRUE,BB11>0),BB11,NA()) ->  | BA11: 0 | BB11: =IF(th_24h_Graf_Tot!$A$4=FALSE,"",IF(ISERROR(IF(AW11="","",IF(AU11/(610.5*EXP(1)^((17.269*AW11)/(237.3+AW11)))*100>100,100,AU11/(610.5*EXP(1)^((17.269*AW11)/(237.3+AW11)))*100))),"",IF(AW11="","",IF(AU11/(610.5*EXP(1)^((17.269*AW11)/(237.3+AW11)))*100>100,100,AU11/(610.5*EXP(1)^((17.269*AW11)/(237.3+AW11)))*100)))) ->  | BC11: 0 | BD11: =IF(th_24h_Graf!$J$3<0.02,BA11,IF(th_24h_Graf!$J$3<0.04,BB11,BC11)) -> 0 | BE11: =IF(OR(th_24h_Graf_Tot!$M$1=FALSE,th_24h_Graf_Tot!$W$80=TRUE),"",SUM(D580:D651)/72) ->  | BF11: =IF(OR(th_24h_Graf_Tot!$M$1=FALSE,th_24h_Graf_Tot!$W$80=TRUE),NA(),SUM(AU580:AU651)/72) ->  | BG11: =IF(AY11="",0,IF(ISERROR(IF(AY11>=th_24h_Graf!BJ11,th_24h_Graf!$J$3,0)),0,IF(AY11>=th_24h_Graf!BJ11,th_24h_Graf!$J$3,0))) ->  | BH11: 0 | BJ11: =IF(th_24h_Graf_Tot!A4=FALSE,0,SUM(AW580:AW651)/72) -> 0 | BK11: =IF(OR(th_24h_Graf_Tot!$A$4=FALSE,th_24h_Graf_Tot!$W$80=TRUE),NA(),SUM(AY580:AY651)/72) ->  | BL11: =IF(th_24h_Graf_Tot!A4=FALSE,0,610.5*EXP(1)^((17.269*BJ11)/(237.3+BJ11))*BK11/100) -> 0
C12: =IF(th_24h_Graf!$G$3="","",C11+th_24h_Graf!$J$3) -> 03:00:00 | H12: =IF(th_24h_Graf!$G$3="","",H11+th_24h_Graf!$J$3) -> 03:00:00 | K12: =IF(AND(th_24h_Graf_Tot!$R$1=TRUE,J12>0),BC12,NA()) ->  | L12: =IF(AND(th_24h_Graf_Tot!$Q$1=TRUE,J12>0),BD12,NA()) ->  | N12: =IF(AND(th_24h_Graf_Tot!$M$1=TRUE,E12>0),E12,NA()) ->  | O12: =IF(AND(th_24h_Graf_Tot!$V$1=TRUE,D12>0),D12,NA()) ->  | AP12: 10 | AQ12: =SUM(I652:I723)/72 -> 0 | AR12: =SUM(J652:J723)/72 -> 0 | AU12: 0 | AW12: =IF(th_24h_Graf_Tot!$L$83=0,"",D12-(th_24h_Graf_Tot!$Q$82/th_24h_Graf_Tot!$L$83)*(D12-IF(I12="",TE,I12))) ->  | AY12: =IF(AND(th_24h_Graf_Tot!$A$4=TRUE,BB12>0),BB12,NA()) ->  | BA12: 0 | BB12: =IF(th_24h_Graf_Tot!$A$4=FALSE,"",IF(ISERROR(IF(AW12="","",IF(AU12/(610.5*EXP(1)^((17.269*AW12)/(237.3+AW12)))*100>100,100,AU12/(610.5*EXP(1)^((17.269*AW12)/(237.3+AW12)))*100))),"",IF(AW12="","",IF(AU12/(610.5*EXP(1)^((17.269*AW12)/(237.3+AW12)))*100>100,100,AU12/(610.5*EXP(1)^((17.269*AW12)/(237.3+AW12)))*100)))) ->  | BC12: 0 | BD12: =IF(th_24h_Graf!$J$3<0.02,BA12,IF(th_24h_Graf!$J$3<0.04,BB12,BC12)) -> 0 | BE12: =IF(OR(th_24h_Graf_Tot!$M$1=FALSE,th_24h_Graf_Tot!$W$80=TRUE),"",SUM(D652:D723)/72) ->  | BF12: =IF(OR(th_24h_Graf_Tot!$M$1=FALSE,th_24h_Graf_Tot!$W$80=TRUE),NA(),SUM(AU652:AU723)/72) ->  | BG12: =IF(AY12="",0,IF(ISERROR(IF(AY12>=th_24h_Graf!BJ12,th_24h_Graf!$J$3,0)),0,IF(AY12>=th_24h_Graf!BJ12,th_24h_Graf!$J$3,0))) ->  | BH12: 0 | BJ12: =IF(th_24h_Graf_Tot!A4=FALSE,0,SUM(AW652:AW723)/72) -> 0 | BK12: =IF(OR(th_24h_Graf_Tot!$A$4=FALSE,th_24h_Graf_Tot!$W$80=TRUE),NA(),SUM(AY652:AY723)/72) ->  | BL12: =IF(th_24h_Graf_Tot!A4=FALSE,0,610.5*EXP(1)^((17.269*BJ12)/(237.3+BJ12))*BK12/100) -> 0
C13: =IF(th_24h_Graf!$G$3="","",C12+th_24h_Graf!$J$3) -> 03:20:00 | H13: =IF(th_24h_Graf!$G$3="","",H12+th_24h_Graf!$J$3) -> 03:20:00 | K13: =IF(AND(th_24h_Graf_Tot!$R$1=TRUE,J13>0),BC13,NA()) ->  | L13: =IF(AND(th_24h_Graf_Tot!$Q$1=TRUE,J13>0),BD13,NA()) ->  | N13: =IF(AND(th_24h_Graf_Tot!$M$1=TRUE,E13>0),E13,NA()) ->  | O13: =IF(AND(th_24h_Graf_Tot!$V$1=TRUE,D13>0),D13,NA()) ->  | AP13: 11 | AQ13: =SUM(I724:I795)/72 -> 0 | AR13: =SUM(J724:J795)/72 -> 0 | AU13: 0 | AW13: =IF(th_24h_Graf_Tot!$L$83=0,"",D13-(th_24h_Graf_Tot!$Q$82/th_24h_Graf_Tot!$L$83)*(D13-IF(I13="",TE,I13))) ->  | AY13: =IF(AND(th_24h_Graf_Tot!$A$4=TRUE,BB13>0),BB13,NA()) ->  | BA13: 0 | BB13: =IF(th_24h_Graf_Tot!$A$4=FALSE,"",IF(ISERROR(IF(AW13="","",IF(AU13/(610.5*EXP(1)^((17.269*AW13)/(237.3+AW13)))*100>100,100,AU13/(610.5*EXP(1)^((17.269*AW13)/(237.3+AW13)))*100))),"",IF(AW13="","",IF(AU13/(610.5*EXP(1)^((17.269*AW13)/(237.3+AW13)))*100>100,100,AU13/(610.5*EXP(1)^((17.269*AW13)/(237.3+AW13)))*100)))) ->  | BC13: 0 | BD13: =IF(th_24h_Graf!$J$3<0.02,BA13,IF(th_24h_Graf!$J$3<0.04,BB13,BC13)) -> 0 | BE13: =IF(OR(th_24h_Graf_Tot!$M$1=FALSE,th_24h_Graf_Tot!$W$80=TRUE),"",SUM(D724:D795)/72) ->  | BF13: =IF(OR(th_24h_Graf_Tot!$M$1=FALSE,th_24h_Graf_Tot!$W$80=TRUE),NA(),SUM(AU724:AU795)/72) ->  | BG13: =IF(AY13="",0,IF(ISERROR(IF(AY13>=th_24h_Graf!BJ13,th_24h_Graf!$J$3,0)),0,IF(AY13>=th_24h_Graf!BJ13,th_24h_Graf!$J$3,0))) ->  | BH13: 0 | BJ13: =IF(th_24h_Graf_Tot!A4=FALSE,0,SUM(AW724:AW795)/72) -> 0 | BK13: =IF(OR(th_24h_Graf_Tot!$A$4=FALSE,th_24h_Graf_Tot!$W$80=TRUE),NA(),SUM(AY724:AY795)/72) ->  | BL13: =IF(th_24h_Graf_Tot!A4=FALSE,0,610.5*EXP(1)^((17.269*BJ13)/(237.3+BJ13))*BK13/100) -> 0
C14: =IF(th_24h_Graf!$G$3="","",C13+th_24h_Graf!$J$3) -> 03:40:00 | H14: =IF(th_24h_Graf!$G$3="","",H13+th_24h_Graf!$J$3) -> 03:40:00 | K14: =IF(AND(th_24h_Graf_Tot!$R$1=TRUE,J14>0),BC14,NA()) ->  | L14: =IF(AND(th_24h_Graf_Tot!$Q$1=TRUE,J14>0),BD14,NA()) ->  | N14: =IF(AND(th_24h_Graf_Tot!$M$1=TRUE,E14>0),E14,NA()) ->  | O14: =IF(AND(th_24h_Graf_Tot!$V$1=TRUE,D14>0),D14,NA()) ->  | AP14: 12 | AQ14: =SUM(I796:I867)/72 -> 0 | AR14: =SUM(J796:J867)/72 -> 0 | AU14: 0 | AW14: =IF(th_24h_Graf_Tot!$L$83=0,"",D14-(th_24h_Graf_Tot!$Q$82/th_24h_Graf_Tot!$L$83)*(D14-IF(I14="",TE,I14))) ->  | AY14: =IF(AND(th_24h_Graf_Tot!$A$4=TRUE,BB14>0),BB14,NA()) ->  | BA14: 0 | BB14: =IF(th_24h_Graf_Tot!$A$4=FALSE,"",IF(ISERROR(IF(AW14="","",IF(AU14/(610.5*EXP(1)^((17.269*AW14)/(237.3+AW14)))*100>100,100,AU14/(610.5*EXP(1)^((17.269*AW14)/(237.3+AW14)))*100))),"",IF(AW14="","",IF(AU14/(610.5*EXP(1)^((17.269*AW14)/(237.3+AW14)))*100>100,100,AU14/(610.5*EXP(1)^((17.269*AW14)/(237.3+AW14)))*100)))) ->  | BC14: 0 | BD14: =IF(th_24h_Graf!$J$3<0.02,BA14,IF(th_24h_Graf!$J$3<0.04,BB14,BC14)) -> 0 | BE14: =IF(OR(th_24h_Graf_Tot!$M$1=FALSE,th_24h_Graf_Tot!$W$80=TRUE),"",SUM(D796:D867)/72) ->  | BF14: =IF(OR(th_24h_Graf_Tot!$M$1=FALSE,th_24h_Graf_Tot!$W$80=TRUE),NA(),SUM(AU796:AU867)/72) ->  | BG14: =IF(AY14="",0,IF(ISERROR(IF(AY14>=th_24h_Graf!BJ14,th_24h_Graf!$J$3,0)),0,IF(AY14>=th_24h_Graf!BJ14,th_24h_Graf!$J$3,0))) ->  | BH14: 0 | BJ14: =IF(th_24h_Graf_Tot!A4=FALSE,0,SUM(AW796:AW867)/72) -> 0 | BK14: =IF(OR(th_24h_Graf_Tot!$A$4=FALSE,th_24h_Graf_Tot!$W$80=TRUE),NA(),SUM(AY796:AY867)/72) ->  | BL14: =IF(th_24h_Graf_Tot!A4=FALSE,0,610.5*EXP(1)^((17.269*BJ14)/(237.3+BJ14))*BK14/100) -> 0
C15: =IF(th_24h_Graf!$G$3="","",C14+th_24h_Graf!$J$3) -> 04:00:00 | H15: =IF(th_24h_Graf!$G$3="","",H14+th_24h_Graf!$J$3) -> 04:00:00 | K15: =IF(AND(th_24h_Graf_Tot!$R$1=TRUE,J15>0),BC15,NA()) ->  | L15: =IF(AND(th_24h_Graf_Tot!$Q$1=TRUE,J15>0),BD15,NA()) ->  | N15: =IF(AND(th_24h_Graf_Tot!$M$1=TRUE,E15>0),E15,NA()) ->  | O15: =IF(AND(th_24h_Graf_Tot!$V$1=TRUE,D15>0),D15,NA()) ->  | AP15: 13 | AQ15: =SUM(I868:I939)/72 -> 0 | AR15: =SUM(J868:J939)/72 -> 0 | AU15: 0 | AW15: =IF(th_24h_Graf_Tot!$L$83=0,"",D15-(th_24h_Graf_Tot!$Q$82/th_24h_Graf_Tot!$L$83)*(D15-IF(I15="",TE,I15))) ->  | AY15: =IF(AND(th_24h_Graf_Tot!$A$4=TRUE,BB15>0),BB15,NA()) ->  | BA15: 0 | BB15: =IF(th_24h_Graf_Tot!$A$4=FALSE,"",IF(ISERROR(IF(AW15="","",IF(AU15/(610.5*EXP(1)^((17.269*AW15)/(237.3+AW15)))*100>100,100,AU15/(610.5*EXP(1)^((17.269*AW15)/(237.3+AW15)))*100))),"",IF(AW15="","",IF(AU15/(610.5*EXP(1)^((17.269*AW15)/(237.3+AW15)))*100>100,100,AU15/(610.5*EXP(1)^((17.269*AW15)/(237.3+AW15)))*100)))) ->  | BC15: 0 | BD15: =IF(th_24h_Graf!$J$3<0.02,BA15,IF(th_24h_Graf!$J$3<0.04,BB15,BC15)) -> 0 | BE15: =IF(OR(th_24h_Graf_Tot!$M$1=FALSE,th_24h_Graf_Tot!$W$80=TRUE),"",SUM(D868:D939)/72) ->  | BF15: =IF(OR(th_24h_Graf_Tot!$M$1=FALSE,th_24h_Graf_Tot!$W$80=TRUE),NA(),SUM(AU868:AU939)/72) ->  | BG15: =IF(AY15="",0,IF(ISERROR(IF(AY15>=th_24h_Graf!BJ15,th_24h_Graf!$J$3,0)),0,IF(AY15>=th_24h_Graf!BJ15,th_24h_Graf!$J$3,0))) ->  | BH15: 0 | BJ15: =IF(th_24h_Graf_Tot!A4=FALSE,0,SUM(AW868:AW939)/72) -> 0 | BK15: =IF(OR(th_24h_Graf_Tot!$A$4=FALSE,th_24h_Graf_Tot!$W$80=TRUE),NA(),SUM(AY868:AY939)/72) ->  | BL15: =IF(th_24h_Graf_Tot!A4=FALSE,0,610.5*EXP(1)^((17.269*BJ15)/(237.3+BJ15))*BK15/100) -> 0
C16: =IF(th_24h_Graf!$G$3="","",C15+th_24h_Graf!$J$3) -> 04:20:00 | H16: =IF(th_24h_Graf!$G$3="","",H15+th_24h_Graf!$J$3) -> 04:20:00 | K16: =IF(AND(th_24h_Graf_Tot!$R$1=TRUE,J16>0),BC16,NA()) ->  | L16: =IF(AND(th_24h_Graf_Tot!$Q$1=TRUE,J16>0),BD16,NA()) ->  | N16: =IF(AND(th_24h_Graf_Tot!$M$1=TRUE,E16>0),E16,NA()) ->  | O16: =IF(AND(th_24h_Graf_Tot!$V$1=TRUE,D16>0),D16,NA()) ->  | AP16: 14 | AQ16: =SUM(I940:I1011)/72 -> 0 | AR16: =SUM(J940:J1011)/72 -> 0 | AU16: 0 | AW16: =IF(th_24h_Graf_Tot!$L$83=0,"",D16-(th_24h_Graf_Tot!$Q$82/th_24h_Graf_Tot!$L$83)*(D16-IF(I16="",TE,I16))) ->  | AY16: =IF(AND(th_24h_Graf_Tot!$A$4=TRUE,BB16>0),BB16,NA()) ->  | BA16: 0 | BB16: =IF(th_24h_Graf_Tot!$A$4=FALSE,"",IF(ISERROR(IF(AW16="","",IF(AU16/(610.5*EXP(1)^((17.269*AW16)/(237.3+AW16)))*100>100,100,AU16/(610.5*EXP(1)^((17.269*AW16)/(237.3+AW16)))*100))),"",IF(AW16="","",IF(AU16/(610.5*EXP(1)^((17.269*AW16)/(237.3+AW16)))*100>100,100,AU16/(610.5*EXP(1)^((17.269*AW16)/(237.3+AW16)))*100)))) ->  | BC16: 0 | BD16: =IF(th_24h_Graf!$J$3<0.02,BA16,IF(th_24h_Graf!$J$3<0.04,BB16,BC16)) -> 0 | BE16: =IF(OR(th_24h_Graf_Tot!$M$1=FALSE,th_24h_Graf_Tot!$W$80=TRUE),"",SUM(D940:D1011)/72) ->  | BF16: =IF(OR(th_24h_Graf_Tot!$M$1=FALSE,th_24h_Graf_Tot!$W$80=TRUE),NA(),SUM(AU940:AU1011)/72) ->  | BG16: =IF(AY16="",0,IF(ISERROR(IF(AY16>=th_24h_Graf!BJ16,th_24h_Graf!$J$3,0)),0,IF(AY16>=th_24h_Graf!BJ16,th_24h_Graf!$J$3,0))) ->  | BH16: 0 | BJ16: =IF(th_24h_Graf_Tot!A4=FALSE,0,SUM(AW940:AW1011)/72) -> 0 | BK16: =IF(OR(th_24h_Graf_Tot!$A$4=FALSE,th_24h_Graf_Tot!$W$80=TRUE),NA(),SUM(AY940:AY1011)/72) ->  | BL16: =IF(th_24h_Graf_Tot!A4=FALSE,0,610.5*EXP(1)^((17.269*BJ16)/(237.3+BJ16))*BK16/100) -> 0
C17: =IF(th_24h_Graf!$G$3="","",C16+th_24h_Graf!$J$3) -> 04:40:00 | H17: =IF(th_24h_Graf!$G$3="","",H16+th_24h_Graf!$J$3) -> 04:40:00 | K17: =IF(AND(th_24h_Graf_Tot!$R$1=TRUE,J17>0),BC17,NA()) ->  | L17: =IF(AND(th_24h_Graf_Tot!$Q$1=TRUE,J17>0),BD17,NA()) ->  | N17: =IF(AND(th_24h_Graf_Tot!$M$1=TRUE,E17>0),E17,NA()) ->  | O17: =IF(AND(th_24h_Graf_Tot!$V$1=TRUE,D17>0),D17,NA()) ->  | AU17: 0 | AW17: =IF(th_24h_Graf_Tot!$L$83=0,"",D17-(th_24h_Graf_Tot!$Q$82/th_24h_Graf_Tot!$L$83)*(D17-IF(I17="",TE,I17))) ->  | AY17: =IF(AND(th_24h_Graf_Tot!$A$4=TRUE,BB17>0),BB17,NA()) ->  | BA17: 0 | BB17: =IF(th_24h_Graf_Tot!$A$4=FALSE,"",IF(ISERROR(IF(AW17="","",IF(AU17/(610.5*EXP(1)^((17.269*AW17)/(237.3+AW17)))*100>100,100,AU17/(610.5*EXP(1)^((17.269*AW17)/(237.3+AW17)))*100))),"",IF(AW17="","",IF(AU17/(610.5*EXP(1)^((17.269*AW17)/(237.3+AW17)))*100>100,100,AU17/(610.5*EXP(1)^((17.269*AW17)/(237.3+AW17)))*100)))) ->  | BC17: 0 | BD17: =IF(th_24h_Graf!$J$3<0.02,BA17,IF(th_24h_Graf!$J$3<0.04,BB17,BC17)) -> 0 | BG17: =IF(AY17="",0,IF(ISERROR(IF(AY17>=th_24h_Graf!BJ17,th_24h_Graf!$J$3,0)),0,IF(AY17>=th_24h_Graf!BJ17,th_24h_Graf!$J$3,0))) ->  | BH17: 0
C18: =IF(th_24h_Graf!$G$3="","",C17+th_24h_Graf!$J$3) -> 05:00:00 | H18: =IF(th_24h_Graf!$G$3="","",H17+th_24h_Graf!$J$3) -> 05:00:00 | K18: =IF(AND(th_24h_Graf_Tot!$R$1=TRUE,J18>0),BC18,NA()) ->  | L18: =IF(AND(th_24h_Graf_Tot!$Q$1=TRUE,J18>0),BD18,NA()) ->  | N18: =IF(AND(th_24h_Graf_Tot!$M$1=TRUE,E18>0),E18,NA()) ->  | O18: =IF(AND(th_24h_Graf_Tot!$V$1=TRUE,D18>0),D18,NA()) ->  | AU18: 0 | AW18: =IF(th_24h_Graf_Tot!$L$83=0,"",D18-(th_24h_Graf_Tot!$Q$82/th_24h_Graf_Tot!$L$83)*(D18-IF(I18="",TE,I18))) ->  | AY18: =IF(AND(th_24h_Graf_Tot!$A$4=TRUE,BB18>0),BB18,NA()) ->  | BA18: 0 | BB18: =IF(th_24h_Graf_Tot!$A$4=FALSE,"",IF(ISERROR(IF(AW18="","",IF(AU18/(610.5*EXP(1)^((17.269*AW18)/(237.3+AW18)))*100>100,100,AU18/(610.5*EXP(1)^((17.269*AW18)/(237.3+AW18)))*100))),"",IF(AW18="","",IF(AU18/(610.5*EXP(1)^((17.269*AW18)/(237.3+AW18)))*100>100,100,AU18/(610.5*EXP(1)^((17.269*AW18)/(237.3+AW18)))*100)))) ->  | BC18: 0 | BD18: =IF(th_24h_Graf!$J$3<0.02,BA18,IF(th_24h_Graf!$J$3<0.04,BB18,BC18)) -> 0 | BG18: =IF(AY18="",0,IF(ISERROR(IF(AY18>=th_24h_Graf!BJ18,th_24h_Graf!$J$3,0)),0,IF(AY18>=th_24h_Graf!BJ18,th_24h_Graf!$J$3,0))) ->  | BH18: 0
C19: =IF(th_24h_Graf!$G$3="","",C18+th_24h_Graf!$J$3) -> 05:20:00 | H19: =IF(th_24h_Graf!$G$3="","",H18+th_24h_Graf!$J$3) -> 05:20:00 | K19: =IF(AND(th_24h_Graf_Tot!$R$1=TRUE,J19>0),BC19,NA()) ->  | L19: =IF(AND(th_24h_Graf_Tot!$Q$1=TRUE,J19>0),BD19,NA()) ->  | N19: =IF(AND(th_24h_Graf_Tot!$M$1=TRUE,E19>0),E19,NA()) ->  | O19: =IF(AND(th_24h_Graf_Tot!$V$1=TRUE,D19>0),D19,NA()) ->  | AU19: 0 | AW19: =IF(th_24h_Graf_Tot!$L$83=0,"",D19-(th_24h_Graf_Tot!$Q$82/th_24h_Graf_Tot!$L$83)*(D19-IF(I19="",TE,I19))) ->  | AY19: =IF(AND(th_24h_Graf_Tot!$A$4=TRUE,BB19>0),BB19,NA()) ->  | BA19: 0 | BB19: =IF(th_24h_Graf_Tot!$A$4=FALSE,"",IF(ISERROR(IF(AW19="","",IF(AU19/(610.5*EXP(1)^((17.269*AW19)/(237.3+AW19)))*100>100,100,AU19/(610.5*EXP(1)^((17.269*AW19)/(237.3+AW19)))*100))),"",IF(AW19="","",IF(AU19/(610.5*EXP(1)^((17.269*AW19)/(237.3+AW19)))*100>100,100,AU19/(610.5*EXP(1)^((17.269*AW19)/(237.3+AW19)))*100)))) ->  | BC19: 0 | BD19: =IF(th_24h_Graf!$J$3<0.02,BA19,IF(th_24h_Graf!$J$3<0.04,BB19,BC19)) -> 0 | BG19: =IF(AY19="",0,IF(ISERROR(IF(AY19>=th_24h_Graf!BJ19,th_24h_Graf!$J$3,0)),0,IF(AY19>=th_24h_Graf!BJ19,th_24h_Graf!$J$3,0))) ->  | BH19: 0
C20: =IF(th_24h_Graf!$G$3="","",C19+th_24h_Graf!$J$3) -> 05:40:00 | H20: =IF(th_24h_Graf!$G$3="","",H19+th_24h_Graf!$J$3) -> 05:40:00 | K20: =IF(AND(th_24h_Graf_Tot!$R$1=TRUE,J20>0),BC20,NA()) ->  | L20: =IF(AND(th_24h_Graf_Tot!$Q$1=TRUE,J20>0),BD20,NA()) ->  | N20: =IF(AND(th_24h_Graf_Tot!$M$1=TRUE,E20>0),E20,NA()) ->  | O20: =IF(AND(th_24h_Graf_Tot!$V$1=TRUE,D20>0),D20,NA()) ->  | AP20: =VLOOKUP("1º día",$B$3:$D$1011,3,FALSE) -> 0 | AQ20: =IF(AP20<>0,"1.- "&DAY($L$1)&"/"&MONTH($L$1)&"/"&YEAR($L$1),"Sin datos") -> Sin datos | AR20: =DAY($L$1)&"/"&MONTH($L$1)&"/"&YEAR($L$1) -> 0/1/1900 | AU20: 0 | AW20: =IF(th_24h_Graf_Tot!$L$83=0,"",D20-(th_24h_Graf_Tot!$Q$82/th_24h_Graf_Tot!$L$83)*(D20-IF(I20="",TE,I20))) ->  | AY20: =IF(AND(th_24h_Graf_Tot!$A$4=TRUE,BB20>0),BB20,NA()) ->  | BA20: 0 | BB20: =IF(th_24h_Graf_Tot!$A$4=FALSE,"",IF(ISERROR(IF(AW20="","",IF(AU20/(610.5*EXP(1)^((17.269*AW20)/(237.3+AW20)))*100>100,100,AU20/(610.5*EXP(1)^((17.269*AW20)/(237.3+AW20)))*100))),"",IF(AW20="","",IF(AU20/(610.5*EXP(1)^((17.269*AW20)/(237.3+AW20)))*100>100,100,AU20/(610.5*EXP(1)^((17.269*AW20)/(237.3+AW20)))*100)))) ->  | BC20: 0 | BD20: =IF(th_24h_Graf!$J$3<0.02,BA20,IF(th_24h_Graf!$J$3<0.04,BB20,BC20)) -> 0 | BG20: =IF(AY20="",0,IF(ISERROR(IF(AY20>=th_24h_Graf!BJ20,th_24h_Graf!$J$3,0)),0,IF(AY20>=th_24h_Graf!BJ20,th_24h_Graf!$J$3,0))) ->  | BH20: 0
C21: =IF(th_24h_Graf!$G$3="","",C20+th_24h_Graf!$J$3) -> 06:00:00 | H21: =IF(th_24h_Graf!$G$3="","",H20+th_24h_Graf!$J$3) -> 06:00:00 | K21: =IF(AND(th_24h_Graf_Tot!$R$1=TRUE,J21>0),BC21,NA()) ->  | L21: =IF(AND(th_24h_Graf_Tot!$Q$1=TRUE,J21>0),BD21,NA()) ->  | N21: =IF(AND(th_24h_Graf_Tot!$M$1=TRUE,E21>0),E21,NA()) ->  | O21: =IF(AND(th_24h_Graf_Tot!$V$1=TRUE,D21>0),D21,NA()) ->  | AP21: =VLOOKUP("2º día",$B$3:$D$1011,3,FALSE) -> 0 | AQ21: =IF(AP21<>0,"2.- "&DAY($L$1+1)&"/"&MONTH($L$1+1)&"/"&YEAR($L$1+1),"Sin datos") -> Sin datos | AR21: 0/1/1900 | AU21: 0 | AW21: =IF(th_24h_Graf_Tot!$L$83=0,"",D21-(th_24h_Graf_Tot!$Q$82/th_24h_Graf_Tot!$L$83)*(D21-IF(I21="",TE,I21))) ->  | AY21: =IF(AND(th_24h_Graf_Tot!$A$4=TRUE,BB21>0),BB21,NA()) ->  | BA21: 0 | BB21: =IF(th_24h_Graf_Tot!$A$4=FALSE,"",IF(ISERROR(IF(AW21="","",IF(AU21/(610.5*EXP(1)^((17.269*AW21)/(237.3+AW21)))*100>100,100,AU21/(610.5*EXP(1)^((17.269*AW21)/(237.3+AW21)))*100))),"",IF(AW21="","",IF(AU21/(610.5*EXP(1)^((17.269*AW21)/(237.3+AW21)))*100>100,100,AU21/(610.5*EXP(1)^((17.269*AW21)/(237.3+AW21)))*100)))) ->  | BC21: 0 | BD21: =IF(th_24h_Graf!$J$3<0.02,BA21,IF(th_24h_Graf!$J$3<0.04,BB21,BC21)) -> 0 | BG21: =IF(AY21="",0,IF(ISERROR(IF(AY21>=th_24h_Graf!BJ21,th_24h_Graf!$J$3,0)),0,IF(AY21>=th_24h_Graf!BJ21,th_24h_Graf!$J$3,0))) ->  | BH21: 0
C22: =IF(th_24h_Graf!$G$3="","",C21+th_24h_Graf!$J$3) -> 06:20:00 | H22: =IF(th_24h_Graf!$G$3="","",H21+th_24h_Graf!$J$3) -> 06:20:00 | K22: =IF(AND(th_24h_Graf_Tot!$R$1=TRUE,J22>0),BC22,NA()) ->  | L22: =IF(AND(th_24h_Graf_Tot!$Q$1=TRUE,J22>0),BD22,NA()) ->  | N22: =IF(AND(th_24h_Graf_Tot!$M$1=TRUE,E22>0),E22,NA()) ->  | O22: =IF(AND(th_24h_Graf_Tot!$V$1=TRUE,D22>0),D22,NA()) ->  | AP22: =VLOOKUP("3º día",$B$3:$D$1011,3,FALSE) -> 0 | AQ22: =IF(AP22<>0,"3.- "&DAY($L$1+2)&"/"&MONTH($L$1+2)&"/"&YEAR($L$1+2),"Sin datos") -> Sin datos | AR22: 0/1/1900 | AU22: 0 | AW22: =IF(th_24h_Graf_Tot!$L$83=0,"",D22-(th_24h_Graf_Tot!$Q$82/th_24h_Graf_Tot!$L$83)*(D22-IF(I22="",TE,I22))) ->  | AY22: =IF(AND(th_24h_Graf_Tot!$A$4=TRUE,BB22>0),BB22,NA()) ->  | BA22: 0 | BB22: =IF(th_24h_Graf_Tot!$A$4=FALSE,"",IF(ISERROR(IF(AW22="","",IF(AU22/(610.5*EXP(1)^((17.269*AW22)/(237.3+AW22)))*100>100,100,AU22/(610.5*EXP(1)^((17.269*AW22)/(237.3+AW22)))*100))),"",IF(AW22="","",IF(AU22/(610.5*EXP(1)^((17.269*AW22)/(237.3+AW22)))*100>100,100,AU22/(610.5*EXP(1)^((17.269*AW22)/(237.3+AW22)))*100)))) ->  | BC22: 0 | BD22: =IF(th_24h_Graf!$J$3<0.02,BA22,IF(th_24h_Graf!$J$3<0.04,BB22,BC22)) -> 0 | BG22: =IF(AY22="",0,IF(ISERROR(IF(AY22>=th_24h_Graf!BJ22,th_24h_Graf!$J$3,0)),0,IF(AY22>=th_24h_Graf!BJ22,th_24h_Graf!$J$3,0))) ->  | BH22: 0
C23: =IF(th_24h_Graf!$G$3="","",C22+th_24h_Graf!$J$3) -> 06:40:00 | H23: =IF(th_24h_Graf!$G$3="","",H22+th_24h_Graf!$J$3) -> 06:40:00 | K23: =IF(AND(th_24h_Graf_Tot!$R$1=TRUE,J23>0),BC23,NA()) ->  | L23: =IF(AND(th_24h_Graf_Tot!$Q$1=TRUE,J23>0),BD23,NA()) ->  | N23: =IF(AND(th_24h_Graf_Tot!$M$1=TRUE,E23>0),E23,NA()) ->  | O23: =IF(AND(th_24h_Graf_Tot!$V$1=TRUE,D23>0),D23,NA()) ->  | AP23: =VLOOKUP("4º día",$B$3:$D$1011,3,FALSE) -> 0 | AQ23: =IF(AP23<>0,"4.- "&DAY($L$1+3)&"/"&MONTH($L$1+3)&"/"&YEAR($L$1+3),"Sin datos") -> Sin datos | AR23: 0/1/1900 | AU23: 0 | AW23: =IF(th_24h_Graf_Tot!$L$83=0,"",D23-(th_24h_Graf_Tot!$Q$82/th_24h_Graf_Tot!$L$83)*(D23-IF(I23="",TE,I23))) ->  | AY23: =IF(AND(th_24h_Graf_Tot!$A$4=TRUE,BB23>0),BB23,NA()) ->  | BA23: 0 | BB23: =IF(th_24h_Graf_Tot!$A$4=FALSE,"",IF(ISERROR(IF(AW23="","",IF(AU23/(610.5*EXP(1)^((17.269*AW23)/(237.3+AW23)))*100>100,100,AU23/(610.5*EXP(1)^((17.269*AW23)/(237.3+AW23)))*100))),"",IF(AW23="","",IF(AU23/(610.5*EXP(1)^((17.269*AW23)/(237.3+AW23)))*100>100,100,AU23/(610.5*EXP(1)^((17.269*AW23)/(237.3+AW23)))*100)))) ->  | BC23: 0 | BD23: =IF(th_24h_Graf!$J$3<0.02,BA23,IF(th_24h_Graf!$J$3<0.04,BB23,BC23)) -> 0 | BG23: =IF(AY23="",0,IF(ISERROR(IF(AY23>=th_24h_Graf!BJ23,th_24h_Graf!$J$3,0)),0,IF(AY23>=th_24h_Graf!BJ23,th_24h_Graf!$J$3,0))) ->  | BH23: 0
C24: =IF(th_24h_Graf!$G$3="","",C23+th_24h_Graf!$J$3) -> 07:00:00 | H24: =IF(th_24h_Graf!$G$3="","",H23+th_24h_Graf!$J$3) -> 07:00:00 | K24: =IF(AND(th_24h_Graf_Tot!$R$1=TRUE,J24>0),BC24,NA()) ->  | L24: =IF(AND(th_24h_Graf_Tot!$Q$1=TRUE,J24>0),BD24,NA()) ->  | N24: =IF(AND(th_24h_Graf_Tot!$M$1=TRUE,E24>0),E24,NA()) ->  | O24: =IF(AND(th_24h_Graf_Tot!$V$1=TRUE,D24>0),D24,NA()) ->  | AP24: =VLOOKUP("5º día",$B$3:$D$1011,3,FALSE) -> 0 | AQ24: =IF(AP24<>0,"5.- "&DAY($L$1+4)&"/"&MONTH($L$1+4)&"/"&YEAR($L$1+4),"Sin datos") -> Sin datos | AR24: 0/1/1900 | AU24: 0 | AW24: =IF(th_24h_Graf_Tot!$L$83=0,"",D24-(th_24h_Graf_Tot!$Q$82/th_24h_Graf_Tot!$L$83)*(D24-IF(I24="",TE,I24))) ->  | AY24: =IF(AND(th_24h_Graf_Tot!$A$4=TRUE,BB24>0),BB24,NA()) ->  | BA24: 0 | BB24: =IF(th_24h_Graf_Tot!$A$4=FALSE,"",IF(ISERROR(IF(AW24="","",IF(AU24/(610.5*EXP(1)^((17.269*AW24)/(237.3+AW24)))*100>100,100,AU24/(610.5*EXP(1)^((17.269*AW24)/(237.3+AW24)))*100))),"",IF(AW24="","",IF(AU24/(610.5*EXP(1)^((17.269*AW24)/(237.3+AW24)))*100>100,100,AU24/(610.5*EXP(1)^((17.269*AW24)/(237.3+AW24)))*100)))) ->  | BC24: 0 | BD24: =IF(th_24h_Graf!$J$3<0.02,BA24,IF(th_24h_Graf!$J$3<0.04,BB24,BC24)) -> 0 | BG24: =IF(AY24="",0,IF(ISERROR(IF(AY24>=th_24h_Graf!BJ24,th_24h_Graf!$J$3,0)),0,IF(AY24>=th_24h_Graf!BJ24,th_24h_Graf!$J$3,0))) ->  | BH24: 0
C25: =IF(th_24h_Graf!$G$3="","",C24+th_24h_Graf!$J$3) -> 07:20:00 | H25: =IF(th_24h_Graf!$G$3="","",H24+th_24h_Graf!$J$3) -> 07:20:00 | K25: =IF(AND(th_24h_Graf_Tot!$R$1=TRUE,J25>0),BC25,NA()) ->  | L25: =IF(AND(th_24h_Graf_Tot!$Q$1=TRUE,J25>0),BD25,NA()) ->  | N25: =IF(AND(th_24h_Graf_Tot!$M$1=TRUE,E25>0),E25,NA()) ->  | O25: =IF(AND(th_24h_Graf_Tot!$V$1=TRUE,D25>0),D25,NA()) ->  | AP25: =VLOOKUP("6º día",$B$3:$D$1011,3,FALSE) -> 0 | AQ25: =IF(AP25<>0,"6.- "&DAY($L$1+5)&"/"&MONTH($L$1+5)&"/"&YEAR($L$1+5),"Sin datos") -> Sin datos | AR25: 0/1/1900 | AU25: 0 | AW25: =IF(th_24h_Graf_Tot!$L$83=0,"",D25-(th_24h_Graf_Tot!$Q$82/th_24h_Graf_Tot!$L$83)*(D25-IF(I25="",TE,I25))) ->  | AY25: =IF(AND(th_24h_Graf_Tot!$A$4=TRUE,BB25>0),BB25,NA()) ->  | BA25: 0 | BB25: =IF(th_24h_Graf_Tot!$A$4=FALSE,"",IF(ISERROR(IF(AW25="","",IF(AU25/(610.5*EXP(1)^((17.269*AW25)/(237.3+AW25)))*100>100,100,AU25/(610.5*EXP(1)^((17.269*AW25)/(237.3+AW25)))*100))),"",IF(AW25="","",IF(AU25/(610.5*EXP(1)^((17.269*AW25)/(237.3+AW25)))*100>100,100,AU25/(610.5*EXP(1)^((17.269*AW25)/(237.3+AW25)))*100)))) ->  | BC25: 0 | BD25: =IF(th_24h_Graf!$J$3<0.02,BA25,IF(th_24h_Graf!$J$3<0.04,BB25,BC25)) -> 0 | BG25: =IF(AY25="",0,IF(ISERROR(IF(AY25>=th_24h_Graf!BJ25,th_24h_Graf!$J$3,0)),0,IF(AY25>=th_24h_Graf!BJ25,th_24h_Graf!$J$3,0))) ->  | BH25: 0
C26: =IF(th_24h_Graf!$G$3="","",C25+th_24h_Graf!$J$3) -> 07:40:00 | H26: =IF(th_24h_Graf!$G$3="","",H25+th_24h_Graf!$J$3) -> 07:40:00 | K26: =IF(AND(th_24h_Graf_Tot!$R$1=TRUE,J26>0),BC26,NA()) ->  | L26: =IF(AND(th_24h_Graf_Tot!$Q$1=TRUE,J26>0),BD26,NA()) ->  | N26: =IF(AND(th_24h_Graf_Tot!$M$1=TRUE,E26>0),E26,NA()) ->  | O26: =IF(AND(th_24h_Graf_Tot!$V$1=TRUE,D26>0),D26,NA()) ->  | AP26: =VLOOKUP("7º día",$B$3:$D$1011,3,FALSE) -> 0 | AQ26: =IF(AP26<>0,"7.- "&DAY($L$1+6)&"/"&MONTH($L$1+6)&"/"&YEAR($L$1+6),"Sin datos") -> Sin datos | AR26: 0/1/1900 | AU26: 0 | AW26: =IF(th_24h_Graf_Tot!$L$83=0,"",D26-(th_24h_Graf_Tot!$Q$82/th_24h_Graf_Tot!$L$83)*(D26-IF(I26="",TE,I26))) ->  | AY26: =IF(AND(th_24h_Graf_Tot!$A$4=TRUE,BB26>0),BB26,NA()) ->  | BA26: 0 | BB26: =IF(th_24h_Graf_Tot!$A$4=FALSE,"",IF(ISERROR(IF(AW26="","",IF(AU26/(610.5*EXP(1)^((17.269*AW26)/(237.3+AW26)))*100>100,100,AU26/(610.5*EXP(1)^((17.269*AW26)/(237.3+AW26)))*100))),"",IF(AW26="","",IF(AU26/(610.5*EXP(1)^((17.269*AW26)/(237.3+AW26)))*100>100,100,AU26/(610.5*EXP(1)^((17.269*AW26)/(237.3+AW26)))*100)))) ->  | BC26: 0 | BD26: =IF(th_24h_Graf!$J$3<0.02,BA26,IF(th_24h_Graf!$J$3<0.04,BB26,BC26)) -> 0 | BG26: =IF(AY26="",0,IF(ISERROR(IF(AY26>=th_24h_Graf!BJ26,th_24h_Graf!$J$3,0)),0,IF(AY26>=th_24h_Graf!BJ26,th_24h_Graf!$J$3,0))) ->  | BH26: 0
C27: =IF(th_24h_Graf!$G$3="","",C26+th_24h_Graf!$J$3) -> 08:00:00 | H27: =IF(th_24h_Graf!$G$3="","",H26+th_24h_Graf!$J$3) -> 08:00:00 | K27: =IF(AND(th_24h_Graf_Tot!$R$1=TRUE,J27>0),BC27,NA()) ->  | L27: =IF(AND(th_24h_Graf_Tot!$Q$1=TRUE,J27>0),BD27,NA()) ->  | N27: =IF(AND(th_24h_Graf_Tot!$M$1=TRUE,E27>0),E27,NA()) ->  | O27: =IF(AND(th_24h_Graf_Tot!$V$1=TRUE,D27>0),D27,NA()) ->  | AP27: =VLOOKUP("8º día",$B$3:$D$1011,3,FALSE) -> 0 | AQ27: =IF(AP27<>0,"8.- "&DAY($L$1+7)&"/"&MONTH($L$1+7)&"/"&YEAR($L$1+7),"Sin datos") -> Sin datos | AR27: 0/1/1900 | AU27: 0 | AW27: =IF(th_24h_Graf_Tot!$L$83=0,"",D27-(th_24h_Graf_Tot!$Q$82/th_24h_Graf_Tot!$L$83)*(D27-IF(I27="",TE,I27))) ->  | AY27: =IF(AND(th_24h_Graf_Tot!$A$4=TRUE,BB27>0),BB27,NA()) ->  | BA27: 0 | BB27: =IF(th_24h_Graf_Tot!$A$4=FALSE,"",IF(ISERROR(IF(AW27="","",IF(AU27/(610.5*EXP(1)^((17.269*AW27)/(237.3+AW27)))*100>100,100,AU27/(610.5*EXP(1)^((17.269*AW27)/(237.3+AW27)))*100))),"",IF(AW27="","",IF(AU27/(610.5*EXP(1)^((17.269*AW27)/(237.3+AW27)))*100>100,100,AU27/(610.5*EXP(1)^((17.269*AW27)/(237.3+AW27)))*100)))) ->  | BC27: 0 | BD27: =IF(th_24h_Graf!$J$3<0.02,BA27,IF(th_24h_Graf!$J$3<0.04,BB27,BC27)) -> 0 | BG27: =IF(AY27="",0,IF(ISERROR(IF(AY27>=th_24h_Graf!BJ27,th_24h_Graf!$J$3,0)),0,IF(AY27>=th_24h_Graf!BJ27,th_24h_Graf!$J$3,0))) ->  | BH27: 0
B28: =IF(th_24h_Graf!$J$3>0.04,"2º día","") ->  | C28: =IF(th_24h_Graf!$G$3="","",C27+th_24h_Graf!$J$3) -> 08:20:00 | G28: =IF(th_24h_Graf!$J$3>0.04,"2º día","") ->  | H28: =IF(th_24h_Graf!$G$3="","",H27+th_24h_Graf!$J$3) -> 08:20:00 | K28: =IF(AND(th_24h_Graf_Tot!$R$1=TRUE,J28>0),BC28,NA()) ->  | L28: =IF(AND(th_24h_Graf_Tot!$Q$1=TRUE,J28>0),BD28,NA()) ->  | N28: =IF(AND(th_24h_Graf_Tot!$M$1=TRUE,E28>0),E28,NA()) ->  | O28: =IF(AND(th_24h_Graf_Tot!$V$1=TRUE,D28>0),D28,NA()) ->  | AP28: =VLOOKUP("9º día",$B$3:$D$1011,3,FALSE) -> 0 | AQ28: =IF(AP28<>0,"9.- "&DAY($L$1+8)&"/"&MONTH($L$1+8)&"/"&YEAR($L$1+8),"Sin datos") -> Sin datos | AR28: 0/1/1900 | AU28: 0 | AW28: =IF(th_24h_Graf_Tot!$L$83=0,"",D28-(th_24h_Graf_Tot!$Q$82/th_24h_Graf_Tot!$L$83)*(D28-IF(I28="",TE,I28))) ->  | AY28: =IF(AND(th_24h_Graf_Tot!$A$4=TRUE,BB28>0),BB28,NA()) ->  | AZ28: =IF(th_24h_Graf!$J$3>0.04,"2º día","") ->  | BA28: 0 | BB28: =IF(th_24h_Graf_Tot!$A$4=FALSE,"",IF(ISERROR(IF(AW28="","",IF(AU28/(610.5*EXP(1)^((17.269*AW28)/(237.3+AW28)))*100>100,100,AU28/(610.5*EXP(1)^((17.269*AW28)/(237.3+AW28)))*100))),"",IF(AW28="","",IF(AU28/(610.5*EXP(1)^((17.269*AW28)/(237.3+AW28)))*100>100,100,AU28/(610.5*EXP(1)^((17.269*AW28)/(237.3+AW28)))*100)))) ->  | BC28: 0 | BD28: =IF(th_24h_Graf!$J$3<0.02,BA28,IF(th_24h_Graf!$J$3<0.04,BB28,BC28)) -> 0 | BG28: =IF(AY28="",0,IF(ISERROR(IF(AY28>=th_24h_Graf!BJ28,th_24h_Graf!$J$3,0)),0,IF(AY28>=th_24h_Graf!BJ28,th_24h_Graf!$J$3,0))) ->  | BH28: 0
C29: =IF(th_24h_Graf!$G$3="","",C28+th_24h_Graf!$J$3) -> 08:40:00 | H29: =IF(th_24h_Graf!$G$3="","",H28+th_24h_Graf!$J$3) -> 08:40:00 | K29: =IF(AND(th_24h_Graf_Tot!$R$1=TRUE,J29>0),BC29,NA()) ->  | L29: =IF(AND(th_24h_Graf_Tot!$Q$1=TRUE,J29>0),BD29,NA()) ->  | N29: =IF(AND(th_24h_Graf_Tot!$M$1=TRUE,E29>0),E29,NA()) ->  | O29: =IF(AND(th_24h_Graf_Tot!$V$1=TRUE,D29>0),D29,NA()) ->  | AP29: =VLOOKUP("10º día",$B$3:$D$1011,3,FALSE) -> 0 | AQ29: =IF(AP29<>0,"10.- "&DAY($L$1+9)&"/"&MONTH($L$1+9)&"/"&YEAR($L$1+9),"Sin datos") -> Sin datos | AR29: 0/1/1900 | AU29: 0 | AW29: =IF(th_24h_Graf_Tot!$L$83=0,"",D29-(th_24h_Graf_Tot!$Q$82/th_24h_Graf_Tot!$L$83)*(D29-IF(I29="",TE,I29))) ->  | AY29: =IF(AND(th_24h_Graf_Tot!$A$4=TRUE,BB29>0),BB29,NA()) ->  | BA29: 0 | BB29: =IF(th_24h_Graf_Tot!$A$4=FALSE,"",IF(ISERROR(IF(AW29="","",IF(AU29/(610.5*EXP(1)^((17.269*AW29)/(237.3+AW29)))*100>100,100,AU29/(610.5*EXP(1)^((17.269*AW29)/(237.3+AW29)))*100))),"",IF(AW29="","",IF(AU29/(610.5*EXP(1)^((17.269*AW29)/(237.3+AW29)))*100>100,100,AU29/(610.5*EXP(1)^((17.269*AW29)/(237.3+AW29)))*100)))) ->  | BC29: 0 | BD29: =IF(th_24h_Graf!$J$3<0.02,BA29,IF(th_24h_Graf!$J$3<0.04,BB29,BC29)) -> 0 | BG29: =IF(AY29="",0,IF(ISERROR(IF(AY29>=th_24h_Graf!BJ29,th_24h_Graf!$J$3,0)),0,IF(AY29>=th_24h_Graf!BJ29,th_24h_Graf!$J$3,0))) ->  | BH29: 0
C30: =IF(th_24h_Graf!$G$3="","",C29+th_24h_Graf!$J$3) -> 09:00:00 | H30: =IF(th_24h_Graf!$G$3="","",H29+th_24h_Graf!$J$3) -> 09:00:00 | K30: =IF(AND(th_24h_Graf_Tot!$R$1=TRUE,J30>0),BC30,NA()) ->  | L30: =IF(AND(th_24h_Graf_Tot!$Q$1=TRUE,J30>0),BD30,NA()) ->  | N30: =IF(AND(th_24h_Graf_Tot!$M$1=TRUE,E30>0),E30,NA()) ->  | O30: =IF(AND(th_24h_Graf_Tot!$V$1=TRUE,D30>0),D30,NA()) ->  | AP30: =VLOOKUP("11º día",$B$3:$D$1011,3,FALSE) -> 0 | AQ30: =IF(AP30<>0,"11.- "&DAY($L$1+10)&"/"&MONTH($L$1+10)&"/"&YEAR($L$1+10),"Sin datos") -> Sin datos | AR30: 0/1/1900 | AU30: 0 | AW30: =IF(th_24h_Graf_Tot!$L$83=0,"",D30-(th_24h_Graf_Tot!$Q$82/th_24h_Graf_Tot!$L$83)*(D30-IF(I30="",TE,I30))) ->  | AY30: =IF(AND(th_24h_Graf_Tot!$A$4=TRUE,BB30>0),BB30,NA()) ->  | BA30: 0 | BB30: =IF(th_24h_Graf_Tot!$A$4=FALSE,"",IF(ISERROR(IF(AW30="","",IF(AU30/(610.5*EXP(1)^((17.269*AW30)/(237.3+AW30)))*100>100,100,AU30/(610.5*EXP(1)^((17.269*AW30)/(237.3+AW30)))*100))),"",IF(AW30="","",IF(AU30/(610.5*EXP(1)^((17.269*AW30)/(237.3+AW30)))*100>100,100,AU30/(610.5*EXP(1)^((17.269*AW30)/(237.3+AW30)))*100)))) ->  | BC30: 0 | BD30: =IF(th_24h_Graf!$J$3<0.02,BA30,IF(th_24h_Graf!$J$3<0.04,BB30,BC30)) -> 0 | BG30: =IF(AY30="",0,IF(ISERROR(IF(AY30>=th_24h_Graf!BJ30,th_24h_Graf!$J$3,0)),0,IF(AY30>=th_24h_Graf!BJ30,th_24h_Graf!$J$3,0))) ->  | BH30: 0
C31: =IF(th_24h_Graf!$G$3="","",C30+th_24h_Graf!$J$3) -> 09:20:00 | H31: =IF(th_24h_Graf!$G$3="","",H30+th_24h_Graf!$J$3) -> 09:20:00 | K31: =IF(AND(th_24h_Graf_Tot!$R$1=TRUE,J31>0),BC31,NA()) ->  | L31: =IF(AND(th_24h_Graf_Tot!$Q$1=TRUE,J31>0),BD31,NA()) ->  | N31: =IF(AND(th_24h_Graf_Tot!$M$1=TRUE,E31>0),E31,NA()) ->  | O31: =IF(AND(th_24h_Graf_Tot!$V$1=TRUE,D31>0),D31,NA()) ->  | AP31: =VLOOKUP("12º día",$B$3:$D$1011,3,FALSE) -> 0 | AQ31: =IF(AP31<>0,"12.- "&DAY($L$1+11)&"/"&MONTH($L$1+11)&"/"&YEAR($L$1+11),"Sin datos") -> Sin datos | AR31: 0/1/1900 | AU31: 0 | AW31: =IF(th_24h_Graf_Tot!$L$83=0,"",D31-(th_24h_Graf_Tot!$Q$82/th_24h_Graf_Tot!$L$83)*(D31-IF(I31="",TE,I31))) ->  | AY31: =IF(AND(th_24h_Graf_Tot!$A$4=TRUE,BB31>0),BB31,NA()) ->  | BA31: 0 | BB31: =IF(th_24h_Graf_Tot!$A$4=FALSE,"",IF(ISERROR(IF(AW31="","",IF(AU31/(610.5*EXP(1)^((17.269*AW31)/(237.3+AW31)))*100>100,100,AU31/(610.5*EXP(1)^((17.269*AW31)/(237.3+AW31)))*100))),"",IF(AW31="","",IF(AU31/(610.5*EXP(1)^((17.269*AW31)/(237.3+AW31)))*100>100,100,AU31/(610.5*EXP(1)^((17.269*AW31)/(237.3+AW31)))*100)))) ->  | BC31: 0 | BD31: =IF(th_24h_Graf!$J$3<0.02,BA31,IF(th_24h_Graf!$J$3<0.04,BB31,BC31)) -> 0 | BG31: =IF(AY31="",0,IF(ISERROR(IF(AY31>=th_24h_Graf!BJ31,th_24h_Graf!$J$3,0)),0,IF(AY31>=th_24h_Graf!BJ31,th_24h_Graf!$J$3,0))) ->  | BH31: 0
C32: =IF(th_24h_Graf!$G$3="","",C31+th_24h_Graf!$J$3) -> 09:40:00 | H32: =IF(th_24h_Graf!$G$3="","",H31+th_24h_Graf!$J$3) -> 09:40:00 | K32: =IF(AND(th_24h_Graf_Tot!$R$1=TRUE,J32>0),BC32,NA()) ->  | L32: =IF(AND(th_24h_Graf_Tot!$Q$1=TRUE,J32>0),BD32,NA()) ->  | N32: =IF(AND(th_24h_Graf_Tot!$M$1=TRUE,E32>0),E32,NA()) ->  | O32: =IF(AND(th_24h_Graf_Tot!$V$1=TRUE,D32>0),D32,NA()) ->  | AP32: =VLOOKUP("13º día",$B$3:$D$1011,3,FALSE) -> 0 | AQ32: =IF(AP32<>0,"13.- "&DAY($L$1+12)&"/"&MONTH($L$1+12)&"/"&YEAR($L$1+12),"Sin datos") -> Sin datos | AR32: 0/1/1900 | AU32: 0 | AW32: =IF(th_24h_Graf_Tot!$L$83=0,"",D32-(th_24h_Graf_Tot!$Q$82/th_24h_Graf_Tot!$L$83)*(D32-IF(I32="",TE,I32))) ->  | AY32: =IF(AND(th_24h_Graf_Tot!$A$4=TRUE,BB32>0),BB32,NA()) ->  | BA32: 0 | BB32: =IF(th_24h_Graf_Tot!$A$4=FALSE,"",IF(ISERROR(IF(AW32="","",IF(AU32/(610.5*EXP(1)^((17.269*AW32)/(237.3+AW32)))*100>100,100,AU32/(610.5*EXP(1)^((17.269*AW32)/(237.3+AW32)))*100))),"",IF(AW32="","",IF(AU32/(610.5*EXP(1)^((17.269*AW32)/(237.3+AW32)))*100>100,100,AU32/(610.5*EXP(1)^((17.269*AW32)/(237.3+AW32)))*100)))) ->  | BC32: 0 | BD32: =IF(th_24h_Graf!$J$3<0.02,BA32,IF(th_24h_Graf!$J$3<0.04,BB32,BC32)) -> 0 | BG32: =IF(AY32="",0,IF(ISERROR(IF(AY32>=th_24h_Graf!BJ32,th_24h_Graf!$J$3,0)),0,IF(AY32>=th_24h_Graf!BJ32,th_24h_Graf!$J$3,0))) ->  | BH32: 0
C33: =IF(th_24h_Graf!$G$3="","",C32+th_24h_Graf!$J$3) -> 10:00:00 | H33: =IF(th_24h_Graf!$G$3="","",H32+th_24h_Graf!$J$3) -> 10:00:00 | K33: =IF(AND(th_24h_Graf_Tot!$R$1=TRUE,J33>0),BC33,NA()) ->  | L33: =IF(AND(th_24h_Graf_Tot!$Q$1=TRUE,J33>0),BD33,NA()) ->  | N33: =IF(AND(th_24h_Graf_Tot!$M$1=TRUE,E33>0),E33,NA()) ->  | O33: =IF(AND(th_24h_Graf_Tot!$V$1=TRUE,D33>0),D33,NA()) ->  | AP33: =VLOOKUP("14º día",$B$3:$D$1011,3,FALSE) -> 0 | AQ33: =IF(AP33<>0,"14.- "&DAY($L$1+13)&"/"&MONTH($L$1+13)&"/"&YEAR($L$1+13),"Sin datos") -> Sin datos | AR33: 0/1/1900 | AU33: 0 | AW33: =IF(th_24h_Graf_Tot!$L$83=0,"",D33-(th_24h_Graf_Tot!$Q$82/th_24h_Graf_Tot!$L$83)*(D33-IF(I33="",TE,I33))) ->  | AY33: =IF(AND(th_24h_Graf_Tot!$A$4=TRUE,BB33>0),BB33,NA()) ->  | BA33: 0 | BB33: =IF(th_24h_Graf_Tot!$A$4=FALSE,"",IF(ISERROR(IF(AW33="","",IF(AU33/(610.5*EXP(1)^((17.269*AW33)/(237.3+AW33)))*100>100,100,AU33/(610.5*EXP(1)^((17.269*AW33)/(237.3+AW33)))*100))),"",IF(AW33="","",IF(AU33/(610.5*EXP(1)^((17.269*AW33)/(237.3+AW33)))*100>100,100,AU33/(610.5*EXP(1)^((17.269*AW33)/(237.3+AW33)))*100)))) ->  | BC33: 0 | BD33: =IF(th_24h_Graf!$J$3<0.02,BA33,IF(th_24h_Graf!$J$3<0.04,BB33,BC33)) -> 0 | BG33: =IF(AY33="",0,IF(ISERROR(IF(AY33>=th_24h_Graf!BJ33,th_24h_Graf!$J$3,0)),0,IF(AY33>=th_24h_Graf!BJ33,th_24h_Graf!$J$3,0))) ->  | BH33: 0
C34: =IF(th_24h_Graf!$G$3="","",C33+th_24h_Graf!$J$3) -> 10:20:00 | H34: =IF(th_24h_Graf!$G$3="","",H33+th_24h_Graf!$J$3) -> 10:20:00 | K34: =IF(AND(th_24h_Graf_Tot!$R$1=TRUE,J34>0),BC34,NA()) ->  | L34: =IF(AND(th_24h_Graf_Tot!$Q$1=TRUE,J34>0),BD34,NA()) ->  | N34: =IF(AND(th_24h_Graf_Tot!$M$1=TRUE,E34>0),E34,NA()) ->  | O34: =IF(AND(th_24h_Graf_Tot!$V$1=TRUE,D34>0),D34,NA()) ->  | AU34: 0 | AW34: =IF(th_24h_Graf_Tot!$L$83=0,"",D34-(th_24h_Graf_Tot!$Q$82/th_24h_Graf_Tot!$L$83)*(D34-IF(I34="",TE,I34))) ->  | AY34: =IF(AND(th_24h_Graf_Tot!$A$4=TRUE,BB34>0),BB34,NA()) ->  | BA34: 0 | BB34: =IF(th_24h_Graf_Tot!$A$4=FALSE,"",IF(ISERROR(IF(AW34="","",IF(AU34/(610.5*EXP(1)^((17.269*AW34)/(237.3+AW34)))*100>100,100,AU34/(610.5*EXP(1)^((17.269*AW34)/(237.3+AW34)))*100))),"",IF(AW34="","",IF(AU34/(610.5*EXP(1)^((17.269*AW34)/(237.3+AW34)))*100>100,100,AU34/(610.5*EXP(1)^((17.269*AW34)/(237.3+AW34)))*100)))) ->  | BC34: 0 | BD34: =IF(th_24h_Graf!$J$3<0.02,BA34,IF(th_24h_Graf!$J$3<0.04,BB34,BC34)) -> 0 | BG34: =IF(AY34="",0,IF(ISERROR(IF(AY34>=th_24h_Graf!BJ34,th_24h_Graf!$J$3,0)),0,IF(AY34>=th_24h_Graf!BJ34,th_24h_Graf!$J$3,0))) ->  | BH34: 0
C35: =IF(th_24h_Graf!$G$3="","",C34+th_24h_Graf!$J$3) -> 10:40:00 | H35: =IF(th_24h_Graf!$G$3="","",H34+th_24h_Graf!$J$3) -> 10:40:00 | K35: =IF(AND(th_24h_Graf_Tot!$R$1=TRUE,J35>0),BC35,NA()) ->  | L35: =IF(AND(th_24h_Graf_Tot!$Q$1=TRUE,J35>0),BD35,NA()) ->  | N35: =IF(AND(th_24h_Graf_Tot!$M$1=TRUE,E35>0),E35,NA()) ->  | O35: =IF(AND(th_24h_Graf_Tot!$V$1=TRUE,D35>0),D35,NA()) ->  | AU35: 0 | AW35: =IF(th_24h_Graf_Tot!$L$83=0,"",D35-(th_24h_Graf_Tot!$Q$82/th_24h_Graf_Tot!$L$83)*(D35-IF(I35="",TE,I35))) ->  | AY35: =IF(AND(th_24h_Graf_Tot!$A$4=TRUE,BB35>0),BB35,NA()) ->  | BA35: =$AQ$3 -> 0 | BB35: =IF(th_24h_Graf_Tot!$A$4=FALSE,"",IF(ISERROR(IF(AW35="","",IF(AU35/(610.5*EXP(1)^((17.269*AW35)/(237.3+AW35)))*100>100,100,AU35/(610.5*EXP(1)^((17.269*AW35)/(237.3+AW35)))*100))),"",IF(AW35="","",IF(AU35/(610.5*EXP(1)^((17.269*AW35)/(237.3+AW35)))*100>100,100,AU35/(610.5*EXP(1)^((17.269*AW35)/(237.3+AW35)))*100)))) ->  | BC35: =$AR$3 -> 0 | BD35: =IF(th_24h_Graf!$J$3<0.02,BA35,IF(th_24h_Graf!$J$3<0.04,BB35,BC35)) -> 0 | BG35: =IF(AY35="",0,IF(ISERROR(IF(AY35>=th_24h_Graf!BJ35,th_24h_Graf!$J$3,0)),0,IF(AY35>=th_24h_Graf!BJ35,th_24h_Graf!$J$3,0))) ->  | BH35: 0
C36: =IF(th_24h_Graf!$G$3="","",C35+th_24h_Graf!$J$3) -> 11:00:00 | H36: =IF(th_24h_Graf!$G$3="","",H35+th_24h_Graf!$J$3) -> 11:00:00 | K36: =IF(AND(th_24h_Graf_Tot!$R$1=TRUE,J36>0),BC36,NA()) ->  | L36: =IF(AND(th_24h_Graf_Tot!$Q$1=TRUE,J36>0),BD36,NA()) ->  | N36: =IF(AND(th_24h_Graf_Tot!$M$1=TRUE,E36>0),E36,NA()) ->  | O36: =IF(AND(th_24h_Graf_Tot!$V$1=TRUE,D36>0),D36,NA()) ->  | AU36: 0 | AW36: =IF(th_24h_Graf_Tot!$L$83=0,"",D36-(th_24h_Graf_Tot!$Q$82/th_24h_Graf_Tot!$L$83)*(D36-IF(I36="",TE,I36))) ->  | AY36: =IF(AND(th_24h_Graf_Tot!$A$4=TRUE,BB36>0),BB36,NA()) ->  | BA36: 0 | BB36: =IF(th_24h_Graf_Tot!$A$4=FALSE,"",IF(ISERROR(IF(AW36="","",IF(AU36/(610.5*EXP(1)^((17.269*AW36)/(237.3+AW36)))*100>100,100,AU36/(610.5*EXP(1)^((17.269*AW36)/(237.3+AW36)))*100))),"",IF(AW36="","",IF(AU36/(610.5*EXP(1)^((17.269*AW36)/(237.3+AW36)))*100>100,100,AU36/(610.5*EXP(1)^((17.269*AW36)/(237.3+AW36)))*100)))) ->  | BC36: 0 | BD36: =IF(th_24h_Graf!$J$3<0.02,BA36,IF(th_24h_Graf!$J$3<0.04,BB36,BC36)) -> 0 | BG36: =IF(AY36="",0,IF(ISERROR(IF(AY36>=th_24h_Graf!BJ36,th_24h_Graf!$J$3,0)),0,IF(AY36>=th_24h_Graf!BJ36,th_24h_Graf!$J$3,0))) ->  | BH36: 0
C37: =IF(th_24h_Graf!$G$3="","",C36+th_24h_Graf!$J$3) -> 11:20:00 | H37: =IF(th_24h_Graf!$G$3="","",H36+th_24h_Graf!$J$3) -> 11:20:00 | K37: =IF(AND(th_24h_Graf_Tot!$R$1=TRUE,J37>0),BC37,NA()) ->  | L37: =IF(AND(th_24h_Graf_Tot!$Q$1=TRUE,J37>0),BD37,NA()) ->  | N37: =IF(AND(th_24h_Graf_Tot!$M$1=TRUE,E37>0),E37,NA()) ->  | O37: =IF(AND(th_24h_Graf_Tot!$V$1=TRUE,D37>0),D37,NA()) ->  | AU37: 0 | AW37: =IF(th_24h_Graf_Tot!$L$83=0,"",D37-(th_24h_Graf_Tot!$Q$82/th_24h_Graf_Tot!$L$83)*(D37-IF(I37="",TE,I37))) ->  | AY37: =IF(AND(th_24h_Graf_Tot!$A$4=TRUE,BB37>0),BB37,NA()) ->  | BA37: 0 | BB37: =IF(th_24h_Graf_Tot!$A$4=FALSE,"",IF(ISERROR(IF(AW37="","",IF(AU37/(610.5*EXP(1)^((17.269*AW37)/(237.3+AW37)))*100>100,100,AU37/(610.5*EXP(1)^((17.269*AW37)/(237.3+AW37)))*100))),"",IF(AW37="","",IF(AU37/(610.5*EXP(1)^((17.269*AW37)/(237.3+AW37)))*100>100,100,AU37/(610.5*EXP(1)^((17.269*AW37)/(237.3+AW37)))*100)))) ->  | BC37: 0 | BD37: =IF(th_24h_Graf!$J$3<0.02,BA37,IF(th_24h_Graf!$J$3<0.04,BB37,BC37)) -> 0 | BG37: =IF(AY37="",0,IF(ISERROR(IF(AY37>=th_24h_Graf!BJ37,th_24h_Graf!$J$3,0)),0,IF(AY37>=th_24h_Graf!BJ37,th_24h_Graf!$J$3,0))) ->  | BH37: 0
C38: =IF(th_24h_Graf!$G$3="","",C37+th_24h_Graf!$J$3) -> 11:40:00 | H38: =IF(th_24h_Graf!$G$3="","",H37+th_24h_Graf!$J$3) -> 11:40:00 | K38: =IF(AND(th_24h_Graf_Tot!$R$1=TRUE,J38>0),BC38,NA()) ->  | L38: =IF(AND(th_24h_Graf_Tot!$Q$1=TRUE,J38>0),BD38,NA()) ->  | N38: =IF(AND(th_24h_Graf_Tot!$M$1=TRUE,E38>0),E38,NA()) ->  | O38: =IF(AND(th_24h_Graf_Tot!$V$1=TRUE,D38>0),D38,NA()) ->  | AU38: 0 | AW38: =IF(th_24h_Graf_Tot!$L$83=0,"",D38-(th_24h_Graf_Tot!$Q$82/th_24h_Graf_Tot!$L$83)*(D38-IF(I38="",TE,I38))) ->  | AY38: =IF(AND(th_24h_Graf_Tot!$A$4=TRUE,BB38>0),BB38,NA()) ->  | BA38: 0 | BB38: =IF(th_24h_Graf_Tot!$A$4=FALSE,"",IF(ISERROR(IF(AW38="","",IF(AU38/(610.5*EXP(1)^((17.269*AW38)/(237.3+AW38)))*100>100,100,AU38/(610.5*EXP(1)^((17.269*AW38)/(237.3+AW38)))*100))),"",IF(AW38="","",IF(AU38/(610.5*EXP(1)^((17.269*AW38)/(237.3+AW38)))*100>100,100,AU38/(610.5*EXP(1)^((17.269*AW38)/(237.3+AW38)))*100)))) ->  | BC38: 0 | BD38: =IF(th_24h_Graf!$J$3<0.02,BA38,IF(th_24h_Graf!$J$3<0.04,BB38,BC38)) -> 0 | BG38: =IF(AY38="",0,IF(ISERROR(IF(AY38>=th_24h_Graf!BJ38,th_24h_Graf!$J$3,0)),0,IF(AY38>=th_24h_Graf!BJ38,th_24h_Graf!$J$3,0))) ->  | BH38: 0
C39: =IF(th_24h_Graf!$G$3="","",C38+th_24h_Graf!$J$3) -> 12:00:00 | H39: =IF(th_24h_Graf!$G$3="","",H38+th_24h_Graf!$J$3) -> 12:00:00 | K39: =IF(AND(th_24h_Graf_Tot!$R$1=TRUE,J39>0),BC39,NA()) ->  | L39: =IF(AND(th_24h_Graf_Tot!$Q$1=TRUE,J39>0),BD39,NA()) ->  | N39: =IF(AND(th_24h_Graf_Tot!$M$1=TRUE,E39>0),E39,NA()) ->  | O39: =IF(AND(th_24h_Graf_Tot!$V$1=TRUE,D39>0),D39,NA()) ->  | AU39: 0 | AW39: =IF(th_24h_Graf_Tot!$L$83=0,"",D39-(th_24h_Graf_Tot!$Q$82/th_24h_Graf_Tot!$L$83)*(D39-IF(I39="",TE,I39))) ->  | AY39: =IF(AND(th_24h_Graf_Tot!$A$4=TRUE,BB39>0),BB39,NA()) ->  | BA39: 0 | BB39: =IF(th_24h_Graf_Tot!$A$4=FALSE,"",IF(ISERROR(IF(AW39="","",IF(AU39/(610.5*EXP(1)^((17.269*AW39)/(237.3+AW39)))*100>100,100,AU39/(610.5*EXP(1)^((17.269*AW39)/(237.3+AW39)))*100))),"",IF(AW39="","",IF(AU39/(610.5*EXP(1)^((17.269*AW39)/(237.3+AW39)))*100>100,100,AU39/(610.5*EXP(1)^((17.269*AW39)/(237.3+AW39)))*100)))) ->  | BC39: 0 | BD39: =IF(th_24h_Graf!$J$3<0.02,BA39,IF(th_24h_Graf!$J$3<0.04,BB39,BC39)) -> 0 | BG39: =IF(AY39="",0,IF(ISERROR(IF(AY39>=th_24h_Graf!BJ39,th_24h_Graf!$J$3,0)),0,IF(AY39>=th_24h_Graf!BJ39,th_24h_Graf!$J$3,0))) ->  | BH39: 0
C40: =IF(th_24h_Graf!$G$3="","",C39+th_24h_Graf!$J$3) -> 12:20:00 | H40: =IF(th_24h_Graf!$G$3="","",H39+th_24h_Graf!$J$3) -> 12:20:00 | K40: =IF(AND(th_24h_Graf_Tot!$R$1=TRUE,J40>0),BC40,NA()) ->  | L40: =IF(AND(th_24h_Graf_Tot!$Q$1=TRUE,J40>0),BD40,NA()) ->  | N40: =IF(AND(th_24h_Graf_Tot!$M$1=TRUE,E40>0),E40,NA()) ->  | O40: =IF(AND(th_24h_Graf_Tot!$V$1=TRUE,D40>0),D40,NA()) ->  | AU40: 0 | AW40: =IF(th_24h_Graf_Tot!$L$83=0,"",D40-(th_24h_Graf_Tot!$Q$82/th_24h_Graf_Tot!$L$83)*(D40-IF(I40="",TE,I40))) ->  | AY40: =IF(AND(th_24h_Graf_Tot!$A$4=TRUE,BB40>0),BB40,NA()) ->  | BA40: 0 | BB40: =IF(th_24h_Graf_Tot!$A$4=FALSE,"",IF(ISERROR(IF(AW40="","",IF(AU40/(610.5*EXP(1)^((17.269*AW40)/(237.3+AW40)))*100>100,100,AU40/(610.5*EXP(1)^((17.269*AW40)/(237.3+AW40)))*100))),"",IF(AW40="","",IF(AU40/(610.5*EXP(1)^((17.269*AW40)/(237.3+AW40)))*100>100,100,AU40/(610.5*EXP(1)^((17.269*AW40)/(237.3+AW40)))*100)))) ->  | BC40: 0 | BD40: =IF(th_24h_Graf!$J$3<0.02,BA40,IF(th_24h_Graf!$J$3<0.04,BB40,BC40)) -> 0 | BG40: =IF(AY40="",0,IF(ISERROR(IF(AY40>=th_24h_Graf!BJ40,th_24h_Graf!$J$3,0)),0,IF(AY40>=th_24h_Graf!BJ40,th_24h_Graf!$J$3,0))) ->  | BH40: 0
C41: =IF(th_24h_Graf!$G$3="","",C40+th_24h_Graf!$J$3) -> 12:40:00 | H41: =IF(th_24h_Graf!$G$3="","",H40+th_24h_Graf!$J$3) -> 12:40:00 | K41: =IF(AND(th_24h_Graf_Tot!$R$1=TRUE,J41>0),BC41,NA()) ->  | L41: =IF(AND(th_24h_Graf_Tot!$Q$1=TRUE,J41>0),BD41,NA()) ->  | N41: =IF(AND(th_24h_Graf_Tot!$M$1=TRUE,E41>0),E41,NA()) ->  | O41: =IF(AND(th_24h_Graf_Tot!$V$1=TRUE,D41>0),D41,NA()) ->  | AU41: 0 | AW41: =IF(th_24h_Graf_Tot!$L$83=0,"",D41-(th_24h_Graf_Tot!$Q$82/th_24h_Graf_Tot!$L$83)*(D41-IF(I41="",TE,I41))) ->  | AY41: =IF(AND(th_24h_Graf_Tot!$A$4=TRUE,BB41>0),BB41,NA()) ->  | BA41: 0 | BB41: =IF(th_24h_Graf_Tot!$A$4=FALSE,"",IF(ISERROR(IF(AW41="","",IF(AU41/(610.5*EXP(1)^((17.269*AW41)/(237.3+AW41)))*100>100,100,AU41/(610.5*EXP(1)^((17.269*AW41)/(237.3+AW41)))*100))),"",IF(AW41="","",IF(AU41/(610.5*EXP(1)^((17.269*AW41)/(237.3+AW41)))*100>100,100,AU41/(610.5*EXP(1)^((17.269*AW41)/(237.3+AW41)))*100)))) ->  | BC41: 0 | BD41: =IF(th_24h_Graf!$J$3<0.02,BA41,IF(th_24h_Graf!$J$3<0.04,BB41,BC41)) -> 0 | BG41: =IF(AY41="",0,IF(ISERROR(IF(AY41>=th_24h_Graf!BJ41,th_24h_Graf!$J$3,0)),0,IF(AY41>=th_24h_Graf!BJ41,th_24h_Graf!$J$3,0))) ->  | BH41: 0
C42: =IF(th_24h_Graf!$G$3="","",C41+th_24h_Graf!$J$3) -> 13:00:00 | H42: =IF(th_24h_Graf!$G$3="","",H41+th_24h_Graf!$J$3) -> 13:00:00 | K42: =IF(AND(th_24h_Graf_Tot!$R$1=TRUE,J42>0),BC42,NA()) ->  | L42: =IF(AND(th_24h_Graf_Tot!$Q$1=TRUE,J42>0),BD42,NA()) ->  | N42: =IF(AND(th_24h_Graf_Tot!$M$1=TRUE,E42>0),E42,NA()) ->  | O42: =IF(AND(th_24h_Graf_Tot!$V$1=TRUE,D42>0),D42,NA()) ->  | AU42: 0 | AW42: =IF(th_24h_Graf_Tot!$L$83=0,"",D42-(th_24h_Graf_Tot!$Q$82/th_24h_Graf_Tot!$L$83)*(D42-IF(I42="",TE,I42))) ->  | AY42: =IF(AND(th_24h_Graf_Tot!$A$4=TRUE,BB42>0),BB42,NA()) ->  | BA42: 0 | BB42: =IF(th_24h_Graf_Tot!$A$4=FALSE,"",IF(ISERROR(IF(AW42="","",IF(AU42/(610.5*EXP(1)^((17.269*AW42)/(237.3+AW42)))*100>100,100,AU42/(610.5*EXP(1)^((17.269*AW42)/(237.3+AW42)))*100))),"",IF(AW42="","",IF(AU42/(610.5*EXP(1)^((17.269*AW42)/(237.3+AW42)))*100>100,100,AU42/(610.5*EXP(1)^((17.269*AW42)/(237.3+AW42)))*100)))) ->  | BC42: 0 | BD42: =IF(th_24h_Graf!$J$3<0.02,BA42,IF(th_24h_Graf!$J$3<0.04,BB42,BC42)) -> 0 | BG42: =IF(AY42="",0,IF(ISERROR(IF(AY42>=th_24h_Graf!BJ42,th_24h_Graf!$J$3,0)),0,IF(AY42>=th_24h_Graf!BJ42,th_24h_Graf!$J$3,0))) ->  | BH42: 0
C43: =IF(th_24h_Graf!$G$3="","",C42+th_24h_Graf!$J$3) -> 13:20:00 | H43: =IF(th_24h_Graf!$G$3="","",H42+th_24h_Graf!$J$3) -> 13:20:00 | K43: =IF(AND(th_24h_Graf_Tot!$R$1=TRUE,J43>0),BC43,NA()) ->  | L43: =IF(AND(th_24h_Graf_Tot!$Q$1=TRUE,J43>0),BD43,NA()) ->  | N43: =IF(AND(th_24h_Graf_Tot!$M$1=TRUE,E43>0),E43,NA()) ->  | O43: =IF(AND(th_24h_Graf_Tot!$V$1=TRUE,D43>0),D43,NA()) ->  | AU43: 0 | AW43: =IF(th_24h_Graf_Tot!$L$83=0,"",D43-(th_24h_Graf_Tot!$Q$82/th_24h_Graf_Tot!$L$83)*(D43-IF(I43="",TE,I43))) ->  | AY43: =IF(AND(th_24h_Graf_Tot!$A$4=TRUE,BB43>0),BB43,NA()) ->  | BA43: 0 | BB43: =IF(th_24h_Graf_Tot!$A$4=FALSE,"",IF(ISERROR(IF(AW43="","",IF(AU43/(610.5*EXP(1)^((17.269*AW43)/(237.3+AW43)))*100>100,100,AU43/(610.5*EXP(1)^((17.269*AW43)/(237.3+AW43)))*100))),"",IF(AW43="","",IF(AU43/(610.5*EXP(1)^((17.269*AW43)/(237.3+AW43)))*100>100,100,AU43/(610.5*EXP(1)^((17.269*AW43)/(237.3+AW43)))*100)))) ->  | BC43: 0 | BD43: =IF(th_24h_Graf!$J$3<0.02,BA43,IF(th_24h_Graf!$J$3<0.04,BB43,BC43)) -> 0 | BG43: =IF(AY43="",0,IF(ISERROR(IF(AY43>=th_24h_Graf!BJ43,th_24h_Graf!$J$3,0)),0,IF(AY43>=th_24h_Graf!BJ43,th_24h_Graf!$J$3,0))) ->  | BH43: 0
C44: =IF(th_24h_Graf!$G$3="","",C43+th_24h_Graf!$J$3) -> 13:40:00 | H44: =IF(th_24h_Graf!$G$3="","",H43+th_24h_Graf!$J$3) -> 13:40:00 | K44: =IF(AND(th_24h_Graf_Tot!$R$1=TRUE,J44>0),BC44,NA()) ->  | L44: =IF(AND(th_24h_Graf_Tot!$Q$1=TRUE,J44>0),BD44,NA()) ->  | N44: =IF(AND(th_24h_Graf_Tot!$M$1=TRUE,E44>0),E44,NA()) ->  | O44: =IF(AND(th_24h_Graf_Tot!$V$1=TRUE,D44>0),D44,NA()) ->  | AU44: 0 | AW44: =IF(th_24h_Graf_Tot!$L$83=0,"",D44-(th_24h_Graf_Tot!$Q$82/th_24h_Graf_Tot!$L$83)*(D44-IF(I44="",TE,I44))) ->  | AY44: =IF(AND(th_24h_Graf_Tot!$A$4=TRUE,BB44>0),BB44,NA()) ->  | BA44: 0 | BB44: =IF(th_24h_Graf_Tot!$A$4=FALSE,"",IF(ISERROR(IF(AW44="","",IF(AU44/(610.5*EXP(1)^((17.269*AW44)/(237.3+AW44)))*100>100,100,AU44/(610.5*EXP(1)^((17.269*AW44)/(237.3+AW44)))*100))),"",IF(AW44="","",IF(AU44/(610.5*EXP(1)^((17.269*AW44)/(237.3+AW44)))*100>100,100,AU44/(610.5*EXP(1)^((17.269*AW44)/(237.3+AW44)))*100)))) ->  | BC44: 0 | BD44: =IF(th_24h_Graf!$J$3<0.02,BA44,IF(th_24h_Graf!$J$3<0.04,BB44,BC44)) -> 0 | BG44: =IF(AY44="",0,IF(ISERROR(IF(AY44>=th_24h_Graf!BJ44,th_24h_Graf!$J$3,0)),0,IF(AY44>=th_24h_Graf!BJ44,th_24h_Graf!$J$3,0))) ->  | BH44: 0
C45: =IF(th_24h_Graf!$G$3="","",C44+th_24h_Graf!$J$3) -> 14:00:00 | H45: =IF(th_24h_Graf!$G$3="","",H44+th_24h_Graf!$J$3) -> 14:00:00 | K45: =IF(AND(th_24h_Graf_Tot!$R$1=TRUE,J45>0),BC45,NA()) ->  | L45: =IF(AND(th_24h_Graf_Tot!$Q$1=TRUE,J45>0),BD45,NA()) ->  | N45: =IF(AND(th_24h_Graf_Tot!$M$1=TRUE,E45>0),E45,NA()) ->  | O45: =IF(AND(th_24h_Graf_Tot!$V$1=TRUE,D45>0),D45,NA()) ->  | AU45: 0 | AW45: =IF(th_24h_Graf_Tot!$L$83=0,"",D45-(th_24h_Graf_Tot!$Q$82/th_24h_Graf_Tot!$L$83)*(D45-IF(I45="",TE,I45))) ->  | AY45: =IF(AND(th_24h_Graf_Tot!$A$4=TRUE,BB45>0),BB45,NA()) ->  | BA45: 0 | BB45: =IF(th_24h_Graf_Tot!$A$4=FALSE,"",IF(ISERROR(IF(AW45="","",IF(AU45/(610.5*EXP(1)^((17.269*AW45)/(237.3+AW45)))*100>100,100,AU45/(610.5*EXP(1)^((17.269*AW45)/(237.3+AW45)))*100))),"",IF(AW45="","",IF(AU45/(610.5*EXP(1)^((17.269*AW45)/(237.3+AW45)))*100>100,100,AU45/(610.5*EXP(1)^((17.269*AW45)/(237.3+AW45)))*100)))) ->  | BC45: 0 | BD45: =IF(th_24h_Graf!$J$3<0.02,BA45,IF(th_24h_Graf!$J$3<0.04,BB45,BC45)) -> 0 | BG45: =IF(AY45="",0,IF(ISERROR(IF(AY45>=th_24h_Graf!BJ45,th_24h_Graf!$J$3,0)),0,IF(AY45>=th_24h_Graf!BJ45,th_24h_Graf!$J$3,0))) ->  | BH45: 0
C46: =IF(th_24h_Graf!$G$3="","",C45+th_24h_Graf!$J$3) -> 14:20:00 | H46: =IF(th_24h_Graf!$G$3="","",H45+th_24h_Graf!$J$3) -> 14:20:00 | K46: =IF(AND(th_24h_Graf_Tot!$R$1=TRUE,J46>0),BC46,NA()) ->  | L46: =IF(AND(th_24h_Graf_Tot!$Q$1=TRUE,J46>0),BD46,NA()) ->  | N46: =IF(AND(th_24h_Graf_Tot!$M$1=TRUE,E46>0),E46,NA()) ->  | O46: =IF(AND(th_24h_Graf_Tot!$V$1=TRUE,D46>0),D46,NA()) ->  | AU46: 0 | AW46: =IF(th_24h_Graf_Tot!$L$83=0,"",D46-(th_24h_Graf_Tot!$Q$82/th_24h_Graf_Tot!$L$83)*(D46-IF(I46="",TE,I46))) ->  | AY46: =IF(AND(th_24h_Graf_Tot!$A$4=TRUE,BB46>0),BB46,NA()) ->  | BA46: 0 | BB46: =IF(th_24h_Graf_Tot!$A$4=FALSE,"",IF(ISERROR(IF(AW46="","",IF(AU46/(610.5*EXP(1)^((17.269*AW46)/(237.3+AW46)))*100>100,100,AU46/(610.5*EXP(1)^((17.269*AW46)/(237.3+AW46)))*100))),"",IF(AW46="","",IF(AU46/(610.5*EXP(1)^((17.269*AW46)/(237.3+AW46)))*100>100,100,AU46/(610.5*EXP(1)^((17.269*AW46)/(237.3+AW46)))*100)))) ->  | BC46: 0 | BD46: =IF(th_24h_Graf!$J$3<0.02,BA46,IF(th_24h_Graf!$J$3<0.04,BB46,BC46)) -> 0 | BG46: =IF(AY46="",0,IF(ISERROR(IF(AY46>=th_24h_Graf!BJ46,th_24h_Graf!$J$3,0)),0,IF(AY46>=th_24h_Graf!BJ46,th_24h_Graf!$J$3,0))) ->  | BH46: 0
C47: =IF(th_24h_Graf!$G$3="","",C46+th_24h_Graf!$J$3) -> 14:40:00 | H47: =IF(th_24h_Graf!$G$3="","",H46+th_24h_Graf!$J$3) -> 14:40:00 | K47: =IF(AND(th_24h_Graf_Tot!$R$1=TRUE,J47>0),BC47,NA()) ->  | L47: =IF(AND(th_24h_Graf_Tot!$Q$1=TRUE,J47>0),BD47,NA()) ->  | N47: =IF(AND(th_24h_Graf_Tot!$M$1=TRUE,E47>0),E47,NA()) ->  | O47: =IF(AND(th_24h_Graf_Tot!$V$1=TRUE,D47>0),D47,NA()) ->  | AU47: 0 | AW47: =IF(th_24h_Graf_Tot!$L$83=0,"",D47-(th_24h_Graf_Tot!$Q$82/th_24h_Graf_Tot!$L$83)*(D47-IF(I47="",TE,I47))) ->  | AY47: =IF(AND(th_24h_Graf_Tot!$A$4=TRUE,BB47>0),BB47,NA()) ->  | BA47: 0 | BB47: =IF(th_24h_Graf_Tot!$A$4=FALSE,"",IF(ISERROR(IF(AW47="","",IF(AU47/(610.5*EXP(1)^((17.269*AW47)/(237.3+AW47)))*100>100,100,AU47/(610.5*EXP(1)^((17.269*AW47)/(237.3+AW47)))*100))),"",IF(AW47="","",IF(AU47/(610.5*EXP(1)^((17.269*AW47)/(237.3+AW47)))*100>100,100,AU47/(610.5*EXP(1)^((17.269*AW47)/(237.3+AW47)))*100)))) ->  | BC47: 0 | BD47: =IF(th_24h_Graf!$J$3<0.02,BA47,IF(th_24h_Graf!$J$3<0.04,BB47,BC47)) -> 0 | BG47: =IF(AY47="",0,IF(ISERROR(IF(AY47>=th_24h_Graf!BJ47,th_24h_Graf!$J$3,0)),0,IF(AY47>=th_24h_Graf!BJ47,th_24h_Graf!$J$3,0))) ->  | BH47: 0
C48: =IF(th_24h_Graf!$G$3="","",C47+th_24h_Graf!$J$3) -> 15:00:00 | H48: =IF(th_24h_Graf!$G$3="","",H47+th_24h_Graf!$J$3) -> 15:00:00 | K48: =IF(AND(th_24h_Graf_Tot!$R$1=TRUE,J48>0),BC48,NA()) ->  | L48: =IF(AND(th_24h_Graf_Tot!$Q$1=TRUE,J48>0),BD48,NA()) ->  | N48: =IF(AND(th_24h_Graf_Tot!$M$1=TRUE,E48>0),E48,NA()) ->  | O48: =IF(AND(th_24h_Graf_Tot!$V$1=TRUE,D48>0),D48,NA()) ->  | AU48: 0 | AW48: =IF(th_24h_Graf_Tot!$L$83=0,"",D48-(th_24h_Graf_Tot!$Q$82/th_24h_Graf_Tot!$L$83)*(D48-IF(I48="",TE,I48))) ->  | AY48: =IF(AND(th_24h_Graf_Tot!$A$4=TRUE,BB48>0),BB48,NA()) ->  | BA48: 0 | BB48: =IF(th_24h_Graf_Tot!$A$4=FALSE,"",IF(ISERROR(IF(AW48="","",IF(AU48/(610.5*EXP(1)^((17.269*AW48)/(237.3+AW48)))*100>100,100,AU48/(610.5*EXP(1)^((17.269*AW48)/(237.3+AW48)))*100))),"",IF(AW48="","",IF(AU48/(610.5*EXP(1)^((17.269*AW48)/(237.3+AW48)))*100>100,100,AU48/(610.5*EXP(1)^((17.269*AW48)/(237.3+AW48)))*100)))) ->  | BC48: 0 | BD48: =IF(th_24h_Graf!$J$3<0.02,BA48,IF(th_24h_Graf!$J$3<0.04,BB48,BC48)) -> 0 | BG48: =IF(AY48="",0,IF(ISERROR(IF(AY48>=th_24h_Graf!BJ48,th_24h_Graf!$J$3,0)),0,IF(AY48>=th_24h_Graf!BJ48,th_24h_Graf!$J$3,0))) ->  | BH48: 0
C49: =IF(th_24h_Graf!$G$3="","",C48+th_24h_Graf!$J$3) -> 15:20:00 | H49: =IF(th_24h_Graf!$G$3="","",H48+th_24h_Graf!$J$3) -> 15:20:00 | K49: =IF(AND(th_24h_Graf_Tot!$R$1=TRUE,J49>0),BC49,NA()) ->  | L49: =IF(AND(th_24h_Graf_Tot!$Q$1=TRUE,J49>0),BD49,NA()) ->  | N49: =IF(AND(th_24h_Graf_Tot!$M$1=TRUE,E49>0),E49,NA()) ->  | O49: =IF(AND(th_24h_Graf_Tot!$V$1=TRUE,D49>0),D49,NA()) ->  | AU49: 0 | AW49: =IF(th_24h_Graf_Tot!$L$83=0,"",D49-(th_24h_Graf_Tot!$Q$82/th_24h_Graf_Tot!$L$83)*(D49-IF(I49="",TE,I49))) ->  | AY49: =IF(AND(th_24h_Graf_Tot!$A$4=TRUE,BB49>0),BB49,NA()) ->  | BA49: 0 | BB49: =IF(th_24h_Graf_Tot!$A$4=FALSE,"",IF(ISERROR(IF(AW49="","",IF(AU49/(610.5*EXP(1)^((17.269*AW49)/(237.3+AW49)))*100>100,100,AU49/(610.5*EXP(1)^((17.269*AW49)/(237.3+AW49)))*100))),"",IF(AW49="","",IF(AU49/(610.5*EXP(1)^((17.269*AW49)/(237.3+AW49)))*100>100,100,AU49/(610.5*EXP(1)^((17.269*AW49)/(237.3+AW49)))*100)))) ->  | BC49: 0 | BD49: =IF(th_24h_Graf!$J$3<0.02,BA49,IF(th_24h_Graf!$J$3<0.04,BB49,BC49)) -> 0 | BG49: =IF(AY49="",0,IF(ISERROR(IF(AY49>=th_24h_Graf!BJ49,th_24h_Graf!$J$3,0)),0,IF(AY49>=th_24h_Graf!BJ49,th_24h_Graf!$J$3,0))) ->  | BH49: 0
C50: =IF(th_24h_Graf!$G$3="","",C49+th_24h_Graf!$J$3) -> 15:40:00 | H50: =IF(th_24h_Graf!$G$3="","",H49+th_24h_Graf!$J$3) -> 15:40:00 | K50: =IF(AND(th_24h_Graf_Tot!$R$1=TRUE,J50>0),BC50,NA()) ->  | L50: =IF(AND(th_24h_Graf_Tot!$Q$1=TRUE,J50>0),BD50,NA()) ->  | N50: =IF(AND(th_24h_Graf_Tot!$M$1=TRUE,E50>0),E50,NA()) ->  | O50: =IF(AND(th_24h_Graf_Tot!$V$1=TRUE,D50>0),D50,NA()) ->  | AU50: 0 | AW50: =IF(th_24h_Graf_Tot!$L$83=0,"",D50-(th_24h_Graf_Tot!$Q$82/th_24h_Graf_Tot!$L$83)*(D50-IF(I50="",TE,I50))) ->  | AY50: =IF(AND(th_24h_Graf_Tot!$A$4=TRUE,BB50>0),BB50,NA()) ->  | BA50: 0 | BB50: =IF(th_24h_Graf_Tot!$A$4=FALSE,"",IF(ISERROR(IF(AW50="","",IF(AU50/(610.5*EXP(1)^((17.269*AW50)/(237.3+AW50)))*100>100,100,AU50/(610.5*EXP(1)^((17.269*AW50)/(237.3+AW50)))*100))),"",IF(AW50="","",IF(AU50/(610.5*EXP(1)^((17.269*AW50)/(237.3+AW50)))*100>100,100,AU50/(610.5*EXP(1)^((17.269*AW50)/(237.3+AW50)))*100)))) ->  | BC50: 0 | BD50: =IF(th_24h_Graf!$J$3<0.02,BA50,IF(th_24h_Graf!$J$3<0.04,BB50,BC50)) -> 0 | BG50: =IF(AY50="",0,IF(ISERROR(IF(AY50>=th_24h_Graf!BJ50,th_24h_Graf!$J$3,0)),0,IF(AY50>=th_24h_Graf!BJ50,th_24h_Graf!$J$3,0))) ->  | BH50: 0
C51: =IF(th_24h_Graf!$G$3="","",C50+th_24h_Graf!$J$3) -> 16:00:00 | H51: =IF(th_24h_Graf!$G$3="","",H50+th_24h_Graf!$J$3) -> 16:00:00 | K51: =IF(AND(th_24h_Graf_Tot!$R$1=TRUE,J51>0),BC51,NA()) ->  | L51: =IF(AND(th_24h_Graf_Tot!$Q$1=TRUE,J51>0),BD51,NA()) ->  | N51: =IF(AND(th_24h_Graf_Tot!$M$1=TRUE,E51>0),E51,NA()) ->  | O51: =IF(AND(th_24h_Graf_Tot!$V$1=TRUE,D51>0),D51,NA()) ->  | AU51: 0 | AW51: =IF(th_24h_Graf_Tot!$L$83=0,"",D51-(th_24h_Graf_Tot!$Q$82/th_24h_Graf_Tot!$L$83)*(D51-IF(I51="",TE,I51))) ->  | AY51: =IF(AND(th_24h_Graf_Tot!$A$4=TRUE,BB51>0),BB51,NA()) ->  | BA51: 0 | BB51: =IF(th_24h_Graf_Tot!$A$4=FALSE,"",IF(ISERROR(IF(AW51="","",IF(AU51/(610.5*EXP(1)^((17.269*AW51)/(237.3+AW51)))*100>100,100,AU51/(610.5*EXP(1)^((17.269*AW51)/(237.3+AW51)))*100))),"",IF(AW51="","",IF(AU51/(610.5*EXP(1)^((17.269*AW51)/(237.3+AW51)))*100>100,100,AU51/(610.5*EXP(1)^((17.269*AW51)/(237.3+AW51)))*100)))) ->  | BC51: 0 | BD51: =IF(th_24h_Graf!$J$3<0.02,BA51,IF(th_24h_Graf!$J$3<0.04,BB51,BC51)) -> 0 | BG51: =IF(AY51="",0,IF(ISERROR(IF(AY51>=th_24h_Graf!BJ51,th_24h_Graf!$J$3,0)),0,IF(AY51>=th_24h_Graf!BJ51,th_24h_Graf!$J$3,0))) ->  | BH51: 0
B52: =IF(AND(th_24h_Graf!$J$3>0.02,th_24h_Graf!$J$3<0.04),"2º día",IF(th_24h_Graf!$J$3>0.04,"3º día","")) ->  | C52: =IF(th_24h_Graf!$G$3="","",C51+th_24h_Graf!$J$3) -> 16:20:00 | G52: =IF(AND(th_24h_Graf!$J$3>0.02,th_24h_Graf!$J$3<0.04),"2º día",IF(th_24h_Graf!$J$3>0.04,"3º día","")) ->  | H52: =IF(th_24h_Graf!$G$3="","",H51+th_24h_Graf!$J$3) -> 16:20:00 | K52: =IF(AND(th_24h_Graf_Tot!$R$1=TRUE,J52>0),BC52,NA()) ->  | L52: =IF(AND(th_24h_Graf_Tot!$Q$1=TRUE,J52>0),BD52,NA()) ->  | N52: =IF(AND(th_24h_Graf_Tot!$M$1=TRUE,E52>0),E52,NA()) ->  | O52: =IF(AND(th_24h_Graf_Tot!$V$1=TRUE,D52>0),D52,NA()) ->  | AU52: 0 | AW52: =IF(th_24h_Graf_Tot!$L$83=0,"",D52-(th_24h_Graf_Tot!$Q$82/th_24h_Graf_Tot!$L$83)*(D52-IF(I52="",TE,I52))) ->  | AY52: =IF(AND(th_24h_Graf_Tot!$A$4=TRUE,BB52>0),BB52,NA()) ->  | AZ52: =IF(AND(th_24h_Graf!$J$3>0.02,th_24h_Graf!$J$3<0.04),"2º día",IF(th_24h_Graf!$J$3>0.04,"3º día","")) ->  | BA52: 0 | BB52: =IF(th_24h_Graf_Tot!$A$4=FALSE,"",IF(ISERROR(IF(AW52="","",IF(AU52/(610.5*EXP(1)^((17.269*AW52)/(237.3+AW52)))*100>100,100,AU52/(610.5*EXP(1)^((17.269*AW52)/(237.3+AW52)))*100))),"",IF(AW52="","",IF(AU52/(610.5*EXP(1)^((17.269*AW52)/(237.3+AW52)))*100>100,100,AU52/(610.5*EXP(1)^((17.269*AW52)/(237.3+AW52)))*100)))) ->  | BC52: 0 | BD52: =IF(th_24h_Graf!$J$3<0.02,BA52,IF(th_24h_Graf!$J$3<0.04,BB52,BC52)) -> 0 | BG52: =IF(AY52="",0,IF(ISERROR(IF(AY52>=th_24h_Graf!BJ52,th_24h_Graf!$J$3,0)),0,IF(AY52>=th_24h_Graf!BJ52,th_24h_Graf!$J$3,0))) ->  | BH52: 0
C53: =IF(th_24h_Graf!$G$3="","",C52+th_24h_Graf!$J$3) -> 16:40:00 | H53: =IF(th_24h_Graf!$G$3="","",H52+th_24h_Graf!$J$3) -> 16:40:00 | K53: =IF(AND(th_24h_Graf_Tot!$R$1=TRUE,J53>0),BC53,NA()) ->  | L53: =IF(AND(th_24h_Graf_Tot!$Q$1=TRUE,J53>0),BD53,NA()) ->  | N53: =IF(AND(th_24h_Graf_Tot!$M$1=TRUE,E53>0),E53,NA()) ->  | O53: =IF(AND(th_24h_Graf_Tot!$V$1=TRUE,D53>0),D53,NA()) ->  | AU53: 0 | AW53: =IF(th_24h_Graf_Tot!$L$83=0,"",D53-(th_24h_Graf_Tot!$Q$82/th_24h_Graf_Tot!$L$83)*(D53-IF(I53="",TE,I53))) ->  | AY53: =IF(AND(th_24h_Graf_Tot!$A$4=TRUE,BB53>0),BB53,NA()) ->  | BA53: 0 | BB53: =IF(th_24h_Graf_Tot!$A$4=FALSE,"",IF(ISERROR(IF(AW53="","",IF(AU53/(610.5*EXP(1)^((17.269*AW53)/(237.3+AW53)))*100>100,100,AU53/(610.5*EXP(1)^((17.269*AW53)/(237.3+AW53)))*100))),"",IF(AW53="","",IF(AU53/(610.5*EXP(1)^((17.269*AW53)/(237.3+AW53)))*100>100,100,AU53/(610.5*EXP(1)^((17.269*AW53)/(237.3+AW53)))*100)))) ->  | BC53: 0 | BD53: =IF(th_24h_Graf!$J$3<0.02,BA53,IF(th_24h_Graf!$J$3<0.04,BB53,BC53)) -> 0 | BG53: =IF(AY53="",0,IF(ISERROR(IF(AY53>=th_24h_Graf!BJ53,th_24h_Graf!$J$3,0)),0,IF(AY53>=th_24h_Graf!BJ53,th_24h_Graf!$J$3,0))) ->  | BH53: 0
C54: =IF(th_24h_Graf!$G$3="","",C53+th_24h_Graf!$J$3) -> 17:00:00 | H54: =IF(th_24h_Graf!$G$3="","",H53+th_24h_Graf!$J$3) -> 17:00:00 | K54: =IF(AND(th_24h_Graf_Tot!$R$1=TRUE,J54>0),BC54,NA()) ->  | L54: =IF(AND(th_24h_Graf_Tot!$Q$1=TRUE,J54>0),BD54,NA()) ->  | N54: =IF(AND(th_24h_Graf_Tot!$M$1=TRUE,E54>0),E54,NA()) ->  | O54: =IF(AND(th_24h_Graf_Tot!$V$1=TRUE,D54>0),D54,NA()) ->  | AU54: 0 | AW54: =IF(th_24h_Graf_Tot!$L$83=0,"",D54-(th_24h_Graf_Tot!$Q$82/th_24h_Graf_Tot!$L$83)*(D54-IF(I54="",TE,I54))) ->  | AY54: =IF(AND(th_24h_Graf_Tot!$A$4=TRUE,BB54>0),BB54,NA()) ->  | BA54: 0 | BB54: =IF(th_24h_Graf_Tot!$A$4=FALSE,"",IF(ISERROR(IF(AW54="","",IF(AU54/(610.5*EXP(1)^((17.269*AW54)/(237.3+AW54)))*100>100,100,AU54/(610.5*EXP(1)^((17.269*AW54)/(237.3+AW54)))*100))),"",IF(AW54="","",IF(AU54/(610.5*EXP(1)^((17.269*AW54)/(237.3+AW54)))*100>100,100,AU54/(610.5*EXP(1)^((17.269*AW54)/(237.3+AW54)))*100)))) ->  | BC54: 0 | BD54: =IF(th_24h_Graf!$J$3<0.02,BA54,IF(th_24h_Graf!$J$3<0.04,BB54,BC54)) -> 0 | BG54: =IF(AY54="",0,IF(ISERROR(IF(AY54>=th_24h_Graf!BJ54,th_24h_Graf!$J$3,0)),0,IF(AY54>=th_24h_Graf!BJ54,th_24h_Graf!$J$3,0))) ->  | BH54: 0
C55: =IF(th_24h_Graf!$G$3="","",C54+th_24h_Graf!$J$3) -> 17:20:00 | H55: =IF(th_24h_Graf!$G$3="","",H54+th_24h_Graf!$J$3) -> 17:20:00 | K55: =IF(AND(th_24h_Graf_Tot!$R$1=TRUE,J55>0),BC55,NA()) ->  | L55: =IF(AND(th_24h_Graf_Tot!$Q$1=TRUE,J55>0),BD55,NA()) ->  | N55: =IF(AND(th_24h_Graf_Tot!$M$1=TRUE,E55>0),E55,NA()) ->  | O55: =IF(AND(th_24h_Graf_Tot!$V$1=TRUE,D55>0),D55,NA()) ->  | AU55: 0 | AW55: =IF(th_24h_Graf_Tot!$L$83=0,"",D55-(th_24h_Graf_Tot!$Q$82/th_24h_Graf_Tot!$L$83)*(D55-IF(I55="",TE,I55))) ->  | AY55: =IF(AND(th_24h_Graf_Tot!$A$4=TRUE,BB55>0),BB55,NA()) ->  | BA55: 0 | BB55: =IF(th_24h_Graf_Tot!$A$4=FALSE,"",IF(ISERROR(IF(AW55="","",IF(AU55/(610.5*EXP(1)^((17.269*AW55)/(237.3+AW55)))*100>100,100,AU55/(610.5*EXP(1)^((17.269*AW55)/(237.3+AW55)))*100))),"",IF(AW55="","",IF(AU55/(610.5*EXP(1)^((17.269*AW55)/(237.3+AW55)))*100>100,100,AU55/(610.5*EXP(1)^((17.269*AW55)/(237.3+AW55)))*100)))) ->  | BC55: 0 | BD55: =IF(th_24h_Graf!$J$3<0.02,BA55,IF(th_24h_Graf!$J$3<0.04,BB55,BC55)) -> 0 | BG55: =IF(AY55="",0,IF(ISERROR(IF(AY55>=th_24h_Graf!BJ55,th_24h_Graf!$J$3,0)),0,IF(AY55>=th_24h_Graf!BJ55,th_24h_Graf!$J$3,0))) ->  | BH55: 0
C56: =IF(th_24h_Graf!$G$3="","",C55+th_24h_Graf!$J$3) -> 17:40:00 | H56: =IF(th_24h_Graf!$G$3="","",H55+th_24h_Graf!$J$3) -> 17:40:00 | K56: =IF(AND(th_24h_Graf_Tot!$R$1=TRUE,J56>0),BC56,NA()) ->  | L56: =IF(AND(th_24h_Graf_Tot!$Q$1=TRUE,J56>0),BD56,NA()) ->  | N56: =IF(AND(th_24h_Graf_Tot!$M$1=TRUE,E56>0),E56,NA()) ->  | O56: =IF(AND(th_24h_Graf_Tot!$V$1=TRUE,D56>0),D56,NA()) ->  | AU56: 0 | AW56: =IF(th_24h_Graf_Tot!$L$83=0,"",D56-(th_24h_Graf_Tot!$Q$82/th_24h_Graf_Tot!$L$83)*(D56-IF(I56="",TE,I56))) ->  | AY56: =IF(AND(th_24h_Graf_Tot!$A$4=TRUE,BB56>0),BB56,NA()) ->  | BA56: 0 | BB56: =IF(th_24h_Graf_Tot!$A$4=FALSE,"",IF(ISERROR(IF(AW56="","",IF(AU56/(610.5*EXP(1)^((17.269*AW56)/(237.3+AW56)))*100>100,100,AU56/(610.5*EXP(1)^((17.269*AW56)/(237.3+AW56)))*100))),"",IF(AW56="","",IF(AU56/(610.5*EXP(1)^((17.269*AW56)/(237.3+AW56)))*100>100,100,AU56/(610.5*EXP(1)^((17.269*AW56)/(237.3+AW56)))*100)))) ->  | BC56: 0 | BD56: =IF(th_24h_Graf!$J$3<0.02,BA56,IF(th_24h_Graf!$J$3<0.04,BB56,BC56)) -> 0 | BG56: =IF(AY56="",0,IF(ISERROR(IF(AY56>=th_24h_Graf!BJ56,th_24h_Graf!$J$3,0)),0,IF(AY56>=th_24h_Graf!BJ56,th_24h_Graf!$J$3,0))) ->  | BH56: 0
C57: =IF(th_24h_Graf!$G$3="","",C56+th_24h_Graf!$J$3) -> 18:00:00 | H57: =IF(th_24h_Graf!$G$3="","",H56+th_24h_Graf!$J$3) -> 18:00:00 | K57: =IF(AND(th_24h_Graf_Tot!$R$1=TRUE,J57>0),BC57,NA()) ->  | L57: =IF(AND(th_24h_Graf_Tot!$Q$1=TRUE,J57>0),BD57,NA()) ->  | N57: =IF(AND(th_24h_Graf_Tot!$M$1=TRUE,E57>0),E57,NA()) ->  | O57: =IF(AND(th_24h_Graf_Tot!$V$1=TRUE,D57>0),D57,NA()) ->  | AU57: 0 | AW57: =IF(th_24h_Graf_Tot!$L$83=0,"",D57-(th_24h_Graf_Tot!$Q$82/th_24h_Graf_Tot!$L$83)*(D57-IF(I57="",TE,I57))) ->  | AY57: =IF(AND(th_24h_Graf_Tot!$A$4=TRUE,BB57>0),BB57,NA()) ->  | BA57: 0 | BB57: =IF(th_24h_Graf_Tot!$A$4=FALSE,"",IF(ISERROR(IF(AW57="","",IF(AU57/(610.5*EXP(1)^((17.269*AW57)/(237.3+AW57)))*100>100,100,AU57/(610.5*EXP(1)^((17.269*AW57)/(237.3+AW57)))*100))),"",IF(AW57="","",IF(AU57/(610.5*EXP(1)^((17.269*AW57)/(237.3+AW57)))*100>100,100,AU57/(610.5*EXP(1)^((17.269*AW57)/(237.3+AW57)))*100)))) ->  | BC57: 0 | BD57: =IF(th_24h_Graf!$J$3<0.02,BA57,IF(th_24h_Graf!$J$3<0.04,BB57,BC57)) -> 0 | BG57: =IF(AY57="",0,IF(ISERROR(IF(AY57>=th_24h_Graf!BJ57,th_24h_Graf!$J$3,0)),0,IF(AY57>=th_24h_Graf!BJ57,th_24h_Graf!$J$3,0))) ->  | BH57: 0
C58: =IF(th_24h_Graf!$G$3="","",C57+th_24h_Graf!$J$3) -> 18:20:00 | H58: =IF(th_24h_Graf!$G$3="","",H57+th_24h_Graf!$J$3) -> 18:20:00 | K58: =IF(AND(th_24h_Graf_Tot!$R$1=TRUE,J58>0),BC58,NA()) ->  | L58: =IF(AND(th_24h_Graf_Tot!$Q$1=TRUE,J58>0),BD58,NA()) ->  | N58: =IF(AND(th_24h_Graf_Tot!$M$1=TRUE,E58>0),E58,NA()) ->  | O58: =IF(AND(th_24h_Graf_Tot!$V$1=TRUE,D58>0),D58,NA()) ->  | AU58: 0 | AW58: =IF(th_24h_Graf_Tot!$L$83=0,"",D58-(th_24h_Graf_Tot!$Q$82/th_24h_Graf_Tot!$L$83)*(D58-IF(I58="",TE,I58))) ->  | AY58: =IF(AND(th_24h_Graf_Tot!$A$4=TRUE,BB58>0),BB58,NA()) ->  | BA58: 0 | BB58: =IF(th_24h_Graf_Tot!$A$4=FALSE,"",IF(ISERROR(IF(AW58="","",IF(AU58/(610.5*EXP(1)^((17.269*AW58)/(237.3+AW58)))*100>100,100,AU58/(610.5*EXP(1)^((17.269*AW58)/(237.3+AW58)))*100))),"",IF(AW58="","",IF(AU58/(610.5*EXP(1)^((17.269*AW58)/(237.3+AW58)))*100>100,100,AU58/(610.5*EXP(1)^((17.269*AW58)/(237.3+AW58)))*100)))) ->  | BC58: 0 | BD58: =IF(th_24h_Graf!$J$3<0.02,BA58,IF(th_24h_Graf!$J$3<0.04,BB58,BC58)) -> 0 | BG58: =IF(AY58="",0,IF(ISERROR(IF(AY58>=th_24h_Graf!BJ58,th_24h_Graf!$J$3,0)),0,IF(AY58>=th_24h_Graf!BJ58,th_24h_Graf!$J$3,0))) ->  | BH58: 0
C59: =IF(th_24h_Graf!$G$3="","",C58+th_24h_Graf!$J$3) -> 18:40:00 | H59: =IF(th_24h_Graf!$G$3="","",H58+th_24h_Graf!$J$3) -> 18:40:00 | K59: =IF(AND(th_24h_Graf_Tot!$R$1=TRUE,J59>0),BC59,NA()) ->  | L59: =IF(AND(th_24h_Graf_Tot!$Q$1=TRUE,J59>0),BD59,NA()) ->  | N59: =IF(AND(th_24h_Graf_Tot!$M$1=TRUE,E59>0),E59,NA()) ->  | O59: =IF(AND(th_24h_Graf_Tot!$V$1=TRUE,D59>0),D59,NA()) ->  | AU59: 0 | AW59: =IF(th_24h_Graf_Tot!$L$83=0,"",D59-(th_24h_Graf_Tot!$Q$82/th_24h_Graf_Tot!$L$83)*(D59-IF(I59="",TE,I59))) ->  | AY59: =IF(AND(th_24h_Graf_Tot!$A$4=TRUE,BB59>0),BB59,NA()) ->  | BA59: 0 | BB59: =IF(th_24h_Graf_Tot!$A$4=FALSE,"",IF(ISERROR(IF(AW59="","",IF(AU59/(610.5*EXP(1)^((17.269*AW59)/(237.3+AW59)))*100>100,100,AU59/(610.5*EXP(1)^((17.269*AW59)/(237.3+AW59)))*100))),"",IF(AW59="","",IF(AU59/(610.5*EXP(1)^((17.269*AW59)/(237.3+AW59)))*100>100,100,AU59/(610.5*EXP(1)^((17.269*AW59)/(237.3+AW59)))*100)))) ->  | BC59: 0 | BD59: =IF(th_24h_Graf!$J$3<0.02,BA59,IF(th_24h_Graf!$J$3<0.04,BB59,BC59)) -> 0 | BG59: =IF(AY59="",0,IF(ISERROR(IF(AY59>=th_24h_Graf!BJ59,th_24h_Graf!$J$3,0)),0,IF(AY59>=th_24h_Graf!BJ59,th_24h_Graf!$J$3,0))) ->  | BH59: 0
C60: =IF(th_24h_Graf!$G$3="","",C59+th_24h_Graf!$J$3) -> 19:00:00 | H60: =IF(th_24h_Graf!$G$3="","",H59+th_24h_Graf!$J$3) -> 19:00:00 | K60: =IF(AND(th_24h_Graf_Tot!$R$1=TRUE,J60>0),BC60,NA()) ->  | L60: =IF(AND(th_24h_Graf_Tot!$Q$1=TRUE,J60>0),BD60,NA()) ->  | N60: =IF(AND(th_24h_Graf_Tot!$M$1=TRUE,E60>0),E60,NA()) ->  | O60: =IF(AND(th_24h_Graf_Tot!$V$1=TRUE,D60>0),D60,NA()) ->  | AU60: 0 | AW60: =IF(th_24h_Graf_Tot!$L$83=0,"",D60-(th_24h_Graf_Tot!$Q$82/th_24h_Graf_Tot!$L$83)*(D60-IF(I60="",TE,I60))) ->  | AY60: =IF(AND(th_24h_Graf_Tot!$A$4=TRUE,BB60>0),BB60,NA()) ->  | BA60: 0 | BB60: =IF(th_24h_Graf_Tot!$A$4=FALSE,"",IF(ISERROR(IF(AW60="","",IF(AU60/(610.5*EXP(1)^((17.269*AW60)/(237.3+AW60)))*100>100,100,AU60/(610.5*EXP(1)^((17.269*AW60)/(237.3+AW60)))*100))),"",IF(AW60="","",IF(AU60/(610.5*EXP(1)^((17.269*AW60)/(237.3+AW60)))*100>100,100,AU60/(610.5*EXP(1)^((17.269*AW60)/(237.3+AW60)))*100)))) ->  | BC60: 0 | BD60: =IF(th_24h_Graf!$J$3<0.02,BA60,IF(th_24h_Graf!$J$3<0.04,BB60,BC60)) -> 0 | BG60: =IF(AY60="",0,IF(ISERROR(IF(AY60>=th_24h_Graf!BJ60,th_24h_Graf!$J$3,0)),0,IF(AY60>=th_24h_Graf!BJ60,th_24h_Graf!$J$3,0))) ->  | BH60: 0
C61: =IF(th_24h_Graf!$G$3="","",C60+th_24h_Graf!$J$3) -> 19:20:00 | H61: =IF(th_24h_Graf!$G$3="","",H60+th_24h_Graf!$J$3) -> 19:20:00 | K61: =IF(AND(th_24h_Graf_Tot!$R$1=TRUE,J61>0),BC61,NA()) ->  | L61: =IF(AND(th_24h_Graf_Tot!$Q$1=TRUE,J61>0),BD61,NA()) ->  | N61: =IF(AND(th_24h_Graf_Tot!$M$1=TRUE,E61>0),E61,NA()) ->  | O61: =IF(AND(th_24h_Graf_Tot!$V$1=TRUE,D61>0),D61,NA()) ->  | AU61: 0 | AW61: =IF(th_24h_Graf_Tot!$L$83=0,"",D61-(th_24h_Graf_Tot!$Q$82/th_24h_Graf_Tot!$L$83)*(D61-IF(I61="",TE,I61))) ->  | AY61: =IF(AND(th_24h_Graf_Tot!$A$4=TRUE,BB61>0),BB61,NA()) ->  | BA61: 0 | BB61: =IF(th_24h_Graf_Tot!$A$4=FALSE,"",IF(ISERROR(IF(AW61="","",IF(AU61/(610.5*EXP(1)^((17.269*AW61)/(237.3+AW61)))*100>100,100,AU61/(610.5*EXP(1)^((17.269*AW61)/(237.3+AW61)))*100))),"",IF(AW61="","",IF(AU61/(610.5*EXP(1)^((17.269*AW61)/(237.3+AW61)))*100>100,100,AU61/(610.5*EXP(1)^((17.269*AW61)/(237.3+AW61)))*100)))) ->  | BC61: 0 | BD61: =IF(th_24h_Graf!$J$3<0.02,BA61,IF(th_24h_Graf!$J$3<0.04,BB61,BC61)) -> 0 | BG61: =IF(AY61="",0,IF(ISERROR(IF(AY61>=th_24h_Graf!BJ61,th_24h_Graf!$J$3,0)),0,IF(AY61>=th_24h_Graf!BJ61,th_24h_Graf!$J$3,0))) ->  | BH61: 0
C62: =IF(th_24h_Graf!$G$3="","",C61+th_24h_Graf!$J$3) -> 19:40:00 | H62: =IF(th_24h_Graf!$G$3="","",H61+th_24h_Graf!$J$3) -> 19:40:00 | K62: =IF(AND(th_24h_Graf_Tot!$R$1=TRUE,J62>0),BC62,NA()) ->  | L62: =IF(AND(th_24h_Graf_Tot!$Q$1=TRUE,J62>0),BD62,NA()) ->  | N62: =IF(AND(th_24h_Graf_Tot!$M$1=TRUE,E62>0),E62,NA()) ->  | O62: =IF(AND(th_24h_Graf_Tot!$V$1=TRUE,D62>0),D62,NA()) ->  | AU62: 0 | AW62: =IF(th_24h_Graf_Tot!$L$83=0,"",D62-(th_24h_Graf_Tot!$Q$82/th_24h_Graf_Tot!$L$83)*(D62-IF(I62="",TE,I62))) ->  | AY62: =IF(AND(th_24h_Graf_Tot!$A$4=TRUE,BB62>0),BB62,NA()) ->  | BA62: 0 | BB62: =IF(th_24h_Graf_Tot!$A$4=FALSE,"",IF(ISERROR(IF(AW62="","",IF(AU62/(610.5*EXP(1)^((17.269*AW62)/(237.3+AW62)))*100>100,100,AU62/(610.5*EXP(1)^((17.269*AW62)/(237.3+AW62)))*100))),"",IF(AW62="","",IF(AU62/(610.5*EXP(1)^((17.269*AW62)/(237.3+AW62)))*100>100,100,AU62/(610.5*EXP(1)^((17.269*AW62)/(237.3+AW62)))*100)))) ->  | BC62: 0 | BD62: =IF(th_24h_Graf!$J$3<0.02,BA62,IF(th_24h_Graf!$J$3<0.04,BB62,BC62)) -> 0 | BG62: =IF(AY62="",0,IF(ISERROR(IF(AY62>=th_24h_Graf!BJ62,th_24h_Graf!$J$3,0)),0,IF(AY62>=th_24h_Graf!BJ62,th_24h_Graf!$J$3,0))) ->  | BH62: 0
C63: =IF(th_24h_Graf!$G$3="","",C62+th_24h_Graf!$J$3) -> 20:00:00 | H63: =IF(th_24h_Graf!$G$3="","",H62+th_24h_Graf!$J$3) -> 20:00:00 | K63: =IF(AND(th_24h_Graf_Tot!$R$1=TRUE,J63>0),BC63,NA()) ->  | L63: =IF(AND(th_24h_Graf_Tot!$Q$1=TRUE,J63>0),BD63,NA()) ->  | N63: =IF(AND(th_24h_Graf_Tot!$M$1=TRUE,E63>0),E63,NA()) ->  | O63: =IF(AND(th_24h_Graf_Tot!$V$1=TRUE,D63>0),D63,NA()) ->  | AU63: 0 | AW63: =IF(th_24h_Graf_Tot!$L$83=0,"",D63-(th_24h_Graf_Tot!$Q$82/th_24h_Graf_Tot!$L$83)*(D63-IF(I63="",TE,I63))) ->  | AY63: =IF(AND(th_24h_Graf_Tot!$A$4=TRUE,BB63>0),BB63,NA()) ->  | BA63: 0 | BB63: =IF(th_24h_Graf_Tot!$A$4=FALSE,"",IF(ISERROR(IF(AW63="","",IF(AU63/(610.5*EXP(1)^((17.269*AW63)/(237.3+AW63)))*100>100,100,AU63/(610.5*EXP(1)^((17.269*AW63)/(237.3+AW63)))*100))),"",IF(AW63="","",IF(AU63/(610.5*EXP(1)^((17.269*AW63)/(237.3+AW63)))*100>100,100,AU63/(610.5*EXP(1)^((17.269*AW63)/(237.3+AW63)))*100)))) ->  | BC63: 0 | BD63: =IF(th_24h_Graf!$J$3<0.02,BA63,IF(th_24h_Graf!$J$3<0.04,BB63,BC63)) -> 0 | BG63: =IF(AY63="",0,IF(ISERROR(IF(AY63>=th_24h_Graf!BJ63,th_24h_Graf!$J$3,0)),0,IF(AY63>=th_24h_Graf!BJ63,th_24h_Graf!$J$3,0))) ->  | BH63: 0
C64: =IF(th_24h_Graf!$G$3="","",C63+th_24h_Graf!$J$3) -> 20:20:00 | H64: =IF(th_24h_Graf!$G$3="","",H63+th_24h_Graf!$J$3) -> 20:20:00 | K64: =IF(AND(th_24h_Graf_Tot!$R$1=TRUE,J64>0),BC64,NA()) ->  | L64: =IF(AND(th_24h_Graf_Tot!$Q$1=TRUE,J64>0),BD64,NA()) ->  | N64: =IF(AND(th_24h_Graf_Tot!$M$1=TRUE,E64>0),E64,NA()) ->  | O64: =IF(AND(th_24h_Graf_Tot!$V$1=TRUE,D64>0),D64,NA()) ->  | AU64: 0 | AW64: =IF(th_24h_Graf_Tot!$L$83=0,"",D64-(th_24h_Graf_Tot!$Q$82/th_24h_Graf_Tot!$L$83)*(D64-IF(I64="",TE,I64))) ->  | AY64: =IF(AND(th_24h_Graf_Tot!$A$4=TRUE,BB64>0),BB64,NA()) ->  | BA64: 0 | BB64: =IF(th_24h_Graf_Tot!$A$4=FALSE,"",IF(ISERROR(IF(AW64="","",IF(AU64/(610.5*EXP(1)^((17.269*AW64)/(237.3+AW64)))*100>100,100,AU64/(610.5*EXP(1)^((17.269*AW64)/(237.3+AW64)))*100))),"",IF(AW64="","",IF(AU64/(610.5*EXP(1)^((17.269*AW64)/(237.3+AW64)))*100>100,100,AU64/(610.5*EXP(1)^((17.269*AW64)/(237.3+AW64)))*100)))) ->  | BC64: 0 | BD64: =IF(th_24h_Graf!$J$3<0.02,BA64,IF(th_24h_Graf!$J$3<0.04,BB64,BC64)) -> 0 | BG64: =IF(AY64="",0,IF(ISERROR(IF(AY64>=th_24h_Graf!BJ64,th_24h_Graf!$J$3,0)),0,IF(AY64>=th_24h_Graf!BJ64,th_24h_Graf!$J$3,0))) ->  | BH64: 0
C65: =IF(th_24h_Graf!$G$3="","",C64+th_24h_Graf!$J$3) -> 20:40:00 | H65: =IF(th_24h_Graf!$G$3="","",H64+th_24h_Graf!$J$3) -> 20:40:00 | K65: =IF(AND(th_24h_Graf_Tot!$R$1=TRUE,J65>0),BC65,NA()) ->  | L65: =IF(AND(th_24h_Graf_Tot!$Q$1=TRUE,J65>0),BD65,NA()) ->  | N65: =IF(AND(th_24h_Graf_Tot!$M$1=TRUE,E65>0),E65,NA()) ->  | O65: =IF(AND(th_24h_Graf_Tot!$V$1=TRUE,D65>0),D65,NA()) ->  | AU65: 0 | AW65: =IF(th_24h_Graf_Tot!$L$83=0,"",D65-(th_24h_Graf_Tot!$Q$82/th_24h_Graf_Tot!$L$83)*(D65-IF(I65="",TE,I65))) ->  | AY65: =IF(AND(th_24h_Graf_Tot!$A$4=TRUE,BB65>0),BB65,NA()) ->  | BA65: 0 | BB65: =IF(th_24h_Graf_Tot!$A$4=FALSE,"",IF(ISERROR(IF(AW65="","",IF(AU65/(610.5*EXP(1)^((17.269*AW65)/(237.3+AW65)))*100>100,100,AU65/(610.5*EXP(1)^((17.269*AW65)/(237.3+AW65)))*100))),"",IF(AW65="","",IF(AU65/(610.5*EXP(1)^((17.269*AW65)/(237.3+AW65)))*100>100,100,AU65/(610.5*EXP(1)^((17.269*AW65)/(237.3+AW65)))*100)))) ->  | BC65: 0 | BD65: =IF(th_24h_Graf!$J$3<0.02,BA65,IF(th_24h_Graf!$J$3<0.04,BB65,BC65)) -> 0 | BG65: =IF(AY65="",0,IF(ISERROR(IF(AY65>=th_24h_Graf!BJ65,th_24h_Graf!$J$3,0)),0,IF(AY65>=th_24h_Graf!BJ65,th_24h_Graf!$J$3,0))) ->  | BH65: 0
C66: =IF(th_24h_Graf!$G$3="","",C65+th_24h_Graf!$J$3) -> 21:00:00 | H66: =IF(th_24h_Graf!$G$3="","",H65+th_24h_Graf!$J$3) -> 21:00:00 | K66: =IF(AND(th_24h_Graf_Tot!$R$1=TRUE,J66>0),BC66,NA()) ->  | L66: =IF(AND(th_24h_Graf_Tot!$Q$1=TRUE,J66>0),BD66,NA()) ->  | N66: =IF(AND(th_24h_Graf_Tot!$M$1=TRUE,E66>0),E66,NA()) ->  | O66: =IF(AND(th_24h_Graf_Tot!$V$1=TRUE,D66>0),D66,NA()) ->  | AU66: 0 | AW66: =IF(th_24h_Graf_Tot!$L$83=0,"",D66-(th_24h_Graf_Tot!$Q$82/th_24h_Graf_Tot!$L$83)*(D66-IF(I66="",TE,I66))) ->  | AY66: =IF(AND(th_24h_Graf_Tot!$A$4=TRUE,BB66>0),BB66,NA()) ->  | BA66: 0 | BB66: =IF(th_24h_Graf_Tot!$A$4=FALSE,"",IF(ISERROR(IF(AW66="","",IF(AU66/(610.5*EXP(1)^((17.269*AW66)/(237.3+AW66)))*100>100,100,AU66/(610.5*EXP(1)^((17.269*AW66)/(237.3+AW66)))*100))),"",IF(AW66="","",IF(AU66/(610.5*EXP(1)^((17.269*AW66)/(237.3+AW66)))*100>100,100,AU66/(610.5*EXP(1)^((17.269*AW66)/(237.3+AW66)))*100)))) ->  | BC66: 0 | BD66: =IF(th_24h_Graf!$J$3<0.02,BA66,IF(th_24h_Graf!$J$3<0.04,BB66,BC66)) -> 0 | BG66: =IF(AY66="",0,IF(ISERROR(IF(AY66>=th_24h_Graf!BJ66,th_24h_Graf!$J$3,0)),0,IF(AY66>=th_24h_Graf!BJ66,th_24h_Graf!$J$3,0))) ->  | BH66: 0
C67: =IF(th_24h_Graf!$G$3="","",C66+th_24h_Graf!$J$3) -> 21:20:00 | H67: =IF(th_24h_Graf!$G$3="","",H66+th_24h_Graf!$J$3) -> 21:20:00 | K67: =IF(AND(th_24h_Graf_Tot!$R$1=TRUE,J67>0),BC67,NA()) ->  | L67: =IF(AND(th_24h_Graf_Tot!$Q$1=TRUE,J67>0),BD67,NA()) ->  | N67: =IF(AND(th_24h_Graf_Tot!$M$1=TRUE,E67>0),E67,NA()) ->  | O67: =IF(AND(th_24h_Graf_Tot!$V$1=TRUE,D67>0),D67,NA()) ->  | AU67: =610.5*EXP(1)^((17.269*D67)/(237.3+D67))*E67/100 -> 0 | AV67: =IF(AU67=0,"",237.3*LN(AU67/610.5)/(17.269-LN(AU67/610.5))) ->  | AW67: =IF(th_24h_Graf_Tot!$L$83=0,"",D67-(th_24h_Graf_Tot!$Q$82/th_24h_Graf_Tot!$L$83)*(D67-IF(I67="",TE,I67))) ->  | AX67: =IF(AU67=0,"",237.3*LN((AU67/0.8)/610.5)/(17.269-LN((AU67/0.8)/610.5))) ->  | AY67: =IF(AND(th_24h_Graf_Tot!$A$4=TRUE,BB67>0),BB67,NA()) ->  | BA67: =$AQ$3 -> 0 | BB67: =IF(th_24h_Graf_Tot!$A$4=FALSE,"",IF(ISERROR(IF(AW67="","",IF(AU67/(610.5*EXP(1)^((17.269*AW67)/(237.3+AW67)))*100>100,100,AU67/(610.5*EXP(1)^((17.269*AW67)/(237.3+AW67)))*100))),"",IF(AW67="","",IF(AU67/(610.5*EXP(1)^((17.269*AW67)/(237.3+AW67)))*100>100,100,AU67/(610.5*EXP(1)^((17.269*AW67)/(237.3+AW67)))*100)))) ->  | BC67: =$AR$3 -> 0 | BD67: =IF(th_24h_Graf!$J$3<0.02,BA67,IF(th_24h_Graf!$J$3<0.04,BB67,BC67)) -> 0 | BG67: =IF(AY67="",0,IF(ISERROR(IF(AY67>=th_24h_Graf!BJ67,th_24h_Graf!$J$3,0)),0,IF(AY67>=th_24h_Graf!BJ67,th_24h_Graf!$J$3,0))) ->  | BH67: 0
C68: =IF(th_24h_Graf!$G$3="","",C67+th_24h_Graf!$J$3) -> 21:40:00 | H68: =IF(th_24h_Graf!$G$3="","",H67+th_24h_Graf!$J$3) -> 21:40:00 | K68: =IF(AND(th_24h_Graf_Tot!$R$1=TRUE,J68>0),BC68,NA()) ->  | L68: =IF(AND(th_24h_Graf_Tot!$Q$1=TRUE,J68>0),BD68,NA()) ->  | N68: =IF(AND(th_24h_Graf_Tot!$M$1=TRUE,E68>0),E68,NA()) ->  | O68: =IF(AND(th_24h_Graf_Tot!$V$1=TRUE,D68>0),D68,NA()) ->  | AU68: 0 | AW68: =IF(th_24h_Graf_Tot!$L$83=0,"",D68-(th_24h_Graf_Tot!$Q$82/th_24h_Graf_Tot!$L$83)*(D68-IF(I68="",TE,I68))) ->  | AY68: =IF(AND(th_24h_Graf_Tot!$A$4=TRUE,BB68>0),BB68,NA()) ->  | BA68: 0 | BB68: =IF(th_24h_Graf_Tot!$A$4=FALSE,"",IF(ISERROR(IF(AW68="","",IF(AU68/(610.5*EXP(1)^((17.269*AW68)/(237.3+AW68)))*100>100,100,AU68/(610.5*EXP(1)^((17.269*AW68)/(237.3+AW68)))*100))),"",IF(AW68="","",IF(AU68/(610.5*EXP(1)^((17.269*AW68)/(237.3+AW68)))*100>100,100,AU68/(610.5*EXP(1)^((17.269*AW68)/(237.3+AW68)))*100)))) ->  | BC68: 0 | BD68: =IF(th_24h_Graf!$J$3<0.02,BA68,IF(th_24h_Graf!$J$3<0.04,BB68,BC68)) -> 0 | BG68: =IF(AY68="",0,IF(ISERROR(IF(AY68>=th_24h_Graf!BJ68,th_24h_Graf!$J$3,0)),0,IF(AY68>=th_24h_Graf!BJ68,th_24h_Graf!$J$3,0))) ->  | BH68: =IF(D68="",0,C68-C67) -> 0
C69: =IF(th_24h_Graf!$G$3="","",C68+th_24h_Graf!$J$3) -> 22:00:00 | H69: =IF(th_24h_Graf!$G$3="","",H68+th_24h_Graf!$J$3) -> 22:00:00 | K69: =IF(AND(th_24h_Graf_Tot!$R$1=TRUE,J69>0),BC69,NA()) ->  | L69: =IF(AND(th_24h_Graf_Tot!$Q$1=TRUE,J69>0),BD69,NA()) ->  | N69: =IF(AND(th_24h_Graf_Tot!$M$1=TRUE,E69>0),E69,NA()) ->  | O69: =IF(AND(th_24h_Graf_Tot!$V$1=TRUE,D69>0),D69,NA()) ->  | AU69: 0 | AW69: =IF(th_24h_Graf_Tot!$L$83=0,"",D69-(th_24h_Graf_Tot!$Q$82/th_24h_Graf_Tot!$L$83)*(D69-IF(I69="",TE,I69))) ->  | AY69: =IF(AND(th_24h_Graf_Tot!$A$4=TRUE,BB69>0),BB69,NA()) ->  | BA69: 0 | BB69: =IF(th_24h_Graf_Tot!$A$4=FALSE,"",IF(ISERROR(IF(AW69="","",IF(AU69/(610.5*EXP(1)^((17.269*AW69)/(237.3+AW69)))*100>100,100,AU69/(610.5*EXP(1)^((17.269*AW69)/(237.3+AW69)))*100))),"",IF(AW69="","",IF(AU69/(610.5*EXP(1)^((17.269*AW69)/(237.3+AW69)))*100>100,100,AU69/(610.5*EXP(1)^((17.269*AW69)/(237.3+AW69)))*100)))) ->  | BC69: 0 | BD69: =IF(th_24h_Graf!$J$3<0.02,BA69,IF(th_24h_Graf!$J$3<0.04,BB69,BC69)) -> 0 | BG69: =IF(AY69="",0,IF(ISERROR(IF(AY69>=th_24h_Graf!BJ69,th_24h_Graf!$J$3,0)),0,IF(AY69>=th_24h_Graf!BJ69,th_24h_Graf!$J$3,0))) ->  | BH69: 0
C70: =IF(th_24h_Graf!$G$3="","",C69+th_24h_Graf!$J$3) -> 22:20:00 | H70: =IF(th_24h_Graf!$G$3="","",H69+th_24h_Graf!$J$3) -> 22:20:00 | K70: =IF(AND(th_24h_Graf_Tot!$R$1=TRUE,J70>0),BC70,NA()) ->  | L70: =IF(AND(th_24h_Graf_Tot!$Q$1=TRUE,J70>0),BD70,NA()) ->  | N70: =IF(AND(th_24h_Graf_Tot!$M$1=TRUE,E70>0),E70,NA()) ->  | O70: =IF(AND(th_24h_Graf_Tot!$V$1=TRUE,D70>0),D70,NA()) ->  | AU70: 0 | AW70: =IF(th_24h_Graf_Tot!$L$83=0,"",D70-(th_24h_Graf_Tot!$Q$82/th_24h_Graf_Tot!$L$83)*(D70-IF(I70="",TE,I70))) ->  | AY70: =IF(AND(th_24h_Graf_Tot!$A$4=TRUE,BB70>0),BB70,NA()) ->  | BA70: 0 | BB70: =IF(th_24h_Graf_Tot!$A$4=FALSE,"",IF(ISERROR(IF(AW70="","",IF(AU70/(610.5*EXP(1)^((17.269*AW70)/(237.3+AW70)))*100>100,100,AU70/(610.5*EXP(1)^((17.269*AW70)/(237.3+AW70)))*100))),"",IF(AW70="","",IF(AU70/(610.5*EXP(1)^((17.269*AW70)/(237.3+AW70)))*100>100,100,AU70/(610.5*EXP(1)^((17.269*AW70)/(237.3+AW70)))*100)))) ->  | BC70: 0 | BD70: =IF(th_24h_Graf!$J$3<0.02,BA70,IF(th_24h_Graf!$J$3<0.04,BB70,BC70)) -> 0 | BG70: =IF(AY70="",0,IF(ISERROR(IF(AY70>=th_24h_Graf!BJ70,th_24h_Graf!$J$3,0)),0,IF(AY70>=th_24h_Graf!BJ70,th_24h_Graf!$J$3,0))) ->  | BH70: 0
C71: =IF(th_24h_Graf!$G$3="","",C70+th_24h_Graf!$J$3) -> 22:40:00 | H71: =IF(th_24h_Graf!$G$3="","",H70+th_24h_Graf!$J$3) -> 22:40:00 | K71: =IF(AND(th_24h_Graf_Tot!$R$1=TRUE,J71>0),BC71,NA()) ->  | L71: =IF(AND(th_24h_Graf_Tot!$Q$1=TRUE,J71>0),BD71,NA()) ->  | N71: =IF(AND(th_24h_Graf_Tot!$M$1=TRUE,E71>0),E71,NA()) ->  | O71: =IF(AND(th_24h_Graf_Tot!$V$1=TRUE,D71>0),D71,NA()) ->  | AU71: 0 | AW71: =IF(th_24h_Graf_Tot!$L$83=0,"",D71-(th_24h_Graf_Tot!$Q$82/th_24h_Graf_Tot!$L$83)*(D71-IF(I71="",TE,I71))) ->  | AY71: =IF(AND(th_24h_Graf_Tot!$A$4=TRUE,BB71>0),BB71,NA()) ->  | BA71: 0 | BB71: =IF(th_24h_Graf_Tot!$A$4=FALSE,"",IF(ISERROR(IF(AW71="","",IF(AU71/(610.5*EXP(1)^((17.269*AW71)/(237.3+AW71)))*100>100,100,AU71/(610.5*EXP(1)^((17.269*AW71)/(237.3+AW71)))*100))),"",IF(AW71="","",IF(AU71/(610.5*EXP(1)^((17.269*AW71)/(237.3+AW71)))*100>100,100,AU71/(610.5*EXP(1)^((17.269*AW71)/(237.3+AW71)))*100)))) ->  | BC71: 0 | BD71: =IF(th_24h_Graf!$J$3<0.02,BA71,IF(th_24h_Graf!$J$3<0.04,BB71,BC71)) -> 0 | BG71: =IF(AY71="",0,IF(ISERROR(IF(AY71>=th_24h_Graf!BJ71,th_24h_Graf!$J$3,0)),0,IF(AY71>=th_24h_Graf!BJ71,th_24h_Graf!$J$3,0))) ->  | BH71: 0
C72: =IF(th_24h_Graf!$G$3="","",C71+th_24h_Graf!$J$3) -> 23:00:00 | H72: =IF(th_24h_Graf!$G$3="","",H71+th_24h_Graf!$J$3) -> 23:00:00 | K72: =IF(AND(th_24h_Graf_Tot!$R$1=TRUE,J72>0),BC72,NA()) ->  | L72: =IF(AND(th_24h_Graf_Tot!$Q$1=TRUE,J72>0),BD72,NA()) ->  | N72: =IF(AND(th_24h_Graf_Tot!$M$1=TRUE,E72>0),E72,NA()) ->  | O72: =IF(AND(th_24h_Graf_Tot!$V$1=TRUE,D72>0),D72,NA()) ->  | AU72: 0 | AW72: =IF(th_24h_Graf_Tot!$L$83=0,"",D72-(th_24h_Graf_Tot!$Q$82/th_24h_Graf_Tot!$L$83)*(D72-IF(I72="",TE,I72))) ->  | AY72: =IF(AND(th_24h_Graf_Tot!$A$4=TRUE,BB72>0),BB72,NA()) ->  | BA72: 0 | BB72: =IF(th_24h_Graf_Tot!$A$4=FALSE,"",IF(ISERROR(IF(AW72="","",IF(AU72/(610.5*EXP(1)^((17.269*AW72)/(237.3+AW72)))*100>100,100,AU72/(610.5*EXP(1)^((17.269*AW72)/(237.3+AW72)))*100))),"",IF(AW72="","",IF(AU72/(610.5*EXP(1)^((17.269*AW72)/(237.3+AW72)))*100>100,100,AU72/(610.5*EXP(1)^((17.269*AW72)/(237.3+AW72)))*100)))) ->  | BC72: 0 | BD72: =IF(th_24h_Graf!$J$3<0.02,BA72,IF(th_24h_Graf!$J$3<0.04,BB72,BC72)) -> 0 | BG72: =IF(AY72="",0,IF(ISERROR(IF(AY72>=th_24h_Graf!BJ72,th_24h_Graf!$J$3,0)),0,IF(AY72>=th_24h_Graf!BJ72,th_24h_Graf!$J$3,0))) ->  | BH72: 0
C73: =IF(th_24h_Graf!$G$3="","",C72+th_24h_Graf!$J$3) -> 23:20:00 | H73: =IF(th_24h_Graf!$G$3="","",H72+th_24h_Graf!$J$3) -> 23:20:00 | K73: =IF(AND(th_24h_Graf_Tot!$R$1=TRUE,J73>0),BC73,NA()) ->  | L73: =IF(AND(th_24h_Graf_Tot!$Q$1=TRUE,J73>0),BD73,NA()) ->  | N73: =IF(AND(th_24h_Graf_Tot!$M$1=TRUE,E73>0),E73,NA()) ->  | O73: =IF(AND(th_24h_Graf_Tot!$V$1=TRUE,D73>0),D73,NA()) ->  | AU73: 0 | AW73: =IF(th_24h_Graf_Tot!$L$83=0,"",D73-(th_24h_Graf_Tot!$Q$82/th_24h_Graf_Tot!$L$83)*(D73-IF(I73="",TE,I73))) ->  | AY73: =IF(AND(th_24h_Graf_Tot!$A$4=TRUE,BB73>0),BB73,NA()) ->  | BA73: 0 | BB73: =IF(th_24h_Graf_Tot!$A$4=FALSE,"",IF(ISERROR(IF(AW73="","",IF(AU73/(610.5*EXP(1)^((17.269*AW73)/(237.3+AW73)))*100>100,100,AU73/(610.5*EXP(1)^((17.269*AW73)/(237.3+AW73)))*100))),"",IF(AW73="","",IF(AU73/(610.5*EXP(1)^((17.269*AW73)/(237.3+AW73)))*100>100,100,AU73/(610.5*EXP(1)^((17.269*AW73)/(237.3+AW73)))*100)))) ->  | BC73: 0 | BD73: =IF(th_24h_Graf!$J$3<0.02,BA73,IF(th_24h_Graf!$J$3<0.04,BB73,BC73)) -> 0 | BG73: =IF(AY73="",0,IF(ISERROR(IF(AY73>=th_24h_Graf!BJ73,th_24h_Graf!$J$3,0)),0,IF(AY73>=th_24h_Graf!BJ73,th_24h_Graf!$J$3,0))) ->  | BH73: 0
C74: =IF(th_24h_Graf!$G$3="","",C73+th_24h_Graf!$J$3) -> 23:40:00 | H74: =IF(th_24h_Graf!$G$3="","",H73+th_24h_Graf!$J$3) -> 23:40:00 | K74: =IF(AND(th_24h_Graf_Tot!$R$1=TRUE,J74>0),BC74,NA()) ->  | L74: =IF(AND(th_24h_Graf_Tot!$Q$1=TRUE,J74>0),BD74,NA()) ->  | N74: =IF(AND(th_24h_Graf_Tot!$M$1=TRUE,E74>0),E74,NA()) ->  | O74: =IF(AND(th_24h_Graf_Tot!$V$1=TRUE,D74>0),D74,NA()) ->  | AU74: 0 | AW74: =IF(th_24h_Graf_Tot!$L$83=0,"",D74-(th_24h_Graf_Tot!$Q$82/th_24h_Graf_Tot!$L$83)*(D74-IF(I74="",TE,I74))) ->  | AY74: =IF(AND(th_24h_Graf_Tot!$A$4=TRUE,BB74>0),BB74,NA()) ->  | BA74: 0 | BB74: =IF(th_24h_Graf_Tot!$A$4=FALSE,"",IF(ISERROR(IF(AW74="","",IF(AU74/(610.5*EXP(1)^((17.269*AW74)/(237.3+AW74)))*100>100,100,AU74/(610.5*EXP(1)^((17.269*AW74)/(237.3+AW74)))*100))),"",IF(AW74="","",IF(AU74/(610.5*EXP(1)^((17.269*AW74)/(237.3+AW74)))*100>100,100,AU74/(610.5*EXP(1)^((17.269*AW74)/(237.3+AW74)))*100)))) ->  | BC74: 0 | BD74: =IF(th_24h_Graf!$J$3<0.02,BA74,IF(th_24h_Graf!$J$3<0.04,BB74,BC74)) -> 0 | BG74: =IF(AY74="",0,IF(ISERROR(IF(AY74>=th_24h_Graf!BJ74,th_24h_Graf!$J$3,0)),0,IF(AY74>=th_24h_Graf!BJ74,th_24h_Graf!$J$3,0))) ->  | BH74: 0
C75: =IF(th_24h_Graf!$G$3="","",C74+th_24h_Graf!$J$3) -> 1 | H75: =IF(th_24h_Graf!$G$3="","",H74+th_24h_Graf!$J$3) -> 1 | K75: =IF(AND(th_24h_Graf_Tot!$R$1=TRUE,J75>0),BC75,NA()) ->  | L75: =IF(AND(th_24h_Graf_Tot!$Q$1=TRUE,J75>0),BD75,NA()) ->  | N75: =IF(AND(th_24h_Graf_Tot!$M$1=TRUE,E75>0),E75,NA()) ->  | O75: =IF(AND(th_24h_Graf_Tot!$V$1=TRUE,D75>0),D75,NA()) ->  | AU75: 0 | AW75: =IF(th_24h_Graf_Tot!$L$83=0,"",D75-(th_24h_Graf_Tot!$Q$82/th_24h_Graf_Tot!$L$83)*(D75-IF(I75="",TE,I75))) ->  | AY75: =IF(AND(th_24h_Graf_Tot!$A$4=TRUE,BB75>0),BB75,NA()) ->  | BA75: 0 | BB75: =IF(th_24h_Graf_Tot!$A$4=FALSE,"",IF(ISERROR(IF(AW75="","",IF(AU75/(610.5*EXP(1)^((17.269*AW75)/(237.3+AW75)))*100>100,100,AU75/(610.5*EXP(1)^((17.269*AW75)/(237.3+AW75)))*100))),"",IF(AW75="","",IF(AU75/(610.5*EXP(1)^((17.269*AW75)/(237.3+AW75)))*100>100,100,AU75/(610.5*EXP(1)^((17.269*AW75)/(237.3+AW75)))*100)))) ->  | BC75: 0 | BD75: =IF(th_24h_Graf!$J$3<0.02,BA75,IF(th_24h_Graf!$J$3<0.04,BB75,BC75)) -> 0 | BG75: =IF(AY75="",0,IF(ISERROR(IF(AY75>=th_24h_Graf!BJ75,th_24h_Graf!$J$3,0)),0,IF(AY75>=th_24h_Graf!BJ75,th_24h_Graf!$J$3,0))) ->  | BH75: 0
B76: =IF(th_24h_Graf!$J$3>0.04,"4º día",IF(th_24h_Graf!$J$3<0.02,"2º día","")) -> 2º día | C76: =IF(th_24h_Graf!$G$3="","",C75+th_24h_Graf!$J$3) -> 1.013888889 | G76: =IF(th_24h_Graf!$J$3>0.04,"4º día",IF(th_24h_Graf!$J$3<0.02,"2º día","")) -> 2º día | H76: =IF(th_24h_Graf!$G$3="","",H75+th_24h_Graf!$J$3) -> 1.013888889 | K76: =IF(AND(th_24h_Graf_Tot!$R$1=TRUE,J76>0),BC76,NA()) ->  | L76: =IF(AND(th_24h_Graf_Tot!$Q$1=TRUE,J76>0),BD76,NA()) ->  | N76: =IF(AND(th_24h_Graf_Tot!$M$1=TRUE,E76>0),E76,NA()) ->  | O76: =IF(AND(th_24h_Graf_Tot!$V$1=TRUE,D76>0),D76,NA()) ->  | AU76: 0 | AW76: =IF(th_24h_Graf_Tot!$L$83=0,"",D76-(th_24h_Graf_Tot!$Q$82/th_24h_Graf_Tot!$L$83)*(D76-IF(I76="",TE,I76))) ->  | AY76: =IF(AND(th_24h_Graf_Tot!$A$4=TRUE,BB76>0),BB76,NA()) ->  | AZ76: =IF(th_24h_Graf!$J$3>0.04,"4º día",IF(th_24h_Graf!$J$3<0.02,"2º día","")) -> 2º día | BA76: =$AQ$4 -> 0 | BB76: =IF(th_24h_Graf_Tot!$A$4=FALSE,"",IF(ISERROR(IF(AW76="","",IF(AU76/(610.5*EXP(1)^((17.269*AW76)/(237.3+AW76)))*100>100,100,AU76/(610.5*EXP(1)^((17.269*AW76)/(237.3+AW76)))*100))),"",IF(AW76="","",IF(AU76/(610.5*EXP(1)^((17.269*AW76)/(237.3+AW76)))*100>100,100,AU76/(610.5*EXP(1)^((17.269*AW76)/(237.3+AW76)))*100)))) ->  | BC76: =$AR$4 -> 0 | BD76: =IF(th_24h_Graf!$J$3<0.02,BA76,IF(th_24h_Graf!$J$3<0.04,BB76,BC76)) -> 0 | BG76: =IF(AY76="",0,IF(ISERROR(IF(AY76>=th_24h_Graf!BJ76,th_24h_Graf!$J$3,0)),0,IF(AY76>=th_24h_Graf!BJ76,th_24h_Graf!$J$3,0))) ->  | BH76: 0
C77: =IF(th_24h_Graf!$G$3="","",C76+th_24h_Graf!$J$3) -> 1.027777778 | H77: =IF(th_24h_Graf!$G$3="","",H76+th_24h_Graf!$J$3) -> 1.027777778 | K77: =IF(AND(th_24h_Graf_Tot!$R$1=TRUE,J77>0),BC77,NA()) ->  | L77: =IF(AND(th_24h_Graf_Tot!$Q$1=TRUE,J77>0),BD77,NA()) ->  | N77: =IF(AND(th_24h_Graf_Tot!$M$1=TRUE,E77>0),E77,NA()) ->  | O77: =IF(AND(th_24h_Graf_Tot!$V$1=TRUE,D77>0),D77,NA()) ->  | AU77: 0 | AW77: =IF(th_24h_Graf_Tot!$L$83=0,"",D77-(th_24h_Graf_Tot!$Q$82/th_24h_Graf_Tot!$L$83)*(D77-IF(I77="",TE,I77))) ->  | AY77: =IF(AND(th_24h_Graf_Tot!$A$4=TRUE,BB77>0),BB77,NA()) ->  | BA77: 0 | BB77: =IF(th_24h_Graf_Tot!$A$4=FALSE,"",IF(ISERROR(IF(AW77="","",IF(AU77/(610.5*EXP(1)^((17.269*AW77)/(237.3+AW77)))*100>100,100,AU77/(610.5*EXP(1)^((17.269*AW77)/(237.3+AW77)))*100))),"",IF(AW77="","",IF(AU77/(610.5*EXP(1)^((17.269*AW77)/(237.3+AW77)))*100>100,100,AU77/(610.5*EXP(1)^((17.269*AW77)/(237.3+AW77)))*100)))) ->  | BC77: 0 | BD77: =IF(th_24h_Graf!$J$3<0.02,BA77,IF(th_24h_Graf!$J$3<0.04,BB77,BC77)) -> 0 | BG77: =IF(AY77="",0,IF(ISERROR(IF(AY77>=th_24h_Graf!BJ77,th_24h_Graf!$J$3,0)),0,IF(AY77>=th_24h_Graf!BJ77,th_24h_Graf!$J$3,0))) ->  | BH77: 0
C78: =IF(th_24h_Graf!$G$3="","",C77+th_24h_Graf!$J$3) -> 1.041666667 | H78: =IF(th_24h_Graf!$G$3="","",H77+th_24h_Graf!$J$3) -> 1.041666667 | K78: =IF(AND(th_24h_Graf_Tot!$R$1=TRUE,J78>0),BC78,NA()) ->  | L78: =IF(AND(th_24h_Graf_Tot!$Q$1=TRUE,J78>0),BD78,NA()) ->  | N78: =IF(AND(th_24h_Graf_Tot!$M$1=TRUE,E78>0),E78,NA()) ->  | O78: =IF(AND(th_24h_Graf_Tot!$V$1=TRUE,D78>0),D78,NA()) ->  | AU78: 0 | AW78: =IF(th_24h_Graf_Tot!$L$83=0,"",D78-(th_24h_Graf_Tot!$Q$82/th_24h_Graf_Tot!$L$83)*(D78-IF(I78="",TE,I78))) ->  | AY78: =IF(AND(th_24h_Graf_Tot!$A$4=TRUE,BB78>0),BB78,NA()) ->  | BA78: 0 | BB78: =IF(th_24h_Graf_Tot!$A$4=FALSE,"",IF(ISERROR(IF(AW78="","",IF(AU78/(610.5*EXP(1)^((17.269*AW78)/(237.3+AW78)))*100>100,100,AU78/(610.5*EXP(1)^((17.269*AW78)/(237.3+AW78)))*100))),"",IF(AW78="","",IF(AU78/(610.5*EXP(1)^((17.269*AW78)/(237.3+AW78)))*100>100,100,AU78/(610.5*EXP(1)^((17.269*AW78)/(237.3+AW78)))*100)))) ->  | BC78: 0 | BD78: =IF(th_24h_Graf!$J$3<0.02,BA78,IF(th_24h_Graf!$J$3<0.04,BB78,BC78)) -> 0 | BG78: =IF(AY78="",0,IF(ISERROR(IF(AY78>=th_24h_Graf!BJ78,th_24h_Graf!$J$3,0)),0,IF(AY78>=th_24h_Graf!BJ78,th_24h_Graf!$J$3,0))) ->  | BH78: 0
C79: =IF(th_24h_Graf!$G$3="","",C78+th_24h_Graf!$J$3) -> 1.055555556 | H79: =IF(th_24h_Graf!$G$3="","",H78+th_24h_Graf!$J$3) -> 1.055555556 | K79: =IF(AND(th_24h_Graf_Tot!$R$1=TRUE,J79>0),BC79,NA()) ->  | L79: =IF(AND(th_24h_Graf_Tot!$Q$1=TRUE,J79>0),BD79,NA()) ->  | N79: =IF(AND(th_24h_Graf_Tot!$M$1=TRUE,E79>0),E79,NA()) ->  | O79: =IF(AND(th_24h_Graf_Tot!$V$1=TRUE,D79>0),D79,NA()) ->  | AU79: 0 | AW79: =IF(th_24h_Graf_Tot!$L$83=0,"",D79-(th_24h_Graf_Tot!$Q$82/th_24h_Graf_Tot!$L$83)*(D79-IF(I79="",TE,I79))) ->  | AY79: =IF(AND(th_24h_Graf_Tot!$A$4=TRUE,BB79>0),BB79,NA()) ->  | BA79: 0 | BB79: =IF(th_24h_Graf_Tot!$A$4=FALSE,"",IF(ISERROR(IF(AW79="","",IF(AU79/(610.5*EXP(1)^((17.269*AW79)/(237.3+AW79)))*100>100,100,AU79/(610.5*EXP(1)^((17.269*AW79)/(237.3+AW79)))*100))),"",IF(AW79="","",IF(AU79/(610.5*EXP(1)^((17.269*AW79)/(237.3+AW79)))*100>100,100,AU79/(610.5*EXP(1)^((17.269*AW79)/(237.3+AW79)))*100)))) ->  | BC79: 0 | BD79: =IF(th_24h_Graf!$J$3<0.02,BA79,IF(th_24h_Graf!$J$3<0.04,BB79,BC79)) -> 0 | BG79: =IF(AY79="",0,IF(ISERROR(IF(AY79>=th_24h_Graf!BJ79,th_24h_Graf!$J$3,0)),0,IF(AY79>=th_24h_Graf!BJ79,th_24h_Graf!$J$3,0))) ->  | BH79: 0
C80: =IF(th_24h_Graf!$G$3="","",C79+th_24h_Graf!$J$3) -> 1.069444444 | H80: =IF(th_24h_Graf!$G$3="","",H79+th_24h_Graf!$J$3) -> 1.069444444 | K80: =IF(AND(th_24h_Graf_Tot!$R$1=TRUE,J80>0),BC80,NA()) ->  | L80: =IF(AND(th_24h_Graf_Tot!$Q$1=TRUE,J80>0),BD80,NA()) ->  | N80: =IF(AND(th_24h_Graf_Tot!$M$1=TRUE,E80>0),E80,NA()) ->  | O80: =IF(AND(th_24h_Graf_Tot!$V$1=TRUE,D80>0),D80,NA()) ->  | AU80: 0 | AW80: =IF(th_24h_Graf_Tot!$L$83=0,"",D80-(th_24h_Graf_Tot!$Q$82/th_24h_Graf_Tot!$L$83)*(D80-IF(I80="",TE,I80))) ->  | AY80: =IF(AND(th_24h_Graf_Tot!$A$4=TRUE,BB80>0),BB80,NA()) ->  | BA80: 0 | BB80: =IF(th_24h_Graf_Tot!$A$4=FALSE,"",IF(ISERROR(IF(AW80="","",IF(AU80/(610.5*EXP(1)^((17.269*AW80)/(237.3+AW80)))*100>100,100,AU80/(610.5*EXP(1)^((17.269*AW80)/(237.3+AW80)))*100))),"",IF(AW80="","",IF(AU80/(610.5*EXP(1)^((17.269*AW80)/(237.3+AW80)))*100>100,100,AU80/(610.5*EXP(1)^((17.269*AW80)/(237.3+AW80)))*100)))) ->  | BC80: 0 | BD80: =IF(th_24h_Graf!$J$3<0.02,BA80,IF(th_24h_Graf!$J$3<0.04,BB80,BC80)) -> 0 | BG80: =IF(AY80="",0,IF(ISERROR(IF(AY80>=th_24h_Graf!BJ80,th_24h_Graf!$J$3,0)),0,IF(AY80>=th_24h_Graf!BJ80,th_24h_Graf!$J$3,0))) ->  | BH80: 0
C81: =IF(th_24h_Graf!$G$3="","",C80+th_24h_Graf!$J$3) -> 1.083333333 | H81: =IF(th_24h_Graf!$G$3="","",H80+th_24h_Graf!$J$3) -> 1.083333333 | K81: =IF(AND(th_24h_Graf_Tot!$R$1=TRUE,J81>0),BC81,NA()) ->  | L81: =IF(AND(th_24h_Graf_Tot!$Q$1=TRUE,J81>0),BD81,NA()) ->  | N81: =IF(AND(th_24h_Graf_Tot!$M$1=TRUE,E81>0),E81,NA()) ->  | O81: =IF(AND(th_24h_Graf_Tot!$V$1=TRUE,D81>0),D81,NA()) ->  | AU81: 0 | AW81: =IF(th_24h_Graf_Tot!$L$83=0,"",D81-(th_24h_Graf_Tot!$Q$82/th_24h_Graf_Tot!$L$83)*(D81-IF(I81="",TE,I81))) ->  | AY81: =IF(AND(th_24h_Graf_Tot!$A$4=TRUE,BB81>0),BB81,NA()) ->  | BA81: 0 | BB81: =IF(th_24h_Graf_Tot!$A$4=FALSE,"",IF(ISERROR(IF(AW81="","",IF(AU81/(610.5*EXP(1)^((17.269*AW81)/(237.3+AW81)))*100>100,100,AU81/(610.5*EXP(1)^((17.269*AW81)/(237.3+AW81)))*100))),"",IF(AW81="","",IF(AU81/(610.5*EXP(1)^((17.269*AW81)/(237.3+AW81)))*100>100,100,AU81/(610.5*EXP(1)^((17.269*AW81)/(237.3+AW81)))*100)))) ->  | BC81: 0 | BD81: =IF(th_24h_Graf!$J$3<0.02,BA81,IF(th_24h_Graf!$J$3<0.04,BB81,BC81)) -> 0 | BG81: =IF(AY81="",0,IF(ISERROR(IF(AY81>=th_24h_Graf!BJ81,th_24h_Graf!$J$3,0)),0,IF(AY81>=th_24h_Graf!BJ81,th_24h_Graf!$J$3,0))) ->  | BH81: 0
C82: =IF(th_24h_Graf!$G$3="","",C81+th_24h_Graf!$J$3) -> 1.097222222 | H82: =IF(th_24h_Graf!$G$3="","",H81+th_24h_Graf!$J$3) -> 1.097222222 | K82: =IF(AND(th_24h_Graf_Tot!$R$1=TRUE,J82>0),BC82,NA()) ->  | L82: =IF(AND(th_24h_Graf_Tot!$Q$1=TRUE,J82>0),BD82,NA()) ->  | N82: =IF(AND(th_24h_Graf_Tot!$M$1=TRUE,E82>0),E82,NA()) ->  | O82: =IF(AND(th_24h_Graf_Tot!$V$1=TRUE,D82>0),D82,NA()) ->  | AU82: 0 | AW82: =IF(th_24h_Graf_Tot!$L$83=0,"",D82-(th_24h_Graf_Tot!$Q$82/th_24h_Graf_Tot!$L$83)*(D82-IF(I82="",TE,I82))) ->  | AY82: =IF(AND(th_24h_Graf_Tot!$A$4=TRUE,BB82>0),BB82,NA()) ->  | BA82: 0 | BB82: =IF(th_24h_Graf_Tot!$A$4=FALSE,"",IF(ISERROR(IF(AW82="","",IF(AU82/(610.5*EXP(1)^((17.269*AW82)/(237.3+AW82)))*100>100,100,AU82/(610.5*EXP(1)^((17.269*AW82)/(237.3+AW82)))*100))),"",IF(AW82="","",IF(AU82/(610.5*EXP(1)^((17.269*AW82)/(237.3+AW82)))*100>100,100,AU82/(610.5*EXP(1)^((17.269*AW82)/(237.3+AW82)))*100)))) ->  | BC82: 0 | BD82: =IF(th_24h_Graf!$J$3<0.02,BA82,IF(th_24h_Graf!$J$3<0.04,BB82,BC82)) -> 0 | BG82: =IF(AY82="",0,IF(ISERROR(IF(AY82>=th_24h_Graf!BJ82,th_24h_Graf!$J$3,0)),0,IF(AY82>=th_24h_Graf!BJ82,th_24h_Graf!$J$3,0))) ->  | BH82: 0
C83: =IF(th_24h_Graf!$G$3="","",C82+th_24h_Graf!$J$3) -> 1.111111111 | H83: =IF(th_24h_Graf!$G$3="","",H82+th_24h_Graf!$J$3) -> 1.111111111 | K83: =IF(AND(th_24h_Graf_Tot!$R$1=TRUE,J83>0),BC83,NA()) ->  | L83: =IF(AND(th_24h_Graf_Tot!$Q$1=TRUE,J83>0),BD83,NA()) ->  | N83: =IF(AND(th_24h_Graf_Tot!$M$1=TRUE,E83>0),E83,NA()) ->  | O83: =IF(AND(th_24h_Graf_Tot!$V$1=TRUE,D83>0),D83,NA()) ->  | AU83: 0 | AW83: =IF(th_24h_Graf_Tot!$L$83=0,"",D83-(th_24h_Graf_Tot!$Q$82/th_24h_Graf_Tot!$L$83)*(D83-IF(I83="",TE,I83))) ->  | AY83: =IF(AND(th_24h_Graf_Tot!$A$4=TRUE,BB83>0),BB83,NA()) ->  | BA83: 0 | BB83: =IF(th_24h_Graf_Tot!$A$4=FALSE,"",IF(ISERROR(IF(AW83="","",IF(AU83/(610.5*EXP(1)^((17.269*AW83)/(237.3+AW83)))*100>100,100,AU83/(610.5*EXP(1)^((17.269*AW83)/(237.3+AW83)))*100))),"",IF(AW83="","",IF(AU83/(610.5*EXP(1)^((17.269*AW83)/(237.3+AW83)))*100>100,100,AU83/(610.5*EXP(1)^((17.269*AW83)/(237.3+AW83)))*100)))) ->  | BC83: 0 | BD83: =IF(th_24h_Graf!$J$3<0.02,BA83,IF(th_24h_Graf!$J$3<0.04,BB83,BC83)) -> 0 | BG83: =IF(AY83="",0,IF(ISERROR(IF(AY83>=th_24h_Graf!BJ83,th_24h_Graf!$J$3,0)),0,IF(AY83>=th_24h_Graf!BJ83,th_24h_Graf!$J$3,0))) ->  | BH83: 0
C84: =IF(th_24h_Graf!$G$3="","",C83+th_24h_Graf!$J$3) -> 1.125 | H84: =IF(th_24h_Graf!$G$3="","",H83+th_24h_Graf!$J$3) -> 1.125 | K84: =IF(AND(th_24h_Graf_Tot!$R$1=TRUE,J84>0),BC84,NA()) ->  | L84: =IF(AND(th_24h_Graf_Tot!$Q$1=TRUE,J84>0),BD84,NA()) ->  | N84: =IF(AND(th_24h_Graf_Tot!$M$1=TRUE,E84>0),E84,NA()) ->  | O84: =IF(AND(th_24h_Graf_Tot!$V$1=TRUE,D84>0),D84,NA()) ->  | AU84: 0 | AW84: =IF(th_24h_Graf_Tot!$L$83=0,"",D84-(th_24h_Graf_Tot!$Q$82/th_24h_Graf_Tot!$L$83)*(D84-IF(I84="",TE,I84))) ->  | AY84: =IF(AND(th_24h_Graf_Tot!$A$4=TRUE,BB84>0),BB84,NA()) ->  | BA84: 0 | BB84: =IF(th_24h_Graf_Tot!$A$4=FALSE,"",IF(ISERROR(IF(AW84="","",IF(AU84/(610.5*EXP(1)^((17.269*AW84)/(237.3+AW84)))*100>100,100,AU84/(610.5*EXP(1)^((17.269*AW84)/(237.3+AW84)))*100))),"",IF(AW84="","",IF(AU84/(610.5*EXP(1)^((17.269*AW84)/(237.3+AW84)))*100>100,100,AU84/(610.5*EXP(1)^((17.269*AW84)/(237.3+AW84)))*100)))) ->  | BC84: 0 | BD84: =IF(th_24h_Graf!$J$3<0.02,BA84,IF(th_24h_Graf!$J$3<0.04,BB84,BC84)) -> 0 | BG84: =IF(AY84="",0,IF(ISERROR(IF(AY84>=th_24h_Graf!BJ84,th_24h_Graf!$J$3,0)),0,IF(AY84>=th_24h_Graf!BJ84,th_24h_Graf!$J$3,0))) ->  | BH84: 0
C85: =IF(th_24h_Graf!$G$3="","",C84+th_24h_Graf!$J$3) -> 1.138888889 | H85: =IF(th_24h_Graf!$G$3="","",H84+th_24h_Graf!$J$3) -> 1.138888889 | K85: =IF(AND(th_24h_Graf_Tot!$R$1=TRUE,J85>0),BC85,NA()) ->  | L85: =IF(AND(th_24h_Graf_Tot!$Q$1=TRUE,J85>0),BD85,NA()) ->  | N85: =IF(AND(th_24h_Graf_Tot!$M$1=TRUE,E85>0),E85,NA()) ->  | O85: =IF(AND(th_24h_Graf_Tot!$V$1=TRUE,D85>0),D85,NA()) ->  | AU85: 0 | AW85: =IF(th_24h_Graf_Tot!$L$83=0,"",D85-(th_24h_Graf_Tot!$Q$82/th_24h_Graf_Tot!$L$83)*(D85-IF(I85="",TE,I85))) ->  | AY85: =IF(AND(th_24h_Graf_Tot!$A$4=TRUE,BB85>0),BB85,NA()) ->  | BA85: 0 | BB85: =IF(th_24h_Graf_Tot!$A$4=FALSE,"",IF(ISERROR(IF(AW85="","",IF(AU85/(610.5*EXP(1)^((17.269*AW85)/(237.3+AW85)))*100>100,100,AU85/(610.5*EXP(1)^((17.269*AW85)/(237.3+AW85)))*100))),"",IF(AW85="","",IF(AU85/(610.5*EXP(1)^((17.269*AW85)/(237.3+AW85)))*100>100,100,AU85/(610.5*EXP(1)^((17.269*AW85)/(237.3+AW85)))*100)))) ->  | BC85: 0 | BD85: =IF(th_24h_Graf!$J$3<0.02,BA85,IF(th_24h_Graf!$J$3<0.04,BB85,BC85)) -> 0 | BG85: =IF(AY85="",0,IF(ISERROR(IF(AY85>=th_24h_Graf!BJ85,th_24h_Graf!$J$3,0)),0,IF(AY85>=th_24h_Graf!BJ85,th_24h_Graf!$J$3,0))) ->  | BH85: 0
C86: =IF(th_24h_Graf!$G$3="","",C85+th_24h_Graf!$J$3) -> 1.152777778 | H86: =IF(th_24h_Graf!$G$3="","",H85+th_24h_Graf!$J$3) -> 1.152777778 | K86: =IF(AND(th_24h_Graf_Tot!$R$1=TRUE,J86>0),BC86,NA()) ->  | L86: =IF(AND(th_24h_Graf_Tot!$Q$1=TRUE,J86>0),BD86,NA()) ->  | N86: =IF(AND(th_24h_Graf_Tot!$M$1=TRUE,E86>0),E86,NA()) ->  | O86: =IF(AND(th_24h_Graf_Tot!$V$1=TRUE,D86>0),D86,NA()) ->  | AU86: 0 | AW86: =IF(th_24h_Graf_Tot!$L$83=0,"",D86-(th_24h_Graf_Tot!$Q$82/th_24h_Graf_Tot!$L$83)*(D86-IF(I86="",TE,I86))) ->  | AY86: =IF(AND(th_24h_Graf_Tot!$A$4=TRUE,BB86>0),BB86,NA()) ->  | BA86: 0 | BB86: =IF(th_24h_Graf_Tot!$A$4=FALSE,"",IF(ISERROR(IF(AW86="","",IF(AU86/(610.5*EXP(1)^((17.269*AW86)/(237.3+AW86)))*100>100,100,AU86/(610.5*EXP(1)^((17.269*AW86)/(237.3+AW86)))*100))),"",IF(AW86="","",IF(AU86/(610.5*EXP(1)^((17.269*AW86)/(237.3+AW86)))*100>100,100,AU86/(610.5*EXP(1)^((17.269*AW86)/(237.3+AW86)))*100)))) ->  | BC86: 0 | BD86: =IF(th_24h_Graf!$J$3<0.02,BA86,IF(th_24h_Graf!$J$3<0.04,BB86,BC86)) -> 0 | BG86: =IF(AY86="",0,IF(ISERROR(IF(AY86>=th_24h_Graf!BJ86,th_24h_Graf!$J$3,0)),0,IF(AY86>=th_24h_Graf!BJ86,th_24h_Graf!$J$3,0))) ->  | BH86: 0
C87: =IF(th_24h_Graf!$G$3="","",C86+th_24h_Graf!$J$3) -> 1.166666667 | H87: =IF(th_24h_Graf!$G$3="","",H86+th_24h_Graf!$J$3) -> 1.166666667 | K87: =IF(AND(th_24h_Graf_Tot!$R$1=TRUE,J87>0),BC87,NA()) ->  | L87: =IF(AND(th_24h_Graf_Tot!$Q$1=TRUE,J87>0),BD87,NA()) ->  | N87: =IF(AND(th_24h_Graf_Tot!$M$1=TRUE,E87>0),E87,NA()) ->  | O87: =IF(AND(th_24h_Graf_Tot!$V$1=TRUE,D87>0),D87,NA()) ->  | AU87: 0 | AW87: =IF(th_24h_Graf_Tot!$L$83=0,"",D87-(th_24h_Graf_Tot!$Q$82/th_24h_Graf_Tot!$L$83)*(D87-IF(I87="",TE,I87))) ->  | AY87: =IF(AND(th_24h_Graf_Tot!$A$4=TRUE,BB87>0),BB87,NA()) ->  | BA87: 0 | BB87: =IF(th_24h_Graf_Tot!$A$4=FALSE,"",IF(ISERROR(IF(AW87="","",IF(AU87/(610.5*EXP(1)^((17.269*AW87)/(237.3+AW87)))*100>100,100,AU87/(610.5*EXP(1)^((17.269*AW87)/(237.3+AW87)))*100))),"",IF(AW87="","",IF(AU87/(610.5*EXP(1)^((17.269*AW87)/(237.3+AW87)))*100>100,100,AU87/(610.5*EXP(1)^((17.269*AW87)/(237.3+AW87)))*100)))) ->  | BC87: 0 | BD87: =IF(th_24h_Graf!$J$3<0.02,BA87,IF(th_24h_Graf!$J$3<0.04,BB87,BC87)) -> 0 | BG87: =IF(AY87="",0,IF(ISERROR(IF(AY87>=th_24h_Graf!BJ87,th_24h_Graf!$J$3,0)),0,IF(AY87>=th_24h_Graf!BJ87,th_24h_Graf!$J$3,0))) ->  | BH87: 0
C88: =IF(th_24h_Graf!$G$3="","",C87+th_24h_Graf!$J$3) -> 1.180555556 | H88: =IF(th_24h_Graf!$G$3="","",H87+th_24h_Graf!$J$3) -> 1.180555556 | K88: =IF(AND(th_24h_Graf_Tot!$R$1=TRUE,J88>0),BC88,NA()) ->  | L88: =IF(AND(th_24h_Graf_Tot!$Q$1=TRUE,J88>0),BD88,NA()) ->  | N88: =IF(AND(th_24h_Graf_Tot!$M$1=TRUE,E88>0),E88,NA()) ->  | O88: =IF(AND(th_24h_Graf_Tot!$V$1=TRUE,D88>0),D88,NA()) ->  | AU88: 0 | AW88: =IF(th_24h_Graf_Tot!$L$83=0,"",D88-(th_24h_Graf_Tot!$Q$82/th_24h_Graf_Tot!$L$83)*(D88-IF(I88="",TE,I88))) ->  | AY88: =IF(AND(th_24h_Graf_Tot!$A$4=TRUE,BB88>0),BB88,NA()) ->  | BA88: 0 | BB88: =IF(th_24h_Graf_Tot!$A$4=FALSE,"",IF(ISERROR(IF(AW88="","",IF(AU88/(610.5*EXP(1)^((17.269*AW88)/(237.3+AW88)))*100>100,100,AU88/(610.5*EXP(1)^((17.269*AW88)/(237.3+AW88)))*100))),"",IF(AW88="","",IF(AU88/(610.5*EXP(1)^((17.269*AW88)/(237.3+AW88)))*100>100,100,AU88/(610.5*EXP(1)^((17.269*AW88)/(237.3+AW88)))*100)))) ->  | BC88: 0 | BD88: =IF(th_24h_Graf!$J$3<0.02,BA88,IF(th_24h_Graf!$J$3<0.04,BB88,BC88)) -> 0 | BG88: =IF(AY88="",0,IF(ISERROR(IF(AY88>=th_24h_Graf!BJ88,th_24h_Graf!$J$3,0)),0,IF(AY88>=th_24h_Graf!BJ88,th_24h_Graf!$J$3,0))) ->  | BH88: 0
C89: =IF(th_24h_Graf!$G$3="","",C88+th_24h_Graf!$J$3) -> 1.194444444 | H89: =IF(th_24h_Graf!$G$3="","",H88+th_24h_Graf!$J$3) -> 1.194444444 | K89: =IF(AND(th_24h_Graf_Tot!$R$1=TRUE,J89>0),BC89,NA()) ->  | L89: =IF(AND(th_24h_Graf_Tot!$Q$1=TRUE,J89>0),BD89,NA()) ->  | N89: =IF(AND(th_24h_Graf_Tot!$M$1=TRUE,E89>0),E89,NA()) ->  | O89: =IF(AND(th_24h_Graf_Tot!$V$1=TRUE,D89>0),D89,NA()) ->  | AU89: 0 | AW89: =IF(th_24h_Graf_Tot!$L$83=0,"",D89-(th_24h_Graf_Tot!$Q$82/th_24h_Graf_Tot!$L$83)*(D89-IF(I89="",TE,I89))) ->  | AY89: =IF(AND(th_24h_Graf_Tot!$A$4=TRUE,BB89>0),BB89,NA()) ->  | BA89: 0 | BB89: =IF(th_24h_Graf_Tot!$A$4=FALSE,"",IF(ISERROR(IF(AW89="","",IF(AU89/(610.5*EXP(1)^((17.269*AW89)/(237.3+AW89)))*100>100,100,AU89/(610.5*EXP(1)^((17.269*AW89)/(237.3+AW89)))*100))),"",IF(AW89="","",IF(AU89/(610.5*EXP(1)^((17.269*AW89)/(237.3+AW89)))*100>100,100,AU89/(610.5*EXP(1)^((17.269*AW89)/(237.3+AW89)))*100)))) ->  | BC89: 0 | BD89: =IF(th_24h_Graf!$J$3<0.02,BA89,IF(th_24h_Graf!$J$3<0.04,BB89,BC89)) -> 0 | BG89: =IF(AY89="",0,IF(ISERROR(IF(AY89>=th_24h_Graf!BJ89,th_24h_Graf!$J$3,0)),0,IF(AY89>=th_24h_Graf!BJ89,th_24h_Graf!$J$3,0))) ->  | BH89: 0
C90: =IF(th_24h_Graf!$G$3="","",C89+th_24h_Graf!$J$3) -> 1.208333333 | H90: =IF(th_24h_Graf!$G$3="","",H89+th_24h_Graf!$J$3) -> 1.208333333 | K90: =IF(AND(th_24h_Graf_Tot!$R$1=TRUE,J90>0),BC90,NA()) ->  | L90: =IF(AND(th_24h_Graf_Tot!$Q$1=TRUE,J90>0),BD90,NA()) ->  | N90: =IF(AND(th_24h_Graf_Tot!$M$1=TRUE,E90>0),E90,NA()) ->  | O90: =IF(AND(th_24h_Graf_Tot!$V$1=TRUE,D90>0),D90,NA()) ->  | AU90: 0 | AW90: =IF(th_24h_Graf_Tot!$L$83=0,"",D90-(th_24h_Graf_Tot!$Q$82/th_24h_Graf_Tot!$L$83)*(D90-IF(I90="",TE,I90))) ->  | AY90: =IF(AND(th_24h_Graf_Tot!$A$4=TRUE,BB90>0),BB90,NA()) ->  | BA90: 0 | BB90: =IF(th_24h_Graf_Tot!$A$4=FALSE,"",IF(ISERROR(IF(AW90="","",IF(AU90/(610.5*EXP(1)^((17.269*AW90)/(237.3+AW90)))*100>100,100,AU90/(610.5*EXP(1)^((17.269*AW90)/(237.3+AW90)))*100))),"",IF(AW90="","",IF(AU90/(610.5*EXP(1)^((17.269*AW90)/(237.3+AW90)))*100>100,100,AU90/(610.5*EXP(1)^((17.269*AW90)/(237.3+AW90)))*100)))) ->  | BC90: 0 | BD90: =IF(th_24h_Graf!$J$3<0.02,BA90,IF(th_24h_Graf!$J$3<0.04,BB90,BC90)) -> 0 | BG90: =IF(AY90="",0,IF(ISERROR(IF(AY90>=th_24h_Graf!BJ90,th_24h_Graf!$J$3,0)),0,IF(AY90>=th_24h_Graf!BJ90,th_24h_Graf!$J$3,0))) ->  | BH90: 0
C91: =IF(th_24h_Graf!$G$3="","",C90+th_24h_Graf!$J$3) -> 1.222222222 | H91: =IF(th_24h_Graf!$G$3="","",H90+th_24h_Graf!$J$3) -> 1.222222222 | K91: =IF(AND(th_24h_Graf_Tot!$R$1=TRUE,J91>0),BC91,NA()) ->  | L91: =IF(AND(th_24h_Graf_Tot!$Q$1=TRUE,J91>0),BD91,NA()) ->  | N91: =IF(AND(th_24h_Graf_Tot!$M$1=TRUE,E91>0),E91,NA()) ->  | O91: =IF(AND(th_24h_Graf_Tot!$V$1=TRUE,D91>0),D91,NA()) ->  | AU91: 0 | AW91: =IF(th_24h_Graf_Tot!$L$83=0,"",D91-(th_24h_Graf_Tot!$Q$82/th_24h_Graf_Tot!$L$83)*(D91-IF(I91="",TE,I91))) ->  | AY91: =IF(AND(th_24h_Graf_Tot!$A$4=TRUE,BB91>0),BB91,NA()) ->  | BA91: 0 | BB91: =IF(th_24h_Graf_Tot!$A$4=FALSE,"",IF(ISERROR(IF(AW91="","",IF(AU91/(610.5*EXP(1)^((17.269*AW91)/(237.3+AW91)))*100>100,100,AU91/(610.5*EXP(1)^((17.269*AW91)/(237.3+AW91)))*100))),"",IF(AW91="","",IF(AU91/(610.5*EXP(1)^((17.269*AW91)/(237.3+AW91)))*100>100,100,AU91/(610.5*EXP(1)^((17.269*AW91)/(237.3+AW91)))*100)))) ->  | BC91: 0 | BD91: =IF(th_24h_Graf!$J$3<0.02,BA91,IF(th_24h_Graf!$J$3<0.04,BB91,BC91)) -> 0 | BG91: =IF(AY91="",0,IF(ISERROR(IF(AY91>=th_24h_Graf!BJ91,th_24h_Graf!$J$3,0)),0,IF(AY91>=th_24h_Graf!BJ91,th_24h_Graf!$J$3,0))) ->  | BH91: 0
C92: =IF(th_24h_Graf!$G$3="","",C91+th_24h_Graf!$J$3) -> 1.236111111 | H92: =IF(th_24h_Graf!$G$3="","",H91+th_24h_Graf!$J$3) -> 1.236111111 | K92: =IF(AND(th_24h_Graf_Tot!$R$1=TRUE,J92>0),BC92,NA()) ->  | L92: =IF(AND(th_24h_Graf_Tot!$Q$1=TRUE,J92>0),BD92,NA()) ->  | N92: =IF(AND(th_24h_Graf_Tot!$M$1=TRUE,E92>0),E92,NA()) ->  | O92: =IF(AND(th_24h_Graf_Tot!$V$1=TRUE,D92>0),D92,NA()) ->  | AU92: 0 | AW92: =IF(th_24h_Graf_Tot!$L$83=0,"",D92-(th_24h_Graf_Tot!$Q$82/th_24h_Graf_Tot!$L$83)*(D92-IF(I92="",TE,I92))) ->  | AY92: =IF(AND(th_24h_Graf_Tot!$A$4=TRUE,BB92>0),BB92,NA()) ->  | BA92: 0 | BB92: =IF(th_24h_Graf_Tot!$A$4=FALSE,"",IF(ISERROR(IF(AW92="","",IF(AU92/(610.5*EXP(1)^((17.269*AW92)/(237.3+AW92)))*100>100,100,AU92/(610.5*EXP(1)^((17.269*AW92)/(237.3+AW92)))*100))),"",IF(AW92="","",IF(AU92/(610.5*EXP(1)^((17.269*AW92)/(237.3+AW92)))*100>100,100,AU92/(610.5*EXP(1)^((17.269*AW92)/(237.3+AW92)))*100)))) ->  | BC92: 0 | BD92: =IF(th_24h_Graf!$J$3<0.02,BA92,IF(th_24h_Graf!$J$3<0.04,BB92,BC92)) -> 0 | BG92: =IF(AY92="",0,IF(ISERROR(IF(AY92>=th_24h_Graf!BJ92,th_24h_Graf!$J$3,0)),0,IF(AY92>=th_24h_Graf!BJ92,th_24h_Graf!$J$3,0))) ->  | BH92: 0
C93: =IF(th_24h_Graf!$G$3="","",C92+th_24h_Graf!$J$3) -> 1.25 | H93: =IF(th_24h_Graf!$G$3="","",H92+th_24h_Graf!$J$3) -> 1.25 | K93: =IF(AND(th_24h_Graf_Tot!$R$1=TRUE,J93>0),BC93,NA()) ->  | L93: =IF(AND(th_24h_Graf_Tot!$Q$1=TRUE,J93>0),BD93,NA()) ->  | N93: =IF(AND(th_24h_Graf_Tot!$M$1=TRUE,E93>0),E93,NA()) ->  | O93: =IF(AND(th_24h_Graf_Tot!$V$1=TRUE,D93>0),D93,NA()) ->  | AU93: 0 | AW93: =IF(th_24h_Graf_Tot!$L$83=0,"",D93-(th_24h_Graf_Tot!$Q$82/th_24h_Graf_Tot!$L$83)*(D93-IF(I93="",TE,I93))) ->  | AY93: =IF(AND(th_24h_Graf_Tot!$A$4=TRUE,BB93>0),BB93,NA()) ->  | BA93: 0 | BB93: =IF(th_24h_Graf_Tot!$A$4=FALSE,"",IF(ISERROR(IF(AW93="","",IF(AU93/(610.5*EXP(1)^((17.269*AW93)/(237.3+AW93)))*100>100,100,AU93/(610.5*EXP(1)^((17.269*AW93)/(237.3+AW93)))*100))),"",IF(AW93="","",IF(AU93/(610.5*EXP(1)^((17.269*AW93)/(237.3+AW93)))*100>100,100,AU93/(610.5*EXP(1)^((17.269*AW93)/(237.3+AW93)))*100)))) ->  | BC93: 0 | BD93: =IF(th_24h_Graf!$J$3<0.02,BA93,IF(th_24h_Graf!$J$3<0.04,BB93,BC93)) -> 0 | BG93: =IF(AY93="",0,IF(ISERROR(IF(AY93>=th_24h_Graf!BJ93,th_24h_Graf!$J$3,0)),0,IF(AY93>=th_24h_Graf!BJ93,th_24h_Graf!$J$3,0))) ->  | BH93: 0
C94: =IF(th_24h_Graf!$G$3="","",C93+th_24h_Graf!$J$3) -> 1.263888889 | H94: =IF(th_24h_Graf!$G$3="","",H93+th_24h_Graf!$J$3) -> 1.263888889 | K94: =IF(AND(th_24h_Graf_Tot!$R$1=TRUE,J94>0),BC94,NA()) ->  | L94: =IF(AND(th_24h_Graf_Tot!$Q$1=TRUE,J94>0),BD94,NA()) ->  | N94: =IF(AND(th_24h_Graf_Tot!$M$1=TRUE,E94>0),E94,NA()) ->  | O94: =IF(AND(th_24h_Graf_Tot!$V$1=TRUE,D94>0),D94,NA()) ->  | AU94: 0 | AW94: =IF(th_24h_Graf_Tot!$L$83=0,"",D94-(th_24h_Graf_Tot!$Q$82/th_24h_Graf_Tot!$L$83)*(D94-IF(I94="",TE,I94))) ->  | AY94: =IF(AND(th_24h_Graf_Tot!$A$4=TRUE,BB94>0),BB94,NA()) ->  | BA94: 0 | BB94: =IF(th_24h_Graf_Tot!$A$4=FALSE,"",IF(ISERROR(IF(AW94="","",IF(AU94/(610.5*EXP(1)^((17.269*AW94)/(237.3+AW94)))*100>100,100,AU94/(610.5*EXP(1)^((17.269*AW94)/(237.3+AW94)))*100))),"",IF(AW94="","",IF(AU94/(610.5*EXP(1)^((17.269*AW94)/(237.3+AW94)))*100>100,100,AU94/(610.5*EXP(1)^((17.269*AW94)/(237.3+AW94)))*100)))) ->  | BC94: 0 | BD94: =IF(th_24h_Graf!$J$3<0.02,BA94,IF(th_24h_Graf!$J$3<0.04,BB94,BC94)) -> 0 | BG94: =IF(AY94="",0,IF(ISERROR(IF(AY94>=th_24h_Graf!BJ94,th_24h_Graf!$J$3,0)),0,IF(AY94>=th_24h_Graf!BJ94,th_24h_Graf!$J$3,0))) ->  | BH94: 0
C95: =IF(th_24h_Graf!$G$3="","",C94+th_24h_Graf!$J$3) -> 1.277777778 | H95: =IF(th_24h_Graf!$G$3="","",H94+th_24h_Graf!$J$3) -> 1.277777778 | K95: =IF(AND(th_24h_Graf_Tot!$R$1=TRUE,J95>0),BC95,NA()) ->  | L95: =IF(AND(th_24h_Graf_Tot!$Q$1=TRUE,J95>0),BD95,NA()) ->  | N95: =IF(AND(th_24h_Graf_Tot!$M$1=TRUE,E95>0),E95,NA()) ->  | O95: =IF(AND(th_24h_Graf_Tot!$V$1=TRUE,D95>0),D95,NA()) ->  | AU95: 0 | AW95: =IF(th_24h_Graf_Tot!$L$83=0,"",D95-(th_24h_Graf_Tot!$Q$82/th_24h_Graf_Tot!$L$83)*(D95-IF(I95="",TE,I95))) ->  | AY95: =IF(AND(th_24h_Graf_Tot!$A$4=TRUE,BB95>0),BB95,NA()) ->  | BA95: 0 | BB95: =IF(th_24h_Graf_Tot!$A$4=FALSE,"",IF(ISERROR(IF(AW95="","",IF(AU95/(610.5*EXP(1)^((17.269*AW95)/(237.3+AW95)))*100>100,100,AU95/(610.5*EXP(1)^((17.269*AW95)/(237.3+AW95)))*100))),"",IF(AW95="","",IF(AU95/(610.5*EXP(1)^((17.269*AW95)/(237.3+AW95)))*100>100,100,AU95/(610.5*EXP(1)^((17.269*AW95)/(237.3+AW95)))*100)))) ->  | BC95: 0 | BD95: =IF(th_24h_Graf!$J$3<0.02,BA95,IF(th_24h_Graf!$J$3<0.04,BB95,BC95)) -> 0 | BG95: =IF(AY95="",0,IF(ISERROR(IF(AY95>=th_24h_Graf!BJ95,th_24h_Graf!$J$3,0)),0,IF(AY95>=th_24h_Graf!BJ95,th_24h_Graf!$J$3,0))) ->  | BH95: 0
C96: =IF(th_24h_Graf!$G$3="","",C95+th_24h_Graf!$J$3) -> 1.291666667 | H96: =IF(th_24h_Graf!$G$3="","",H95+th_24h_Graf!$J$3) -> 1.291666667 | K96: =IF(AND(th_24h_Graf_Tot!$R$1=TRUE,J96>0),BC96,NA()) ->  | L96: =IF(AND(th_24h_Graf_Tot!$Q$1=TRUE,J96>0),BD96,NA()) ->  | N96: =IF(AND(th_24h_Graf_Tot!$M$1=TRUE,E96>0),E96,NA()) ->  | O96: =IF(AND(th_24h_Graf_Tot!$V$1=TRUE,D96>0),D96,NA()) ->  | AU96: 0 | AW96: =IF(th_24h_Graf_Tot!$L$83=0,"",D96-(th_24h_Graf_Tot!$Q$82/th_24h_Graf_Tot!$L$83)*(D96-IF(I96="",TE,I96))) ->  | AY96: =IF(AND(th_24h_Graf_Tot!$A$4=TRUE,BB96>0),BB96,NA()) ->  | BA96: 0 | BB96: =IF(th_24h_Graf_Tot!$A$4=FALSE,"",IF(ISERROR(IF(AW96="","",IF(AU96/(610.5*EXP(1)^((17.269*AW96)/(237.3+AW96)))*100>100,100,AU96/(610.5*EXP(1)^((17.269*AW96)/(237.3+AW96)))*100))),"",IF(AW96="","",IF(AU96/(610.5*EXP(1)^((17.269*AW96)/(237.3+AW96)))*100>100,100,AU96/(610.5*EXP(1)^((17.269*AW96)/(237.3+AW96)))*100)))) ->  | BC96: 0 | BD96: =IF(th_24h_Graf!$J$3<0.02,BA96,IF(th_24h_Graf!$J$3<0.04,BB96,BC96)) -> 0 | BG96: =IF(AY96="",0,IF(ISERROR(IF(AY96>=th_24h_Graf!BJ96,th_24h_Graf!$J$3,0)),0,IF(AY96>=th_24h_Graf!BJ96,th_24h_Graf!$J$3,0))) ->  | BH96: 0
C97: =IF(th_24h_Graf!$G$3="","",C96+th_24h_Graf!$J$3) -> 1.305555556 | H97: =IF(th_24h_Graf!$G$3="","",H96+th_24h_Graf!$J$3) -> 1.305555556 | K97: =IF(AND(th_24h_Graf_Tot!$R$1=TRUE,J97>0),BC97,NA()) ->  | L97: =IF(AND(th_24h_Graf_Tot!$Q$1=TRUE,J97>0),BD97,NA()) ->  | N97: =IF(AND(th_24h_Graf_Tot!$M$1=TRUE,E97>0),E97,NA()) ->  | O97: =IF(AND(th_24h_Graf_Tot!$V$1=TRUE,D97>0),D97,NA()) ->  | AU97: 0 | AW97: =IF(th_24h_Graf_Tot!$L$83=0,"",D97-(th_24h_Graf_Tot!$Q$82/th_24h_Graf_Tot!$L$83)*(D97-IF(I97="",TE,I97))) ->  | AY97: =IF(AND(th_24h_Graf_Tot!$A$4=TRUE,BB97>0),BB97,NA()) ->  | BA97: 0 | BB97: =IF(th_24h_Graf_Tot!$A$4=FALSE,"",IF(ISERROR(IF(AW97="","",IF(AU97/(610.5*EXP(1)^((17.269*AW97)/(237.3+AW97)))*100>100,100,AU97/(610.5*EXP(1)^((17.269*AW97)/(237.3+AW97)))*100))),"",IF(AW97="","",IF(AU97/(610.5*EXP(1)^((17.269*AW97)/(237.3+AW97)))*100>100,100,AU97/(610.5*EXP(1)^((17.269*AW97)/(237.3+AW97)))*100)))) ->  | BC97: 0 | BD97: =IF(th_24h_Graf!$J$3<0.02,BA97,IF(th_24h_Graf!$J$3<0.04,BB97,BC97)) -> 0 | BG97: =IF(AY97="",0,IF(ISERROR(IF(AY97>=th_24h_Graf!BJ97,th_24h_Graf!$J$3,0)),0,IF(AY97>=th_24h_Graf!BJ97,th_24h_Graf!$J$3,0))) ->  | BH97: 0
C98: =IF(th_24h_Graf!$G$3="","",C97+th_24h_Graf!$J$3) -> 1.319444444 | H98: =IF(th_24h_Graf!$G$3="","",H97+th_24h_Graf!$J$3) -> 1.319444444 | K98: =IF(AND(th_24h_Graf_Tot!$R$1=TRUE,J98>0),BC98,NA()) ->  | L98: =IF(AND(th_24h_Graf_Tot!$Q$1=TRUE,J98>0),BD98,NA()) ->  | N98: =IF(AND(th_24h_Graf_Tot!$M$1=TRUE,E98>0),E98,NA()) ->  | O98: =IF(AND(th_24h_Graf_Tot!$V$1=TRUE,D98>0),D98,NA()) ->  | AU98: 0 | AW98: =IF(th_24h_Graf_Tot!$L$83=0,"",D98-(th_24h_Graf_Tot!$Q$82/th_24h_Graf_Tot!$L$83)*(D98-IF(I98="",TE,I98))) ->  | AY98: =IF(AND(th_24h_Graf_Tot!$A$4=TRUE,BB98>0),BB98,NA()) ->  | BA98: 0 | BB98: =IF(th_24h_Graf_Tot!$A$4=FALSE,"",IF(ISERROR(IF(AW98="","",IF(AU98/(610.5*EXP(1)^((17.269*AW98)/(237.3+AW98)))*100>100,100,AU98/(610.5*EXP(1)^((17.269*AW98)/(237.3+AW98)))*100))),"",IF(AW98="","",IF(AU98/(610.5*EXP(1)^((17.269*AW98)/(237.3+AW98)))*100>100,100,AU98/(610.5*EXP(1)^((17.269*AW98)/(237.3+AW98)))*100)))) ->  | BC98: 0 | BD98: =IF(th_24h_Graf!$J$3<0.02,BA98,IF(th_24h_Graf!$J$3<0.04,BB98,BC98)) -> 0 | BG98: =IF(AY98="",0,IF(ISERROR(IF(AY98>=th_24h_Graf!BJ98,th_24h_Graf!$J$3,0)),0,IF(AY98>=th_24h_Graf!BJ98,th_24h_Graf!$J$3,0))) ->  | BH98: 0
C99: =IF(th_24h_Graf!$G$3="","",C98+th_24h_Graf!$J$3) -> 1.333333333 | H99: =IF(th_24h_Graf!$G$3="","",H98+th_24h_Graf!$J$3) -> 1.333333333 | K99: =IF(AND(th_24h_Graf_Tot!$R$1=TRUE,J99>0),BC99,NA()) ->  | L99: =IF(AND(th_24h_Graf_Tot!$Q$1=TRUE,J99>0),BD99,NA()) ->  | N99: =IF(AND(th_24h_Graf_Tot!$M$1=TRUE,E99>0),E99,NA()) ->  | O99: =IF(AND(th_24h_Graf_Tot!$V$1=TRUE,D99>0),D99,NA()) ->  | AU99: 0 | AW99: =IF(th_24h_Graf_Tot!$L$83=0,"",D99-(th_24h_Graf_Tot!$Q$82/th_24h_Graf_Tot!$L$83)*(D99-IF(I99="",TE,I99))) ->  | AY99: =IF(AND(th_24h_Graf_Tot!$A$4=TRUE,BB99>0),BB99,NA()) ->  | BA99: 0 | BB99: =IF(th_24h_Graf_Tot!$A$4=FALSE,"",IF(ISERROR(IF(AW99="","",IF(AU99/(610.5*EXP(1)^((17.269*AW99)/(237.3+AW99)))*100>100,100,AU99/(610.5*EXP(1)^((17.269*AW99)/(237.3+AW99)))*100))),"",IF(AW99="","",IF(AU99/(610.5*EXP(1)^((17.269*AW99)/(237.3+AW99)))*100>100,100,AU99/(610.5*EXP(1)^((17.269*AW99)/(237.3+AW99)))*100)))) ->  | BC99: 0 | BD99: =IF(th_24h_Graf!$J$3<0.02,BA99,IF(th_24h_Graf!$J$3<0.04,BB99,BC99)) -> 0 | BG99: =IF(AY99="",0,IF(ISERROR(IF(AY99>=th_24h_Graf!BJ99,th_24h_Graf!$J$3,0)),0,IF(AY99>=th_24h_Graf!BJ99,th_24h_Graf!$J$3,0))) ->  | BH99: 0
B100: =IF(AND(th_24h_Graf!$J$3>0.02,th_24h_Graf!$J$3<0.04),"3º día",IF(th_24h_Graf!$J$3>0.04,"5º día","")) ->  | C100: =IF(th_24h_Graf!$G$3="","",C99+th_24h_Graf!$J$3) -> 1.347222222 | G100: =IF(AND(th_24h_Graf!$J$3>0.02,th_24h_Graf!$J$3<0.04),"3º día",IF(th_24h_Graf!$J$3>0.04,"5º día","")) ->  | H100: =IF(th_24h_Graf!$G$3="","",H99+th_24h_Graf!$J$3) -> 1.347222222 | K100: =IF(AND(th_24h_Graf_Tot!$R$1=TRUE,J100>0),BC100,NA()) ->  | L100: =IF(AND(th_24h_Graf_Tot!$Q$1=TRUE,J100>0),BD100,NA()) ->  | N100: =IF(AND(th_24h_Graf_Tot!$M$1=TRUE,E100>0),E100,NA()) ->  | O100: =IF(AND(th_24h_Graf_Tot!$V$1=TRUE,D100>0),D100,NA()) ->  | AU100: 0 | AW100: =IF(th_24h_Graf_Tot!$L$83=0,"",D100-(th_24h_Graf_Tot!$Q$82/th_24h_Graf_Tot!$L$83)*(D100-IF(I100="",TE,I100))) ->  | AY100: =IF(AND(th_24h_Graf_Tot!$A$4=TRUE,BB100>0),BB100,NA()) ->  | AZ100: =IF(AND(th_24h_Graf!$J$3>0.02,th_24h_Graf!$J$3<0.04),"3º día",IF(th_24h_Graf!$J$3>0.04,"5º día","")) ->  | BA100: 0 | BB100: =IF(th_24h_Graf_Tot!$A$4=FALSE,"",IF(ISERROR(IF(AW100="","",IF(AU100/(610.5*EXP(1)^((17.269*AW100)/(237.3+AW100)))*100>100,100,AU100/(610.5*EXP(1)^((17.269*AW100)/(237.3+AW100)))*100))),"",IF(AW100="","",IF(AU100/(610.5*EXP(1)^((17.269*AW100)/(237.3+AW100)))*100>100,100,AU100/(610.5*EXP(1)^((17.269*AW100)/(237.3+AW100)))*100)))) ->  | BC100: 0 | BD100: =IF(th_24h_Graf!$J$3<0.02,BA100,IF(th_24h_Graf!$J$3<0.04,BB100,BC100)) -> 0 | BG100: =IF(AY100="",0,IF(ISERROR(IF(AY100>=th_24h_Graf!BJ100,th_24h_Graf!$J$3,0)),0,IF(AY100>=th_24h_Graf!BJ100,th_24h_Graf!$J$3,0))) ->  | BH100: 0
C101: =IF(th_24h_Graf!$G$3="","",C100+th_24h_Graf!$J$3) -> 1.361111111 | H101: =IF(th_24h_Graf!$G$3="","",H100+th_24h_Graf!$J$3) -> 1.361111111 | K101: =IF(AND(th_24h_Graf_Tot!$R$1=TRUE,J101>0),BC101,NA()) ->  | L101: =IF(AND(th_24h_Graf_Tot!$Q$1=TRUE,J101>0),BD101,NA()) ->  | N101: =IF(AND(th_24h_Graf_Tot!$M$1=TRUE,E101>0),E101,NA()) ->  | O101: =IF(AND(th_24h_Graf_Tot!$V$1=TRUE,D101>0),D101,NA()) ->  | AU101: 0 | AW101: =IF(th_24h_Graf_Tot!$L$83=0,"",D101-(th_24h_Graf_Tot!$Q$82/th_24h_Graf_Tot!$L$83)*(D101-IF(I101="",TE,I101))) ->  | AY101: =IF(AND(th_24h_Graf_Tot!$A$4=TRUE,BB101>0),BB101,NA()) ->  | BA101: 0 | BB101: =IF(th_24h_Graf_Tot!$A$4=FALSE,"",IF(ISERROR(IF(AW101="","",IF(AU101/(610.5*EXP(1)^((17.269*AW101)/(237.3+AW101)))*100>100,100,AU101/(610.5*EXP(1)^((17.269*AW101)/(237.3+AW101)))*100))),"",IF(AW101="","",IF(AU101/(610.5*EXP(1)^((17.269*AW101)/(237.3+AW101)))*100>100,100,AU101/(610.5*EXP(1)^((17.269*AW101)/(237.3+AW101)))*100)))) ->  | BC101: 0 | BD101: =IF(th_24h_Graf!$J$3<0.02,BA101,IF(th_24h_Graf!$J$3<0.04,BB101,BC101)) -> 0 | BG101: =IF(AY101="",0,IF(ISERROR(IF(AY101>=th_24h_Graf!BJ101,th_24h_Graf!$J$3,0)),0,IF(AY101>=th_24h_Graf!BJ101,th_24h_Graf!$J$3,0))) ->  | BH101: 0
C102: =IF(th_24h_Graf!$G$3="","",C101+th_24h_Graf!$J$3) -> 1.375 | H102: =IF(th_24h_Graf!$G$3="","",H101+th_24h_Graf!$J$3) -> 1.375 | K102: =IF(AND(th_24h_Graf_Tot!$R$1=TRUE,J102>0),BC102,NA()) ->  | L102: =IF(AND(th_24h_Graf_Tot!$Q$1=TRUE,J102>0),BD102,NA()) ->  | N102: =IF(AND(th_24h_Graf_Tot!$M$1=TRUE,E102>0),E102,NA()) ->  | O102: =IF(AND(th_24h_Graf_Tot!$V$1=TRUE,D102>0),D102,NA()) ->  | AU102: 0 | AW102: =IF(th_24h_Graf_Tot!$L$83=0,"",D102-(th_24h_Graf_Tot!$Q$82/th_24h_Graf_Tot!$L$83)*(D102-IF(I102="",TE,I102))) ->  | AY102: =IF(AND(th_24h_Graf_Tot!$A$4=TRUE,BB102>0),BB102,NA()) ->  | BA102: 0 | BB102: =IF(th_24h_Graf_Tot!$A$4=FALSE,"",IF(ISERROR(IF(AW102="","",IF(AU102/(610.5*EXP(1)^((17.269*AW102)/(237.3+AW102)))*100>100,100,AU102/(610.5*EXP(1)^((17.269*AW102)/(237.3+AW102)))*100))),"",IF(AW102="","",IF(AU102/(610.5*EXP(1)^((17.269*AW102)/(237.3+AW102)))*100>100,100,AU102/(610.5*EXP(1)^((17.269*AW102)/(237.3+AW102)))*100)))) ->  | BC102: 0 | BD102: =IF(th_24h_Graf!$J$3<0.02,BA102,IF(th_24h_Graf!$J$3<0.04,BB102,BC102)) -> 0 | BG102: =IF(AY102="",0,IF(ISERROR(IF(AY102>=th_24h_Graf!BJ102,th_24h_Graf!$J$3,0)),0,IF(AY102>=th_24h_Graf!BJ102,th_24h_Graf!$J$3,0))) ->  | BH102: 0
C103: =IF(th_24h_Graf!$G$3="","",C102+th_24h_Graf!$J$3) -> 1.388888889 | H103: =IF(th_24h_Graf!$G$3="","",H102+th_24h_Graf!$J$3) -> 1.388888889 | K103: =IF(AND(th_24h_Graf_Tot!$R$1=TRUE,J103>0),BC103,NA()) ->  | L103: =IF(AND(th_24h_Graf_Tot!$Q$1=TRUE,J103>0),BD103,NA()) ->  | N103: =IF(AND(th_24h_Graf_Tot!$M$1=TRUE,E103>0),E103,NA()) ->  | O103: =IF(AND(th_24h_Graf_Tot!$V$1=TRUE,D103>0),D103,NA()) ->  | AU103: 0 | AW103: =IF(th_24h_Graf_Tot!$L$83=0,"",D103-(th_24h_Graf_Tot!$Q$82/th_24h_Graf_Tot!$L$83)*(D103-IF(I103="",TE,I103))) ->  | AY103: =IF(AND(th_24h_Graf_Tot!$A$4=TRUE,BB103>0),BB103,NA()) ->  | BA103: 0 | BB103: =IF(th_24h_Graf_Tot!$A$4=FALSE,"",IF(ISERROR(IF(AW103="","",IF(AU103/(610.5*EXP(1)^((17.269*AW103)/(237.3+AW103)))*100>100,100,AU103/(610.5*EXP(1)^((17.269*AW103)/(237.3+AW103)))*100))),"",IF(AW103="","",IF(AU103/(610.5*EXP(1)^((17.269*AW103)/(237.3+AW103)))*100>100,100,AU103/(610.5*EXP(1)^((17.269*AW103)/(237.3+AW103)))*100)))) ->  | BC103: 0 | BD103: =IF(th_24h_Graf!$J$3<0.02,BA103,IF(th_24h_Graf!$J$3<0.04,BB103,BC103)) -> 0 | BG103: =IF(AY103="",0,IF(ISERROR(IF(AY103>=th_24h_Graf!BJ103,th_24h_Graf!$J$3,0)),0,IF(AY103>=th_24h_Graf!BJ103,th_24h_Graf!$J$3,0))) ->  | BH103: 0
C104: =IF(th_24h_Graf!$G$3="","",C103+th_24h_Graf!$J$3) -> 1.402777778 | H104: =IF(th_24h_Graf!$G$3="","",H103+th_24h_Graf!$J$3) -> 1.402777778 | K104: =IF(AND(th_24h_Graf_Tot!$R$1=TRUE,J104>0),BC104,NA()) ->  | L104: =IF(AND(th_24h_Graf_Tot!$Q$1=TRUE,J104>0),BD104,NA()) ->  | N104: =IF(AND(th_24h_Graf_Tot!$M$1=TRUE,E104>0),E104,NA()) ->  | O104: =IF(AND(th_24h_Graf_Tot!$V$1=TRUE,D104>0),D104,NA()) ->  | AU104: 0 | AW104: =IF(th_24h_Graf_Tot!$L$83=0,"",D104-(th_24h_Graf_Tot!$Q$82/th_24h_Graf_Tot!$L$83)*(D104-IF(I104="",TE,I104))) ->  | AY104: =IF(AND(th_24h_Graf_Tot!$A$4=TRUE,BB104>0),BB104,NA()) ->  | BA104: 0 | BB104: =IF(th_24h_Graf_Tot!$A$4=FALSE,"",IF(ISERROR(IF(AW104="","",IF(AU104/(610.5*EXP(1)^((17.269*AW104)/(237.3+AW104)))*100>100,100,AU104/(610.5*EXP(1)^((17.269*AW104)/(237.3+AW104)))*100))),"",IF(AW104="","",IF(AU104/(610.5*EXP(1)^((17.269*AW104)/(237.3+AW104)))*100>100,100,AU104/(610.5*EXP(1)^((17.269*AW104)/(237.3+AW104)))*100)))) ->  | BC104: 0 | BD104: =IF(th_24h_Graf!$J$3<0.02,BA104,IF(th_24h_Graf!$J$3<0.04,BB104,BC104)) -> 0 | BG104: =IF(AY104="",0,IF(ISERROR(IF(AY104>=th_24h_Graf!BJ104,th_24h_Graf!$J$3,0)),0,IF(AY104>=th_24h_Graf!BJ104,th_24h_Graf!$J$3,0))) ->  | BH104: 0
C105: =IF(th_24h_Graf!$G$3="","",C104+th_24h_Graf!$J$3) -> 1.416666667 | H105: =IF(th_24h_Graf!$G$3="","",H104+th_24h_Graf!$J$3) -> 1.416666667 | K105: =IF(AND(th_24h_Graf_Tot!$R$1=TRUE,J105>0),BC105,NA()) ->  | L105: =IF(AND(th_24h_Graf_Tot!$Q$1=TRUE,J105>0),BD105,NA()) ->  | N105: =IF(AND(th_24h_Graf_Tot!$M$1=TRUE,E105>0),E105,NA()) ->  | O105: =IF(AND(th_24h_Graf_Tot!$V$1=TRUE,D105>0),D105,NA()) ->  | AU105: 0 | AW105: =IF(th_24h_Graf_Tot!$L$83=0,"",D105-(th_24h_Graf_Tot!$Q$82/th_24h_Graf_Tot!$L$83)*(D105-IF(I105="",TE,I105))) ->  | AY105: =IF(AND(th_24h_Graf_Tot!$A$4=TRUE,BB105>0),BB105,NA()) ->  | BA105: 0 | BB105: =IF(th_24h_Graf_Tot!$A$4=FALSE,"",IF(ISERROR(IF(AW105="","",IF(AU105/(610.5*EXP(1)^((17.269*AW105)/(237.3+AW105)))*100>100,100,AU105/(610.5*EXP(1)^((17.269*AW105)/(237.3+AW105)))*100))),"",IF(AW105="","",IF(AU105/(610.5*EXP(1)^((17.269*AW105)/(237.3+AW105)))*100>100,100,AU105/(610.5*EXP(1)^((17.269*AW105)/(237.3+AW105)))*100)))) ->  | BC105: 0 | BD105: =IF(th_24h_Graf!$J$3<0.02,BA105,IF(th_24h_Graf!$J$3<0.04,BB105,BC105)) -> 0 | BG105: =IF(AY105="",0,IF(ISERROR(IF(AY105>=th_24h_Graf!BJ105,th_24h_Graf!$J$3,0)),0,IF(AY105>=th_24h_Graf!BJ105,th_24h_Graf!$J$3,0))) ->  | BH105: 0
C106: =IF(th_24h_Graf!$G$3="","",C105+th_24h_Graf!$J$3) -> 1.430555556 | H106: =IF(th_24h_Graf!$G$3="","",H105+th_24h_Graf!$J$3) -> 1.430555556 | K106: =IF(AND(th_24h_Graf_Tot!$R$1=TRUE,J106>0),BC106,NA()) ->  | L106: =IF(AND(th_24h_Graf_Tot!$Q$1=TRUE,J106>0),BD106,NA()) ->  | N106: =IF(AND(th_24h_Graf_Tot!$M$1=TRUE,E106>0),E106,NA()) ->  | O106: =IF(AND(th_24h_Graf_Tot!$V$1=TRUE,D106>0),D106,NA()) ->  | AU106: 0 | AW106: =IF(th_24h_Graf_Tot!$L$83=0,"",D106-(th_24h_Graf_Tot!$Q$82/th_24h_Graf_Tot!$L$83)*(D106-IF(I106="",TE,I106))) ->  | AY106: =IF(AND(th_24h_Graf_Tot!$A$4=TRUE,BB106>0),BB106,NA()) ->  | BA106: 0 | BB106: =IF(th_24h_Graf_Tot!$A$4=FALSE,"",IF(ISERROR(IF(AW106="","",IF(AU106/(610.5*EXP(1)^((17.269*AW106)/(237.3+AW106)))*100>100,100,AU106/(610.5*EXP(1)^((17.269*AW106)/(237.3+AW106)))*100))),"",IF(AW106="","",IF(AU106/(610.5*EXP(1)^((17.269*AW106)/(237.3+AW106)))*100>100,100,AU106/(610.5*EXP(1)^((17.269*AW106)/(237.3+AW106)))*100)))) ->  | BC106: 0 | BD106: =IF(th_24h_Graf!$J$3<0.02,BA106,IF(th_24h_Graf!$J$3<0.04,BB106,BC106)) -> 0 | BG106: =IF(AY106="",0,IF(ISERROR(IF(AY106>=th_24h_Graf!BJ106,th_24h_Graf!$J$3,0)),0,IF(AY106>=th_24h_Graf!BJ106,th_24h_Graf!$J$3,0))) ->  | BH106: 0
C107: =IF(th_24h_Graf!$G$3="","",C106+th_24h_Graf!$J$3) -> 1.444444444 | H107: =IF(th_24h_Graf!$G$3="","",H106+th_24h_Graf!$J$3) -> 1.444444444 | K107: =IF(AND(th_24h_Graf_Tot!$R$1=TRUE,J107>0),BC107,NA()) ->  | L107: =IF(AND(th_24h_Graf_Tot!$Q$1=TRUE,J107>0),BD107,NA()) ->  | N107: =IF(AND(th_24h_Graf_Tot!$M$1=TRUE,E107>0),E107,NA()) ->  | O107: =IF(AND(th_24h_Graf_Tot!$V$1=TRUE,D107>0),D107,NA()) ->  | AU107: 0 | AW107: =IF(th_24h_Graf_Tot!$L$83=0,"",D107-(th_24h_Graf_Tot!$Q$82/th_24h_Graf_Tot!$L$83)*(D107-IF(I107="",TE,I107))) ->  | AY107: =IF(AND(th_24h_Graf_Tot!$A$4=TRUE,BB107>0),BB107,NA()) ->  | BA107: 0 | BB107: =IF(th_24h_Graf_Tot!$A$4=FALSE,"",IF(ISERROR(IF(AW107="","",IF(AU107/(610.5*EXP(1)^((17.269*AW107)/(237.3+AW107)))*100>100,100,AU107/(610.5*EXP(1)^((17.269*AW107)/(237.3+AW107)))*100))),"",IF(AW107="","",IF(AU107/(610.5*EXP(1)^((17.269*AW107)/(237.3+AW107)))*100>100,100,AU107/(610.5*EXP(1)^((17.269*AW107)/(237.3+AW107)))*100)))) ->  | BC107: 0 | BD107: =IF(th_24h_Graf!$J$3<0.02,BA107,IF(th_24h_Graf!$J$3<0.04,BB107,BC107)) -> 0 | BG107: =IF(AY107="",0,IF(ISERROR(IF(AY107>=th_24h_Graf!BJ107,th_24h_Graf!$J$3,0)),0,IF(AY107>=th_24h_Graf!BJ107,th_24h_Graf!$J$3,0))) ->  | BH107: 0
C108: =IF(th_24h_Graf!$G$3="","",C107+th_24h_Graf!$J$3) -> 1.458333333 | H108: =IF(th_24h_Graf!$G$3="","",H107+th_24h_Graf!$J$3) -> 1.458333333 | K108: =IF(AND(th_24h_Graf_Tot!$R$1=TRUE,J108>0),BC108,NA()) ->  | L108: =IF(AND(th_24h_Graf_Tot!$Q$1=TRUE,J108>0),BD108,NA()) ->  | N108: =IF(AND(th_24h_Graf_Tot!$M$1=TRUE,E108>0),E108,NA()) ->  | O108: =IF(AND(th_24h_Graf_Tot!$V$1=TRUE,D108>0),D108,NA()) ->  | AU108: 0 | AW108: =IF(th_24h_Graf_Tot!$L$83=0,"",D108-(th_24h_Graf_Tot!$Q$82/th_24h_Graf_Tot!$L$83)*(D108-IF(I108="",TE,I108))) ->  | AY108: =IF(AND(th_24h_Graf_Tot!$A$4=TRUE,BB108>0),BB108,NA()) ->  | BA108: =$AQ$4 -> 0 | BB108: =IF(th_24h_Graf_Tot!$A$4=FALSE,"",IF(ISERROR(IF(AW108="","",IF(AU108/(610.5*EXP(1)^((17.269*AW108)/(237.3+AW108)))*100>100,100,AU108/(610.5*EXP(1)^((17.269*AW108)/(237.3+AW108)))*100))),"",IF(AW108="","",IF(AU108/(610.5*EXP(1)^((17.269*AW108)/(237.3+AW108)))*100>100,100,AU108/(610.5*EXP(1)^((17.269*AW108)/(237.3+AW108)))*100)))) ->  | BC108: =$AR$4 -> 0 | BD108: =IF(th_24h_Graf!$J$3<0.02,BA108,IF(th_24h_Graf!$J$3<0.04,BB108,BC108)) -> 0 | BG108: =IF(AY108="",0,IF(ISERROR(IF(AY108>=th_24h_Graf!BJ108,th_24h_Graf!$J$3,0)),0,IF(AY108>=th_24h_Graf!BJ108,th_24h_Graf!$J$3,0))) ->  | BH108: 0
C109: =IF(th_24h_Graf!$G$3="","",C108+th_24h_Graf!$J$3) -> 1.472222222 | H109: =IF(th_24h_Graf!$G$3="","",H108+th_24h_Graf!$J$3) -> 1.472222222 | K109: =IF(AND(th_24h_Graf_Tot!$R$1=TRUE,J109>0),BC109,NA()) ->  | L109: =IF(AND(th_24h_Graf_Tot!$Q$1=TRUE,J109>0),BD109,NA()) ->  | N109: =IF(AND(th_24h_Graf_Tot!$M$1=TRUE,E109>0),E109,NA()) ->  | O109: =IF(AND(th_24h_Graf_Tot!$V$1=TRUE,D109>0),D109,NA()) ->  | AU109: 0 | AW109: =IF(th_24h_Graf_Tot!$L$83=0,"",D109-(th_24h_Graf_Tot!$Q$82/th_24h_Graf_Tot!$L$83)*(D109-IF(I109="",TE,I109))) ->  | AY109: =IF(AND(th_24h_Graf_Tot!$A$4=TRUE,BB109>0),BB109,NA()) ->  | BA109: 0 | BB109: =IF(th_24h_Graf_Tot!$A$4=FALSE,"",IF(ISERROR(IF(AW109="","",IF(AU109/(610.5*EXP(1)^((17.269*AW109)/(237.3+AW109)))*100>100,100,AU109/(610.5*EXP(1)^((17.269*AW109)/(237.3+AW109)))*100))),"",IF(AW109="","",IF(AU109/(610.5*EXP(1)^((17.269*AW109)/(237.3+AW109)))*100>100,100,AU109/(610.5*EXP(1)^((17.269*AW109)/(237.3+AW109)))*100)))) ->  | BC109: 0 | BD109: =IF(th_24h_Graf!$J$3<0.02,BA109,IF(th_24h_Graf!$J$3<0.04,BB109,BC109)) -> 0 | BG109: =IF(AY109="",0,IF(ISERROR(IF(AY109>=th_24h_Graf!BJ109,th_24h_Graf!$J$3,0)),0,IF(AY109>=th_24h_Graf!BJ109,th_24h_Graf!$J$3,0))) ->  | BH109: 0
C110: =IF(th_24h_Graf!$G$3="","",C109+th_24h_Graf!$J$3) -> 1.486111111 | H110: =IF(th_24h_Graf!$G$3="","",H109+th_24h_Graf!$J$3) -> 1.486111111 | K110: =IF(AND(th_24h_Graf_Tot!$R$1=TRUE,J110>0),BC110,NA()) ->  | L110: =IF(AND(th_24h_Graf_Tot!$Q$1=TRUE,J110>0),BD110,NA()) ->  | N110: =IF(AND(th_24h_Graf_Tot!$M$1=TRUE,E110>0),E110,NA()) ->  | O110: =IF(AND(th_24h_Graf_Tot!$V$1=TRUE,D110>0),D110,NA()) ->  | AU110: 0 | AW110: =IF(th_24h_Graf_Tot!$L$83=0,"",D110-(th_24h_Graf_Tot!$Q$82/th_24h_Graf_Tot!$L$83)*(D110-IF(I110="",TE,I110))) ->  | AY110: =IF(AND(th_24h_Graf_Tot!$A$4=TRUE,BB110>0),BB110,NA()) ->  | BA110: 0 | BB110: =IF(th_24h_Graf_Tot!$A$4=FALSE,"",IF(ISERROR(IF(AW110="","",IF(AU110/(610.5*EXP(1)^((17.269*AW110)/(237.3+AW110)))*100>100,100,AU110/(610.5*EXP(1)^((17.269*AW110)/(237.3+AW110)))*100))),"",IF(AW110="","",IF(AU110/(610.5*EXP(1)^((17.269*AW110)/(237.3+AW110)))*100>100,100,AU110/(610.5*EXP(1)^((17.269*AW110)/(237.3+AW110)))*100)))) ->  | BC110: 0 | BD110: =IF(th_24h_Graf!$J$3<0.02,BA110,IF(th_24h_Graf!$J$3<0.04,BB110,BC110)) -> 0 | BG110: =IF(AY110="",0,IF(ISERROR(IF(AY110>=th_24h_Graf!BJ110,th_24h_Graf!$J$3,0)),0,IF(AY110>=th_24h_Graf!BJ110,th_24h_Graf!$J$3,0))) ->  | BH110: 0
C111: =IF(th_24h_Graf!$G$3="","",C110+th_24h_Graf!$J$3) -> 1.5 | H111: =IF(th_24h_Graf!$G$3="","",H110+th_24h_Graf!$J$3) -> 1.5 | K111: =IF(AND(th_24h_Graf_Tot!$R$1=TRUE,J111>0),BC111,NA()) ->  | L111: =IF(AND(th_24h_Graf_Tot!$Q$1=TRUE,J111>0),BD111,NA()) ->  | N111: =IF(AND(th_24h_Graf_Tot!$M$1=TRUE,E111>0),E111,NA()) ->  | O111: =IF(AND(th_24h_Graf_Tot!$V$1=TRUE,D111>0),D111,NA()) ->  | AU111: 0 | AW111: =IF(th_24h_Graf_Tot!$L$83=0,"",D111-(th_24h_Graf_Tot!$Q$82/th_24h_Graf_Tot!$L$83)*(D111-IF(I111="",TE,I111))) ->  | AY111: =IF(AND(th_24h_Graf_Tot!$A$4=TRUE,BB111>0),BB111,NA()) ->  | BA111: 0 | BB111: =IF(th_24h_Graf_Tot!$A$4=FALSE,"",IF(ISERROR(IF(AW111="","",IF(AU111/(610.5*EXP(1)^((17.269*AW111)/(237.3+AW111)))*100>100,100,AU111/(610.5*EXP(1)^((17.269*AW111)/(237.3+AW111)))*100))),"",IF(AW111="","",IF(AU111/(610.5*EXP(1)^((17.269*AW111)/(237.3+AW111)))*100>100,100,AU111/(610.5*EXP(1)^((17.269*AW111)/(237.3+AW111)))*100)))) ->  | BC111: 0 | BD111: =IF(th_24h_Graf!$J$3<0.02,BA111,IF(th_24h_Graf!$J$3<0.04,BB111,BC111)) -> 0 | BG111: =IF(AY111="",0,IF(ISERROR(IF(AY111>=th_24h_Graf!BJ111,th_24h_Graf!$J$3,0)),0,IF(AY111>=th_24h_Graf!BJ111,th_24h_Graf!$J$3,0))) ->  | BH111: 0
C112: =IF(th_24h_Graf!$G$3="","",C111+th_24h_Graf!$J$3) -> 1.513888889 | H112: =IF(th_24h_Graf!$G$3="","",H111+th_24h_Graf!$J$3) -> 1.513888889 | K112: =IF(AND(th_24h_Graf_Tot!$R$1=TRUE,J112>0),BC112,NA()) ->  | L112: =IF(AND(th_24h_Graf_Tot!$Q$1=TRUE,J112>0),BD112,NA()) ->  | N112: =IF(AND(th_24h_Graf_Tot!$M$1=TRUE,E112>0),E112,NA()) ->  | O112: =IF(AND(th_24h_Graf_Tot!$V$1=TRUE,D112>0),D112,NA()) ->  | AU112: 0 | AW112: =IF(th_24h_Graf_Tot!$L$83=0,"",D112-(th_24h_Graf_Tot!$Q$82/th_24h_Graf_Tot!$L$83)*(D112-IF(I112="",TE,I112))) ->  | AY112: =IF(AND(th_24h_Graf_Tot!$A$4=TRUE,BB112>0),BB112,NA()) ->  | BA112: 0 | BB112: =IF(th_24h_Graf_Tot!$A$4=FALSE,"",IF(ISERROR(IF(AW112="","",IF(AU112/(610.5*EXP(1)^((17.269*AW112)/(237.3+AW112)))*100>100,100,AU112/(610.5*EXP(1)^((17.269*AW112)/(237.3+AW112)))*100))),"",IF(AW112="","",IF(AU112/(610.5*EXP(1)^((17.269*AW112)/(237.3+AW112)))*100>100,100,AU112/(610.5*EXP(1)^((17.269*AW112)/(237.3+AW112)))*100)))) ->  | BC112: 0 | BD112: =IF(th_24h_Graf!$J$3<0.02,BA112,IF(th_24h_Graf!$J$3<0.04,BB112,BC112)) -> 0 | BG112: =IF(AY112="",0,IF(ISERROR(IF(AY112>=th_24h_Graf!BJ112,th_24h_Graf!$J$3,0)),0,IF(AY112>=th_24h_Graf!BJ112,th_24h_Graf!$J$3,0))) ->  | BH112: 0
C113: =IF(th_24h_Graf!$G$3="","",C112+th_24h_Graf!$J$3) -> 1.527777778 | H113: =IF(th_24h_Graf!$G$3="","",H112+th_24h_Graf!$J$3) -> 1.527777778 | K113: =IF(AND(th_24h_Graf_Tot!$R$1=TRUE,J113>0),BC113,NA()) ->  | L113: =IF(AND(th_24h_Graf_Tot!$Q$1=TRUE,J113>0),BD113,NA()) ->  | N113: =IF(AND(th_24h_Graf_Tot!$M$1=TRUE,E113>0),E113,NA()) ->  | O113: =IF(AND(th_24h_Graf_Tot!$V$1=TRUE,D113>0),D113,NA()) ->  | AU113: 0 | AW113: =IF(th_24h_Graf_Tot!$L$83=0,"",D113-(th_24h_Graf_Tot!$Q$82/th_24h_Graf_Tot!$L$83)*(D113-IF(I113="",TE,I113))) ->  | AY113: =IF(AND(th_24h_Graf_Tot!$A$4=TRUE,BB113>0),BB113,NA()) ->  | BA113: 0 | BB113: =IF(th_24h_Graf_Tot!$A$4=FALSE,"",IF(ISERROR(IF(AW113="","",IF(AU113/(610.5*EXP(1)^((17.269*AW113)/(237.3+AW113)))*100>100,100,AU113/(610.5*EXP(1)^((17.269*AW113)/(237.3+AW113)))*100))),"",IF(AW113="","",IF(AU113/(610.5*EXP(1)^((17.269*AW113)/(237.3+AW113)))*100>100,100,AU113/(610.5*EXP(1)^((17.269*AW113)/(237.3+AW113)))*100)))) ->  | BC113: 0 | BD113: =IF(th_24h_Graf!$J$3<0.02,BA113,IF(th_24h_Graf!$J$3<0.04,BB113,BC113)) -> 0 | BG113: =IF(AY113="",0,IF(ISERROR(IF(AY113>=th_24h_Graf!BJ113,th_24h_Graf!$J$3,0)),0,IF(AY113>=th_24h_Graf!BJ113,th_24h_Graf!$J$3,0))) ->  | BH113: 0
C114: =IF(th_24h_Graf!$G$3="","",C113+th_24h_Graf!$J$3) -> 1.541666667 | H114: =IF(th_24h_Graf!$G$3="","",H113+th_24h_Graf!$J$3) -> 1.541666667 | K114: =IF(AND(th_24h_Graf_Tot!$R$1=TRUE,J114>0),BC114,NA()) ->  | L114: =IF(AND(th_24h_Graf_Tot!$Q$1=TRUE,J114>0),BD114,NA()) ->  | N114: =IF(AND(th_24h_Graf_Tot!$M$1=TRUE,E114>0),E114,NA()) ->  | O114: =IF(AND(th_24h_Graf_Tot!$V$1=TRUE,D114>0),D114,NA()) ->  | AU114: 0 | AW114: =IF(th_24h_Graf_Tot!$L$83=0,"",D114-(th_24h_Graf_Tot!$Q$82/th_24h_Graf_Tot!$L$83)*(D114-IF(I114="",TE,I114))) ->  | AY114: =IF(AND(th_24h_Graf_Tot!$A$4=TRUE,BB114>0),BB114,NA()) ->  | BA114: 0 | BB114: =IF(th_24h_Graf_Tot!$A$4=FALSE,"",IF(ISERROR(IF(AW114="","",IF(AU114/(610.5*EXP(1)^((17.269*AW114)/(237.3+AW114)))*100>100,100,AU114/(610.5*EXP(1)^((17.269*AW114)/(237.3+AW114)))*100))),"",IF(AW114="","",IF(AU114/(610.5*EXP(1)^((17.269*AW114)/(237.3+AW114)))*100>100,100,AU114/(610.5*EXP(1)^((17.269*AW114)/(237.3+AW114)))*100)))) ->  | BC114: 0 | BD114: =IF(th_24h_Graf!$J$3<0.02,BA114,IF(th_24h_Graf!$J$3<0.04,BB114,BC114)) -> 0 | BG114: =IF(AY114="",0,IF(ISERROR(IF(AY114>=th_24h_Graf!BJ114,th_24h_Graf!$J$3,0)),0,IF(AY114>=th_24h_Graf!BJ114,th_24h_Graf!$J$3,0))) ->  | BH114: 0
C115: =IF(th_24h_Graf!$G$3="","",C114+th_24h_Graf!$J$3) -> 1.555555556 | H115: =IF(th_24h_Graf!$G$3="","",H114+th_24h_Graf!$J$3) -> 1.555555556 | K115: =IF(AND(th_24h_Graf_Tot!$R$1=TRUE,J115>0),BC115,NA()) ->  | L115: =IF(AND(th_24h_Graf_Tot!$Q$1=TRUE,J115>0),BD115,NA()) ->  | N115: =IF(AND(th_24h_Graf_Tot!$M$1=TRUE,E115>0),E115,NA()) ->  | O115: =IF(AND(th_24h_Graf_Tot!$V$1=TRUE,D115>0),D115,NA()) ->  | AU115: 0 | AW115: =IF(th_24h_Graf_Tot!$L$83=0,"",D115-(th_24h_Graf_Tot!$Q$82/th_24h_Graf_Tot!$L$83)*(D115-IF(I115="",TE,I115))) ->  | AY115: =IF(AND(th_24h_Graf_Tot!$A$4=TRUE,BB115>0),BB115,NA()) ->  | BA115: 0 | BB115: =IF(th_24h_Graf_Tot!$A$4=FALSE,"",IF(ISERROR(IF(AW115="","",IF(AU115/(610.5*EXP(1)^((17.269*AW115)/(237.3+AW115)))*100>100,100,AU115/(610.5*EXP(1)^((17.269*AW115)/(237.3+AW115)))*100))),"",IF(AW115="","",IF(AU115/(610.5*EXP(1)^((17.269*AW115)/(237.3+AW115)))*100>100,100,AU115/(610.5*EXP(1)^((17.269*AW115)/(237.3+AW115)))*100)))) ->  | BC115: 0 | BD115: =IF(th_24h_Graf!$J$3<0.02,BA115,IF(th_24h_Graf!$J$3<0.04,BB115,BC115)) -> 0 | BG115: =IF(AY115="",0,IF(ISERROR(IF(AY115>=th_24h_Graf!BJ115,th_24h_Graf!$J$3,0)),0,IF(AY115>=th_24h_Graf!BJ115,th_24h_Graf!$J$3,0))) ->  | BH115: 0
C116: =IF(th_24h_Graf!$G$3="","",C115+th_24h_Graf!$J$3) -> 1.569444444 | H116: =IF(th_24h_Graf!$G$3="","",H115+th_24h_Graf!$J$3) -> 1.569444444 | K116: =IF(AND(th_24h_Graf_Tot!$R$1=TRUE,J116>0),BC116,NA()) ->  | L116: =IF(AND(th_24h_Graf_Tot!$Q$1=TRUE,J116>0),BD116,NA()) ->  | N116: =IF(AND(th_24h_Graf_Tot!$M$1=TRUE,E116>0),E116,NA()) ->  | O116: =IF(AND(th_24h_Graf_Tot!$V$1=TRUE,D116>0),D116,NA()) ->  | AU116: 0 | AW116: =IF(th_24h_Graf_Tot!$L$83=0,"",D116-(th_24h_Graf_Tot!$Q$82/th_24h_Graf_Tot!$L$83)*(D116-IF(I116="",TE,I116))) ->  | AY116: =IF(AND(th_24h_Graf_Tot!$A$4=TRUE,BB116>0),BB116,NA()) ->  | BA116: 0 | BB116: =IF(th_24h_Graf_Tot!$A$4=FALSE,"",IF(ISERROR(IF(AW116="","",IF(AU116/(610.5*EXP(1)^((17.269*AW116)/(237.3+AW116)))*100>100,100,AU116/(610.5*EXP(1)^((17.269*AW116)/(237.3+AW116)))*100))),"",IF(AW116="","",IF(AU116/(610.5*EXP(1)^((17.269*AW116)/(237.3+AW116)))*100>100,100,AU116/(610.5*EXP(1)^((17.269*AW116)/(237.3+AW116)))*100)))) ->  | BC116: 0 | BD116: =IF(th_24h_Graf!$J$3<0.02,BA116,IF(th_24h_Graf!$J$3<0.04,BB116,BC116)) -> 0 | BG116: =IF(AY116="",0,IF(ISERROR(IF(AY116>=th_24h_Graf!BJ116,th_24h_Graf!$J$3,0)),0,IF(AY116>=th_24h_Graf!BJ116,th_24h_Graf!$J$3,0))) ->  | BH116: 0
C117: =IF(th_24h_Graf!$G$3="","",C116+th_24h_Graf!$J$3) -> 1.583333333 | H117: =IF(th_24h_Graf!$G$3="","",H116+th_24h_Graf!$J$3) -> 1.583333333 | K117: =IF(AND(th_24h_Graf_Tot!$R$1=TRUE,J117>0),BC117,NA()) ->  | L117: =IF(AND(th_24h_Graf_Tot!$Q$1=TRUE,J117>0),BD117,NA()) ->  | N117: =IF(AND(th_24h_Graf_Tot!$M$1=TRUE,E117>0),E117,NA()) ->  | O117: =IF(AND(th_24h_Graf_Tot!$V$1=TRUE,D117>0),D117,NA()) ->  | AU117: 0 | AW117: =IF(th_24h_Graf_Tot!$L$83=0,"",D117-(th_24h_Graf_Tot!$Q$82/th_24h_Graf_Tot!$L$83)*(D117-IF(I117="",TE,I117))) ->  | AY117: =IF(AND(th_24h_Graf_Tot!$A$4=TRUE,BB117>0),BB117,NA()) ->  | BA117: 0 | BB117: =IF(th_24h_Graf_Tot!$A$4=FALSE,"",IF(ISERROR(IF(AW117="","",IF(AU117/(610.5*EXP(1)^((17.269*AW117)/(237.3+AW117)))*100>100,100,AU117/(610.5*EXP(1)^((17.269*AW117)/(237.3+AW117)))*100))),"",IF(AW117="","",IF(AU117/(610.5*EXP(1)^((17.269*AW117)/(237.3+AW117)))*100>100,100,AU117/(610.5*EXP(1)^((17.269*AW117)/(237.3+AW117)))*100)))) ->  | BC117: 0 | BD117: =IF(th_24h_Graf!$J$3<0.02,BA117,IF(th_24h_Graf!$J$3<0.04,BB117,BC117)) -> 0 | BG117: =IF(AY117="",0,IF(ISERROR(IF(AY117>=th_24h_Graf!BJ117,th_24h_Graf!$J$3,0)),0,IF(AY117>=th_24h_Graf!BJ117,th_24h_Graf!$J$3,0))) ->  | BH117: 0
C118: =IF(th_24h_Graf!$G$3="","",C117+th_24h_Graf!$J$3) -> 1.597222222 | H118: =IF(th_24h_Graf!$G$3="","",H117+th_24h_Graf!$J$3) -> 1.597222222 | K118: =IF(AND(th_24h_Graf_Tot!$R$1=TRUE,J118>0),BC118,NA()) ->  | L118: =IF(AND(th_24h_Graf_Tot!$Q$1=TRUE,J118>0),BD118,NA()) ->  | N118: =IF(AND(th_24h_Graf_Tot!$M$1=TRUE,E118>0),E118,NA()) ->  | O118: =IF(AND(th_24h_Graf_Tot!$V$1=TRUE,D118>0),D118,NA()) ->  | AU118: 0 | AW118: =IF(th_24h_Graf_Tot!$L$83=0,"",D118-(th_24h_Graf_Tot!$Q$82/th_24h_Graf_Tot!$L$83)*(D118-IF(I118="",TE,I118))) ->  | AY118: =IF(AND(th_24h_Graf_Tot!$A$4=TRUE,BB118>0),BB118,NA()) ->  | BA118: 0 | BB118: =IF(th_24h_Graf_Tot!$A$4=FALSE,"",IF(ISERROR(IF(AW118="","",IF(AU118/(610.5*EXP(1)^((17.269*AW118)/(237.3+AW118)))*100>100,100,AU118/(610.5*EXP(1)^((17.269*AW118)/(237.3+AW118)))*100))),"",IF(AW118="","",IF(AU118/(610.5*EXP(1)^((17.269*AW118)/(237.3+AW118)))*100>100,100,AU118/(610.5*EXP(1)^((17.269*AW118)/(237.3+AW118)))*100)))) ->  | BC118: 0 | BD118: =IF(th_24h_Graf!$J$3<0.02,BA118,IF(th_24h_Graf!$J$3<0.04,BB118,BC118)) -> 0 | BG118: =IF(AY118="",0,IF(ISERROR(IF(AY118>=th_24h_Graf!BJ118,th_24h_Graf!$J$3,0)),0,IF(AY118>=th_24h_Graf!BJ118,th_24h_Graf!$J$3,0))) ->  | BH118: 0
C119: =IF(th_24h_Graf!$G$3="","",C118+th_24h_Graf!$J$3) -> 1.611111111 | H119: =IF(th_24h_Graf!$G$3="","",H118+th_24h_Graf!$J$3) -> 1.611111111 | K119: =IF(AND(th_24h_Graf_Tot!$R$1=TRUE,J119>0),BC119,NA()) ->  | L119: =IF(AND(th_24h_Graf_Tot!$Q$1=TRUE,J119>0),BD119,NA()) ->  | N119: =IF(AND(th_24h_Graf_Tot!$M$1=TRUE,E119>0),E119,NA()) ->  | O119: =IF(AND(th_24h_Graf_Tot!$V$1=TRUE,D119>0),D119,NA()) ->  | AU119: 0 | AW119: =IF(th_24h_Graf_Tot!$L$83=0,"",D119-(th_24h_Graf_Tot!$Q$82/th_24h_Graf_Tot!$L$83)*(D119-IF(I119="",TE,I119))) ->  | AY119: =IF(AND(th_24h_Graf_Tot!$A$4=TRUE,BB119>0),BB119,NA()) ->  | BA119: 0 | BB119: =IF(th_24h_Graf_Tot!$A$4=FALSE,"",IF(ISERROR(IF(AW119="","",IF(AU119/(610.5*EXP(1)^((17.269*AW119)/(237.3+AW119)))*100>100,100,AU119/(610.5*EXP(1)^((17.269*AW119)/(237.3+AW119)))*100))),"",IF(AW119="","",IF(AU119/(610.5*EXP(1)^((17.269*AW119)/(237.3+AW119)))*100>100,100,AU119/(610.5*EXP(1)^((17.269*AW119)/(237.3+AW119)))*100)))) ->  | BC119: 0 | BD119: =IF(th_24h_Graf!$J$3<0.02,BA119,IF(th_24h_Graf!$J$3<0.04,BB119,BC119)) -> 0 | BG119: =IF(AY119="",0,IF(ISERROR(IF(AY119>=th_24h_Graf!BJ119,th_24h_Graf!$J$3,0)),0,IF(AY119>=th_24h_Graf!BJ119,th_24h_Graf!$J$3,0))) ->  | BH119: 0
C120: =IF(th_24h_Graf!$G$3="","",C119+th_24h_Graf!$J$3) -> 1.625 | H120: =IF(th_24h_Graf!$G$3="","",H119+th_24h_Graf!$J$3) -> 1.625 | K120: =IF(AND(th_24h_Graf_Tot!$R$1=TRUE,J120>0),BC120,NA()) ->  | L120: =IF(AND(th_24h_Graf_Tot!$Q$1=TRUE,J120>0),BD120,NA()) ->  | N120: =IF(AND(th_24h_Graf_Tot!$M$1=TRUE,E120>0),E120,NA()) ->  | O120: =IF(AND(th_24h_Graf_Tot!$V$1=TRUE,D120>0),D120,NA()) ->  | AU120: 0 | AW120: =IF(th_24h_Graf_Tot!$L$83=0,"",D120-(th_24h_Graf_Tot!$Q$82/th_24h_Graf_Tot!$L$83)*(D120-IF(I120="",TE,I120))) ->  | AY120: =IF(AND(th_24h_Graf_Tot!$A$4=TRUE,BB120>0),BB120,NA()) ->  | BA120: 0 | BB120: =IF(th_24h_Graf_Tot!$A$4=FALSE,"",IF(ISERROR(IF(AW120="","",IF(AU120/(610.5*EXP(1)^((17.269*AW120)/(237.3+AW120)))*100>100,100,AU120/(610.5*EXP(1)^((17.269*AW120)/(237.3+AW120)))*100))),"",IF(AW120="","",IF(AU120/(610.5*EXP(1)^((17.269*AW120)/(237.3+AW120)))*100>100,100,AU120/(610.5*EXP(1)^((17.269*AW120)/(237.3+AW120)))*100)))) ->  | BC120: 0 | BD120: =IF(th_24h_Graf!$J$3<0.02,BA120,IF(th_24h_Graf!$J$3<0.04,BB120,BC120)) -> 0 | BG120: =IF(AY120="",0,IF(ISERROR(IF(AY120>=th_24h_Graf!BJ120,th_24h_Graf!$J$3,0)),0,IF(AY120>=th_24h_Graf!BJ120,th_24h_Graf!$J$3,0))) ->  | BH120: 0
C121: =IF(th_24h_Graf!$G$3="","",C120+th_24h_Graf!$J$3) -> 1.638888889 | H121: =IF(th_24h_Graf!$G$3="","",H120+th_24h_Graf!$J$3) -> 1.638888889 | K121: =IF(AND(th_24h_Graf_Tot!$R$1=TRUE,J121>0),BC121,NA()) ->  | L121: =IF(AND(th_24h_Graf_Tot!$Q$1=TRUE,J121>0),BD121,NA()) ->  | N121: =IF(AND(th_24h_Graf_Tot!$M$1=TRUE,E121>0),E121,NA()) ->  | O121: =IF(AND(th_24h_Graf_Tot!$V$1=TRUE,D121>0),D121,NA()) ->  | AU121: 0 | AW121: =IF(th_24h_Graf_Tot!$L$83=0,"",D121-(th_24h_Graf_Tot!$Q$82/th_24h_Graf_Tot!$L$83)*(D121-IF(I121="",TE,I121))) ->  | AY121: =IF(AND(th_24h_Graf_Tot!$A$4=TRUE,BB121>0),BB121,NA()) ->  | BA121: 0 | BB121: =IF(th_24h_Graf_Tot!$A$4=FALSE,"",IF(ISERROR(IF(AW121="","",IF(AU121/(610.5*EXP(1)^((17.269*AW121)/(237.3+AW121)))*100>100,100,AU121/(610.5*EXP(1)^((17.269*AW121)/(237.3+AW121)))*100))),"",IF(AW121="","",IF(AU121/(610.5*EXP(1)^((17.269*AW121)/(237.3+AW121)))*100>100,100,AU121/(610.5*EXP(1)^((17.269*AW121)/(237.3+AW121)))*100)))) ->  | BC121: 0 | BD121: =IF(th_24h_Graf!$J$3<0.02,BA121,IF(th_24h_Graf!$J$3<0.04,BB121,BC121)) -> 0 | BG121: =IF(AY121="",0,IF(ISERROR(IF(AY121>=th_24h_Graf!BJ121,th_24h_Graf!$J$3,0)),0,IF(AY121>=th_24h_Graf!BJ121,th_24h_Graf!$J$3,0))) ->  | BH121: 0
C122: =IF(th_24h_Graf!$G$3="","",C121+th_24h_Graf!$J$3) -> 1.652777778 | H122: =IF(th_24h_Graf!$G$3="","",H121+th_24h_Graf!$J$3) -> 1.652777778 | K122: =IF(AND(th_24h_Graf_Tot!$R$1=TRUE,J122>0),BC122,NA()) ->  | L122: =IF(AND(th_24h_Graf_Tot!$Q$1=TRUE,J122>0),BD122,NA()) ->  | N122: =IF(AND(th_24h_Graf_Tot!$M$1=TRUE,E122>0),E122,NA()) ->  | O122: =IF(AND(th_24h_Graf_Tot!$V$1=TRUE,D122>0),D122,NA()) ->  | AU122: 0 | AW122: =IF(th_24h_Graf_Tot!$L$83=0,"",D122-(th_24h_Graf_Tot!$Q$82/th_24h_Graf_Tot!$L$83)*(D122-IF(I122="",TE,I122))) ->  | AY122: =IF(AND(th_24h_Graf_Tot!$A$4=TRUE,BB122>0),BB122,NA()) ->  | BA122: 0 | BB122: =IF(th_24h_Graf_Tot!$A$4=FALSE,"",IF(ISERROR(IF(AW122="","",IF(AU122/(610.5*EXP(1)^((17.269*AW122)/(237.3+AW122)))*100>100,100,AU122/(610.5*EXP(1)^((17.269*AW122)/(237.3+AW122)))*100))),"",IF(AW122="","",IF(AU122/(610.5*EXP(1)^((17.269*AW122)/(237.3+AW122)))*100>100,100,AU122/(610.5*EXP(1)^((17.269*AW122)/(237.3+AW122)))*100)))) ->  | BC122: 0 | BD122: =IF(th_24h_Graf!$J$3<0.02,BA122,IF(th_24h_Graf!$J$3<0.04,BB122,BC122)) -> 0 | BG122: =IF(AY122="",0,IF(ISERROR(IF(AY122>=th_24h_Graf!BJ122,th_24h_Graf!$J$3,0)),0,IF(AY122>=th_24h_Graf!BJ122,th_24h_Graf!$J$3,0))) ->  | BH122: 0
C123: =IF(th_24h_Graf!$G$3="","",C122+th_24h_Graf!$J$3) -> 1.666666667 | H123: =IF(th_24h_Graf!$G$3="","",H122+th_24h_Graf!$J$3) -> 1.666666667 | K123: =IF(AND(th_24h_Graf_Tot!$R$1=TRUE,J123>0),BC123,NA()) ->  | L123: =IF(AND(th_24h_Graf_Tot!$Q$1=TRUE,J123>0),BD123,NA()) ->  | N123: =IF(AND(th_24h_Graf_Tot!$M$1=TRUE,E123>0),E123,NA()) ->  | O123: =IF(AND(th_24h_Graf_Tot!$V$1=TRUE,D123>0),D123,NA()) ->  | AU123: 0 | AW123: =IF(th_24h_Graf_Tot!$L$83=0,"",D123-(th_24h_Graf_Tot!$Q$82/th_24h_Graf_Tot!$L$83)*(D123-IF(I123="",TE,I123))) ->  | AY123: =IF(AND(th_24h_Graf_Tot!$A$4=TRUE,BB123>0),BB123,NA()) ->  | BA123: 0 | BB123: =IF(th_24h_Graf_Tot!$A$4=FALSE,"",IF(ISERROR(IF(AW123="","",IF(AU123/(610.5*EXP(1)^((17.269*AW123)/(237.3+AW123)))*100>100,100,AU123/(610.5*EXP(1)^((17.269*AW123)/(237.3+AW123)))*100))),"",IF(AW123="","",IF(AU123/(610.5*EXP(1)^((17.269*AW123)/(237.3+AW123)))*100>100,100,AU123/(610.5*EXP(1)^((17.269*AW123)/(237.3+AW123)))*100)))) ->  | BC123: 0 | BD123: =IF(th_24h_Graf!$J$3<0.02,BA123,IF(th_24h_Graf!$J$3<0.04,BB123,BC123)) -> 0 | BG123: =IF(AY123="",0,IF(ISERROR(IF(AY123>=th_24h_Graf!BJ123,th_24h_Graf!$J$3,0)),0,IF(AY123>=th_24h_Graf!BJ123,th_24h_Graf!$J$3,0))) ->  | BH123: 0
B124: =IF(th_24h_Graf!$J$3>0.04,"6º día","") ->  | C124: =IF(th_24h_Graf!$G$3="","",C123+th_24h_Graf!$J$3) -> 1.680555556 | G124: =IF(th_24h_Graf!$J$3>0.04,"6º día","") ->  | H124: =IF(th_24h_Graf!$G$3="","",H123+th_24h_Graf!$J$3) -> 1.680555556 | K124: =IF(AND(th_24h_Graf_Tot!$R$1=TRUE,J124>0),BC124,NA()) ->  | L124: =IF(AND(th_24h_Graf_Tot!$Q$1=TRUE,J124>0),BD124,NA()) ->  | N124: =IF(AND(th_24h_Graf_Tot!$M$1=TRUE,E124>0),E124,NA()) ->  | O124: =IF(AND(th_24h_Graf_Tot!$V$1=TRUE,D124>0),D124,NA()) ->  | AU124: 0 | AW124: =IF(th_24h_Graf_Tot!$L$83=0,"",D124-(th_24h_Graf_Tot!$Q$82/th_24h_Graf_Tot!$L$83)*(D124-IF(I124="",TE,I124))) ->  | AY124: =IF(AND(th_24h_Graf_Tot!$A$4=TRUE,BB124>0),BB124,NA()) ->  | AZ124: =IF(th_24h_Graf!$J$3>0.04,"6º día","") ->  | BA124: 0 | BB124: =IF(th_24h_Graf_Tot!$A$4=FALSE,"",IF(ISERROR(IF(AW124="","",IF(AU124/(610.5*EXP(1)^((17.269*AW124)/(237.3+AW124)))*100>100,100,AU124/(610.5*EXP(1)^((17.269*AW124)/(237.3+AW124)))*100))),"",IF(AW124="","",IF(AU124/(610.5*EXP(1)^((17.269*AW124)/(237.3+AW124)))*100>100,100,AU124/(610.5*EXP(1)^((17.269*AW124)/(237.3+AW124)))*100)))) ->  | BC124: 0 | BD124: =IF(th_24h_Graf!$J$3<0.02,BA124,IF(th_24h_Graf!$J$3<0.04,BB124,BC124)) -> 0 | BG124: =IF(AY124="",0,IF(ISERROR(IF(AY124>=th_24h_Graf!BJ124,th_24h_Graf!$J$3,0)),0,IF(AY124>=th_24h_Graf!BJ124,th_24h_Graf!$J$3,0))) ->  | BH124: 0
C125: =IF(th_24h_Graf!$G$3="","",C124+th_24h_Graf!$J$3) -> 1.694444444 | H125: =IF(th_24h_Graf!$G$3="","",H124+th_24h_Graf!$J$3) -> 1.694444444 | K125: =IF(AND(th_24h_Graf_Tot!$R$1=TRUE,J125>0),BC125,NA()) ->  | L125: =IF(AND(th_24h_Graf_Tot!$Q$1=TRUE,J125>0),BD125,NA()) ->  | N125: =IF(AND(th_24h_Graf_Tot!$M$1=TRUE,E125>0),E125,NA()) ->  | O125: =IF(AND(th_24h_Graf_Tot!$V$1=TRUE,D125>0),D125,NA()) ->  | AU125: 0 | AW125: =IF(th_24h_Graf_Tot!$L$83=0,"",D125-(th_24h_Graf_Tot!$Q$82/th_24h_Graf_Tot!$L$83)*(D125-IF(I125="",TE,I125))) ->  | AY125: =IF(AND(th_24h_Graf_Tot!$A$4=TRUE,BB125>0),BB125,NA()) ->  | BA125: 0 | BB125: =IF(th_24h_Graf_Tot!$A$4=FALSE,"",IF(ISERROR(IF(AW125="","",IF(AU125/(610.5*EXP(1)^((17.269*AW125)/(237.3+AW125)))*100>100,100,AU125/(610.5*EXP(1)^((17.269*AW125)/(237.3+AW125)))*100))),"",IF(AW125="","",IF(AU125/(610.5*EXP(1)^((17.269*AW125)/(237.3+AW125)))*100>100,100,AU125/(610.5*EXP(1)^((17.269*AW125)/(237.3+AW125)))*100)))) ->  | BC125: 0 | BD125: =IF(th_24h_Graf!$J$3<0.02,BA125,IF(th_24h_Graf!$J$3<0.04,BB125,BC125)) -> 0 | BG125: =IF(AY125="",0,IF(ISERROR(IF(AY125>=th_24h_Graf!BJ125,th_24h_Graf!$J$3,0)),0,IF(AY125>=th_24h_Graf!BJ125,th_24h_Graf!$J$3,0))) ->  | BH125: 0
C126: =IF(th_24h_Graf!$G$3="","",C125+th_24h_Graf!$J$3) -> 1.708333333 | H126: =IF(th_24h_Graf!$G$3="","",H125+th_24h_Graf!$J$3) -> 1.708333333 | K126: =IF(AND(th_24h_Graf_Tot!$R$1=TRUE,J126>0),BC126,NA()) ->  | L126: =IF(AND(th_24h_Graf_Tot!$Q$1=TRUE,J126>0),BD126,NA()) ->  | N126: =IF(AND(th_24h_Graf_Tot!$M$1=TRUE,E126>0),E126,NA()) ->  | O126: =IF(AND(th_24h_Graf_Tot!$V$1=TRUE,D126>0),D126,NA()) ->  | AU126: 0 | AW126: =IF(th_24h_Graf_Tot!$L$83=0,"",D126-(th_24h_Graf_Tot!$Q$82/th_24h_Graf_Tot!$L$83)*(D126-IF(I126="",TE,I126))) ->  | AY126: =IF(AND(th_24h_Graf_Tot!$A$4=TRUE,BB126>0),BB126,NA()) ->  | BA126: 0 | BB126: =IF(th_24h_Graf_Tot!$A$4=FALSE,"",IF(ISERROR(IF(AW126="","",IF(AU126/(610.5*EXP(1)^((17.269*AW126)/(237.3+AW126)))*100>100,100,AU126/(610.5*EXP(1)^((17.269*AW126)/(237.3+AW126)))*100))),"",IF(AW126="","",IF(AU126/(610.5*EXP(1)^((17.269*AW126)/(237.3+AW126)))*100>100,100,AU126/(610.5*EXP(1)^((17.269*AW126)/(237.3+AW126)))*100)))) ->  | BC126: 0 | BD126: =IF(th_24h_Graf!$J$3<0.02,BA126,IF(th_24h_Graf!$J$3<0.04,BB126,BC126)) -> 0 | BG126: =IF(AY126="",0,IF(ISERROR(IF(AY126>=th_24h_Graf!BJ126,th_24h_Graf!$J$3,0)),0,IF(AY126>=th_24h_Graf!BJ126,th_24h_Graf!$J$3,0))) ->  | BH126: 0
C127: =IF(th_24h_Graf!$G$3="","",C126+th_24h_Graf!$J$3) -> 1.722222222 | H127: =IF(th_24h_Graf!$G$3="","",H126+th_24h_Graf!$J$3) -> 1.722222222 | K127: =IF(AND(th_24h_Graf_Tot!$R$1=TRUE,J127>0),BC127,NA()) ->  | L127: =IF(AND(th_24h_Graf_Tot!$Q$1=TRUE,J127>0),BD127,NA()) ->  | N127: =IF(AND(th_24h_Graf_Tot!$M$1=TRUE,E127>0),E127,NA()) ->  | O127: =IF(AND(th_24h_Graf_Tot!$V$1=TRUE,D127>0),D127,NA()) ->  | AU127: 0 | AW127: =IF(th_24h_Graf_Tot!$L$83=0,"",D127-(th_24h_Graf_Tot!$Q$82/th_24h_Graf_Tot!$L$83)*(D127-IF(I127="",TE,I127))) ->  | AY127: =IF(AND(th_24h_Graf_Tot!$A$4=TRUE,BB127>0),BB127,NA()) ->  | BA127: 0 | BB127: =IF(th_24h_Graf_Tot!$A$4=FALSE,"",IF(ISERROR(IF(AW127="","",IF(AU127/(610.5*EXP(1)^((17.269*AW127)/(237.3+AW127)))*100>100,100,AU127/(610.5*EXP(1)^((17.269*AW127)/(237.3+AW127)))*100))),"",IF(AW127="","",IF(AU127/(610.5*EXP(1)^((17.269*AW127)/(237.3+AW127)))*100>100,100,AU127/(610.5*EXP(1)^((17.269*AW127)/(237.3+AW127)))*100)))) ->  | BC127: 0 | BD127: =IF(th_24h_Graf!$J$3<0.02,BA127,IF(th_24h_Graf!$J$3<0.04,BB127,BC127)) -> 0 | BG127: =IF(AY127="",0,IF(ISERROR(IF(AY127>=th_24h_Graf!BJ127,th_24h_Graf!$J$3,0)),0,IF(AY127>=th_24h_Graf!BJ127,th_24h_Graf!$J$3,0))) ->  | BH127: 0
C128: =IF(th_24h_Graf!$G$3="","",C127+th_24h_Graf!$J$3) -> 1.736111111 | H128: =IF(th_24h_Graf!$G$3="","",H127+th_24h_Graf!$J$3) -> 1.736111111 | K128: =IF(AND(th_24h_Graf_Tot!$R$1=TRUE,J128>0),BC128,NA()) ->  | L128: =IF(AND(th_24h_Graf_Tot!$Q$1=TRUE,J128>0),BD128,NA()) ->  | N128: =IF(AND(th_24h_Graf_Tot!$M$1=TRUE,E128>0),E128,NA()) ->  | O128: =IF(AND(th_24h_Graf_Tot!$V$1=TRUE,D128>0),D128,NA()) ->  | AU128: 0 | AW128: =IF(th_24h_Graf_Tot!$L$83=0,"",D128-(th_24h_Graf_Tot!$Q$82/th_24h_Graf_Tot!$L$83)*(D128-IF(I128="",TE,I128))) ->  | AY128: =IF(AND(th_24h_Graf_Tot!$A$4=TRUE,BB128>0),BB128,NA()) ->  | BA128: 0 | BB128: =IF(th_24h_Graf_Tot!$A$4=FALSE,"",IF(ISERROR(IF(AW128="","",IF(AU128/(610.5*EXP(1)^((17.269*AW128)/(237.3+AW128)))*100>100,100,AU128/(610.5*EXP(1)^((17.269*AW128)/(237.3+AW128)))*100))),"",IF(AW128="","",IF(AU128/(610.5*EXP(1)^((17.269*AW128)/(237.3+AW128)))*100>100,100,AU128/(610.5*EXP(1)^((17.269*AW128)/(237.3+AW128)))*100)))) ->  | BC128: 0 | BD128: =IF(th_24h_Graf!$J$3<0.02,BA128,IF(th_24h_Graf!$J$3<0.04,BB128,BC128)) -> 0 | BG128: =IF(AY128="",0,IF(ISERROR(IF(AY128>=th_24h_Graf!BJ128,th_24h_Graf!$J$3,0)),0,IF(AY128>=th_24h_Graf!BJ128,th_24h_Graf!$J$3,0))) ->  | BH128: 0
C129: =IF(th_24h_Graf!$G$3="","",C128+th_24h_Graf!$J$3) -> 1.75 | H129: =IF(th_24h_Graf!$G$3="","",H128+th_24h_Graf!$J$3) -> 1.75 | K129: =IF(AND(th_24h_Graf_Tot!$R$1=TRUE,J129>0),BC129,NA()) ->  | L129: =IF(AND(th_24h_Graf_Tot!$Q$1=TRUE,J129>0),BD129,NA()) ->  | N129: =IF(AND(th_24h_Graf_Tot!$M$1=TRUE,E129>0),E129,NA()) ->  | O129: =IF(AND(th_24h_Graf_Tot!$V$1=TRUE,D129>0),D129,NA()) ->  | AU129: 0 | AW129: =IF(th_24h_Graf_Tot!$L$83=0,"",D129-(th_24h_Graf_Tot!$Q$82/th_24h_Graf_Tot!$L$83)*(D129-IF(I129="",TE,I129))) ->  | AY129: =IF(AND(th_24h_Graf_Tot!$A$4=TRUE,BB129>0),BB129,NA()) ->  | BA129: 0 | BB129: =IF(th_24h_Graf_Tot!$A$4=FALSE,"",IF(ISERROR(IF(AW129="","",IF(AU129/(610.5*EXP(1)^((17.269*AW129)/(237.3+AW129)))*100>100,100,AU129/(610.5*EXP(1)^((17.269*AW129)/(237.3+AW129)))*100))),"",IF(AW129="","",IF(AU129/(610.5*EXP(1)^((17.269*AW129)/(237.3+AW129)))*100>100,100,AU129/(610.5*EXP(1)^((17.269*AW129)/(237.3+AW129)))*100)))) ->  | BC129: 0 | BD129: =IF(th_24h_Graf!$J$3<0.02,BA129,IF(th_24h_Graf!$J$3<0.04,BB129,BC129)) -> 0 | BG129: =IF(AY129="",0,IF(ISERROR(IF(AY129>=th_24h_Graf!BJ129,th_24h_Graf!$J$3,0)),0,IF(AY129>=th_24h_Graf!BJ129,th_24h_Graf!$J$3,0))) ->  | BH129: 0
C130: =IF(th_24h_Graf!$G$3="","",C129+th_24h_Graf!$J$3) -> 1.763888889 | H130: =IF(th_24h_Graf!$G$3="","",H129+th_24h_Graf!$J$3) -> 1.763888889 | K130: =IF(AND(th_24h_Graf_Tot!$R$1=TRUE,J130>0),BC130,NA()) ->  | L130: =IF(AND(th_24h_Graf_Tot!$Q$1=TRUE,J130>0),BD130,NA()) ->  | N130: =IF(AND(th_24h_Graf_Tot!$M$1=TRUE,E130>0),E130,NA()) ->  | O130: =IF(AND(th_24h_Graf_Tot!$V$1=TRUE,D130>0),D130,NA()) ->  | AU130: 0 | AW130: =IF(th_24h_Graf_Tot!$L$83=0,"",D130-(th_24h_Graf_Tot!$Q$82/th_24h_Graf_Tot!$L$83)*(D130-IF(I130="",TE,I130))) ->  | AY130: =IF(AND(th_24h_Graf_Tot!$A$4=TRUE,BB130>0),BB130,NA()) ->  | BA130: 0 | BB130: =IF(th_24h_Graf_Tot!$A$4=FALSE,"",IF(ISERROR(IF(AW130="","",IF(AU130/(610.5*EXP(1)^((17.269*AW130)/(237.3+AW130)))*100>100,100,AU130/(610.5*EXP(1)^((17.269*AW130)/(237.3+AW130)))*100))),"",IF(AW130="","",IF(AU130/(610.5*EXP(1)^((17.269*AW130)/(237.3+AW130)))*100>100,100,AU130/(610.5*EXP(1)^((17.269*AW130)/(237.3+AW130)))*100)))) ->  | BC130: 0 | BD130: =IF(th_24h_Graf!$J$3<0.02,BA130,IF(th_24h_Graf!$J$3<0.04,BB130,BC130)) -> 0 | BG130: =IF(AY130="",0,IF(ISERROR(IF(AY130>=th_24h_Graf!BJ130,th_24h_Graf!$J$3,0)),0,IF(AY130>=th_24h_Graf!BJ130,th_24h_Graf!$J$3,0))) ->  | BH130: 0
C131: =IF(th_24h_Graf!$G$3="","",C130+th_24h_Graf!$J$3) -> 1.777777778 | H131: =IF(th_24h_Graf!$G$3="","",H130+th_24h_Graf!$J$3) -> 1.777777778 | K131: =IF(AND(th_24h_Graf_Tot!$R$1=TRUE,J131>0),BC131,NA()) ->  | L131: =IF(AND(th_24h_Graf_Tot!$Q$1=TRUE,J131>0),BD131,NA()) ->  | N131: =IF(AND(th_24h_Graf_Tot!$M$1=TRUE,E131>0),E131,NA()) ->  | O131: =IF(AND(th_24h_Graf_Tot!$V$1=TRUE,D131>0),D131,NA()) ->  | AU131: =610.5*EXP(1)^((17.269*D131)/(237.3+D131))*E131/100 -> 0 | AV131: =IF(AU131=0,"",237.3*LN(AU131/610.5)/(17.269-LN(AU131/610.5))) ->  | AW131: =IF(th_24h_Graf_Tot!$L$83=0,"",D131-(th_24h_Graf_Tot!$Q$82/th_24h_Graf_Tot!$L$83)*(D131-IF(I131="",TE,I131))) ->  | AX131: =IF(AU131=0,"",237.3*LN((AU131/0.8)/610.5)/(17.269-LN((AU131/0.8)/610.5))) ->  | AY131: =IF(AND(th_24h_Graf_Tot!$A$4=TRUE,BB131>0),BB131,NA()) ->  | BA131: 0 | BB131: =IF(th_24h_Graf_Tot!$A$4=FALSE,"",IF(ISERROR(IF(AW131="","",IF(AU131/(610.5*EXP(1)^((17.269*AW131)/(237.3+AW131)))*100>100,100,AU131/(610.5*EXP(1)^((17.269*AW131)/(237.3+AW131)))*100))),"",IF(AW131="","",IF(AU131/(610.5*EXP(1)^((17.269*AW131)/(237.3+AW131)))*100>100,100,AU131/(610.5*EXP(1)^((17.269*AW131)/(237.3+AW131)))*100)))) ->  | BC131: 0 | BD131: =IF(th_24h_Graf!$J$3<0.02,BA131,IF(th_24h_Graf!$J$3<0.04,BB131,BC131)) -> 0 | BG131: =IF(AY131="",0,IF(ISERROR(IF(AY131>=th_24h_Graf!BJ131,th_24h_Graf!$J$3,0)),0,IF(AY131>=th_24h_Graf!BJ131,th_24h_Graf!$J$3,0))) ->  | BH131: 0
C132: =IF(th_24h_Graf!$G$3="","",C131+th_24h_Graf!$J$3) -> 1.791666667 | H132: =IF(th_24h_Graf!$G$3="","",H131+th_24h_Graf!$J$3) -> 1.791666667 | K132: =IF(AND(th_24h_Graf_Tot!$R$1=TRUE,J132>0),BC132,NA()) ->  | L132: =IF(AND(th_24h_Graf_Tot!$Q$1=TRUE,J132>0),BD132,NA()) ->  | N132: =IF(AND(th_24h_Graf_Tot!$M$1=TRUE,E132>0),E132,NA()) ->  | O132: =IF(AND(th_24h_Graf_Tot!$V$1=TRUE,D132>0),D132,NA()) ->  | AU132: 0 | AW132: =IF(th_24h_Graf_Tot!$L$83=0,"",D132-(th_24h_Graf_Tot!$Q$82/th_24h_Graf_Tot!$L$83)*(D132-IF(I132="",TE,I132))) ->  | AY132: =IF(AND(th_24h_Graf_Tot!$A$4=TRUE,BB132>0),BB132,NA()) ->  | BA132: 0 | BB132: =IF(th_24h_Graf_Tot!$A$4=FALSE,"",IF(ISERROR(IF(AW132="","",IF(AU132/(610.5*EXP(1)^((17.269*AW132)/(237.3+AW132)))*100>100,100,AU132/(610.5*EXP(1)^((17.269*AW132)/(237.3+AW132)))*100))),"",IF(AW132="","",IF(AU132/(610.5*EXP(1)^((17.269*AW132)/(237.3+AW132)))*100>100,100,AU132/(610.5*EXP(1)^((17.269*AW132)/(237.3+AW132)))*100)))) ->  | BC132: 0 | BD132: =IF(th_24h_Graf!$J$3<0.02,BA132,IF(th_24h_Graf!$J$3<0.04,BB132,BC132)) -> 0 | BG132: =IF(AY132="",0,IF(ISERROR(IF(AY132>=th_24h_Graf!BJ132,th_24h_Graf!$J$3,0)),0,IF(AY132>=th_24h_Graf!BJ132,th_24h_Graf!$J$3,0))) ->  | BH132: =IF(D132="",0,C132-C131) -> 0
